Workbook

Sheet LowH2O DBH
B2: =IF(data!$CC$17=7,"Effektsimulering Hybridmodeller","Selectiontool LowH2O Hybrids") -> Selectiontool LowH2O Hybrids
F4: Taal/Language/Sprache/Langue/Språk/Lengua | J4: Español
F5: =IF($J$4=data!$CC$3,NL!F4,IF($J$4=data!$CC$4,EN!F4,IF($J$4=data!$CC$5,FR!F4,IF($J$4=data!$CC$6,DE!F4,IF($J$4=data!$CC$7,NR!F4,IF($J$4=data!$CC$8,SP!F4,IF($J$4=data!$CC$9,SW!F4,))))))) -> Dispositivo Hybrid | J5: Strada Hybrid
F6: =IF($J$4=data!$CC$3,NL!E4,IF($J$4=data!$CC$4,EN!E4,IF($J$4=data!$CC$5,FR!E4,IF($J$4=data!$CC$6,DE!E4,IF($J$4=data!$CC$7,NR!E4,IF($J$4=data!$CC$8,SP!E4,IF($J$4=data!$CC$9,SW!E4,)))))))&" [centimeter]" -> Versión [centimeter] | J6: OFF | K6: 50 | L6: 16 | M6: =data!H6 -> 16.5
G7: =IF($J$4=data!$CC$3,NL!B3,IF($J$4=data!$CC$4,EN!B3,IF($J$4=data!$CC$5,FR!B3,IF($J$4=data!$CC$6,DE!B3,IF($J$4=data!$CC$7,NR!B3,IF($J$4=data!$CC$8,SP!B3,IF($J$4=data!$CC$9,SW!B3,))))))) -> Longitud | H7: =IF($J$4=data!$CC$3,NL!B16,IF($J$4=data!$CC$4,EN!B16,IF($J$4=data!$CC$5,FR!B16,IF($J$4=data!$CC$6,DE!B16,IF($J$4=data!$CC$7,NR!B16,IF($J$4=data!$CC$8,SP!B16,IF($J$4=data!$CC$9,SW!B16,))))))) -> Velocidad del ventilador | K7: =IF($J$4=data!$CC$3,NL!B4,IF($J$4=data!$CC$4,EN!B4,IF($J$4=data!$CC$5,FR!B4,IF($J$4=data!$CC$6,DE!B4,IF($J$4=data!$CC$7,NR!B4,IF($J$4=data!$CC$8,SP!B4,IF($J$4=data!$CC$9,SW!B4,))))))) -> Altura | L7: =IF($J$4=data!$CC$3,NL!B5,IF($J$4=data!$CC$4,EN!B5,IF($J$4=data!$CC$5,FR!B5,IF($J$4=data!$CC$6,DE!B5,IF($J$4=data!$CC$7,NR!B5,IF($J$4=data!$CC$8,SP!B5,IF($J$4=data!$CC$9,SW!B5,))))))) -> Tipo | M7: =IF($J$4=data!$CC$3,NL!B6,IF($J$4=data!$CC$4,EN!B6,IF($J$4=data!$CC$5,FR!B6,IF($J$4=data!$CC$6,DE!B6,IF($J$4=data!$CC$7,NR!B6,IF($J$4=data!$CC$8,SP!B6,IF($J$4=data!$CC$9,SW!B6,))))))) -> Profund.
B8: =IF($J$4=data!$CC$3,NL!E5,IF($J$4=data!$CC$4,EN!E5,IF($J$4=data!$CC$5,FR!E5,IF($J$4=data!$CC$6,DE!E5,IF($J$4=data!$CC$7,NR!E5,IF($J$4=data!$CC$8,SP!E5,IF($J$4=data!$CC$9,SW!E5,))))))) -> Temperaturas
B9: =IF($J$4=data!$CC$3,NL!B8,IF($J$4=data!$CC$4,EN!B8,IF($J$4=data!$CC$5,FR!B8,IF($J$4=data!$CC$6,DE!B8,IF($J$4=data!$CC$7,NR!B8,IF($J$4=data!$CC$8,SP!B8,IF($J$4=data!$CC$9,SW!B8,))))))) -> Calefacción: | G9: =IF($J$4=data!$CC$3,NL!G8,IF($J$4=data!$CC$4,EN!G8,IF($J$4=data!$CC$5,FR!G8,IF($J$4=data!$CC$6,DE!G8,IF($J$4=data!$CC$7,NR!G8,IF($J$4=data!$CC$8,SP!G8,IF($J$4=data!$CC$9,SW!G8,))))))) -> Enfriamiento:
B10: =IF($J$4=data!$CC$3,NL!B9,IF($J$4=data!$CC$4,EN!B9,IF($J$4=data!$CC$5,FR!B9,IF($J$4=data!$CC$6,DE!B9,IF($J$4=data!$CC$7,NR!B9,IF($J$4=data!$CC$8,SP!B9,IF($J$4=data!$CC$9,SW!B9,))))))) -> Agua impulsión | C10: 0 | D10: 0 | E10: 65 | F10: =IF(data!$BZ$2=1,"°C",IF(data!$BZ$2=2,"°F",)) -> °C | G10: =B10 -> Agua impulsión | H10: 0 | I10: 0 | J10: 16 | K10: =F10 -> °C | L10: =IF($J$4=data!$CC$3,NL!G4,IF($J$4=data!$CC$4,EN!G4,IF($J$4=data!$CC$5,FR!G4,IF($J$4=data!$CC$6,DE!G4,IF($J$4=data!$CC$7,NR!G4,IF($J$4=data!$CC$8,SP!G4,IF($J$4=data!$CC$9,SW!G4,))))))) -> Convers. de unidades
B11: =IF($J$4=data!$CC$3,NL!B10,IF($J$4=data!$CC$4,EN!B10,IF($J$4=data!$CC$5,FR!B10,IF($J$4=data!$CC$6,DE!B10,IF($J$4=data!$CC$7,NR!B10,IF($J$4=data!$CC$8,SP!B10,IF($J$4=data!$CC$9,SW!B10,))))))) -> Agua retorno | C11: 0 | D11: 0 | E11: 55 | F11: =F10 -> °C | G11: =B11 -> Agua retorno | H11: 0 | I11: 0 | J11: 18 | K11: =F10 -> °C
B12: =IF($J$4=data!$CC$3,NL!B11,IF($J$4=data!$CC$4,EN!B11,IF($J$4=data!$CC$5,FR!B11,IF($J$4=data!$CC$6,DE!B11,IF($J$4=data!$CC$7,NR!B11,IF($J$4=data!$CC$8,SP!B11,IF($J$4=data!$CC$9,SW!B11,))))))) -> Ambiente (bulbo seco) | C12: 0 | D12: 0 | E12: 20 | F12: =F10 -> °C | G12: =B12 -> Ambiente (bulbo seco) | H12: 0 | I12: 0 | J12: 27 | K12: =F10 -> °C
G13: =IF($J$4=data!$CC$3,NL!$G$3,IF($J$4=data!$CC$4,EN!$G$3,IF($J$4=data!$CC$5,FR!$G$3,IF($J$4=data!$CC$6,DE!$G$3,IF($J$4=data!$CC$7,NR!$G$3,IF($J$4=data!$CC$8,SP!$G$3,IF($J$4=data!$CC$9,SW!$G$3,))))))) -> Hum. Relativa | J13: 0.5
B16: =IF($J$4=data!$CC$3,NL!B3,IF($J$4=data!$CC$4,EN!B3,IF($J$4=data!$CC$5,FR!B3,IF($J$4=data!$CC$6,DE!B3,IF($J$4=data!$CC$7,NR!B3,IF($J$4=data!$CC$8,SP!B3,IF($J$4=data!$CC$9,SW!B3,)))))))&" [cm]" -> Longitud [cm] | D16: =IF($J$4=data!$CC$3,NL!C14,IF($J$4=data!$CC$4,EN!C14,IF($J$4=data!$CC$5,FR!C14,IF($J$4=data!$CC$6,DE!C14,IF($J$4=data!$CC$7,NR!C14,IF($J$4=data!$CC$8,SP!C14,IF($J$4=data!$CC$9,SW!C14,)))))))&IF(data!BZ2=1," [W]",IF(data!BZ2=2," [Btu/h]",)) -> Emisión calefacción [W] | E16: =IF($J$4=data!$CC$3,NL!D14,IF($J$4=data!$CC$4,EN!D14,IF($J$4=data!$CC$5,FR!D14,IF($J$4=data!$CC$6,DE!D14,IF($J$4=data!$CC$7,NR!D14,IF($J$4=data!$CC$8,SP!D14,IF($J$4=data!$CC$9,SW!D14,)))))))&IF(data!BZ2=1," [kg/h]",IF(data!BZ2=2," [GPM]**",)) -> Caudal de agua, calefacción [kg/h] | F16: =IF($J$4=data!$CC$3,NL!F6,IF($J$4=data!$CC$4,EN!F6,IF($J$4=data!$CC$5,FR!F6,IF($J$4=data!$CC$6,DE!F6,IF($J$4=data!$CC$7,NR!F6,IF($J$4=data!$CC$8,SP!F6,IF($J$4=data!$CC$9,SW!F6,)))))))&" ["&IF(data!BZ2=1,"kPa",IF(data!BZ2=2,"ftH2O"))&"]" -> Pérdida de carga del agua [kPa] | G16: =IF($J$4=data!$CC$3,NL!E14,IF($J$4=data!$CC$4,EN!E14,IF($J$4=data!$CC$5,FR!E14,IF($J$4=data!$CC$6,DE!E14,IF($J$4=data!$CC$7,NR!E14,IF($J$4=data!$CC$8,SP!E14,IF($J$4=data!$CC$9,SW!E14,)))))))&IF(data!BZ2=1," [W]**",IF(data!BZ2=2," [Btu/h]*",)) -> Emisión sensible Frío [W]** | H16: =E16 -> Caudal de agua, calefacción [kg/h] | I16: =F16 -> Pérdida de carga del agua [kPa] | J16: =IF($J$4=data!$CC$3,NL!I13,IF($J$4=data!$CC$4,EN!I13,IF($J$4=data!$CC$5,FR!I13,IF($J$4=data!$CC$6,DE!I13,IF($J$4=data!$CC$7,NR!I13,IF($J$4=data!$CC$8,SP!I13,IF($J$4=data!$CC$9,SW!I13,))))))) -> Presión sonora [dB(A)]**** | K16: =IF($J$4=data!$CC$3,NL!J13,IF($J$4=data!$CC$4,EN!J13,IF($J$4=data!$CC$5,FR!J13,IF($J$4=data!$CC$6,DE!J13,IF($J$4=data!$CC$7,NR!J13,IF($J$4=data!$CC$8,SP!J13,IF($J$4=data!$CC$9,SW!J13,))))))) -> Potencia sonora [dB(A)]**** | L16: =IF($J$4=data!$CC$3,NL!H13,IF($J$4=data!$CC$4,EN!H13,IF($J$4=data!$CC$5,FR!H13,IF($J$4=data!$CC$6,DE!H13,IF($J$4=data!$CC$7,NR!H13,IF($J$4=data!$CC$8,SP!H13,IF($J$4=data!$CC$9,SW!H13,))))))) -> Potencia eléctrica absorbida [W] | M16: =IF($J$4=data!$CC$3,NL!G13,IF($J$4=data!$CC$4,EN!G13,IF($J$4=data!$CC$5,FR!G13,IF($J$4=data!$CC$6,DE!G13,IF($J$4=data!$CC$7,NR!G13,IF($J$4=data!$CC$8,SP!G13,IF($J$4=data!$CC$9,SW!G13,)))))))&IF(data!BZ2=1," [l]",IF(data!BZ2=2," [Gal]**",)) -> Volumen de agua [l]
B17: =CONCATENATE($J$5,", ",$K$7, " ",$K$6,"cm, ",$L$7, " ",$L$6) -> Strada Hybrid, Altura 50cm, Tipo 16 | C17: 0 | D17: 0 | E17: 0 | F17: 0 | G17: 0 | H17: 0 | I17: 0 | J17: 0 | K17: 0 | L17: 0 | M17: 0
B18: =IF($J$6="OFF",data!DF18,IF($J$6="26dB(A)",data!DF19,IF($J$6="30dB(A)",data!DF20,IF($J$6="MAX",data!DF21)))) -> 50 | C18: =IF($J$6="OFF",data!DG18,IF($J$6="26dB(A)",data!DG19,IF($J$6="30dB(A)",data!DG20,IF($J$6="MAX",data!DG21)))) ->  | D18: =IF($J$6="OFF",data!DH18,IF($J$6="26dB(A)",data!DH19,IF($J$6="30dB(A)",data!DH20,IF($J$6="MAX",data!DH21)))) ->  | E18: =IF($J$6="OFF",data!DI18,IF($J$6="26dB(A)",data!DI19,IF($J$6="30dB(A)",data!DI20,IF($J$6="MAX",data!DI21)))) ->  | F18: =IF($J$6="OFF",data!DJ18,IF($J$6="26dB(A)",data!DJ19,IF($J$6="30dB(A)",data!DJ20,IF($J$6="MAX",data!DJ21)))) ->  | G18: =IF($J$6="OFF",data!DK18,IF($J$6="26dB(A)",data!DK19,IF($J$6="30dB(A)",data!DK20,IF($J$6="MAX",data!DK21)))) -> 0 | H18: =IF($J$6="OFF",data!DL18,IF($J$6="26dB(A)",data!DL19,IF($J$6="30dB(A)",data!DL20,IF($J$6="MAX",data!DL21)))) -> 0 | I18: =IF($J$6="OFF",data!DM18,IF($J$6="26dB(A)",data!DM19,IF($J$6="30dB(A)",data!DM20,IF($J$6="MAX",data!DM21)))) -> 0 | J18: =IF($J$6="OFF",data!DN18,IF($J$6="26dB(A)",data!DN19,IF($J$6="30dB(A)",data!DN20,IF($J$6="MAX",data!DN21)))) -> 0 | K18: =IF($J$6="OFF",data!DO18,IF($J$6="26dB(A)",data!DO19,IF($J$6="30dB(A)",data!DO20,IF($J$6="MAX",data!DO21)))) -> 0 | L18: =IF($J$6="OFF",data!DP18,IF($J$6="26dB(A)",data!DP19,IF($J$6="30dB(A)",data!DP20,IF($J$6="MAX",data!DP21)))) -> 0 | M18: =IF($J$6="OFF",data!DQ18,IF($J$6="26dB(A)",data!DQ19,IF($J$6="30dB(A)",data!DQ20,IF($J$6="MAX",data!DQ21)))) -> 
B19: =IF($J$6="OFF",data!DF22,IF($J$6="26dB(A)",data!DF23,IF($J$6="30dB(A)",data!DF24,IF($J$6="MAX",data!DF25)))) -> 60 | D19: =IF($J$6="OFF",data!DH22,IF($J$6="26dB(A)",data!DH23,IF($J$6="30dB(A)",data!DH24,IF($J$6="MAX",data!DH25)))) -> 553 | E19: =IF($J$6="OFF",data!DI22,IF($J$6="26dB(A)",data!DI23,IF($J$6="30dB(A)",data!DI24,IF($J$6="MAX",data!DI25)))) -> 48 | F19: =IF($J$6="OFF",data!DJ22,IF($J$6="26dB(A)",data!DJ23,IF($J$6="30dB(A)",data!DJ24,IF($J$6="MAX",data!DJ25)))) -> 0.03439535473 | G19: =IF($J$6="OFF",data!DK22,IF($J$6="26dB(A)",data!DK23,IF($J$6="30dB(A)",data!DK24,IF($J$6="MAX",data!DK25)))) -> 0 | H19: =IF($J$6="OFF",data!DL22,IF($J$6="26dB(A)",data!DL23,IF($J$6="30dB(A)",data!DL24,IF($J$6="MAX",data!DL25)))) -> 0 | I19: =IF($J$6="OFF",data!DM22,IF($J$6="26dB(A)",data!DM23,IF($J$6="30dB(A)",data!DM24,IF($J$6="MAX",data!DM25)))) -> 0 | J19: =IF($J$6="OFF",data!DN22,IF($J$6="26dB(A)",data!DN23,IF($J$6="30dB(A)",data!DN24,IF($J$6="MAX",data!DN25)))) -> 0 | K19: =IF($J$6="OFF",data!DO22,IF($J$6="26dB(A)",data!DO23,IF($J$6="30dB(A)",data!DO24,IF($J$6="MAX",data!DO25)))) -> 0 | L19: =IF($J$6="OFF",data!DP22,IF($J$6="26dB(A)",data!DP23,IF($J$6="30dB(A)",data!DP24,IF($J$6="MAX",data!DP25)))) -> 0 | M19: =IF($J$6="OFF",data!DQ22,IF($J$6="26dB(A)",data!DQ23,IF($J$6="30dB(A)",data!DQ24,IF($J$6="MAX",data!DQ25)))) -> 1.2
B20: =IF($J$6="OFF",data!DF26,IF($J$6="26dB(A)",data!DF27,IF($J$6="30dB(A)",data!DF28,IF($J$6="MAX",data!DF29)))) -> 70 | D20: =IF($J$6="OFF",data!DH26,IF($J$6="26dB(A)",data!DH27,IF($J$6="30dB(A)",data!DH28,IF($J$6="MAX",data!DH29)))) -> 645 | E20: =IF($J$6="OFF",data!DI26,IF($J$6="26dB(A)",data!DI27,IF($J$6="30dB(A)",data!DI28,IF($J$6="MAX",data!DI29)))) -> 55 | F20: =IF($J$6="OFF",data!DJ26,IF($J$6="26dB(A)",data!DJ27,IF($J$6="30dB(A)",data!DJ28,IF($J$6="MAX",data!DJ29)))) -> 0.04583340689 | G20: =IF($J$6="OFF",data!DK26,IF($J$6="26dB(A)",data!DK27,IF($J$6="30dB(A)",data!DK28,IF($J$6="MAX",data!DK29)))) -> 0 | H20: =IF($J$6="OFF",data!DL26,IF($J$6="26dB(A)",data!DL27,IF($J$6="30dB(A)",data!DL28,IF($J$6="MAX",data!DL29)))) -> 0 | I20: =IF($J$6="OFF",data!DM26,IF($J$6="26dB(A)",data!DM27,IF($J$6="30dB(A)",data!DM28,IF($J$6="MAX",data!DM29)))) -> 0 | J20: =IF($J$6="OFF",data!DN26,IF($J$6="26dB(A)",data!DN27,IF($J$6="30dB(A)",data!DN28,IF($J$6="MAX",data!DN29)))) -> 0 | K20: =IF($J$6="OFF",data!DO26,IF($J$6="26dB(A)",data!DO27,IF($J$6="30dB(A)",data!DO28,IF($J$6="MAX",data!DO29)))) -> 0 | L20: =IF($J$6="OFF",data!DP26,IF($J$6="26dB(A)",data!DP27,IF($J$6="30dB(A)",data!DP28,IF($J$6="MAX",data!DP29)))) -> 0 | M20: =IF($J$6="OFF",data!DQ26,IF($J$6="26dB(A)",data!DQ27,IF($J$6="30dB(A)",data!DQ28,IF($J$6="MAX",data!DQ29)))) -> 1.4
B21: =IF($J$6="OFF",data!DF30,IF($J$6="26dB(A)",data!DF31,IF($J$6="30dB(A)",data!DF32,IF($J$6="MAX",data!DF33)))) -> 80 | D21: =IF($J$6="OFF",data!DH30,IF($J$6="26dB(A)",data!DH31,IF($J$6="30dB(A)",data!DH32,IF($J$6="MAX",data!DH33)))) -> 737 | E21: =IF($J$6="OFF",data!DI30,IF($J$6="26dB(A)",data!DI31,IF($J$6="30dB(A)",data!DI32,IF($J$6="MAX",data!DI33)))) -> 63 | F21: =IF($J$6="OFF",data!DJ30,IF($J$6="26dB(A)",data!DJ31,IF($J$6="30dB(A)",data!DJ32,IF($J$6="MAX",data!DJ33)))) -> 0.06094998635 | G21: =IF($J$6="OFF",data!DK30,IF($J$6="26dB(A)",data!DK31,IF($J$6="30dB(A)",data!DK32,IF($J$6="MAX",data!DK33)))) -> 0 | H21: =IF($J$6="OFF",data!DL30,IF($J$6="26dB(A)",data!DL31,IF($J$6="30dB(A)",data!DL32,IF($J$6="MAX",data!DL33)))) -> 0 | I21: =IF($J$6="OFF",data!DM30,IF($J$6="26dB(A)",data!DM31,IF($J$6="30dB(A)",data!DM32,IF($J$6="MAX",data!DM33)))) -> 0 | J21: =IF($J$6="OFF",data!DN30,IF($J$6="26dB(A)",data!DN31,IF($J$6="30dB(A)",data!DN32,IF($J$6="MAX",data!DN33)))) -> 0 | K21: =IF($J$6="OFF",data!DO30,IF($J$6="26dB(A)",data!DO31,IF($J$6="30dB(A)",data!DO32,IF($J$6="MAX",data!DO33)))) -> 0 | L21: =IF($J$6="OFF",data!DP30,IF($J$6="26dB(A)",data!DP31,IF($J$6="30dB(A)",data!DP32,IF($J$6="MAX",data!DP33)))) -> 0 | M21: =IF($J$6="OFF",data!DQ30,IF($J$6="26dB(A)",data!DQ31,IF($J$6="30dB(A)",data!DQ32,IF($J$6="MAX",data!DQ33)))) -> 1.6
B22: =IF($J$6="OFF",data!DF34,IF($J$6="26dB(A)",data!DF35,IF($J$6="30dB(A)",data!DF36,IF($J$6="MAX",data!DF37)))) -> 90 | D22: =IF($J$6="OFF",data!DH34,IF($J$6="26dB(A)",data!DH35,IF($J$6="30dB(A)",data!DH36,IF($J$6="MAX",data!DH37)))) -> 829 | E22: =IF($J$6="OFF",data!DI34,IF($J$6="26dB(A)",data!DI35,IF($J$6="30dB(A)",data!DI36,IF($J$6="MAX",data!DI37)))) -> 71 | F22: =IF($J$6="OFF",data!DJ34,IF($J$6="26dB(A)",data!DJ35,IF($J$6="30dB(A)",data!DJ36,IF($J$6="MAX",data!DJ37)))) -> 0.07840210548 | G22: =IF($J$6="OFF",data!DK34,IF($J$6="26dB(A)",data!DK35,IF($J$6="30dB(A)",data!DK36,IF($J$6="MAX",data!DK37)))) -> 0 | H22: =IF($J$6="OFF",data!DL34,IF($J$6="26dB(A)",data!DL35,IF($J$6="30dB(A)",data!DL36,IF($J$6="MAX",data!DL37)))) -> 0 | I22: =IF($J$6="OFF",data!DM34,IF($J$6="26dB(A)",data!DM35,IF($J$6="30dB(A)",data!DM36,IF($J$6="MAX",data!DM37)))) -> 0 | J22: =IF($J$6="OFF",data!DN34,IF($J$6="26dB(A)",data!DN35,IF($J$6="30dB(A)",data!DN36,IF($J$6="MAX",data!DN37)))) -> 0 | K22: =IF($J$6="OFF",data!DO34,IF($J$6="26dB(A)",data!DO35,IF($J$6="30dB(A)",data!DO36,IF($J$6="MAX",data!DO37)))) -> 0 | L22: =IF($J$6="OFF",data!DP34,IF($J$6="26dB(A)",data!DP35,IF($J$6="30dB(A)",data!DP36,IF($J$6="MAX",data!DP37)))) -> 0 | M22: =IF($J$6="OFF",data!DQ34,IF($J$6="26dB(A)",data!DQ35,IF($J$6="30dB(A)",data!DQ36,IF($J$6="MAX",data!DQ37)))) -> 1.8
B23: =IF($J$6="OFF",data!DF38,IF($J$6="26dB(A)",data!DF39,IF($J$6="30dB(A)",data!DF40,IF($J$6="MAX",data!DF41)))) -> 100 | D23: =IF($J$6="OFF",data!DH38,IF($J$6="26dB(A)",data!DH39,IF($J$6="30dB(A)",data!DH40,IF($J$6="MAX",data!DH41)))) -> 921 | E23: =IF($J$6="OFF",data!DI38,IF($J$6="26dB(A)",data!DI39,IF($J$6="30dB(A)",data!DI40,IF($J$6="MAX",data!DI41)))) -> 79 | F23: =IF($J$6="OFF",data!DJ38,IF($J$6="26dB(A)",data!DJ39,IF($J$6="30dB(A)",data!DJ40,IF($J$6="MAX",data!DJ41)))) -> 0.09824636238 | G23: =IF($J$6="OFF",data!DK38,IF($J$6="26dB(A)",data!DK39,IF($J$6="30dB(A)",data!DK40,IF($J$6="MAX",data!DK41)))) -> 0 | H23: =IF($J$6="OFF",data!DL38,IF($J$6="26dB(A)",data!DL39,IF($J$6="30dB(A)",data!DL40,IF($J$6="MAX",data!DL41)))) -> 0 | I23: =IF($J$6="OFF",data!DM38,IF($J$6="26dB(A)",data!DM39,IF($J$6="30dB(A)",data!DM40,IF($J$6="MAX",data!DM41)))) -> 0 | J23: =IF($J$6="OFF",data!DN38,IF($J$6="26dB(A)",data!DN39,IF($J$6="30dB(A)",data!DN40,IF($J$6="MAX",data!DN41)))) -> 0 | K23: =IF($J$6="OFF",data!DO38,IF($J$6="26dB(A)",data!DO39,IF($J$6="30dB(A)",data!DO40,IF($J$6="MAX",data!DO41)))) -> 0 | L23: =IF($J$6="OFF",data!DP38,IF($J$6="26dB(A)",data!DP39,IF($J$6="30dB(A)",data!DP40,IF($J$6="MAX",data!DP41)))) -> 0 | M23: =IF($J$6="OFF",data!DQ38,IF($J$6="26dB(A)",data!DQ39,IF($J$6="30dB(A)",data!DQ40,IF($J$6="MAX",data!DQ41)))) -> 2
B24: =IF($J$6="OFF",data!DF42,IF($J$6="26dB(A)",data!DF43,IF($J$6="30dB(A)",data!DF44,IF($J$6="MAX",data!DF45)))) -> 110 | D24: =IF($J$6="OFF",data!DH42,IF($J$6="26dB(A)",data!DH43,IF($J$6="30dB(A)",data!DH44,IF($J$6="MAX",data!DH45)))) -> 1013 | E24: =IF($J$6="OFF",data!DI42,IF($J$6="26dB(A)",data!DI43,IF($J$6="30dB(A)",data!DI44,IF($J$6="MAX",data!DI45)))) -> 87 | F24: =IF($J$6="OFF",data!DJ42,IF($J$6="26dB(A)",data!DJ43,IF($J$6="30dB(A)",data!DJ44,IF($J$6="MAX",data!DJ45)))) -> 0.1205375205 | G24: =IF($J$6="OFF",data!DK42,IF($J$6="26dB(A)",data!DK43,IF($J$6="30dB(A)",data!DK44,IF($J$6="MAX",data!DK45)))) -> 0 | H24: =IF($J$6="OFF",data!DL42,IF($J$6="26dB(A)",data!DL43,IF($J$6="30dB(A)",data!DL44,IF($J$6="MAX",data!DL45)))) -> 0 | I24: =IF($J$6="OFF",data!DM42,IF($J$6="26dB(A)",data!DM43,IF($J$6="30dB(A)",data!DM44,IF($J$6="MAX",data!DM45)))) -> 0 | J24: =IF($J$6="OFF",data!DN42,IF($J$6="26dB(A)",data!DN43,IF($J$6="30dB(A)",data!DN44,IF($J$6="MAX",data!DN45)))) -> 0 | K24: =IF($J$6="OFF",data!DO42,IF($J$6="26dB(A)",data!DO43,IF($J$6="30dB(A)",data!DO44,IF($J$6="MAX",data!DO45)))) -> 0 | L24: =IF($J$6="OFF",data!DP42,IF($J$6="26dB(A)",data!DP43,IF($J$6="30dB(A)",data!DP44,IF($J$6="MAX",data!DP45)))) -> 0 | M24: =IF($J$6="OFF",data!DQ42,IF($J$6="26dB(A)",data!DQ43,IF($J$6="30dB(A)",data!DQ44,IF($J$6="MAX",data!DQ45)))) -> 2.2
B25: =IF($J$6="OFF",data!DF46,IF($J$6="26dB(A)",data!DF47,IF($J$6="30dB(A)",data!DF48,IF($J$6="MAX",data!DF49)))) -> 120 | D25: =IF($J$6="OFF",data!DH46,IF($J$6="26dB(A)",data!DH47,IF($J$6="30dB(A)",data!DH48,IF($J$6="MAX",data!DH49)))) -> 1105 | E25: =IF($J$6="OFF",data!DI46,IF($J$6="26dB(A)",data!DI47,IF($J$6="30dB(A)",data!DI48,IF($J$6="MAX",data!DI49)))) -> 95 | F25: =IF($J$6="OFF",data!DJ46,IF($J$6="26dB(A)",data!DJ47,IF($J$6="30dB(A)",data!DJ48,IF($J$6="MAX",data!DJ49)))) -> 0.1453287551 | G25: =IF($J$6="OFF",data!DK46,IF($J$6="26dB(A)",data!DK47,IF($J$6="30dB(A)",data!DK48,IF($J$6="MAX",data!DK49)))) -> 0 | H25: =IF($J$6="OFF",data!DL46,IF($J$6="26dB(A)",data!DL47,IF($J$6="30dB(A)",data!DL48,IF($J$6="MAX",data!DL49)))) -> 0 | I25: =IF($J$6="OFF",data!DM46,IF($J$6="26dB(A)",data!DM47,IF($J$6="30dB(A)",data!DM48,IF($J$6="MAX",data!DM49)))) -> 0 | J25: =IF($J$6="OFF",data!DN46,IF($J$6="26dB(A)",data!DN47,IF($J$6="30dB(A)",data!DN48,IF($J$6="MAX",data!DN49)))) -> 0 | K25: =IF($J$6="OFF",data!DO46,IF($J$6="26dB(A)",data!DO47,IF($J$6="30dB(A)",data!DO48,IF($J$6="MAX",data!DO49)))) -> 0 | L25: =IF($J$6="OFF",data!DP46,IF($J$6="26dB(A)",data!DP47,IF($J$6="30dB(A)",data!DP48,IF($J$6="MAX",data!DP49)))) -> 0 | M25: =IF($J$6="OFF",data!DQ46,IF($J$6="26dB(A)",data!DQ47,IF($J$6="30dB(A)",data!DQ48,IF($J$6="MAX",data!DQ49)))) -> 2.4
B26: =IF($J$6="OFF",data!DF50,IF($J$6="26dB(A)",data!DF51,IF($J$6="30dB(A)",data!DF52,IF($J$6="MAX",data!DF53)))) -> 140 | D26: =IF($J$6="OFF",data!DH50,IF($J$6="26dB(A)",data!DH51,IF($J$6="30dB(A)",data!DH52,IF($J$6="MAX",data!DH53)))) -> 1289 | E26: =IF($J$6="OFF",data!DI50,IF($J$6="26dB(A)",data!DI51,IF($J$6="30dB(A)",data!DI52,IF($J$6="MAX",data!DI53)))) -> 111 | F26: =IF($J$6="OFF",data!DJ50,IF($J$6="26dB(A)",data!DJ51,IF($J$6="30dB(A)",data!DJ52,IF($J$6="MAX",data!DJ53)))) -> 0.2026173323 | G26: =IF($J$6="OFF",data!DK50,IF($J$6="26dB(A)",data!DK51,IF($J$6="30dB(A)",data!DK52,IF($J$6="MAX",data!DK53)))) -> 0 | H26: =IF($J$6="OFF",data!DL50,IF($J$6="26dB(A)",data!DL51,IF($J$6="30dB(A)",data!DL52,IF($J$6="MAX",data!DL53)))) -> 0 | I26: =IF($J$6="OFF",data!DM50,IF($J$6="26dB(A)",data!DM51,IF($J$6="30dB(A)",data!DM52,IF($J$6="MAX",data!DM53)))) -> 0 | J26: =IF($J$6="OFF",data!DN50,IF($J$6="26dB(A)",data!DN51,IF($J$6="30dB(A)",data!DN52,IF($J$6="MAX",data!DN53)))) -> 0 | K26: =IF($J$6="OFF",data!DO50,IF($J$6="26dB(A)",data!DO51,IF($J$6="30dB(A)",data!DO52,IF($J$6="MAX",data!DO53)))) -> 0 | L26: =IF($J$6="OFF",data!DP50,IF($J$6="26dB(A)",data!DP51,IF($J$6="30dB(A)",data!DP52,IF($J$6="MAX",data!DP53)))) -> 0 | M26: =IF($J$6="OFF",data!DQ50,IF($J$6="26dB(A)",data!DQ51,IF($J$6="30dB(A)",data!DQ52,IF($J$6="MAX",data!DQ53)))) -> 2.8
B27: =IF($J$6="OFF",data!DF54,IF($J$6="26dB(A)",data!DF55,IF($J$6="30dB(A)",data!DF56,IF($J$6="MAX",data!DF57)))) -> 160 | D27: =IF($J$6="OFF",data!DH54,IF($J$6="26dB(A)",data!DH55,IF($J$6="30dB(A)",data!DH56,IF($J$6="MAX",data!DH57)))) -> 1474 | E27: =IF($J$6="OFF",data!DI54,IF($J$6="26dB(A)",data!DI55,IF($J$6="30dB(A)",data!DI56,IF($J$6="MAX",data!DI57)))) -> 127 | F27: =IF($J$6="OFF",data!DJ54,IF($J$6="26dB(A)",data!DJ55,IF($J$6="30dB(A)",data!DJ56,IF($J$6="MAX",data!DJ57)))) -> 0.2705121834 | G27: =IF($J$6="OFF",data!DK54,IF($J$6="26dB(A)",data!DK55,IF($J$6="30dB(A)",data!DK56,IF($J$6="MAX",data!DK57)))) -> 0 | H27: =IF($J$6="OFF",data!DL54,IF($J$6="26dB(A)",data!DL55,IF($J$6="30dB(A)",data!DL56,IF($J$6="MAX",data!DL57)))) -> 0 | I27: =IF($J$6="OFF",data!DM54,IF($J$6="26dB(A)",data!DM55,IF($J$6="30dB(A)",data!DM56,IF($J$6="MAX",data!DM57)))) -> 0 | J27: =IF($J$6="OFF",data!DN54,IF($J$6="26dB(A)",data!DN55,IF($J$6="30dB(A)",data!DN56,IF($J$6="MAX",data!DN57)))) -> 0 | K27: =IF($J$6="OFF",data!DO54,IF($J$6="26dB(A)",data!DO55,IF($J$6="30dB(A)",data!DO56,IF($J$6="MAX",data!DO57)))) -> 0 | L27: =IF($J$6="OFF",data!DP54,IF($J$6="26dB(A)",data!DP55,IF($J$6="30dB(A)",data!DP56,IF($J$6="MAX",data!DP57)))) -> 0 | M27: =IF($J$6="OFF",data!DQ54,IF($J$6="26dB(A)",data!DQ55,IF($J$6="30dB(A)",data!DQ56,IF($J$6="MAX",data!DQ57)))) -> 3.2
B28: =IF($J$6="OFF",data!DF58,IF($J$6="26dB(A)",data!DF59,IF($J$6="30dB(A)",data!DF60,IF($J$6="MAX",data!DF61)))) -> 180 | D28: =IF($J$6="OFF",data!DH58,IF($J$6="26dB(A)",data!DH59,IF($J$6="30dB(A)",data!DH60,IF($J$6="MAX",data!DH61)))) -> 1657 | E28: =IF($J$6="OFF",data!DI58,IF($J$6="26dB(A)",data!DI59,IF($J$6="30dB(A)",data!DI60,IF($J$6="MAX",data!DI61)))) -> 143 | F28: =IF($J$6="OFF",data!DJ58,IF($J$6="26dB(A)",data!DJ59,IF($J$6="30dB(A)",data!DJ60,IF($J$6="MAX",data!DJ61)))) -> 0.3493971221 | G28: =IF($J$6="OFF",data!DK58,IF($J$6="26dB(A)",data!DK59,IF($J$6="30dB(A)",data!DK60,IF($J$6="MAX",data!DK61)))) -> 0 | H28: =IF($J$6="OFF",data!DL58,IF($J$6="26dB(A)",data!DL59,IF($J$6="30dB(A)",data!DL60,IF($J$6="MAX",data!DL61)))) -> 0 | I28: =IF($J$6="OFF",data!DM58,IF($J$6="26dB(A)",data!DM59,IF($J$6="30dB(A)",data!DM60,IF($J$6="MAX",data!DM61)))) -> 0 | J28: =IF($J$6="OFF",data!DN58,IF($J$6="26dB(A)",data!DN59,IF($J$6="30dB(A)",data!DN60,IF($J$6="MAX",data!DN61)))) -> 0 | K28: =IF($J$6="OFF",data!DO58,IF($J$6="26dB(A)",data!DO59,IF($J$6="30dB(A)",data!DO60,IF($J$6="MAX",data!DO61)))) -> 0 | L28: =IF($J$6="OFF",data!DP58,IF($J$6="26dB(A)",data!DP59,IF($J$6="30dB(A)",data!DP60,IF($J$6="MAX",data!DP61)))) -> 0 | M28: =IF($J$6="OFF",data!DQ58,IF($J$6="26dB(A)",data!DQ59,IF($J$6="30dB(A)",data!DQ60,IF($J$6="MAX",data!DQ61)))) -> 3.6
B29: =IF($J$6="OFF",data!DF62,IF($J$6="26dB(A)",data!DF63,IF($J$6="30dB(A)",data!DF64,IF($J$6="MAX",data!DF65)))) -> 200 | D29: =IF($J$6="OFF",data!DH62,IF($J$6="26dB(A)",data!DH63,IF($J$6="30dB(A)",data!DH64,IF($J$6="MAX",data!DH65)))) -> 1842 | E29: =IF($J$6="OFF",data!DI62,IF($J$6="26dB(A)",data!DI63,IF($J$6="30dB(A)",data!DI64,IF($J$6="MAX",data!DI65)))) -> 158 | F29: =IF($J$6="OFF",data!DJ62,IF($J$6="26dB(A)",data!DJ63,IF($J$6="30dB(A)",data!DJ64,IF($J$6="MAX",data!DJ65)))) -> 0.4342924213 | G29: =IF($J$6="OFF",data!DK62,IF($J$6="26dB(A)",data!DK63,IF($J$6="30dB(A)",data!DK64,IF($J$6="MAX",data!DK65)))) -> 0 | H29: =IF($J$6="OFF",data!DL62,IF($J$6="26dB(A)",data!DL63,IF($J$6="30dB(A)",data!DL64,IF($J$6="MAX",data!DL65)))) -> 0 | I29: =IF($J$6="OFF",data!DM62,IF($J$6="26dB(A)",data!DM63,IF($J$6="30dB(A)",data!DM64,IF($J$6="MAX",data!DM65)))) -> 0 | J29: =IF($J$6="OFF",data!DN62,IF($J$6="26dB(A)",data!DN63,IF($J$6="30dB(A)",data!DN64,IF($J$6="MAX",data!DN65)))) -> 0 | K29: =IF($J$6="OFF",data!DO62,IF($J$6="26dB(A)",data!DO63,IF($J$6="30dB(A)",data!DO64,IF($J$6="MAX",data!DO65)))) -> 0 | L29: =IF($J$6="OFF",data!DP62,IF($J$6="26dB(A)",data!DP63,IF($J$6="30dB(A)",data!DP64,IF($J$6="MAX",data!DP65)))) -> 0 | M29: =IF($J$6="OFF",data!DQ62,IF($J$6="26dB(A)",data!DQ63,IF($J$6="30dB(A)",data!DQ64,IF($J$6="MAX",data!DQ65)))) -> 4
B30: =IF($J$6="OFF",data!DF66,IF($J$6="26dB(A)",data!DF67,IF($J$6="30dB(A)",data!DF68,IF($J$6="MAX",data!DF69)))) -> 220 | D30: =IF($J$6="OFF",data!DH66,IF($J$6="26dB(A)",data!DH67,IF($J$6="30dB(A)",data!DH68,IF($J$6="MAX",data!DH69)))) -> 1890 | E30: =IF($J$6="OFF",data!DI66,IF($J$6="26dB(A)",data!DI67,IF($J$6="30dB(A)",data!DI68,IF($J$6="MAX",data!DI69)))) -> 163 | F30: =IF($J$6="OFF",data!DJ66,IF($J$6="26dB(A)",data!DJ67,IF($J$6="30dB(A)",data!DJ68,IF($J$6="MAX",data!DJ69)))) -> 0.4719986864 | G30: =IF($J$6="OFF",data!DK66,IF($J$6="26dB(A)",data!DK67,IF($J$6="30dB(A)",data!DK68,IF($J$6="MAX",data!DK69)))) -> 0 | H30: =IF($J$6="OFF",data!DL66,IF($J$6="26dB(A)",data!DL67,IF($J$6="30dB(A)",data!DL68,IF($J$6="MAX",data!DL69)))) -> 0 | I30: =IF($J$6="OFF",data!DM66,IF($J$6="26dB(A)",data!DM67,IF($J$6="30dB(A)",data!DM68,IF($J$6="MAX",data!DM69)))) -> 0 | J30: =IF($J$6="OFF",data!DN66,IF($J$6="26dB(A)",data!DN67,IF($J$6="30dB(A)",data!DN68,IF($J$6="MAX",data!DN69)))) -> 0 | K30: =IF($J$6="OFF",data!DO66,IF($J$6="26dB(A)",data!DO67,IF($J$6="30dB(A)",data!DO68,IF($J$6="MAX",data!DO69)))) -> 0 | L30: =IF($J$6="OFF",data!DP66,IF($J$6="26dB(A)",data!DP67,IF($J$6="30dB(A)",data!DP68,IF($J$6="MAX",data!DP69)))) -> 0 | M30: =IF($J$6="OFF",data!DQ66,IF($J$6="26dB(A)",data!DQ67,IF($J$6="30dB(A)",data!DQ68,IF($J$6="MAX",data!DQ69)))) -> 4.4
B31: =IF($J$6="OFF",data!DF70,IF($J$6="26dB(A)",data!DF71,IF($J$6="30dB(A)",data!DF72,IF($J$6="MAX",data!DF73)))) -> 240 | D31: =IF($J$6="OFF",data!DH70,IF($J$6="26dB(A)",data!DH71,IF($J$6="30dB(A)",data!DH72,IF($J$6="MAX",data!DH73)))) -> 2210 | E31: =IF($J$6="OFF",data!DI70,IF($J$6="26dB(A)",data!DI71,IF($J$6="30dB(A)",data!DI72,IF($J$6="MAX",data!DI73)))) -> 190 | F31: =IF($J$6="OFF",data!DJ70,IF($J$6="26dB(A)",data!DJ71,IF($J$6="30dB(A)",data!DJ72,IF($J$6="MAX",data!DJ73)))) -> 0.6490169773 | G31: =IF($J$6="OFF",data!DK70,IF($J$6="26dB(A)",data!DK71,IF($J$6="30dB(A)",data!DK72,IF($J$6="MAX",data!DK73)))) -> 0 | H31: =IF($J$6="OFF",data!DL70,IF($J$6="26dB(A)",data!DL71,IF($J$6="30dB(A)",data!DL72,IF($J$6="MAX",data!DL73)))) -> 0 | I31: =IF($J$6="OFF",data!DM70,IF($J$6="26dB(A)",data!DM71,IF($J$6="30dB(A)",data!DM72,IF($J$6="MAX",data!DM73)))) -> 0 | J31: =IF($J$6="OFF",data!DN70,IF($J$6="26dB(A)",data!DN71,IF($J$6="30dB(A)",data!DN72,IF($J$6="MAX",data!DN73)))) -> 0 | K31: =IF($J$6="OFF",data!DO70,IF($J$6="26dB(A)",data!DO71,IF($J$6="30dB(A)",data!DO72,IF($J$6="MAX",data!DO73)))) -> 0 | L31: =IF($J$6="OFF",data!DP70,IF($J$6="26dB(A)",data!DP71,IF($J$6="30dB(A)",data!DP72,IF($J$6="MAX",data!DP73)))) -> 0 | M31: =IF($J$6="OFF",data!DQ70,IF($J$6="26dB(A)",data!DQ71,IF($J$6="30dB(A)",data!DQ72,IF($J$6="MAX",data!DQ73)))) -> 4.8
B32: =IF($J$6="OFF",data!DF74,IF($J$6="26dB(A)",data!DF75,IF($J$6="30dB(A)",data!DF76,IF($J$6="MAX",data!DF77)))) -> 260 | D32: =IF($J$6="OFF",data!DH74,IF($J$6="26dB(A)",data!DH75,IF($J$6="30dB(A)",data!DH76,IF($J$6="MAX",data!DH77)))) -> 2289 | E32: =IF($J$6="OFF",data!DI74,IF($J$6="26dB(A)",data!DI75,IF($J$6="30dB(A)",data!DI76,IF($J$6="MAX",data!DI77)))) -> 197 | F32: =IF($J$6="OFF",data!DJ74,IF($J$6="26dB(A)",data!DJ75,IF($J$6="30dB(A)",data!DJ76,IF($J$6="MAX",data!DJ77)))) -> 0.7107966718 | G32: =IF($J$6="OFF",data!DK74,IF($J$6="26dB(A)",data!DK75,IF($J$6="30dB(A)",data!DK76,IF($J$6="MAX",data!DK77)))) -> 0 | H32: =IF($J$6="OFF",data!DL74,IF($J$6="26dB(A)",data!DL75,IF($J$6="30dB(A)",data!DL76,IF($J$6="MAX",data!DL77)))) -> 0 | I32: =IF($J$6="OFF",data!DM74,IF($J$6="26dB(A)",data!DM75,IF($J$6="30dB(A)",data!DM76,IF($J$6="MAX",data!DM77)))) -> 0 | J32: =IF($J$6="OFF",data!DN74,IF($J$6="26dB(A)",data!DN75,IF($J$6="30dB(A)",data!DN76,IF($J$6="MAX",data!DN77)))) -> 0 | K32: =IF($J$6="OFF",data!DO74,IF($J$6="26dB(A)",data!DO75,IF($J$6="30dB(A)",data!DO76,IF($J$6="MAX",data!DO77)))) -> 0 | L32: =IF($J$6="OFF",data!DP74,IF($J$6="26dB(A)",data!DP75,IF($J$6="30dB(A)",data!DP76,IF($J$6="MAX",data!DP77)))) -> 0 | M32: =IF($J$6="OFF",data!DQ74,IF($J$6="26dB(A)",data!DQ75,IF($J$6="30dB(A)",data!DQ76,IF($J$6="MAX",data!DQ77)))) -> 5.2
B33: =IF($J$6="OFF",data!DF78,IF($J$6="26dB(A)",data!DF79,IF($J$6="30dB(A)",data!DF80,IF($J$6="MAX",data!DF81)))) -> 280 | D33: =IF($J$6="OFF",data!DH78,IF($J$6="26dB(A)",data!DH79,IF($J$6="30dB(A)",data!DH80,IF($J$6="MAX",data!DH81)))) -> 2578 | E33: =IF($J$6="OFF",data!DI78,IF($J$6="26dB(A)",data!DI79,IF($J$6="30dB(A)",data!DI80,IF($J$6="MAX",data!DI81)))) -> 222 | F33: =IF($J$6="OFF",data!DJ78,IF($J$6="26dB(A)",data!DJ79,IF($J$6="30dB(A)",data!DJ80,IF($J$6="MAX",data!DJ81)))) -> 0.9133083225 | G33: =IF($J$6="OFF",data!DK78,IF($J$6="26dB(A)",data!DK79,IF($J$6="30dB(A)",data!DK80,IF($J$6="MAX",data!DK81)))) -> 0 | H33: =IF($J$6="OFF",data!DL78,IF($J$6="26dB(A)",data!DL79,IF($J$6="30dB(A)",data!DL80,IF($J$6="MAX",data!DL81)))) -> 0 | I33: =IF($J$6="OFF",data!DM78,IF($J$6="26dB(A)",data!DM79,IF($J$6="30dB(A)",data!DM80,IF($J$6="MAX",data!DM81)))) -> 0 | J33: =IF($J$6="OFF",data!DN78,IF($J$6="26dB(A)",data!DN79,IF($J$6="30dB(A)",data!DN80,IF($J$6="MAX",data!DN81)))) -> 0 | K33: =IF($J$6="OFF",data!DO78,IF($J$6="26dB(A)",data!DO79,IF($J$6="30dB(A)",data!DO80,IF($J$6="MAX",data!DO81)))) -> 0 | L33: =IF($J$6="OFF",data!DP78,IF($J$6="26dB(A)",data!DP79,IF($J$6="30dB(A)",data!DP80,IF($J$6="MAX",data!DP81)))) -> 0 | M33: =IF($J$6="OFF",data!DQ78,IF($J$6="26dB(A)",data!DQ79,IF($J$6="30dB(A)",data!DQ80,IF($J$6="MAX",data!DQ81)))) -> 5.6
B34: =IF($J$6="OFF",data!DF82,IF($J$6="26dB(A)",data!DF83,IF($J$6="30dB(A)",data!DF84,IF($J$6="MAX",data!DF85)))) -> 300 | C34: =IF($J$6="OFF",data!DG82,IF($J$6="26dB(A)",data!DG83,IF($J$6="30dB(A)",data!DG84,IF($J$6="MAX",data!DG85)))) ->  | D34: =IF($J$6="OFF",data!DH82,IF($J$6="26dB(A)",data!DH83,IF($J$6="30dB(A)",data!DH84,IF($J$6="MAX",data!DH85)))) ->  | E34: =IF($J$6="OFF",data!DI82,IF($J$6="26dB(A)",data!DI83,IF($J$6="30dB(A)",data!DI84,IF($J$6="MAX",data!DI85)))) ->  | F34: =IF($J$6="OFF",data!DJ82,IF($J$6="26dB(A)",data!DJ83,IF($J$6="30dB(A)",data!DJ84,IF($J$6="MAX",data!DJ85)))) ->  | G34: =IF($J$6="OFF",data!DK82,IF($J$6="26dB(A)",data!DK83,IF($J$6="30dB(A)",data!DK84,IF($J$6="MAX",data!DK85)))) -> 0 | H34: =IF($J$6="OFF",data!DL82,IF($J$6="26dB(A)",data!DL83,IF($J$6="30dB(A)",data!DL84,IF($J$6="MAX",data!DL85)))) -> 0 | I34: =IF($J$6="OFF",data!DM82,IF($J$6="26dB(A)",data!DM83,IF($J$6="30dB(A)",data!DM84,IF($J$6="MAX",data!DM85)))) -> 0 | J34: =IF($J$6="OFF",data!DN82,IF($J$6="26dB(A)",data!DN83,IF($J$6="30dB(A)",data!DN84,IF($J$6="MAX",data!DN85)))) -> 0 | K34: =IF($J$6="OFF",data!DO82,IF($J$6="26dB(A)",data!DO83,IF($J$6="30dB(A)",data!DO84,IF($J$6="MAX",data!DO85)))) -> 0 | L34: =IF($J$6="OFF",data!DP82,IF($J$6="26dB(A)",data!DP83,IF($J$6="30dB(A)",data!DP84,IF($J$6="MAX",data!DP85)))) -> 0 | M34: =IF($J$6="OFF",data!DQ82,IF($J$6="26dB(A)",data!DQ83,IF($J$6="30dB(A)",data!DQ84,IF($J$6="MAX",data!DQ85)))) -> 
M35: v2021-02-02
B36: * | C36: =IF($J$4=data!$CC$3,NL!E6,IF($J$4=data!$CC$4,EN!E6,IF($J$4=data!$CC$5,FR!E6,IF($J$4=data!$CC$6,DE!E6,IF($J$4=data!$CC$7,NR!E6,IF($J$4=data!$CC$8,SP!E6,IF($J$4=data!$CC$9,SW!E6,))))))) -> La velocidad del ventilador en "0" tiene una emisión indicativa.
B37: ** | C37: =IF($J$4=data!$CC$3,NL!B20,IF($J$4=data!$CC$4,EN!B20,IF($J$4=data!$CC$5,FR!B20,IF($J$4=data!$CC$6,DE!B20,IF($J$4=data!$CC$7,NR!B20,IF($J$4=data!$CC$8,SP!B20,IF($J$4=data!$CC$9,SW!B20,))))))) -> La potencia de enfriamiento se calcula según la norma EN 16430 con ventiladores de todas las alturas.
B38: *** | C38: =IF($J$4=data!$CC$3,NL!B21,IF($J$4=data!$CC$4,EN!B21,IF($J$4=data!$CC$5,FR!B21,IF($J$4=data!$CC$6,DE!B21,IF($J$4=data!$CC$7,NR!B21,IF($J$4=data!$CC$8,SP!B21,IF($J$4=data!$CC$9,SW!B21,))))))) -> Cuando el volumen de agua se da en galones, las unidades son específicamente galones imperiales.
B39: **** | C39: =IF($J$4=data!$CC$3,NL!B22,IF($J$4=data!$CC$4,EN!B22,IF($J$4=data!$CC$5,FR!B22,IF($J$4=data!$CC$6,DE!B22,IF($J$4=data!$CC$7,NR!B22,IF($J$4=data!$CC$8,SP!B22,IF($J$4=data!$CC$9,SW!B22,))))))) -> Potencia sonora según ISO 3741: 2010, nivel de presión acústica con una amortiguación ambiental supuesta de 8 dB (A).

Sheet data (hidden)
A1: =+CONCATENATE($A$2,"_L") -> Strada_L | M1: heating | N1: Ti | O1: =IF($BZ$2=1,$P1,IF($BZ$2=2,(P1-32)/1.8,)) -> 65 | P1: ='LowH2O DBH'!E10 -> 65 | AK1: cooling | AL1: Ti | AM1: =IF($BZ$2=1,$AN1,IF($BZ$2=2,($AN1-32)/1.8,)) -> 16 | AN1: ='LowH2O DBH'!J10 -> 16 | AP1: RH | AQ1: ='LowH2O DBH'!J13 -> 0.5 | AU1: RH | BT1: DBH rail | BU1: =IF($CC$17=1,"GEEN",IF($CC$17=2,"NONE",IF($CC$17=3,"NONE",IF($CC$17=4,"NONE",IF($CC$17=5,"NONE",))))) -> 0 | BV1: 10 | BW1: 15 | BZ1: Imperial/SI | CB1: toestel | CC1: taal | CD1: lengte | CE1: hoogte | CF1: type | CH1: Built_in Hybrid | CK1: Strada Hybrid | CN1: Linea Hybrid | CQ1: Tempo Hybrid | CT1: DBH-upgrade
A2: =IF('LowH2O DBH'!$J$5=data!$CH$1,data!$CA$6,IF('LowH2O DBH'!$J$5=data!$CK$1,data!$CA$3,IF('LowH2O DBH'!$J$5=data!$CN$1,data!$CA$4,IF('LowH2O DBH'!$J$5=data!$CQ$1,data!$CA$5,)))) -> Strada | N2: Tr | O2: =IF($BZ$2=1,$P2,IF($BZ$2=2,(P2-32)/1.8,)) -> 55 | P2: ='LowH2O DBH'!E11 -> 55 | AL2: Tr | AM2: =IF($BZ$2=1,$AN2,IF($BZ$2=2,($AN2-32)/1.8,)) -> 18 | AN2: ='LowH2O DBH'!J11 -> 18 | BT2: 1 | BZ2: 1 | CB2: Geselecteerd | CH2: hoogte | CI2: lengte | CJ2: type | CK2: hoogte | CL2: lengte | CM2: type | CN2: hoogte | CO2: lengte | CP2: type | CQ2: hoogte | CR2: lengte | CS2: type | CT2: hoogte | CU2: lengte | CV2: type | DF2: =IF(data!$CC$17=7,"Effektsimulering Hybridmodeller","Selectiontool LowH2O Hybrids") -> Selectiontool LowH2O Hybrids
N3: Ta | O3: =IF($BZ$2=1,$P3,IF($BZ$2=2,(P3-32)/1.8,)) -> 20 | P3: ='LowH2O DBH'!E12 -> 20 | AL3: Ta | AM3: =IF($BZ$2=1,$AN3,IF($BZ$2=2,($AN3-32)/1.8,)) -> 27 | AN3: ='LowH2O DBH'!J12 -> 27 | BZ3: 1 | CA3: Strada | CB3: =CK1 -> Strada Hybrid | CC3: Nederlands | CD3: 50 | CE3: =IF($CB$7=1,CK3,IF($CB$7=2,CN3,IF($CB$7=3,CQ3,IF($CB$7=4,CH3,)))) -> 35 | CF3: 10 | CH3: 20 | CI3: 60 | CJ3: 10 | CK3: 35 | CL3: 50 | CM3: 10 | CN3: 20 | CO3: 50 | CP3: 10 | CQ3: 20 | CR3: 50 | CS3: 10 | CU3: 50 | CV3: 10
A4: kolomindex | B4: 2 | C4: 3 | D4: 4 | E4: 5 | F4: 6 | G4: 7 | H4: 8 | I4: 9 | J4: 10 | K4: 11 | L4: 12 | M4: 13 | N4: 14 | O4: 15 | P4: 16 | Q4: 17 | R4: 18 | S4: 19 | T4: 20 | U4: 21 | V4: 22 | W4: 23 | X4: 24 | Y4: 25 | Z4: 26 | AA4: 27 | AB4: 28 | AC4: 29 | AD4: 30 | AE4: 31 | AF4: 32 | AG4: 33 | AH4: 34 | AI4: 35 | AJ4: 36 | AK4: 37 | AL4: 38 | AM4: 39 | AN4: 40 | AO4: 41 | AP4: 42 | AQ4: 43 | AR4: 44 | AS4: 45 | AT4: 46 | AU4: 47 | AV4: 48 | AW4: 49 | AX4: 50 | AY4: 51 | AZ4: 52 | BA4: 53 | BB4: 54 | BC4: 55 | BD4: 56 | BE4: 57 | BF4: 58 | BG4: 59 | BH4: 60 | BI4: 61 | BJ4: 62 | BK4: 63 | BL4: 64 | BM4: 65 | BN4: 66 | BO4: 67 | BP4: 68 | BQ4: 69 | BR4: 70 | BS4: 71 | BT4: 72 | BU4: 73 | BV4: 74 | BW4: 75 | BX4: 76 | BY4: 77 | CA4: Linea | CB4: =CN1 -> Linea Hybrid | CC4: English | CD4: 60 | CE4: =IF($CB$7=1,CK4,IF($CB$7=2,CN4,IF($CB$7=3,CQ4,IF($CB$7=4,CH4,)))) -> 50 | CF4: 11 | CH4: 30 | CI4: 70 | CJ4: 11 | CK4: 50 | CL4: 60 | CM4: 11 | CN4: 35 | CO4: 60 | CP4: 11 | CQ4: 30 | CR4: 60 | CS4: 11 | CU4: 60 | CV4: 11 | DJ4: Taal/Language/Sprache/Langue/Språk/Lengua | DN4: ='LowH2O DBH'!J4 -> Español | DO4: ='LowH2O DBH'!K4 -> 0
A5: =CONCATENATE($CB$7,'LowH2O DBH'!$K$6,$CD3,'LowH2O DBH'!$L$6) -> 1505016 | D5: =VLOOKUP($A5,$A$28:$BY$1355,D$4,0) ->  | E5: =VLOOKUP($A5,$A$28:$BY$1355,E$4,0) ->  | BQ5: =VLOOKUP($A5,$A$28:$BY$1355,BQ$4,0) ->  | CA5: Tempo | CB5: =CQ1 -> Tempo Hybrid | CC5: Français | CD5: 70 | CE5: =IF($CB$7=1,CK5,IF($CB$7=2,CN5,IF($CB$7=3,CQ5,IF($CB$7=4,CH5,)))) -> 65 | CF5: 15 | CH5: 40 | CI5: 80 | CJ5: 15 | CK5: 65 | CL5: 70 | CM5: 15 | CN5: 50 | CO5: 70 | CP5: 15 | CQ5: 40 | CR5: 70 | CS5: 15 | CU5: 70 | CV5: 15 | DJ5: =IF($J$4=data!$CC$3,NL!DJ4,IF($J$4=data!$CC$4,EN!DJ4,IF($J$4=data!$CC$5,FR!DJ4,IF($J$4=data!$CC$6,DE!DJ4,IF($J$4=data!$CC$7,NR!DJ4,IF($J$4=data!$CC$8,SP!DJ4,IF($J$4=data!$CC$9,SW!DJ4,))))))) -> 0 | DN5: ='LowH2O DBH'!J5 -> Strada Hybrid | DO5: ='LowH2O DBH'!K5 -> 0
A6: =CONCATENATE($CB$7,'LowH2O DBH'!$K$6,$CD4,'LowH2O DBH'!$L$6) -> 1506016 | D6: =VLOOKUP($A6,$A$28:$BY$1355,D$4,0) -> 1 | E6: 50 | F6: 60 | G6: 16 | H6: 16.5 | I6: 0 | J6: 26 | K6: 30 | L6: 41.1 | M6: 774.52 | N6: 1399.724176 | O6: 1502.572921 | P6: 1988.7 | Q6: 1.5 | R6: 1.1 | S6: 1.1 | T6: 1.1 | U6: 553 | V6: 1093 | W6: 1173 | X6: 1553 | Y6: 48 | Z6: 94 | AA6: 101 | AB6: 134 | AC6: 0.03439535473 | AD6: 0.1299949598 | AE6: 0.1498640371 | AF6: 0.262389547 | AG6: 0.0002083 | AH6: 1.724 | AI6: 4 | AJ6: 0.001392796 | AK6: 214 | AL6: 230 | AM6: 305 | AN6: 0.95 | AO6: 0.95 | AP6: 0.95 | AQ6: 214 | AR6: 230 | AS6: 305 | AT6: 92 | AU6: 99 | AV6: 131 | AW6: 0.1245756493 | AX6: 0.1440441081 | AY6: 0.2508759331 | AZ6: 1.2 | BA6: 4.8 | BB6: 5.5 | BC6: 7.2 | BD6: 0 | BE6: 1139 | BF6: 0 | BG6: 0.68 | BH6: 0 | BI6: 0 | BJ6: 0 | BK6: 12.3 | BL6: 14.4 | BM6: 21.85 | BN6: 0 | BO6: 1 | BP6: 1 | BQ6: 1 | BR6: 214 | BS6: 230 | BT6: 305 | BU6: 0 | BV6: 0 | BW6: 0 | BX6: 0 | BY6: 1 | CA6: Built_in | CB6: =CH1 -> Built_in Hybrid | CC6: Deutsch | CD6: 80 | CE6: =IF($CB$7=1,CK6,IF($CB$7=2,CN6,IF($CB$7=3,CQ6,IF($CB$7=4,CH6,)))) -> 95 | CF6: 16 | CH6: 50 | CI6: 90 | CJ6: 16 | CK6: 95 | CL6: 80 | CM6: 16 | CN6: 65 | CO6: 80 | CP6: 16 | CQ6: 50 | CR6: 80 | CS6: 16 | CU6: 80 | CV6: 16 | DJ6: =IF($J$4=data!$CC$3,NL!DI4,IF($J$4=data!$CC$4,EN!DI4,IF($J$4=data!$CC$5,FR!DI4,IF($J$4=data!$CC$6,DE!DI4,IF($J$4=data!$CC$7,NR!DI4,IF($J$4=data!$CC$8,SP!DI4,IF($J$4=data!$CC$9,SW!DI4,)))))))&" [centimeter]" -> [centimeter] | DN6: ='LowH2O DBH'!J6 -> OFF | DO6: ='LowH2O DBH'!K6 -> 50 | DP6: ='LowH2O DBH'!L6 -> 16 | DQ6: =data!DL6 -> 0
A7: =CONCATENATE($CB$7,'LowH2O DBH'!$K$6,$CD5,'LowH2O DBH'!$L$6) -> 1507016 | D7: 1 | E7: =VLOOKUP($A7,$A$28:$BY$1355,E$4,0) -> 50 | F7: 70 | G7: 16 | H7: 16.5 | I7: 0 | J7: 26 | K7: 30 | L7: 41.1 | M7: 903.72 | N7: 1627.627173 | O7: 1747.221742 | P7: 2312.5 | Q7: 1.5 | R7: 1.1 | S7: 1.1 | T7: 1.1 | U7: 645 | V7: 1271 | W7: 1364 | X7: 1805 | Y7: 55 | Z7: 109 | AA7: 117 | AB7: 155 | AC7: 0.04583340689 | AD7: 0.1769450933 | AE7: 0.2035422677 | AF7: 0.355040129 | AG7: 0.0002083 | AH7: 1.724 | AI7: 4 | AJ7: 0.001392796 | AK7: 219.5976985 | AL7: 235.7332686 | AM7: 312 | AN7: 0.95 | AO7: 0.95 | AP7: 0.95 | AQ7: 220 | AR7: 236 | AS7: 312 | AT7: 95 | AU7: 101 | AV7: 134 | AW7: 0.1348444213 | AX7: 0.1521944098 | AY7: 0.2661836054 | AZ7: 1.4 | BA7: 5.1 | BB7: 5.6 | BC7: 7.2 | BD7: 0 | BE7: 1329 | BF7: 0 | BG7: 0.68 | BH7: 0 | BI7: 0 | BJ7: 0 | BK7: 12.3 | BL7: 14.4 | BM7: 21.85 | BN7: 0 | BO7: 1 | BP7: 1 | BQ7: 1 | BR7: 220 | BS7: 236 | BT7: 312 | BU7: 0 | BV7: 0 | BW7: 0 | BX7: 0 | BY7: 1 | CA7: =IF(#REF!=data!CA3,1,IF(#REF!=data!CA4,2,IF(#REF!=data!CA5,3,IF(#REF!=data!CA6,3)))) ->  | CB7: =IF('LowH2O DBH'!$J$5=data!CB3,1,IF('LowH2O DBH'!$J$5=data!CB4,2,IF('LowH2O DBH'!$J$5=data!CB5,3,IF('LowH2O DBH'!$J$5=data!CB6,3)))) -> 1 | CC7: Norsk | CD7: 90 | CE7: =IF(CE20=0,"",CE20) ->  | CF7: 20 | CH7: 60 | CI7: 100 | CJ7: 20 | CL7: 90 | CM7: 20 | CN7: 95 | CO7: 90 | CP7: 20 | CQ7: 60 | CR7: 90 | CS7: 20 | CU7: 90 | CV7: 20 | DK7: =IF($J$4=data!$CC$3,NL!DF3,IF($J$4=data!$CC$4,EN!DF3,IF($J$4=data!$CC$5,FR!DF3,IF($J$4=data!$CC$6,DE!DF3,IF($J$4=data!$CC$7,NR!DF3,IF($J$4=data!$CC$8,SP!DF3,IF($J$4=data!$CC$9,SW!DF3,))))))) -> 0 | DM7: =IF($J$4=data!$CC$3,NL!DF16,IF($J$4=data!$CC$4,EN!DF16,IF($J$4=data!$CC$5,FR!DF16,IF($J$4=data!$CC$6,DE!DF16,IF($J$4=data!$CC$7,NR!DF16,IF($J$4=data!$CC$8,SP!DF16,IF($J$4=data!$CC$9,SW!DF16,))))))) -> 0 | DO7: =IF($J$4=data!$CC$3,NL!DF4,IF($J$4=data!$CC$4,EN!DF4,IF($J$4=data!$CC$5,FR!DF4,IF($J$4=data!$CC$6,DE!DF4,IF($J$4=data!$CC$7,NR!DF4,IF($J$4=data!$CC$8,SP!DF4,IF($J$4=data!$CC$9,SW!DF4,))))))) -> 0 | DP7: =IF($J$4=data!$CC$3,NL!DF5,IF($J$4=data!$CC$4,EN!DF5,IF($J$4=data!$CC$5,FR!DF5,IF($J$4=data!$CC$6,DE!DF5,IF($J$4=data!$CC$7,NR!DF5,IF($J$4=data!$CC$8,SP!DF5,IF($J$4=data!$CC$9,SW!DF5,))))))) -> 0 | DQ7: =IF($J$4=data!$CC$3,NL!DF6,IF($J$4=data!$CC$4,EN!DF6,IF($J$4=data!$CC$5,FR!DF6,IF($J$4=data!$CC$6,DE!DF6,IF($J$4=data!$CC$7,NR!DF6,IF($J$4=data!$CC$8,SP!DF6,IF($J$4=data!$CC$9,SW!DF6,))))))) -> 0
A8: =CONCATENATE($CB$7,'LowH2O DBH'!$K$6,$CD6,'LowH2O DBH'!$L$6) -> 1508016 | D8: 1 | E8: 50 | F8: 80 | G8: 16 | H8: 16.5 | I8: 0 | J8: 26 | K8: 30 | L8: 42.4 | M8: 1032.24 | N8: 2040.433172 | O8: 2188.009207 | P8: 2935.7 | Q8: 1.5 | R8: 1.1 | S8: 1.1 | T8: 1.1 | U8: 737 | V8: 1593 | W8: 1708 | X8: 2292 | Y8: 63 | Z8: 137 | AA8: 147 | AB8: 197 | AC8: 0.06094998635 | AD8: 0.2820430382 | AE8: 0.3241466351 | AF8: 0.5780854596 | AG8: 0.0002083 | AH8: 1.724 | AI8: 4 | AJ8: 0.001392796 | AK8: 312 | AL8: 335 | AM8: 450 | AN8: 0.95 | AO8: 0.95 | AP8: 0.95 | AQ8: 312 | AR8: 335 | AS8: 450 | AT8: 134 | AU8: 144 | AV8: 194 | AW8: 0.2699776637 | AX8: 0.3112110633 | AY8: 0.5608119342 | AZ8: 1.6 | BA8: 6 | BB8: 6.7 | BC8: 9 | BD8: 0 | BE8: 1518 | BF8: 0 | BG8: 0.68 | BH8: 0 | BI8: 0 | BJ8: 0 | BK8: 11.8 | BL8: 13.7 | BM8: 21.85 | BN8: 0 | BO8: 1 | BP8: 1 | BQ8: 1 | BR8: 312 | BS8: 335 | BT8: 450 | BU8: 0 | BV8: 0 | BW8: 0 | BX8: 0 | BY8: 1 | CC8: Español | CD8: 100 | CE8: =IF(CE21=0,"",CE21) ->  | CF8: 21 | CH8: 70 | CI8: 110 | CJ8: 21 | CL8: 100 | CM8: 21 | CO8: 100 | CP8: 21 | CQ8: 70 | CR8: 100 | CS8: 21 | CU8: 100 | CV8: 21 | DF8: =IF($J$4=data!$CC$3,NL!DI5,IF($J$4=data!$CC$4,EN!DI5,IF($J$4=data!$CC$5,FR!DI5,IF($J$4=data!$CC$6,DE!DI5,IF($J$4=data!$CC$7,NR!DI5,IF($J$4=data!$CC$8,SP!DI5,IF($J$4=data!$CC$9,SW!DI5,))))))) -> 0
A9: =CONCATENATE($CB$7,'LowH2O DBH'!$K$6,$CD7,'LowH2O DBH'!$L$6) -> 1509016 | D9: 1 | E9: 50 | F9: 90 | G9: 16 | H9: 16.5 | I9: 0 | J9: 26 | K9: 30 | L9: 43.3 | M9: 1161.44 | N9: 2336.669517 | O9: 2503.368842 | P9: 3409.2 | Q9: 1.5 | R9: 1.1 | S9: 1.1 | T9: 1.1 | U9: 829 | V9: 1824 | W9: 1954 | X9: 2662 | Y9: 71 | Z9: 157 | AA9: 168 | AB9: 229 | AC9: 0.07840210548 | AD9: 0.3741342535 | AE9: 0.4275981896 | AF9: 0.7880408314 | AG9: 0.0002083 | AH9: 1.724 | AI9: 4 | AJ9: 0.001392796 | AK9: 357.7793875 | AL9: 383.3035713 | AM9: 522 | AN9: 0.95 | AO9: 0.95 | AP9: 0.95 | AQ9: 358 | AR9: 383 | AS9: 522 | AT9: 154 | AU9: 165 | AV9: 224 | AW9: 0.3601663511 | AX9: 0.4126668757 | AY9: 0.7544267518 | AZ9: 1.8 | BA9: 7 | BB9: 7.7 | BC9: 10.7 | BD9: 0 | BE9: 1708 | BF9: 0 | BG9: 0.68 | BH9: 0 | BI9: 0 | BJ9: 0 | BK9: 11.3 | BL9: 13.2 | BM9: 21.85 | BN9: 0 | BO9: 1 | BP9: 1 | BQ9: 1 | BR9: 358 | BS9: 383 | BT9: 522 | BU9: 0 | BV9: 0 | BW9: 0 | BX9: 0 | BY9: 1 | CA9: W/m,beript dyn heat | CC9: Svenska | CD9: 110 | CH9: 90 | CI9: 120 | CL9: 110 | CO9: 110 | CQ9: 90 | CR9: 110 | CU9: 110 | DF9: =IF($J$4=data!$CC$3,NL!DF8,IF($J$4=data!$CC$4,EN!DF8,IF($J$4=data!$CC$5,FR!DF8,IF($J$4=data!$CC$6,DE!DF8,IF($J$4=data!$CC$7,NR!DF8,IF($J$4=data!$CC$8,SP!DF8,IF($J$4=data!$CC$9,SW!DF8,))))))) -> 0 | DK9: =IF($J$4=data!$CC$3,NL!DK8,IF($J$4=data!$CC$4,EN!DK8,IF($J$4=data!$CC$5,FR!DK8,IF($J$4=data!$CC$6,DE!DK8,IF($J$4=data!$CC$7,NR!DK8,IF($J$4=data!$CC$8,SP!DK8,IF($J$4=data!$CC$9,SW!DK8,))))))) -> 0
A10: =CONCATENATE($CB$7,'LowH2O DBH'!$K$6,$CD8,'LowH2O DBH'!$L$6) -> 15010016 | D10: 1 | E10: 50 | F10: 100 | G10: 16 | H10: 16.5 | I10: 0 | J10: 26 | K10: 30 | L10: 44.1 | M10: 1290.64 | N10: 2630.387145 | O10: 2816.563381 | P10: 3882.7 | Q10: 1.5 | R10: 1.1 | S10: 1.1 | T10: 1.1 | U10: 921 | V10: 2054 | W10: 2199 | X10: 3031 | Y10: 79 | Z10: 177 | AA10: 189 | AB10: 261 | AC10: 0.09824636238 | AD10: 0.4800973877 | AE10: 0.54632855 | AF10: 1.032314011 | AG10: 0.0002083 | AH10: 1.724 | AI10: 4 | AJ10: 0.001392796 | AK10: 403 | AL10: 431 | AM10: 595 | AN10: 0.95 | AO10: 0.95 | AP10: 0.95 | AQ10: 403 | AR10: 431 | AS10: 595 | AT10: 173 | AU10: 185 | AV10: 256 | AW10: 0.4589605251 | AX10: 0.523781603 | AY10: 0.9936684748 | AZ10: 2 | BA10: 7 | BB10: 7.7 | BC10: 10.7 | BD10: 0 | BE10: 1898 | BF10: 0 | BG10: 0.68 | BH10: 0 | BI10: 0 | BJ10: 0 | BK10: 10.9 | BL10: 12.8 | BM10: 21.85 | BN10: 0 | BO10: 1 | BP10: =VLOOKUP($A10,$A$28:$BY$1355,BP$4,0) -> 1 | BQ10: 1 | BR10: 403 | BS10: 431 | BT10: 595 | BU10: 0 | BV10: 0 | BW10: 0 | BX10: 0 | BY10: 1 | CB10: W/m,beript dyn cool | CD10: 120 | CI10: 140 | CL10: 120 | CO10: 120 | CR10: 120 | CU10: 120 | DF10: =IF($J$4=data!$CC$3,NL!DF9,IF($J$4=data!$CC$4,EN!DF9,IF($J$4=data!$CC$5,FR!DF9,IF($J$4=data!$CC$6,DE!DF9,IF($J$4=data!$CC$7,NR!DF9,IF($J$4=data!$CC$8,SP!DF9,IF($J$4=data!$CC$9,SW!DF9,))))))) -> 0 | DG10: 0 | DH10: 0 | DI10: ='LowH2O DBH'!E10 -> 65 | DJ10: =IF(data!$BZ$2=1,"°C",IF(data!$BZ$2=2,"°F",)) -> °C | DK10: =DF10 -> 0 | DL10: 0 | DM10: 0 | DN10: ='LowH2O DBH'!J10 -> 16 | DO10: =DJ10 -> °C | DP10: =IF($J$4=data!$CC$3,NL!DK4,IF($J$4=data!$CC$4,EN!DK4,IF($J$4=data!$CC$5,FR!DK4,IF($J$4=data!$CC$6,DE!DK4,IF($J$4=data!$CC$7,NR!DK4,IF($J$4=data!$CC$8,SP!DK4,IF($J$4=data!$CC$9,SW!DK4,))))))) -> 0
A11: =CONCATENATE($CB$7,'LowH2O DBH'!$K$6,$CD9,'LowH2O DBH'!$L$6) -> 15011016 | D11: 1 | E11: =VLOOKUP($A11,$A$28:$BY$1355,E$4,0) -> 50 | F11: 110 | G11: 16 | H11: 16.5 | I11: 0 | J11: 26 | K11: 30 | L11: 44.1 | M11: 1419.84 | N11: 2849.749794 | O11: 3051.452305 | P11: 4206.5 | Q11: 1.5 | R11: 1.1 | S11: 1.1 | T11: 1.1 | U11: 1013 | V11: 2225 | W11: 2382 | X11: 3284 | Y11: 87 | Z11: 191 | AA11: 205 | AB11: 282 | AC11: 0.1205375205 | AD11: 0.5647681423 | AE11: 0.6491073654 | AF11: 1.216271499 | AG11: 0.0002083 | AH11: 1.724 | AI11: 4 | AJ11: 0.001392796 | AK11: 407.8329671 | AL11: 436.6989867 | AM11: 602 | AN11: 0.95 | AO11: 0.95 | AP11: 0.95 | AQ11: 408 | AR11: 437 | AS11: 602 | AT11: 175 | AU11: 188 | AV11: 259 | AW11: 0.475481527 | AX11: 0.5474495717 | AY11: 1.028585167 | AZ11: 2.2 | BA11: 7.9 | BB11: 8.8 | BC11: 12.5 | BD11: 0 | BE11: 2088 | BF11: 0 | BG11: 0.68 | BH11: 0 | BI11: 0 | BJ11: 0 | BK11: 10.9 | BL11: 12.8 | BM11: 21.85 | BN11: 0 | BO11: 1 | BP11: 1 | BQ11: 1 | BR11: 408 | BS11: 437 | BT11: 602 | BU11: 0 | BV11: 0 | BW11: 0 | BX11: 0 | BY11: 1 | CD11: 140 | CI11: 160 | CL11: 140 | CO11: 140 | CR11: 140 | CU11: 140 | DF11: =IF($J$4=data!$CC$3,NL!DF10,IF($J$4=data!$CC$4,EN!DF10,IF($J$4=data!$CC$5,FR!DF10,IF($J$4=data!$CC$6,DE!DF10,IF($J$4=data!$CC$7,NR!DF10,IF($J$4=data!$CC$8,SP!DF10,IF($J$4=data!$CC$9,SW!DF10,))))))) -> 0 | DG11: 0 | DH11: 0 | DI11: ='LowH2O DBH'!E11 -> 55 | DJ11: =DJ10 -> °C | DK11: =DF11 -> 0 | DL11: 0 | DM11: 0 | DN11: ='LowH2O DBH'!J11 -> 18 | DO11: =DJ10 -> °C
A12: =CONCATENATE($CB$7,'LowH2O DBH'!$K$6,$CD10,'LowH2O DBH'!$L$6) -> 15012016 | D12: 1 | E12: 50 | F12: 120 | G12: 16 | H12: 16.5 | I12: 0 | J12: 26 | K12: 30 | L12: 44.8 | M12: 1549.04 | N12: 3241.833377 | O12: 3471.545968 | P12: 4829.7 | Q12: 1.5 | R12: 1.1 | S12: 1.1 | T12: 1.1 | U12: 1105 | V12: 2531 | W12: 2710 | X12: 3771 | Y12: 95 | Z12: 218 | AA12: 233 | AB12: 324 | AC12: 0.1453287551 | AD12: 0.7413866147 | AE12: 0.8449949657 | AF12: 1.616436745 | AG12: 0.0002083 | AH12: 1.724 | AI12: 4 | AJ12: 0.001392796 | AK12: 496 | AL12: 532 | AM12: 740 | AN12: 0.95 | AO12: 0.95 | AP12: 0.95 | AQ12: 496 | AR12: 532 | AS12: 740 | AT12: 213 | AU12: 229 | AV12: 318 | AW12: 0.7083366873 | AX12: 0.8167124997 | AY12: 1.558037737 | AZ12: 2.4 | BA12: 8.7 | BB12: 9.8 | BC12: 14.3 | BD12: 0 | BE12: 2278 | BF12: 0 | BG12: 0.68 | BH12: 0 | BI12: 0 | BJ12: 0 | BK12: 10.6 | BL12: 12.5 | BM12: 21.85 | BN12: 0 | BO12: 1 | BP12: 1 | BQ12: 1 | BR12: 496 | BS12: 532 | BT12: 740 | BU12: 0 | BV12: 0 | BW12: 0 | BX12: 0 | BY12: 1 | CA12: OFF | CD12: 160 | CI12: 180 | CL12: 160 | CO12: 160 | CR12: 160 | CU12: 160 | DF12: =IF($J$4=data!$CC$3,NL!DF11,IF($J$4=data!$CC$4,EN!DF11,IF($J$4=data!$CC$5,FR!DF11,IF($J$4=data!$CC$6,DE!DF11,IF($J$4=data!$CC$7,NR!DF11,IF($J$4=data!$CC$8,SP!DF11,IF($J$4=data!$CC$9,SW!DF11,))))))) -> 0 | DG12: 0 | DH12: 0 | DI12: ='LowH2O DBH'!E12 -> 20 | DJ12: =DJ10 -> °C | DK12: =DF12 -> 0 | DL12: 0 | DM12: 0 | DN12: ='LowH2O DBH'!J12 -> 27 | DO12: =DJ10 -> °C
A13: =CONCATENATE($CB$7,'LowH2O DBH'!$K$6,$CD11,'LowH2O DBH'!$L$6) -> 15014016 | D13: 1 | E13: 50 | F13: 140 | G13: 16 | H13: 16.5 | I13: 0 | J13: 26 | K13: 30 | L13: 45.4 | M13: 1806.76 | N13: 3844.423141 | O13: 4117.108028 | P13: 5776.7 | Q13: 1.5 | R13: 1.1 | S13: 1.1 | T13: 1.1 | U13: 1289 | V13: 3001 | W13: 3214 | X13: 4510 | Y13: 111 | Z13: 258 | AA13: 276 | AB13: 388 | AC13: 0.2026173323 | AD13: 1.055992613 | AE13: 1.20536892 | AF13: 2.352763085 | AG13: 0.0002083 | AH13: 1.724 | AI13: 4 | AJ13: 0.001392796 | AK13: 589 | AL13: 630 | AM13: 885 | AN13: 0.95 | AO13: 0.95 | AP13: 0.95 | AQ13: 589 | AR13: 630 | AS13: 885 | AT13: 253 | AU13: 271 | AV13: 381 | AW13: 1.016227122 | AX13: 1.162899406 | AY13: 2.270082508 | AZ13: 2.8 | BA13: 9.6 | BB13: 10.5 | BC13: 16.1 | BD13: 0 | BE13: 2657 | BF13: 0 | BG13: 0.68 | BH13: 0 | BI13: 0 | BJ13: 0 | BK13: 10.4 | BL13: 12.2 | BM13: 21.85 | BN13: 0 | BO13: 1 | BP13: 1 | BQ13: 1 | BR13: 589 | BS13: 630 | BT13: 885 | BU13: 0 | BV13: 0 | BW13: 0 | BX13: 0 | BY13: 1 | CA13: 26dB(A) | CD13: 180 | CI13: 200 | CL13: 180 | CO13: 180 | CR13: 180 | CU13: 180 | DK13: =IF($J$4=data!$CC$3,NL!$G$3,IF($J$4=data!$CC$4,EN!$G$3,IF($J$4=data!$CC$5,FR!$G$3,IF($J$4=data!$CC$6,DE!$G$3,IF($J$4=data!$CC$7,NR!$G$3,IF($J$4=data!$CC$8,SP!$G$3,IF($J$4=data!$CC$9,SW!$G$3,))))))) -> 0 | DN13: ='LowH2O DBH'!J13 -> 0.5
A14: =CONCATENATE($CB$7,'LowH2O DBH'!$K$6,$CD12,'LowH2O DBH'!$L$6) -> 15016016 | D14: 1 | E14: 50 | F14: 160 | G14: 16 | H14: 16.5 | I14: 0 | J14: 26 | K14: 30 | L14: 46.4 | M14: 2065.16 | N14: 4417.936888 | O14: 4716.884814 | P14: 6723.7 | Q14: 1.5 | R14: 1.1 | S14: 1.1 | T14: 1.1 | U14: 1474 | V14: 3449 | W14: 3683 | X14: 5249 | Y14: 127 | Z14: 297 | AA14: 317 | AB14: 451 | AC14: 0.2705121834 | AD14: 1.421855647 | AE14: 1.615374883 | AF14: 3.223950207 | AG14: 0.0002083 | AH14: 1.724 | AI14: 4 | AJ14: 0.001392796 | AK14: 676 | AL14: 722 | AM14: 1030 | AN14: 0.95 | AO14: 0.95 | AP14: 0.95 | AQ14: 676 | AR14: 722 | AS14: 1030 | AT14: 291 | AU14: 310 | AV14: 443 | AW14: 1.366168615 | AX14: 1.546262188 | AY14: 3.112728235 | AZ14: 3.2 | BA14: 11.5 | BB14: 12.8 | BC14: 19.6 | BD14: 0 | BE14: 3037 | BF14: 0 | BG14: 0.68 | BH14: 0 | BI14: 0 | BJ14: 0 | BK14: 10 | BL14: 11.8 | BM14: 21.85 | BN14: 0 | BO14: 1 | BP14: =VLOOKUP($A14,$A$28:$BY$1355,BP$4,0) -> 1 | BQ14: 1 | BR14: 676 | BS14: 722 | BT14: 1030 | BU14: 0 | BV14: 0 | BW14: 0 | BX14: 0 | BY14: 1 | CA14: 30dB(A) | CD14: 200 | CI14: 220 | CL14: 200 | CO14: 200 | CR14: 200 | CU14: 200
A15: =CONCATENATE($CB$7,'LowH2O DBH'!$K$6,$CD13,'LowH2O DBH'!$L$6) -> 15018016 | D15: 1 | E15: =VLOOKUP($A15,$A$28:$BY$1355,E$4,0) -> 50 | F15: 180 | G15: 16 | H15: 16.5 | I15: 0 | J15: 26 | K15: 30 | L15: 46.4 | M15: 2322.88 | N15: 4843.45497 | O15: 5171.19637 | P15: 7371.3 | Q15: 1.5 | R15: 1.1 | S15: 1.1 | T15: 1.1 | U15: 1657 | V15: 3781 | W15: 4037 | X15: 5755 | Y15: 143 | Z15: 325 | AA15: 347 | AB15: 495 | AC15: 0.3493971221 | AD15: 1.731133991 | AE15: 1.967524633 | AF15: 3.942215693 | AG15: 0.0002083 | AH15: 1.724 | AI15: 4 | AJ15: 0.001392796 | AK15: 686.3088894 | AL15: 732.7492584 | AM15: 1044.5 | AN15: 0.95 | AO15: 0.95 | AP15: 0.95 | AQ15: 686 | AR15: 733 | AS15: 1045 | AT15: 295 | AU15: 315 | AV15: 449 | AW15: 1.432750405 | AX15: 1.628596909 | AY15: 3.256985223 | AZ15: 3.6 | BA15: 11.5 | BB15: 12.8 | BC15: 19.6 | BD15: 0 | BE15: 3416 | BF15: 0 | BG15: 0.68 | BH15: 0 | BI15: 0 | BJ15: 0 | BK15: 10 | BL15: 11.8 | BM15: 21.85 | BN15: 0 | BO15: 1 | BP15: 1 | BQ15: 1 | BR15: 686 | BS15: 733 | BT15: 1045 | BU15: 0 | BV15: 0 | BW15: 0 | BX15: 0 | BY15: 1 | CA15: MAX | CD15: 220 | CI15: 240 | CL15: 220 | CO15: 220 | CR15: 220 | CU15: 220
A16: =CONCATENATE($CB$7,'LowH2O DBH'!$K$6,$CD14,'LowH2O DBH'!$L$6) -> 15020016 | D16: 1 | E16: 50 | F16: 200 | G16: 16 | H16: 16.5 | I16: 0 | J16: 26 | K16: 30 | L16: 47.1 | M16: 2581.28 | N16: 5667.175576 | O16: 5971.35494 | P16: 8617.7 | Q16: 1.5 | R16: 1.1 | S16: 1.1 | T16: 1.1 | U16: 1842 | V16: 4424 | W16: 4662 | X16: 6728 | Y16: 158 | Z16: 380 | AA16: 401 | AB16: 579 | AC16: 0.4342924213 | AD16: 2.395691047 | AE16: 2.660824734 | AF16: 5.453670257 | AG16: 0.0002083 | AH16: 1.724 | AI16: 4 | AJ16: 0.001392796 | AK16: 868 | AL16: 914 | AM16: 1320 | AN16: 0.95 | AO16: 0.95 | AP16: 0.95 | AQ16: 868 | AR16: 914 | AS16: 1320 | AT16: 373 | AU16: 393 | AV16: 568 | AW16: 2.310347018 | AX16: 2.558212522 | AY16: 5.252902216 | AZ16: 4 | BA16: 13.2 | BB16: 14.7 | BC16: 23.5 | BD16: 0 | BE16: 3796 | BF16: 0 | BG16: 0.68 | BH16: 0 | BI16: 0 | BJ16: 0 | BK16: 10 | BL16: 11.4 | BM16: 21.85 | BN16: 0 | BO16: 1 | BP16: 1 | BQ16: 1 | BR16: 868 | BS16: 914 | BT16: 1320 | BU16: 0 | BV16: 0 | BW16: 0 | BX16: 0 | BY16: 1 | CD16: 240 | CI16: 260 | CL16: 240 | CO16: 240 | CR16: 240 | CU16: 240 | DF16: =IF($J$4=data!$CC$3,NL!DF3,IF($J$4=data!$CC$4,EN!DF3,IF($J$4=data!$CC$5,FR!DF3,IF($J$4=data!$CC$6,DE!DF3,IF($J$4=data!$CC$7,NR!DF3,IF($J$4=data!$CC$8,SP!DF3,IF($J$4=data!$CC$9,SW!DF3,)))))))&" [cm]" -> [cm] | DG16: =IF($J$4=data!$CC$3,NL!DF19,IF($J$4=data!$CC$4,EN!DF19,IF($J$4=data!$CC$5,FR!DF19,IF($J$4=data!$CC$6,DE!DF19,IF($J$4=data!$CC$7,NR!DF19,IF($J$4=data!$CC$8,SP!DF19,IF($J$4=data!$CC$9,SW!DF19,))))))) -> 0 | DH16: =IF($J$4=data!$CC$3,NL!DG14,IF($J$4=data!$CC$4,EN!DG14,IF($J$4=data!$CC$5,FR!DG14,IF($J$4=data!$CC$6,DE!DG14,IF($J$4=data!$CC$7,NR!DG14,IF($J$4=data!$CC$8,SP!DG14,IF($J$4=data!$CC$9,SW!DG14,)))))))&IF(data!GD2=1," [W]",IF(data!GD2=2," [Btu/h]",)) ->  | DI16: =IF($J$4=data!$CC$3,NL!DH14,IF($J$4=data!$CC$4,EN!DH14,IF($J$4=data!$CC$5,FR!DH14,IF($J$4=data!$CC$6,DE!DH14,IF($J$4=data!$CC$7,NR!DH14,IF($J$4=data!$CC$8,SP!DH14,IF($J$4=data!$CC$9,SW!DH14,)))))))&IF(data!GD2=1," [kg/h]",IF(data!GD2=2," [GPM]**",)) ->  | DJ16: =IF($J$4=data!$CC$3,NL!DJ6,IF($J$4=data!$CC$4,EN!DJ6,IF($J$4=data!$CC$5,FR!DJ6,IF($J$4=data!$CC$6,DE!DJ6,IF($J$4=data!$CC$7,NR!DJ6,IF($J$4=data!$CC$8,SP!DJ6,IF($J$4=data!$CC$9,SW!DJ6,)))))))&" ["&IF(data!GD2=1,"kPa",IF(data!GD2=2,"ftH2O"))&"]" -> [FALSO] | DK16: =IF($J$4=data!$CC$3,NL!DI14,IF($J$4=data!$CC$4,EN!DI14,IF($J$4=data!$CC$5,FR!DI14,IF($J$4=data!$CC$6,DE!DI14,IF($J$4=data!$CC$7,NR!DI14,IF($J$4=data!$CC$8,SP!DI14,IF($J$4=data!$CC$9,SW!DI14,)))))))&IF(data!GD2=1," [W]*",IF(data!GD2=2," [Btu/h]*",)) ->  | DL16: =DI16 ->  | DM16: =DJ16 -> [FALSO] | DN16: =IF($J$4=data!$CC$3,NL!DM13,IF($J$4=data!$CC$4,EN!DM13,IF($J$4=data!$CC$5,FR!DM13,IF($J$4=data!$CC$6,DE!DM13,IF($J$4=data!$CC$7,NR!DM13,IF($J$4=data!$CC$8,SP!DM13,IF($J$4=data!$CC$9,SW!DM13,))))))) -> 0 | DO16: =IF($J$4=data!$CC$3,NL!DN13,IF($J$4=data!$CC$4,EN!DN13,IF($J$4=data!$CC$5,FR!DN13,IF($J$4=data!$CC$6,DE!DN13,IF($J$4=data!$CC$7,NR!DN13,IF($J$4=data!$CC$9,SW!DN13,)))))) -> 0 | DP16: =IF($J$4=data!$CC$3,NL!DL13,IF($J$4=data!$CC$4,EN!DL13,IF($J$4=data!$CC$5,FR!DL13,IF($J$4=data!$CC$6,DE!DL13,IF($J$4=data!$CC$7,NR!DL13,IF($J$4=data!$CC$8,SP!DL13,IF($J$4=data!$CC$9,SW!DL13,))))))) -> 0 | DQ16: =IF($J$4=data!$CC$3,NL!DK13,IF($J$4=data!$CC$4,EN!DK13,IF($J$4=data!$CC$5,FR!DK13,IF($J$4=data!$CC$6,DE!DK13,IF($J$4=data!$CC$7,NR!DK13,IF($J$4=data!$CC$8,SP!DK13,IF($J$4=data!$CC$9,SW!DK13,)))))))&IF(data!GD2=1," [l]",IF(data!GD2=2," [Gal]**",)) -> 
A17: =CONCATENATE($CB$7,'LowH2O DBH'!$K$6,$CD15,'LowH2O DBH'!$L$6) -> 15022016 | D17: 1 | E17: 50 | F17: 220 | G17: 16 | H17: 16.5 | I17: 0 | J17: 26 | K17: 30 | L17: 47.8 | M17: 2648.501449 | N17: 6291.725195 | O17: 6553.834961 | P17: 9564.7 | Q17: 1.5 | R17: 1.1 | S17: 1.1 | T17: 1.1 | U17: 1890 | V17: 4912 | W17: 5117 | X17: 7467 | Y17: 163 | Z17: 422 | AA17: 440 | AB17: 642 | AC17: 0.4719986864 | AD17: 2.994425716 | AE17: 3.248298319 | AF17: 6.787745365 | AG17: 0.0002083 | AH17: 1.724 | AI17: 4 | AJ17: 0.001392796 | AK17: 963.3581345 | AL17: 1003.491098 | AM17: 1464.5 | AN17: 0.95 | AO17: 0.95 | AP17: 0.95 | AQ17: 963 | AR17: 1003 | AS17: 1465 | AT17: 414 | AU17: 431 | AV17: 630 | AW17: 2.88484253 | AX17: 3.120097334 | AY17: 6.542211558 | AZ17: 4.4 | BA17: 15.5 | BB17: 16.8 | BC17: 27.5 | BD17: 0 | BE17: 3894.855072 | BF17: 0 | BG17: 0.68 | BH17: 0 | BI17: 0 | BJ17: 0 | BK17: 10 | BL17: 11.1 | BM17: 21.85 | BN17: 0 | BO17: 1 | BP17: 1 | BQ17: 1 | BR17: 963 | BS17: 1003 | BT17: 1465 | BU17: 0 | BV17: 0 | BW17: 0 | BX17: 0 | BY17: 1 | CC17: =IF('LowH2O DBH'!$J$4=data!CC3,1,IF('LowH2O DBH'!$J$4=data!CC4,2,IF('LowH2O DBH'!$J$4=data!CC5,3,IF('LowH2O DBH'!$J$4=data!CC6,4,IF('LowH2O DBH'!$J$4=data!CC7,5,IF('LowH2O DBH'!$J$4=data!CC8,6,IF('LowH2O DBH'!$J$4=data!CC9,7))))))) -> 6 | CD17: 260 | CI17: 280 | CL17: 260 | CO17: 260 | CR17: 260 | CU17: 260 | DF17: =CONCATENATE($J$5,", ",$K$7, " ",$K$6,"cm, ",$L$7, " ",$L$6) ->  | DG17: 0 | DH17: 0 | DI17: 0 | DJ17: 0 | DK17: 0 | DL17: 0 | DM17: 0 | DN17: 0 | DO17: 0 | DP17: 0 | DQ17: 0
A18: =CONCATENATE($CB$7,'LowH2O DBH'!$K$6,$CD16,'LowH2O DBH'!$L$6) -> 15024016 | D18: 1 | E18: 50 | F18: 240 | G18: 16 | H18: 16.5 | I18: 0 | J18: 26 | K18: 30 | L18: 48.1 | M18: 3097.4 | N18: 6916.368679 | O18: 7167.974499 | P18: 10511.7 | Q18: 1.5 | R18: 1.1 | S18: 1.1 | T18: 1.1 | U18: 2210 | V18: 5400 | W18: 5596 | X18: 8207 | Y18: 190 | Z18: 464 | AA18: 481 | AB18: 706 | AC18: 0.6490169773 | AD18: 3.667097445 | AE18: 3.932994057 | AF18: 8.305296725 | AG18: 0.0002083 | AH18: 1.724 | AI18: 4 | AJ18: 0.001392796 | AK18: 1059 | AL18: 1098 | AM18: 1610 | AN18: 0.95 | AO18: 0.95 | AP18: 0.95 | AQ18: 1059 | AR18: 1098 | AS18: 1610 | AT18: 455 | AU18: 472 | AV18: 692 | AW18: 3.530015943 | AX18: 3.791091218 | AY18: 7.98717301 | AZ18: 4.8 | BA18: 16.4 | BB18: 17.7 | BC18: 29.7 | BD18: 0 | BE18: 4555 | BF18: 0 | BG18: 0.68 | BH18: 0 | BI18: 0 | BJ18: 0 | BK18: 10 | BL18: 10.9 | BM18: 21.85 | BN18: 0 | BO18: 1 | BP18: =VLOOKUP($A18,$A$28:$BY$1355,BP$4,0) -> 1 | BQ18: 1 | BR18: 1059 | BS18: 1098 | BT18: 1610 | BU18: 0 | BV18: 0 | BW18: 0 | BX18: 0 | BY18: 1 | CD18: 280 | CI18: 300 | CL18: 280 | CO18: 280 | CR18: 280 | CU18: 280 | DF18: 50 | DG18: =BJ5 ->  | DH18: =ROUND(IF($BZ$2=1,U5,IF($BZ$2=2,U5*3.412141633,)),0) ->  | DI18: =IF($BZ$2=1,ROUND(Y5,0),IF($BZ$2=2,ROUND(Y5/272.7654,1),)) ->  | DJ18: =IF($BZ$2=1,AC5,IF($BZ$2=2,AC5*0.3346,)) ->  | DN18: 0 | DO18: 0 | DP18: 0 | DQ18: =IF($BZ$2=1,AZ5,IF($BZ$2=2,AZ5/4.54609,)) -> 
A19: =CONCATENATE($CB$7,'LowH2O DBH'!$K$6,$CD17,'LowH2O DBH'!$L$6) -> 15026016 | D19: 1 | E19: =VLOOKUP($A19,$A$28:$BY$1355,E$4,0) -> 50 | F19: 260 | G19: 16 | H19: 16.5 | I19: 0 | J19: 26 | K19: 30 | L19: 48.1 | M19: 3207.506517 | N19: 7342.469153 | O19: 7609.576818 | P19: 11159.3 | Q19: 1.5 | R19: 1.1 | S19: 1.1 | T19: 1.1 | U19: 2289 | V19: 5732 | W19: 5941 | X19: 8712 | Y19: 197 | Z19: 493 | AA19: 511 | AB19: 749 | AC19: 0.7107966718 | AD19: 4.1978565 | AE19: 4.500674405 | AF19: 9.467876791 | AG19: 0.0002083 | AH19: 1.724 | AI19: 4 | AJ19: 0.001392796 | AK19: 1068.870013 | AL19: 1107.75385 | AM19: 1624.5 | AN19: 0.95 | AO19: 0.95 | AP19: 0.95 | AQ19: 1069 | AR19: 1108 | AS19: 1625 | AT19: 460 | AU19: 476 | AV19: 699 | AW19: 3.669477908 | AX19: 3.921328061 | AY19: 8.276356869 | AZ19: 5.2 | BA19: 16.4 | BB19: 17.7 | BC19: 29.7 | BD19: 0 | BE19: 4716.921348 | BF19: 0 | BG19: 0.68 | BH19: 0 | BI19: 0 | BJ19: 0 | BK19: 10 | BL19: 10.9 | BM19: 21.85 | BN19: 0 | BO19: 1 | BP19: 1 | BQ19: 1 | BR19: 1069 | BS19: 1108 | BT19: 1625 | BU19: 0 | BV19: 0 | BW19: 0 | BX19: 0 | BY19: 1 | CD19: 300 | CR19: 300 | CU19: 300 | DF19: =DF18 -> 50 | DG19: =BK5 ->  | DH19: =ROUND(IF($BZ$2=1,V5,IF($BZ$2=2,V5*3.412141633,)),0) ->  | DI19: =IF($BZ$2=1,ROUND(Z5,0),IF($BZ$2=2,ROUND(Z5/272.7654,1),)) ->  | DJ19: =IF($BZ$2=1,AD5,IF($BZ$2=2,AD5*0.3346,)) ->  | DK19: =IF(BY5=1,ROUND(IF($BZ$2=1,AQ5,IF($BZ$2=2,AQ5*3.412141633,)),0),"") ->  | DL19: =IF(BY5=1,IF($BZ$2=1,ROUND(AT5,0),IF($BZ$2=2,ROUND(AT5/272.7654,1),)),"") ->  | DM19: =IF(BY5=1,IF($BZ$2=1,AW5,IF($BZ$2=2,AW5*0.3346,)),"") ->  | DN19: =J5 ->  | DO19: =DN19+8 ->  | DP19: =BA5 ->  | DQ19: =DQ18 -> 
A20: =CONCATENATE($CB$7,'LowH2O DBH'!$K$6,$CD18,'LowH2O DBH'!$L$6) -> 15028016 | D20: 1 | E20: 50 | F20: 280 | G20: 16 | H20: 16.5 | I20: 0 | J20: 26 | K20: 30 | L20: 48.9 | M20: 3613.52 | N20: 8165.555118 | O20: 8348.321999 | P20: 12405.7 | Q20: 1.5 | R20: 1.1 | S20: 1.1 | T20: 1.1 | U20: 2578 | V20: 6375 | W20: 6518 | X20: 9685 | Y20: 222 | Z20: 548 | AA20: 561 | AB20: 833 | AC20: 0.9133083225 | AD20: 5.2414825 | AE20: 5.485392582 | AF20: 11.82294202 | AG20: 0.0002083 | AH20: 1.724 | AI20: 4 | AJ20: 0.001392796 | AK20: 1250 | AL20: 1278 | AM20: 1900 | AN20: 0.95 | AO20: 0.95 | AP20: 0.95 | AQ20: 1250 | AR20: 1278 | AS20: 1900 | AT20: 538 | AU20: 550 | AV20: 817 | AW20: 5.057544557 | AX20: 5.278654736 | AY20: 11.38526357 | AZ20: 5.6 | BA20: 19.3 | BB20: 20.4 | BC20: 34.5 | BD20: 0 | BE20: 5314 | BF20: 0 | BG20: 0.68 | BH20: 0 | BI20: 0 | BJ20: 0 | BK20: 10 | BL20: 10.6 | BM20: 21.85 | BN20: 0 | BO20: 1 | BP20: 1 | BQ20: 1 | BR20: 1250 | BS20: 1278 | BT20: 1900 | BU20: 0 | BV20: 0 | BW20: 0 | BX20: 0 | BY20: 1 | CD20: =IF($CB$7=1,CL19,IF($CB$7=2,CO19,IF($CB$7=3,CR19,IF($CB$7=4,CI19,)))) -> 0 | CE20: =IF($CB$7=1,CK7,IF($CB$7=2,CN7,IF($CB$7=3,CQ7,IF($CB$7=4,CH7,)))) -> 0 | CN20: 1 | CO20: 2 | CP20: 3 | CQ20: 4 | CR20: 5 | CS20: 6 | CT20: 7 | CU20: 8 | CV20: 9 | DF20: =DF18 -> 50 | DG20: =BL5 ->  | DH20: =ROUND(IF($BZ$2=1,W5,IF($BZ$2=2,W5*3.412141633,)),0) ->  | DI20: =IF($BZ$2=1,ROUND(AA5,0),IF($BZ$2=2,ROUND(AA5/272.7654,1),)) ->  | DJ20: =IF($BZ$2=1,AE5,IF($BZ$2=2,AE5*0.3346,)) ->  | DK20: =IF(BY5=1,ROUND(IF($BZ$2=1,AR5,IF($BZ$2=2,AR5*3.412141633,)),0),"") ->  | DL20: =IF(BY5=1,IF($BZ$2=1,ROUND(AU5,0),IF($BZ$2=2,ROUND(AU5/272.7654,1),)),"") ->  | DM20: =IF(BY5=1,IF($BZ$2=1,AX5,IF($BZ$2=2,AX5*0.3346,)),"") ->  | DN20: =K5 ->  | DO20: =L5 ->  | DP20: =BB5 ->  | DQ20: =DQ18 -> 
A21: =CONCATENATE($CB$7,'LowH2O DBH'!$K$6,$CD19,'LowH2O DBH'!$L$6) -> 15030016 | CE21: =IF($CB$7=1,CK8,IF($CB$7=2,CN8,IF($CB$7=3,CQ8,IF($CB$7=4,CH8,)))) -> 0 | CQ21: =VLOOKUP($A$24,$CN$23:$CV$56,CQ$20,0) ->  | DF21: =DF18 -> 50 | DG21: =BM5 ->  | DH21: =ROUND(IF($BZ$2=1,X5,IF($BZ$2=2,X5*3.412141633,)),0) ->  | DI21: =IF($BZ$2=1,ROUND(AB5,0),IF($BZ$2=2,ROUND(AB5/272.7654,1),)) ->  | DJ21: =IF($BZ$2=1,AF5,IF($BZ$2=2,AF5*0.3346,)) ->  | DK21: =IF(BY5=1,ROUND(IF($BZ$2=1,AS5,IF($BZ$2=2,AS5*3.412141633,)),0),"") ->  | DL21: =IF(BY5=1,IF($BZ$2=1,ROUND(AV5,0),IF($BZ$2=2,ROUND(AV5/272.7654,1),)),"") ->  | DM21: =IF(BY5=1,IF($BZ$2=1,AY5,IF($BZ$2=2,AY5*0.3346,)),"") ->  | DN21: =L5 ->  | DO21: =DN21+8 ->  | DP21: =BC5 ->  | DQ21: =DQ18 -> 
CE22: =IF($CB$7=1,CK9,IF($CB$7=2,CN9,IF($CB$7=3,CQ9,IF($CB$7=4,CH9,)))) -> 0 | CO22: Raillengte | CP22: Railtype | CQ22: BMS-stuurspanningen | CT22: Opgenomen elektrisch vermogen | DF22: 60 | DG22: =BJ6 -> 0 | DH22: =ROUND(IF($BZ$2=1,U6,IF($BZ$2=2,U6*3.412141633,)),0) -> 553 | DI22: =IF($BZ$2=1,ROUND(Y6,0),IF($BZ$2=2,ROUND(Y6/272.7654,1),)) -> 48 | DJ22: =IF($BZ$2=1,AC6,IF($BZ$2=2,AC6*0.3346,)) -> 0.03439535473 | DN22: 0 | DO22: 0 | DP22: 0 | DQ22: =IF($BZ$2=1,AZ6,IF($BZ$2=2,AZ6/4.54606,)) -> 1.2
CN23: =CONCATENATE(CO23,CP23) -> 5010 | CO23: 50 | CP23: 10 | CQ23: 14.2 | CR23: 16.2 | CS23: 21.85 | CT23: 3.6 | CU23: 4.1 | CV23: 5.1 | DF23: =DF22 -> 60 | DG23: =BK6 -> 12.3 | DH23: =ROUND(IF($BZ$2=1,V6,IF($BZ$2=2,V6*3.412141633,)),0) -> 1093 | DI23: =IF($BZ$2=1,ROUND(Z6,0),IF($BZ$2=2,ROUND(Z6/272.7654,1),)) -> 94 | DJ23: =IF($BZ$2=1,AD6,IF($BZ$2=2,AD6*0.3346,)) -> 0.1299949598 | DK23: =IF(BY6=1,ROUND(IF($BZ$2=1,AQ6,IF($BZ$2=2,AQ6*3.412141633,)),0),"") -> 214 | DL23: =IF(BY6=1,IF($BZ$2=1,ROUND(AT6,0),IF($BZ$2=2,ROUND(AT6/272.7654,1),)),"") -> 92 | DM23: =IF(BY6=1,IF($BZ$2=1,AW6,IF($BZ$2=2,AW6*0.3346,)),"") -> 0.1245756493 | DN23: =J6 -> 26 | DO23: =DN23+8 -> 34 | DP23: =BA6 -> 4.8 | DQ23: =DQ22 -> 1.2
CN24: =CONCATENATE(CO24,CP24) -> 5015 | CO24: 50 | CP24: 15 | CQ24: 0 | CR24: 0 | CS24: 0 | CT24: 0 | CU24: 0 | CV24: 0 | DF24: =DF22 -> 60 | DG24: =BL6 -> 14.4 | DH24: =ROUND(IF($BZ$2=1,W6,IF($BZ$2=2,W6*3.412141633,)),0) -> 1173 | DI24: =IF($BZ$2=1,ROUND(AA6,0),IF($BZ$2=2,ROUND(AA6/272.7654,1),)) -> 101 | DJ24: =IF($BZ$2=1,AE6,IF($BZ$2=2,AE6*0.3346,)) -> 0.1498640371 | DK24: =IF(BY6=1,ROUND(IF($BZ$2=1,AR6,IF($BZ$2=2,AR6*3.412141633,)),0),"") -> 230 | DL24: =IF(BY6=1,IF($BZ$2=1,ROUND(AU6,0),IF($BZ$2=2,ROUND(AU6/272.7654,1),)),"") -> 99 | DM24: =IF(BY6=1,IF($BZ$2=1,AX6,IF($BZ$2=2,AX6*0.3346,)),"") -> 0.1440441081 | DN24: =K6 -> 30 | DO24: =L6 -> 41.1 | DP24: =BB6 -> 5.5 | DQ24: =DQ22 -> 1.2
CN25: 6010 | CO25: 60 | CP25: 10 | CQ25: 13.6 | CR25: 15.6 | CS25: 21.85 | CT25: 4.8 | CU25: 5.4 | CV25: 6.8 | DF25: =DF22 -> 60 | DG25: =BM6 -> 21.85 | DH25: =ROUND(IF($BZ$2=1,X6,IF($BZ$2=2,X6*3.412141633,)),0) -> 1553 | DI25: =IF($BZ$2=1,ROUND(AB6,0),IF($BZ$2=2,ROUND(AB6/272.7654,1),)) -> 134 | DJ25: =IF($BZ$2=1,AF6,IF($BZ$2=2,AF6*0.3346,)) -> 0.262389547 | DK25: =IF(BY6=1,ROUND(IF($BZ$2=1,AS6,IF($BZ$2=2,AS6*3.412141633,)),0),"") -> 305 | DL25: =IF(BY6=1,IF($BZ$2=1,ROUND(AV6,0),IF($BZ$2=2,ROUND(AV6/272.7654,1),)),"") -> 131 | DM25: =IF(BY6=1,IF($BZ$2=1,AY6,IF($BZ$2=2,AY6*0.3346,)),"") -> 0.2508759331 | DN25: =L6 -> 41.1 | DO25: =DN25+8 -> 49.1 | DP25: =BC6 -> 7.2 | DQ25: =DQ22 -> 1.2
I26: soundpressure level | M26: power | N26: 75/65/20 | Q26: n | U26: result | V26: power | Y26: result | Z26: flow | AC26: static pressure loss | AK26: power | AL26: 16/18/27 | AN26: n | AQ26: result | AR26: power | AT26: result | AU26: flow | AW26: static pressure loss | BA26: electrical power nominal | BE26: oude cataloog | BG26: Statisch met rail / statisch cataloog | BL26: BMS-stuurspanning | BO26: Sensible heat factor | BR26: Total cooling capacity | BV26: Diff. Total and sensible | BY26: Show or not | CN26: 6015 | CO26: 60 | CP26: 15 | CQ26: 12.3 | CR26: 14.4 | CS26: 21.85 | CT26: 4.8 | CU26: 5.5 | CV26: 7.2 | DF26: 70 | DG26: =BJ7 -> 0 | DH26: =ROUND(IF($BZ$2=1,U7,IF($BZ$2=2,U7*3.412141633,)),0) -> 645 | DI26: =IF($BZ$2=1,ROUND(Y7,0),IF($BZ$2=2,ROUND(Y7/272.7654,1),)) -> 55 | DJ26: =IF($BZ$2=1,AC7,IF($BZ$2=2,AC7*0.3346,)) -> 0.04583340689 | DN26: 0 | DO26: 0 | DP26: 0 | DQ26: =IF($BZ$2=1,AZ7,IF($BZ$2=2,AZ7/4.54609,)) -> 1.4
A27: lookup code | B27: L,rail | C27: T,rail | D27: toestel | E27: height | F27: length | G27: type | H27: depth | I27: 0 | J27: 1 | K27: 2 | L27: 3 | M27: 0 | N27: 1 | O27: 2 | P27: 3 | Q27: 0 | R27: 1 | S27: 2 | T27: 3 | U27: 0 | V27: 1 | W27: 2 | X27: 3 | Y27: 0 | Z27: 1 | AA27: 2 | AB27: 3 | AC27: 0 | AD27: 1 | AE27: 2 | AF27: 3 | AG27: k1 | AH27: n | AI27: t | AJ27: k2 | AK27: 1 | AL27: 2 | AM27: 3 | AN27: 1 | AO27: 2 | AP27: 3 | AQ27: 1 | AR27: 2 | AS27: 3 | AT27: 1 | AU27: 2 | AV27: 3 | AW27: 1 | AX27: 2 | AY27: 3 | AZ27: watervolume | BA27: 1 | BB27: 2 | BC27: 3 | BE27: Static,H | BF27: Static,C | BJ27: 0 | BK27: 1 | BL27: 2 | BM27: 3 | BO27: SHF 1 | BP27: SHF 2 | BQ27: SHF 3 | BR27: Q,t 1 | BS27: Q,t 2 | BT27: Q,t 3 | BV27: ΔQ,t,s 1 | BW27: ΔQ,t,s 2 | BX27: ΔQ,t,s 3 | BY27: OK/NOTOK | CN27: 7010 | CO27: 70 | CP27: 10 | CQ27: 13.2 | CR27: 15.1 | CS27: 21.85 | CT27: 5.5 | CU27: 5.9 | CV27: 7.9 | DF27: =DF26 -> 70 | DG27: =BK7 -> 12.3 | DH27: =ROUND(IF($BZ$2=1,V7,IF($BZ$2=2,V7*3.412141633,)),0) -> 1271 | DI27: =IF($BZ$2=1,ROUND(Z7,0),IF($BZ$2=2,ROUND(Z7/272.7654,1),)) -> 109 | DJ27: =IF($BZ$2=1,AD7,IF($BZ$2=2,AD7*0.3346,)) -> 0.1769450933 | DK27: =IF(BY7=1,ROUND(IF($BZ$2=1,AQ7,IF($BZ$2=2,AQ7*3.412141633,)),0),"") -> 220 | DL27: =IF(BY7=1,IF($BZ$2=1,ROUND(AT7,0),IF($BZ$2=2,ROUND(AT7/272.7654,1),)),"") -> 95 | DM27: =IF(BY7=1,IF($BZ$2=1,AW7,IF($BZ$2=2,AW7*0.3346,)),"") -> 0.1348444213 | DN27: =J7 -> 26 | DO27: =DN27+8 -> 34 | DP27: =BA7 -> 5.1 | DQ27: =DQ26 -> 1.4
A28: =CONCATENATE(D28,E28,F28,G28) -> 1355010 | D28: 1 | E28: 35 | F28: 50 | G28: 10 | H28: 11.5 | I28: 0 | J28: 26 | K28: 30 | L28: 38.8 | M28: =IF($N28-($BE28*$BG28)>100,$BE28*$BG28,$N28-95) -> 404.1 | N28: 649 | O28: 695 | P28: 812 | Q28: 1.5 | R28: =IF($G28=10,1.08,IF($G28=11,1.1,IF($G28=15,1.08,IF($G28=16,1.1,IF($G28=20,1.08,IF($G28=21,1.05)))))) -> 1.08 | S28: =IF($G28=10,1.08,IF($G28=11,1.1,IF($G28=15,1.08,IF($G28=16,1.1,IF($G28=20,1.08,IF($G28=21,1.05)))))) -> 1.08 | T28: 1.08 | U28: =ROUND(M28*POWER(CF_heat,Q28),0) -> 288 | V28: =ROUND(N28*POWER(CF_heat,R28),0) -> 509 | W28: =ROUND(O28*POWER(CF_heat,S28),0) -> 545 | X28: =ROUND(P28*POWER(CF_heat,T28),0) -> 637 | Y28: =ROUND(U28*3600/(4186*ABS($O$1-$O$2)),0) -> 25 | Z28: =ROUND(V28*3600/(4186*ABS($O$1-$O$2)),0) -> 44 | AA28: =ROUND(W28*3600/(4186*ABS($O$1-$O$2)),0) -> 47 | AB28: =ROUND(X28*3600/(4186*ABS($O$1-$O$2)),0) -> 55 | AC28: =(($AG28*(Y28^$AH28)*((($F28-14.4)*$AI28)/100))+($AJ28*(Y28^2)))*0.0098 -> 0.002986638017 | AD28: =(($AG28*(Z28^$AH28)*((($F28-14.4)*$AI28)/100))+($AJ28*(Z28^2)))*0.0098 -> 0.008933504828 | AE28: 0.01015435467 | AF28: 0.01378214832 | AG28: =IF($G28=$CO$103,CP$103,IF($G28=$CO$104,CP$104,IF($G28=$CO$105,CP$105,IF($G28=$CO$107,CP$107,IF($G28=$CO$108,CP$108,IF($G28=$CO$109,CP$109,IF($G28=$CO$111,CP$111,IF($G28=$CO$112,CP$112,IF($G28=$CO$113,CP$113,IF($G28=$CO$115,CP$115,IF($G28=$CO$116,CP$116,IF($G28=$CO$117,CP$117,IF($G28=$CO$119,CP$119,IF($G28=$CO$120,CP$120,)))))))))))))) -> 0.0003969 | AH28: =IF($G28=$CO$103,CQ$103,IF($G28=$CO$104,CQ$104,IF($G28=$CO$105,CQ$105,IF($G28=$CO$107,CQ$107,IF($G28=$CO$108,CQ$108,IF($G28=$CO$109,CQ$109,IF($G28=$CO$111,CQ$111,IF($G28=$CO$112,CQ$112,IF($G28=$CO$113,CQ$113,IF($G28=$CO$115,CQ$115,IF($G28=$CO$116,CQ$116,IF($G28=$CO$117,CQ$117,IF($G28=$CO$119,CQ$119,IF($G28=$CO$120,CQ$120,)))))))))))))) -> 1.7346 | AI28: =IF($G28=$CO$103,CR$103,IF($G28=$CO$104,CR$104,IF($G28=$CO$105,CR$105,IF($G28=$CO$107,CR$107,IF($G28=$CO$108,CR$108,IF($G28=$CO$109,CR$109,IF($G28=$CO$111,CR$111,IF($G28=$CO$112,CR$112,IF($G28=$CO$113,CR$113,IF($G28=$CO$115,CR$115,IF($G28=$CO$116,CR$116,IF($G28=$CO$117,CR$117,IF($G28=$CO$119,CR$119,IF($G28=$CO$120,CR$120,)))))))))))))) -> 2 | AJ28: =IF($G28=$CO$103,CS$103,IF($G28=$CO$104,CS$104,IF($G28=$CO$105,CS$105,IF($G28=$CO$107,CS$107,IF($G28=$CO$108,CS$108,IF($G28=$CO$109,CS$109,IF($G28=$CO$111,CS$111,IF($G28=$CO$112,CS$112,IF($G28=$CO$113,CS$113,IF($G28=$CO$115,CS$115,IF($G28=$CO$116,CS$116,IF($G28=$CO$117,CS$117,IF($G28=$CO$119,CS$119,IF($G28=$CO$120,CS$120,)))))))))))))) -> 0.000367347 | AK28: 90.02011923 | AL28: 96.32825932 | AM28: 112.64 | AN28: =IF($G28=10,0.98,IF($G28=11,0.95,IF($G28=15,1.01,IF($G28=16,0.95,IF($G28=20,0.95,IF($G28=21,0.85)))))) -> 0.98 | AO28: =IF($G28=10,0.98,IF($G28=11,0.95,IF($G28=15,1.01,IF($G28=16,0.95,IF($G28=20,0.95,IF($G28=21,0.85)))))) -> 0.98 | AP28: 0.98 | AQ28: =ROUND(AK28*POWER(CF_cool,AN28),0) -> 90 | AR28: =ROUND(AL28*POWER(CF_cool,AO28),0) -> 96 | AS28: =ROUND(AM28*POWER(CF_cool,AP28),0) -> 113 | AT28: =ROUND(AQ28*3600/(4186*ABS($AM$1-$AM$2)),0) -> 39 | AU28: =ROUND(AR28*3600/(4186*ABS($AM$1-$AM$2)),0) -> 41 | AV28: =ROUND(AS28*3600/(4186*ABS($AM$1-$AM$2)),0) -> 49 | AW28: =(($AG28*(AT28^$AH28)*((($F28-14.4)*$AI28)/100))+($AJ28*(AT28^2)))*0.0098 -> 0.007068718513 | AX28: =(($AG28*(AU28^$AH28)*((($F28-14.4)*$AI28)/100))+($AJ28*(AU28^2)))*0.0098 -> 0.007789089938 | AY28: 0.01101061796 | AZ28: =ROUND(IF(G28=10,$CO$92*F28,IF(G28=11,$CO$93*F28,IF(G28=15,$CO$94*F28,IF(G28=16,$CO$95*F28,IF(G28=20,$CO$96*F28,IF(G28=21,$CO$97*F28,)))))),1) -> 0.3 | BA28: 3.6 | BB28: 4.1 | BC28: 5.1 | BE28: 449 | BG28: =IF(G28=10,0.9,IF(G28=11,0.68,IF(G28=15,0.8,IF(G28=16,0.68,IF(G28=20,0.8,IF(G28=21,0.8)))))) -> 0.9 | BJ28: 0 | BK28: 14.2 | BL28: 16.2 | BM28: 21.85 | BO28: =IF(1/(1+((2258*((0.622/((101325/(1*611*EXP(17.27*((($AM$1+$AM$2)/2)/((($AM$1+$AM$2)/2)+237.3))))))-1)*1000-(0.622/((101325/($AQ$1*611*EXP(17.27*($AM$3/($AM$3+237.3))))))-1)*1000))/(1005*((($AM$1+$AM$2)/2)-$AM$3))))>1,1,1/(1+((2258*((0.622/((101325/(1*611*EXP(17.27*((($AM$1+$AM$2)/2)/((($AM$1+$AM$2)/2)+237.3))))))-1)*1000-(0.622/((101325/($AQ$1*611*EXP(17.27*($AM$3/($AM$3+237.3))))))-1)*1000))/(1005*((($AM$1+$AM$2)/2)-$AM$3))))) -> 1 | BP28: =IF(1/(1+((2258*((0.622/((101325/(1*611*EXP(17.27*((($AM$1+$AM$2)/2)/((($AM$1+$AM$2)/2)+237.3))))))-1)*1000-(0.622/((101325/($AQ$1*611*EXP(17.27*($AM$3/($AM$3+237.3))))))-1)*1000))/(1005*((($AM$1+$AM$2)/2)-$AM$3))))>1,1,1/(1+((2258*((0.622/((101325/(1*611*EXP(17.27*((($AM$1+$AM$2)/2)/((($AM$1+$AM$2)/2)+237.3))))))-1)*1000-(0.622/((101325/($AQ$1*611*EXP(17.27*($AM$3/($AM$3+237.3))))))-1)*1000))/(1005*((($AM$1+$AM$2)/2)-$AM$3))))) -> 1 | BQ28: =IF(1/(1+((2258*((0.622/((101325/(1*611*EXP(17.27*((($AM$1+$AM$2)/2)/((($AM$1+$AM$2)/2)+237.3))))))-1)*1000-(0.622/((101325/($AQ$1*611*EXP(17.27*($AM$3/($AM$3+237.3))))))-1)*1000))/(1005*((($AM$1+$AM$2)/2)-$AM$3))))>1,1,1/(1+((2258*((0.622/((101325/(1*611*EXP(17.27*((($AM$1+$AM$2)/2)/((($AM$1+$AM$2)/2)+237.3))))))-1)*1000-(0.622/((101325/($AQ$1*611*EXP(17.27*($AM$3/($AM$3+237.3))))))-1)*1000))/(1005*((($AM$1+$AM$2)/2)-$AM$3))))) -> 1 | BR28: =AQ28/BO28 -> 90 | BS28: =AR28/BP28 -> 96 | BT28: =AS28/BQ28 -> 113 | BV28: =BR28-AQ28 -> 0 | BW28: =BS28-AR28 -> 0 | BX28: =BT28-AS28 -> 0 | BY28: =IF(SUM(BV28:BX28)=0,1,0) -> 1 | CN28: 7015 | CO28: 70 | CP28: 15 | CQ28: 12.3 | CR28: 14.4 | CS28: 21.85 | CT28: 5.1 | CU28: 5.6 | CV28: 7.2 | DF28: =DF26 -> 70 | DG28: =BL7 -> 14.4 | DH28: =ROUND(IF($BZ$2=1,W7,IF($BZ$2=2,W7*3.412141633,)),0) -> 1364 | DI28: =IF($BZ$2=1,ROUND(AA7,0),IF($BZ$2=2,ROUND(AA7/272.7654,1),)) -> 117 | DJ28: =IF($BZ$2=1,AE7,IF($BZ$2=2,AE7*0.3346,)) -> 0.2035422677 | DK28: =IF(BY7=1,ROUND(IF($BZ$2=1,AR7,IF($BZ$2=2,AR7*3.412141633,)),0),"") -> 236 | DL28: =IF(BY7=1,IF($BZ$2=1,ROUND(AU7,0),IF($BZ$2=2,ROUND(AU7/272.7654,1),)),"") -> 101 | DM28: =IF(BY7=1,IF($BZ$2=1,AX7,IF($BZ$2=2,AX7*0.3346,)),"") -> 0.1521944098 | DN28: =K7 -> 30 | DO28: =L7 -> 41.1 | DP28: =BB7 -> 5.6 | DQ28: =DQ26 -> 1.4
A29: =CONCATENATE(D29,E29,F29,G29) -> 1505010 | D29: 1 | E29: 50 | F29: 50 | G29: 10 | H29: 11.5 | I29: 0 | J29: 26 | K29: 30 | L29: 38.8 | M29: 484.2 | N29: 649 | O29: 695 | P29: 812 | Q29: 1.5 | R29: =IF($G29=10,1.08,IF($G29=11,1.1,IF($G29=15,1.08,IF($G29=16,1.1,IF($G29=20,1.08,IF($G29=21,1.05)))))) -> 1.08 | S29: 1.08 | T29: 1.08 | U29: 345 | V29: 509 | W29: 545 | X29: 637 | Y29: 30 | Z29: 44 | AA29: 47 | AB29: 55 | AC29: =(($AG29*(Y29^$AH29)*((($F29-14.4)*$AI29)/100))+($AJ29*(Y29^2)))*0.0098 -> 0.004250652672 | AD29: =(($AG29*(Z29^$AH29)*((($F29-14.4)*$AI29)/100))+($AJ29*(Z29^2)))*0.0098 -> 0.008933504828 | AE29: =(($AG29*(AA29^$AH29)*((($F29-14.4)*$AI29)/100))+($AJ29*(AA29^2)))*0.0098 -> 0.01015435467 | AF29: =(($AG29*(AB29^$AH29)*((($F29-14.4)*$AI29)/100))+($AJ29*(AB29^2)))*0.0098 -> 0.01378214832 | AG29: 0.0003969 | AH29: 1.7346 | AI29: 2 | AJ29: 0.000367347 | AK29: 90.02011923 | AL29: 96.32825932 | AM29: 112.64 | AN29: 0.98 | AO29: 0.98 | AP29: 0.98 | AQ29: =ROUND(AK29*POWER(CF_cool,AN29),0) -> 90 | AR29: 96 | AS29: 113 | AT29: 39 | AU29: 41 | AV29: 49 | AW29: =(($AG29*(AT29^$AH29)*((($F29-14.4)*$AI29)/100))+($AJ29*(AT29^2)))*0.0098 -> 0.007068718513 | AX29: =(($AG29*(AU29^$AH29)*((($F29-14.4)*$AI29)/100))+($AJ29*(AU29^2)))*0.0098 -> 0.007789089938 | AY29: =(($AG29*(AV29^$AH29)*((($F29-14.4)*$AI29)/100))+($AJ29*(AV29^2)))*0.0098 -> 0.01101061796 | AZ29: 0.3 | BA29: 3.6 | BB29: 4.1 | BC29: 5.1 | BE29: 538 | BG29: 0.9 | BJ29: 0 | BK29: 14.2 | BL29: 16.2 | BM29: 21.85 | BO29: =IF(1/(1+((2258*((0.622/((101325/(1*611*EXP(17.27*((($AM$1+$AM$2)/2)/((($AM$1+$AM$2)/2)+237.3))))))-1)*1000-(0.622/((101325/($AQ$1*611*EXP(17.27*($AM$3/($AM$3+237.3))))))-1)*1000))/(1005*((($AM$1+$AM$2)/2)-$AM$3))))>1,1,1/(1+((2258*((0.622/((101325/(1*611*EXP(17.27*((($AM$1+$AM$2)/2)/((($AM$1+$AM$2)/2)+237.3))))))-1)*1000-(0.622/((101325/($AQ$1*611*EXP(17.27*($AM$3/($AM$3+237.3))))))-1)*1000))/(1005*((($AM$1+$AM$2)/2)-$AM$3))))) -> 1 | BP29: 1 | BQ29: 1 | BR29: =AQ29/BO29 -> 90 | BS29: 96 | BT29: 113 | BV29: =BR29-AQ29 -> 0 | BW29: 0 | BX29: 0 | BY29: =IF(SUM(BV29:BX29)=0,1,0) -> 1 | CN29: 8010 | CO29: 80 | CP29: 10 | CQ29: 12.8 | CR29: 14.7 | CS29: 21.85 | CT29: 6.3 | CU29: 6.8 | CV29: 9.1 | DF29: =DF26 -> 70 | DG29: =BM7 -> 21.85 | DH29: =ROUND(IF($BZ$2=1,X7,IF($BZ$2=2,X7*3.412141633,)),0) -> 1805 | DI29: =IF($BZ$2=1,ROUND(AB7,0),IF($BZ$2=2,ROUND(AB7/272.7654,1),)) -> 155 | DJ29: =IF($BZ$2=1,AF7,IF($BZ$2=2,AF7*0.3346,)) -> 0.355040129 | DK29: =IF(BY7=1,ROUND(IF($BZ$2=1,AS7,IF($BZ$2=2,AS7*3.412141633,)),0),"") -> 312 | DL29: =IF(BY7=1,IF($BZ$2=1,ROUND(AV7,0),IF($BZ$2=2,ROUND(AV7/272.7654,1),)),"") -> 134 | DM29: =IF(BY7=1,IF($BZ$2=1,AY7,IF($BZ$2=2,AY7*0.3346,)),"") -> 0.2661836054 | DN29: =L7 -> 41.1 | DO29: =DN29+8 -> 49.1 | DP29: =BC7 -> 7.2 | DQ29: =DQ26 -> 1.4
A30: 1655010 | D30: 1 | E30: 65 | F30: 50 | G30: 10 | H30: 11.5 | I30: 0 | J30: 26 | K30: 30 | L30: 38.8 | M30: 545.4 | N30: 649 | O30: 695 | P30: 812 | Q30: 1.5 | R30: 1.08 | S30: 1.08 | T30: 1.08 | U30: 389 | V30: 509 | W30: 545 | X30: 637 | Y30: 33 | Z30: 44 | AA30: 47 | AB30: 55 | AC30: 0.005112744318 | AD30: 0.008933504828 | AE30: 0.01015435467 | AF30: 0.01378214832 | AG30: 0.0003969 | AH30: 1.7346 | AI30: 2 | AJ30: 0.000367347 | AK30: 90.02011923 | AL30: 96.32825932 | AM30: 112.64 | AN30: 0.98 | AO30: 0.98 | AP30: 0.98 | AQ30: 90 | AR30: 96 | AS30: 113 | AT30: 39 | AU30: 41 | AV30: 49 | AW30: 0.007068718513 | AX30: 0.007789089938 | AY30: 0.01101061796 | AZ30: 0.3 | BA30: 3.6 | BB30: 4.1 | BC30: 5.1 | BE30: 606 | BG30: 0.9 | BJ30: 0 | BK30: 14.2 | BL30: 16.2 | BM30: 21.85 | BO30: 1 | BP30: 1 | BQ30: 1 | BR30: 90 | BS30: 96 | BT30: 113 | BV30: 0 | BW30: 0 | BX30: 0 | BY30: 1 | CN30: 8015 | CO30: 80 | CP30: 15 | CQ30: 11.8 | CR30: 13.7 | CS30: 21.85 | CT30: 6 | CU30: 6.7 | CV30: 9 | DF30: 80 | DG30: =BJ8 -> 0 | DH30: =ROUND(IF($BZ$2=1,U8,IF($BZ$2=2,U8*3.412141633,)),0) -> 737 | DI30: =IF($BZ$2=1,ROUND(Y8,0),IF($BZ$2=2,ROUND(Y8/272.7654,1),)) -> 63 | DJ30: =IF($BZ$2=1,AC8,IF($BZ$2=2,AC8*0.3346,)) -> 0.06094998635 | DN30: 0 | DO30: 0 | DP30: 0 | DQ30: =IF($BZ$2=1,AZ8,IF($BZ$2=2,AZ8/4.54609,)) -> 1.6
A31: 1355011 | D31: 1 | E31: 35 | F31: 50 | G31: 11 | H31: 11.5 | I31: 0 | J31: 26 | K31: 30 | L31: 38.8 | M31: 406.64 | N31: 881.0207692 | O31: 942.7581062 | P31: 1102.4 | Q31: 1.5 | R31: 1.1 | S31: 1.1 | T31: 1.1 | U31: 290 | V31: 688 | W31: 736 | X31: 861 | Y31: 25 | Z31: 59 | AA31: 63 | AB31: 74 | AC31: 0.004990789284 | AD31: 0.02612451311 | AE31: 0.02965833222 | AF31: 0.04049707043 | AG31: 0.0003969 | AH31: 1.7346 | AI31: 4 | AJ31: 0.000574288 | AK31: 147.5613886 | AL31: 157.9017205 | AM31: 184.64 | AN31: 0.95 | AO31: 0.95 | AP31: 0.95 | AQ31: 148 | AR31: 158 | AS31: 185 | AT31: 64 | AU31: 68 | AV31: 80 | AW31: 0.03057582815 | AX31: 0.03438168223 | AY31: 0.04709876411 | AZ31: 0.7 | BA31: 3.6 | BB31: 4.1 | BC31: 5.1 | BE31: 598 | BG31: 0.68 | BJ31: 0 | BK31: 14.2 | BL31: 16.2 | BM31: 21.85 | BO31: 1 | BP31: 1 | BQ31: 1 | BR31: 148 | BS31: 158 | BT31: 185 | BV31: 0 | BW31: 0 | BX31: 0 | BY31: 1 | CN31: 9010 | CO31: 90 | CP31: 10 | CQ31: 12.5 | CR31: 14.7 | CS31: 21.85 | CT31: 6.7 | CU31: 7.4 | CV31: 10.3 | DF31: =DF30 -> 80 | DG31: =BK8 -> 11.8 | DH31: =ROUND(IF($BZ$2=1,V8,IF($BZ$2=2,V8*3.412141633,)),0) -> 1593 | DI31: =IF($BZ$2=1,ROUND(Z8,0),IF($BZ$2=2,ROUND(Z8/272.7654,1),)) -> 137 | DJ31: =IF($BZ$2=1,AD8,IF($BZ$2=2,AD8*0.3346,)) -> 0.2820430382 | DK31: =IF(BY8=1,ROUND(IF($BZ$2=1,AQ8,IF($BZ$2=2,AQ8*3.412141633,)),0),"") -> 312 | DL31: =IF(BY8=1,IF($BZ$2=1,ROUND(AT8,0),IF($BZ$2=2,ROUND(AT8/272.7654,1),)),"") -> 134 | DM31: =IF(BY8=1,IF($BZ$2=1,AW8,IF($BZ$2=2,AW8*0.3346,)),"") -> 0.2699776637 | DN31: =J8 -> 26 | DO31: =DN31+8 -> 34 | DP31: =BA8 -> 6 | DQ31: =DQ30 -> 1.6
A32: 1505011 | D32: 1 | E32: 50 | F32: 50 | G32: 11 | H32: 11.5 | I32: 0 | J32: 26 | K32: 30 | L32: 38.8 | M32: 471.24 | N32: 881.0207692 | O32: 942.7581062 | P32: 1102.4 | Q32: 1.5 | R32: 1.1 | S32: 1.1 | T32: 1.1 | U32: 336 | V32: 688 | W32: 736 | X32: 861 | Y32: 29 | Z32: 59 | AA32: 63 | AB32: 74 | AC32: 0.006639034456 | AD32: 0.02612451311 | AE32: 0.02965833222 | AF32: 0.04049707043 | AG32: 0.0003969 | AH32: 1.7346 | AI32: 4 | AJ32: 0.000574288 | AK32: 147.5613886 | AL32: 157.9017205 | AM32: 184.64 | AN32: 0.95 | AO32: 0.95 | AP32: 0.95 | AQ32: 148 | AR32: 158 | AS32: 185 | AT32: 64 | AU32: 68 | AV32: 80 | AW32: 0.03057582815 | AX32: 0.03438168223 | AY32: 0.04709876411 | AZ32: 0.7 | BA32: 3.6 | BB32: 4.1 | BC32: 5.1 | BE32: 693 | BG32: 0.68 | BJ32: 0 | BK32: 14.2 | BL32: 16.2 | BM32: 21.85 | BO32: 1 | BP32: 1 | BQ32: 1 | BR32: 148 | BS32: 158 | BT32: 185 | BV32: 0 | BW32: 0 | BX32: 0 | BY32: 1 | CN32: 9015 | CO32: 90 | CP32: 15 | CQ32: 11.3 | CR32: 13.2 | CS32: 21.85 | CT32: 7 | CU32: 7.7 | CV32: 10.7 | DF32: =DF30 -> 80 | DG32: =BL8 -> 13.7 | DH32: =ROUND(IF($BZ$2=1,W8,IF($BZ$2=2,W8*3.412141633,)),0) -> 1708 | DI32: =IF($BZ$2=1,ROUND(AA8,0),IF($BZ$2=2,ROUND(AA8/272.7654,1),)) -> 147 | DJ32: =IF($BZ$2=1,AE8,IF($BZ$2=2,AE8*0.3346,)) -> 0.3241466351 | DK32: =IF(BY8=1,ROUND(IF($BZ$2=1,AR8,IF($BZ$2=2,AR8*3.412141633,)),0),"") -> 335 | DL32: =IF(BY8=1,IF($BZ$2=1,ROUND(AU8,0),IF($BZ$2=2,ROUND(AU8/272.7654,1),)),"") -> 144 | DM32: =IF(BY8=1,IF($BZ$2=1,AX8,IF($BZ$2=2,AX8*0.3346,)),"") -> 0.3112110633 | DN32: =K8 -> 30 | DO32: =L8 -> 42.4 | DP32: =BB8 -> 6.7 | DQ32: =DQ30 -> 1.6
A33: 1655011 | D33: 1 | E33: 65 | F33: 50 | G33: 11 | H33: 11.5 | I33: 0 | J33: 26 | K33: 30 | L33: 38.8 | M33: 524.96 | N33: 881.0207692 | O33: 942.7581062 | P33: 1102.4 | Q33: 1.5 | R33: 1.1 | S33: 1.1 | T33: 1.1 | U33: 375 | V33: 688 | W33: 736 | X33: 861 | Y33: 32 | Z33: 59 | AA33: 63 | AB33: 74 | AC33: 0.008023833365 | AD33: 0.02612451311 | AE33: 0.02965833222 | AF33: 0.04049707043 | AG33: 0.0003969 | AH33: 1.7346 | AI33: 4 | AJ33: 0.000574288 | AK33: =AK32*(1-(($E33-50)*0.005)) -> 136.4942845 | AL33: =AL32*(1-(($E33-50)*0.005)) -> 146.0590915 | AM33: =AM32*(1-(($E33-50)*0.005)) -> 170.792 | AN33: 0.95 | AO33: 0.95 | AP33: 0.95 | AQ33: 136 | AR33: 146 | AS33: 171 | AT33: 58 | AU33: 63 | AV33: 74 | AW33: 0.02527515108 | AX33: 0.02965833222 | AY33: 0.04049707043 | AZ33: 0.7 | BA33: 3.6 | BB33: 4.1 | BC33: 5.1 | BE33: 772 | BG33: 0.68 | BJ33: 0 | BK33: 14.2 | BL33: 16.2 | BM33: 21.85 | BO33: 1 | BP33: 1 | BQ33: 1 | BR33: 136 | BS33: 146 | BT33: 171 | BV33: 0 | BW33: 0 | BX33: 0 | BY33: 1 | CN33: 10010 | CO33: 100 | CP33: 10 | CQ33: 12.3 | CR33: 14.1 | CS33: 21.85 | CT33: 7.8 | CU33: 8.7 | CV33: 12.2 | DF33: =DF30 -> 80 | DG33: =BM8 -> 21.85 | DH33: =ROUND(IF($BZ$2=1,X8,IF($BZ$2=2,X8*3.412141633,)),0) -> 2292 | DI33: =IF($BZ$2=1,ROUND(AB8,0),IF($BZ$2=2,ROUND(AB8/272.7654,1),)) -> 197 | DJ33: =IF($BZ$2=1,AF8,IF($BZ$2=2,AF8*0.3346,)) -> 0.5780854596 | DK33: =IF(BY8=1,ROUND(IF($BZ$2=1,AS8,IF($BZ$2=2,AS8*3.412141633,)),0),"") -> 450 | DL33: =IF(BY8=1,IF($BZ$2=1,ROUND(AV8,0),IF($BZ$2=2,ROUND(AV8/272.7654,1),)),"") -> 194 | DM33: =IF(BY8=1,IF($BZ$2=1,AY8,IF($BZ$2=2,AY8*0.3346,)),"") -> 0.5608119342 | DN33: =L8 -> 42.4 | DO33: =DN33+8 -> 50.4 | DP33: =BC8 -> 9 | DQ33: =DQ30 -> 1.6
A34: 1356010 | D34: 1 | E34: 35 | F34: 60 | G34: 10 | H34: 11.5 | I34: 0 | J34: 26 | K34: 30 | L34: 40 | M34: 485.1 | N34: 841.6922569 | O34: 901.3595094 | P34: 1066.38 | Q34: 1.5 | R34: 1.08 | S34: 1.08 | T34: 1.08 | U34: 346 | V34: 660 | W34: 707 | X34: 836 | Y34: 30 | Z34: 57 | AA34: 61 | AB34: 72 | AC34: 0.004534543721 | AD34: 0.01563772958 | AE34: 0.01782898414 | AF34: 0.02457299483 | AG34: 0.0003969 | AH34: 1.7346 | AI34: 2 | AJ34: 0.000367347 | AK34: 116.6899072 | AL34: 124.9620115 | AM34: 147.84 | AN34: 0.98 | AO34: 0.98 | AP34: 0.98 | AQ34: 117 | AR34: 125 | AS34: 148 | AT34: 50 | AU34: 54 | AV34: 64 | AW34: 0.01214004296 | AX34: 0.01408609579 | AY34: 0.01956399076 | AZ34: 0.4 | BA34: 4.8 | BB34: 5.4 | BC34: 6.8 | BE34: 539 | BG34: 0.9 | BJ34: 0 | BK34: 13.6 | BL34: 15.6 | BM34: 21.85 | BO34: 1 | BP34: 1 | BQ34: 1 | BR34: 117 | BS34: 125 | BT34: 148 | BV34: 0 | BW34: 0 | BX34: 0 | BY34: 1 | CN34: 10015 | CO34: 100 | CP34: 15 | CQ34: 10.9 | CR34: 12.8 | CS34: 21.85 | CT34: 7 | CU34: 7.7 | CV34: 10.7 | DF34: 90 | DG34: =BJ9 -> 0 | DH34: =ROUND(IF($BZ$2=1,U9,IF($BZ$2=2,U9*3.412141633,)),0) -> 829 | DI34: =IF($BZ$2=1,ROUND(Y9,0),IF($BZ$2=2,ROUND(Y9/272.7654,1),)) -> 71 | DJ34: =IF($BZ$2=1,AC9,IF($BZ$2=2,AC9*0.3346,)) -> 0.07840210548 | DN34: 0 | DO34: 0 | DP34: 0 | DQ34: =IF($BZ$2=1,AZ9,IF($BZ$2=2,AZ9/4.54609,)) -> 1.8
A35: 1506010 | D35: 1 | E35: 50 | F35: 60 | G35: 10 | H35: 11.5 | I35: 0 | J35: 26 | K35: 30 | L35: 40 | M35: 581.4 | N35: 841.6922569 | O35: 901.3595094 | P35: 1066.38 | Q35: 1.5 | R35: 1.08 | S35: 1.08 | T35: 1.08 | U35: 415 | V35: 660 | W35: 707 | X35: 836 | Y35: 36 | Z35: 57 | AA35: 61 | AB35: 72 | AC35: 0.006441688167 | AD35: 0.01563772958 | AE35: 0.01782898414 | AF35: 0.02457299483 | AG35: 0.0003969 | AH35: 1.7346 | AI35: 2 | AJ35: 0.000367347 | AK35: 116.6899072 | AL35: 124.9620115 | AM35: 147.84 | AN35: 0.98 | AO35: 0.98 | AP35: 0.98 | AQ35: 117 | AR35: 125 | AS35: 148 | AT35: 50 | AU35: 54 | AV35: 64 | AW35: 0.01214004296 | AX35: 0.01408609579 | AY35: 0.01956399076 | AZ35: 0.4 | BA35: 4.8 | BB35: 5.4 | BC35: 6.8 | BE35: 646 | BG35: 0.9 | BJ35: 0 | BK35: 13.6 | BL35: 15.6 | BM35: 21.85 | BO35: 1 | BP35: 1 | BQ35: 1 | BR35: 117 | BS35: 125 | BT35: 148 | BV35: 0 | BW35: 0 | BX35: 0 | BY35: 1 | CN35: 11010 | CO35: 110 | CP35: 10 | CQ35: 12 | CR35: 13.9 | CS35: 21.85 | CT35: 8.4 | CU35: 9.3 | CV35: 14 | DF35: =DF34 -> 90 | DG35: =BK9 -> 11.3 | DH35: =ROUND(IF($BZ$2=1,V9,IF($BZ$2=2,V9*3.412141633,)),0) -> 1824 | DI35: =IF($BZ$2=1,ROUND(Z9,0),IF($BZ$2=2,ROUND(Z9/272.7654,1),)) -> 157 | DJ35: =IF($BZ$2=1,AD9,IF($BZ$2=2,AD9*0.3346,)) -> 0.3741342535 | DK35: =IF(BY9=1,ROUND(IF($BZ$2=1,AQ9,IF($BZ$2=2,AQ9*3.412141633,)),0),"") -> 358 | DL35: =IF(BY9=1,IF($BZ$2=1,ROUND(AT9,0),IF($BZ$2=2,ROUND(AT9/272.7654,1),)),"") -> 154 | DM35: =IF(BY9=1,IF($BZ$2=1,AW9,IF($BZ$2=2,AW9*0.3346,)),"") -> 0.3601663511 | DN35: =J9 -> 26 | DO35: =DN35+8 -> 34 | DP35: =BA9 -> 7 | DQ35: =DQ34 -> 1.8
A36: 1656010 | D36: 1 | E36: 65 | F36: 60 | G36: 10 | H36: 11.5 | I36: 0 | J36: 26 | K36: 30 | L36: 40 | M36: 654.3 | N36: 841.6922569 | O36: 901.3595094 | P36: 1066.38 | Q36: 1.5 | R36: 1.08 | S36: 1.08 | T36: 1.08 | U36: 467 | V36: 660 | W36: 707 | X36: 836 | Y36: 40 | Z36: 57 | AA36: 61 | AB36: 72 | AC36: 0.007892236971 | AD36: 0.01563772958 | AE36: 0.01782898414 | AF36: 0.02457299483 | AG36: 0.0003969 | AH36: 1.7346 | AI36: 2 | AJ36: 0.000367347 | AK36: 116.6899072 | AL36: 124.9620115 | AM36: 147.84 | AN36: 0.98 | AO36: 0.98 | AP36: 0.98 | AQ36: 117 | AR36: 125 | AS36: 148 | AT36: 50 | AU36: 54 | AV36: 64 | AW36: 0.01214004296 | AX36: 0.01408609579 | AY36: 0.01956399076 | AZ36: 0.4 | BA36: 4.8 | BB36: 5.4 | BC36: 6.8 | BE36: 727 | BG36: 0.9 | BJ36: 0 | BK36: 13.6 | BL36: 15.6 | BM36: 21.85 | BO36: 1 | BP36: 1 | BQ36: 1 | BR36: 117 | BS36: 125 | BT36: 148 | BV36: 0 | BW36: 0 | BX36: 0 | BY36: 1 | CN36: 11015 | CO36: 110 | CP36: 15 | CQ36: 10.9 | CR36: 12.8 | CS36: 21.85 | CT36: 7.9 | CU36: 8.8 | CV36: 12.5 | DF36: =DF34 -> 90 | DG36: =BL9 -> 13.2 | DH36: =ROUND(IF($BZ$2=1,W9,IF($BZ$2=2,W9*3.412141633,)),0) -> 1954 | DI36: =IF($BZ$2=1,ROUND(AA9,0),IF($BZ$2=2,ROUND(AA9/272.7654,1),)) -> 168 | DJ36: =IF($BZ$2=1,AE9,IF($BZ$2=2,AE9*0.3346,)) -> 0.4275981896 | DK36: =IF(BY9=1,ROUND(IF($BZ$2=1,AR9,IF($BZ$2=2,AR9*3.412141633,)),0),"") -> 383 | DL36: =IF(BY9=1,IF($BZ$2=1,ROUND(AU9,0),IF($BZ$2=2,ROUND(AU9/272.7654,1),)),"") -> 165 | DM36: =IF(BY9=1,IF($BZ$2=1,AX9,IF($BZ$2=2,AX9*0.3346,)),"") -> 0.4126668757 | DN36: =K9 -> 30 | DO36: =L9 -> 43.3 | DP36: =BB9 -> 7.7 | DQ36: =DQ34 -> 1.8
A37: 1956010 | D37: 1 | E37: 95 | F37: 60 | G37: 10 | H37: 11.5 | I37: 0 | J37: 26 | K37: 30 | L37: 40 | M37: 746.6922569 | N37: 841.6922569 | O37: 901.3595094 | P37: 1066.38 | Q37: 1.5 | R37: 1.08 | S37: 1.08 | T37: 1.08 | U37: 533 | V37: 660 | W37: 707 | X37: 836 | Y37: 46 | Z37: 57 | AA37: 61 | AB37: 72 | AC37: 0.01033480216 | AD37: 0.01563772958 | AE37: 0.01782898414 | AF37: 0.02457299483 | AG37: 0.0003969 | AH37: 1.7346 | AI37: 2 | AJ37: 0.000367347 | AK37: 116.6899072 | AL37: 124.9620115 | AM37: 147.84 | AN37: 0.98 | AO37: 0.98 | AP37: 0.98 | AQ37: 117 | AR37: 125 | AS37: 148 | AT37: 50 | AU37: 54 | AV37: 64 | AW37: 0.01214004296 | AX37: 0.01408609579 | AY37: 0.01956399076 | AZ37: 0.4 | BA37: 4.8 | BB37: 5.4 | BC37: 6.8 | BE37: 836 | BG37: 0.9 | BJ37: 0 | BK37: 13.6 | BL37: 15.6 | BM37: 21.85 | BO37: 1 | BP37: 1 | BQ37: 1 | BR37: 117 | BS37: 125 | BT37: 148 | BV37: 0 | BW37: 0 | BX37: 0 | BY37: 1 | CN37: 12010 | CO37: 120 | CP37: 10 | CQ37: 11.8 | CR37: 13.7 | CS37: 21.85 | CT37: 8.9 | CU37: 9.9 | CV37: 14.8 | DF37: =DF34 -> 90 | DG37: =BM9 -> 21.85 | DH37: =ROUND(IF($BZ$2=1,X9,IF($BZ$2=2,X9*3.412141633,)),0) -> 2662 | DI37: =IF($BZ$2=1,ROUND(AB9,0),IF($BZ$2=2,ROUND(AB9/272.7654,1),)) -> 229 | DJ37: =IF($BZ$2=1,AF9,IF($BZ$2=2,AF9*0.3346,)) -> 0.7880408314 | DK37: =IF(BY9=1,ROUND(IF($BZ$2=1,AS9,IF($BZ$2=2,AS9*3.412141633,)),0),"") -> 522 | DL37: =IF(BY9=1,IF($BZ$2=1,ROUND(AV9,0),IF($BZ$2=2,ROUND(AV9/272.7654,1),)),"") -> 224 | DM37: =IF(BY9=1,IF($BZ$2=1,AY9,IF($BZ$2=2,AY9*0.3346,)),"") -> 0.7544267518 | DN37: =L9 -> 43.3 | DO37: =DN37+8 -> 51.3 | DP37: =BC9 -> 10.7 | DQ37: =DQ34 -> 1.8
A38: 1356011 | D38: 1 | E38: 35 | F38: 60 | G38: 11 | H38: 11.5 | I38: 0 | J38: 26 | K38: 30 | L38: 40 | M38: 488.24 | N38: 1142.036166 | O38: 1222.994687 | P38: 1446.9 | Q38: 1.5 | R38: 1.1 | S38: 1.1 | T38: 1.1 | U38: 348 | V38: 892 | W38: 955 | X38: 1130 | Y38: 30 | Z38: 77 | AA38: 82 | AB38: 97 | AC38: 0.007654306522 | AD38: 0.0466497908 | AE38: 0.05265549839 | AF38: 0.07277783315 | AG38: 0.0003969 | AH38: 1.7346 | AI38: 4 | AJ38: 0.000574288 | AK38: 191 | AL38: 205 | AM38: 242 | AN38: 0.95 | AO38: 0.95 | AP38: 0.95 | AQ38: 191 | AR38: 205 | AS38: 242 | AT38: 82 | AU38: 88 | AV38: 104 | AW38: 0.05265549839 | AX38: 0.0603263428 | AY38: 0.08324331122 | AZ38: 0.8 | BA38: 4.8 | BB38: 5.4 | BC38: 6.8 | BE38: 718 | BG38: 0.68 | BJ38: 0 | BK38: 13.6 | BL38: 15.6 | BM38: 21.85 | BO38: 1 | BP38: 1 | BQ38: 1 | BR38: 191 | BS38: 205 | BT38: 242 | BV38: 0 | BW38: 0 | BX38: 0 | BY38: 1 | CN38: 12015 | CO38: 120 | CP38: 15 | CQ38: 10.6 | CR38: 12.5 | CS38: 21.85 | CT38: 8.7 | CU38: 9.8 | CV38: 14.3 | DF38: 100 | DG38: =BJ10 -> 0 | DH38: =ROUND(IF($BZ$2=1,U10,IF($BZ$2=2,U10*3.412141633,)),0) -> 921 | DI38: =IF($BZ$2=1,ROUND(Y10,0),IF($BZ$2=2,ROUND(Y10/272.7654,1),)) -> 79 | DJ38: =IF($BZ$2=1,AC10,IF($BZ$2=2,AC10*0.3346,)) -> 0.09824636238 | DN38: 0 | DO38: 0 | DP38: 0 | DQ38: =IF($BZ$2=1,AZ10,IF($BZ$2=2,AZ10/4.54609,)) -> 2
A39: 1506011 | D39: 1 | E39: 50 | F39: 60 | G39: 11 | H39: 11.5 | I39: 0 | J39: 26 | K39: 30 | L39: 40 | M39: 565.76 | N39: 1142.036166 | O39: 1222.994687 | P39: 1446.9 | Q39: 1.5 | R39: 1.1 | S39: 1.1 | T39: 1.1 | U39: 404 | V39: 892 | W39: 955 | X39: 1130 | Y39: =ROUND(U39*3600/(4186*ABS($O$1-$O$2)),0) -> 35 | Z39: 77 | AA39: 82 | AB39: 97 | AC39: 0.01027709719 | AD39: 0.0466497908 | AE39: 0.05265549839 | AF39: 0.07277783315 | AG39: 0.0003969 | AH39: 1.7346 | AI39: 4 | AJ39: 0.000574288 | AK39: 191 | AL39: 205 | AM39: 242 | AN39: 0.95 | AO39: 0.95 | AP39: 0.95 | AQ39: 191 | AR39: 205 | AS39: 242 | AT39: 82 | AU39: 88 | AV39: 104 | AW39: 0.05265549839 | AX39: 0.0603263428 | AY39: 0.08324331122 | AZ39: 0.8 | BA39: 4.8 | BB39: 5.4 | BC39: 6.8 | BE39: 832 | BG39: 0.68 | BJ39: 0 | BK39: 13.6 | BL39: 15.6 | BM39: 21.85 | BO39: 1 | BP39: 1 | BQ39: 1 | BR39: 191 | BS39: 205 | BT39: 242 | BV39: 0 | BW39: 0 | BX39: 0 | BY39: 1 | CN39: 14010 | CO39: 140 | CP39: 10 | CQ39: 11.5 | CR39: 13.3 | CS39: 21.85 | CT39: 10.1 | CU39: 11.2 | CV39: 17.5 | DF39: =DF38 -> 100 | DG39: =BK10 -> 10.9 | DH39: =ROUND(IF($BZ$2=1,V10,IF($BZ$2=2,V10*3.412141633,)),0) -> 2054 | DI39: =IF($BZ$2=1,ROUND(Z10,0),IF($BZ$2=2,ROUND(Z10/272.7654,1),)) -> 177 | DJ39: =IF($BZ$2=1,AD10,IF($BZ$2=2,AD10*0.3346,)) -> 0.4800973877 | DK39: =IF(BY10=1,ROUND(IF($BZ$2=1,AQ10,IF($BZ$2=2,AQ10*3.412141633,)),0),"") -> 403 | DL39: =IF(BY10=1,IF($BZ$2=1,ROUND(AT10,0),IF($BZ$2=2,ROUND(AT10/272.7654,1),)),"") -> 173 | DM39: =IF(BY10=1,IF($BZ$2=1,AW10,IF($BZ$2=2,AW10*0.3346,)),"") -> 0.4589605251 | DN39: =J10 -> 26 | DO39: =DN39+8 -> 34 | DP39: =BA10 -> 7 | DQ39: =DQ38 -> 2
A40: 1656011 | D40: 1 | E40: 65 | F40: 60 | G40: 11 | H40: 11.5 | I40: 0 | J40: 26 | K40: 30 | L40: 40 | M40: 629.68 | N40: 1142.036166 | O40: 1222.994687 | P40: 1446.9 | Q40: 1.5 | R40: 1.1 | S40: 1.1 | T40: 1.1 | U40: 449 | V40: 892 | W40: 955 | X40: 1130 | Y40: 39 | Z40: 77 | AA40: 82 | AB40: 97 | AC40: 0.01264146716 | AD40: 0.0466497908 | AE40: 0.05265549839 | AF40: 0.07277783315 | AG40: 0.0003969 | AH40: 1.7346 | AI40: 4 | AJ40: 0.000574288 | AK40: =AK39*(1-(($E40-50)*0.005)) -> 176.675 | AL40: =AL39*(1-(($E40-50)*0.005)) -> 189.625 | AM40: =AM39*(1-(($E40-50)*0.005)) -> 223.85 | AN40: 0.95 | AO40: 0.95 | AP40: 0.95 | AQ40: 177 | AR40: 190 | AS40: 224 | AT40: 76 | AU40: 82 | AV40: 96 | AW40: 0.04549094194 | AX40: 0.05265549839 | AY40: 0.07133847034 | AZ40: 0.8 | BA40: 4.8 | BB40: 5.4 | BC40: 6.8 | BE40: 926 | BG40: 0.68 | BJ40: 0 | BK40: 13.6 | BL40: 15.6 | BM40: 21.85 | BO40: 1 | BP40: 1 | BQ40: 1 | BR40: 177 | BS40: 190 | BT40: 224 | BV40: 0 | BW40: 0 | BX40: 0 | BY40: 1 | CN40: 14015 | CO40: 140 | CP40: 15 | CQ40: 10.4 | CR40: 12.2 | CS40: 21.85 | CT40: 9.6 | CU40: 10.5 | CV40: 16.1 | DF40: =DF38 -> 100 | DG40: =BL10 -> 12.8 | DH40: =ROUND(IF($BZ$2=1,W10,IF($BZ$2=2,W10*3.412141633,)),0) -> 2199 | DI40: =IF($BZ$2=1,ROUND(AA10,0),IF($BZ$2=2,ROUND(AA10/272.7654,1),)) -> 189 | DJ40: =IF($BZ$2=1,AE10,IF($BZ$2=2,AE10*0.3346,)) -> 0.54632855 | DK40: =IF(BY10=1,ROUND(IF($BZ$2=1,AR10,IF($BZ$2=2,AR10*3.412141633,)),0),"") -> 431 | DL40: =IF(BY10=1,IF($BZ$2=1,ROUND(AU10,0),IF($BZ$2=2,ROUND(AU10/272.7654,1),)),"") -> 185 | DM40: =IF(BY10=1,IF($BZ$2=1,AX10,IF($BZ$2=2,AX10*0.3346,)),"") -> 0.523781603 | DN40: =K10 -> 30 | DO40: =L10 -> 44.1 | DP40: =BB10 -> 7.7 | DQ40: =DQ38 -> 2
A41: 1956011 | D41: 1 | E41: 95 | F41: 60 | G41: 11 | H41: 11.5 | I41: 0 | J41: 26 | K41: 30 | L41: 40 | M41: 733.04 | N41: 1142.036166 | O41: 1222.994687 | P41: 1446.9 | Q41: 1.5 | R41: 1.1 | S41: 1.1 | T41: 1.1 | U41: 523 | V41: 892 | W41: 955 | X41: 1130 | Y41: 45 | Z41: 77 | AA41: 82 | AB41: 97 | AC41: 0.01662786238 | AD41: 0.0466497908 | AE41: 0.05265549839 | AF41: 0.07277783315 | AG41: 0.0003969 | AH41: 1.7346 | AI41: 4 | AJ41: 0.000574288 | AK41: =AK39*(1-(($E41-50)*0.005)) -> 148.025 | AL41: =AL39*(1-(($E41-50)*0.005)) -> 158.875 | AM41: =AM39*(1-(($E41-50)*0.005)) -> 187.55 | AN41: 0.95 | AO41: 0.95 | AP41: 0.95 | AQ41: 148 | AR41: 159 | AS41: 188 | AT41: 64 | AU41: 68 | AV41: 81 | AW41: 0.03268915635 | AX41: 0.03672935264 | AY41: 0.05142619352 | AZ41: 0.8 | BA41: 4.8 | BB41: 5.4 | BC41: 6.8 | BE41: 1078 | BG41: 0.68 | BJ41: 0 | BK41: 13.6 | BL41: 15.6 | BM41: 21.85 | BO41: 1 | BP41: 1 | BQ41: 1 | BR41: 148 | BS41: 159 | BT41: 188 | BV41: 0 | BW41: 0 | BX41: 0 | BY41: 1 | CN41: 16010 | CO41: 160 | CP41: 10 | CQ41: 11.2 | CR41: 13 | CS41: 21.85 | CT41: 11 | CU41: 12.4 | CV41: 19.2 | DF41: =DF38 -> 100 | DG41: =BM10 -> 21.85 | DH41: =ROUND(IF($BZ$2=1,X10,IF($BZ$2=2,X10*3.412141633,)),0) -> 3031 | DI41: =IF($BZ$2=1,ROUND(AB10,0),IF($BZ$2=2,ROUND(AB10/272.7654,1),)) -> 261 | DJ41: =IF($BZ$2=1,AF10,IF($BZ$2=2,AF10*0.3346,)) -> 1.032314011 | DK41: =IF(BY10=1,ROUND(IF($BZ$2=1,AS10,IF($BZ$2=2,AS10*3.412141633,)),0),"") -> 595 | DL41: =IF(BY10=1,IF($BZ$2=1,ROUND(AV10,0),IF($BZ$2=2,ROUND(AV10/272.7654,1),)),"") -> 256 | DM41: =IF(BY10=1,IF($BZ$2=1,AY10,IF($BZ$2=2,AY10*0.3346,)),"") -> 0.9936684748 | DN41: =L10 -> 44.1 | DO41: =DN41+8 -> 52.1 | DP41: =BC10 -> 10.7 | DQ41: =DQ38 -> 2
A42: 1356015 | D42: 1 | E42: 35 | F42: 60 | G42: 15 | H42: 16.5 | I42: 0 | J42: 26 | K42: 30 | L42: 41.1 | M42: 705.6 | N42: 957.1925836 | O42: 1027.525051 | P42: 1359.96 | Q42: 1.5 | R42: 1.08 | S42: 1.08 | T42: 1.08 | U42: 503 | V42: 751 | W42: 806 | X42: 1067 | Y42: 43 | Z42: 65 | AA42: 69 | AB42: 92 | AC42: 0.009587450956 | AD42: 0.02160729536 | AE42: 0.02430269938 | AF42: 0.04283098288 | AG42: 0.0002083 | AH42: 1.724 | AI42: 2 | AJ42: 0.000461829 | AK42: 130.6606306 | AL42: 140.2612948 | AM42: 185.64 | AN42: 1.01 | AO42: 1.01 | AP42: 1.01 | AQ42: 131 | AR42: 140 | AS42: 186 | AT42: 56 | AU42: 60 | AV42: 80 | AW42: 0.01611544416 | AX42: 0.01845825254 | AY42: 0.03252089619 | AZ42: 0.6 | BA42: 4.8 | BB42: 5.5 | BC42: 7.2 | BE42: 882 | BG42: 0.8 | BJ42: 0 | BK42: 12.3 | BL42: 14.4 | BM42: 21.85 | BO42: 1 | BP42: 1 | BQ42: 1 | BR42: 131 | BS42: 140 | BT42: 186 | BV42: 0 | BW42: 0 | BX42: 0 | BY42: 1 | CN42: 16015 | CO42: 160 | CP42: 15 | CQ42: 10 | CR42: 11.8 | CS42: 21.85 | CT42: 11.5 | CU42: 12.8 | CV42: 19.6 | DF42: 110 | DG42: =BJ11 -> 0 | DH42: =ROUND(IF($BZ$2=1,U11,IF($BZ$2=2,U11*3.412141633,)),0) -> 1013 | DI42: =IF($BZ$2=1,ROUND(Y11,0),IF($BZ$2=2,ROUND(Y11/272.7654,1),)) -> 87 | DJ42: =IF($BZ$2=1,AC11,IF($BZ$2=2,AC11*0.3346,)) -> 0.1205375205 | DN42: 0 | DO42: 0 | DP42: 0 | DQ42: =IF($BZ$2=1,AZ11,IF($BZ$2=2,AZ11/4.54609,)) -> 2.2
A43: 1506015 | D43: 1 | E43: 50 | F43: 60 | G43: 15 | H43: 16.5 | I43: 0 | J43: 26 | K43: 30 | L43: 41.1 | M43: 832 | N43: 957.1925836 | O43: 1027.525051 | P43: 1359.96 | Q43: 1.5 | R43: 1.08 | S43: 1.08 | T43: 1.08 | U43: 594 | V43: 751 | W43: 806 | X43: 1067 | Y43: 51 | Z43: 65 | AA43: 69 | AB43: 92 | AC43: 0.01340784548 | AD43: 0.02160729536 | AE43: 0.02430269938 | AF43: 0.04283098288 | AG43: 0.0002083 | AH43: 1.724 | AI43: 2 | AJ43: 0.000461829 | AK43: 130.6606306 | AL43: 140.2612948 | AM43: 185.64 | AN43: 1.01 | AO43: 1.01 | AP43: 1.01 | AQ43: 131 | AR43: 140 | AS43: 186 | AT43: 56 | AU43: 60 | AV43: 80 | AW43: 0.01611544416 | AX43: 0.01845825254 | AY43: 0.03252089619 | AZ43: 0.6 | BA43: 4.8 | BB43: 5.5 | BC43: 7.2 | BE43: 1040 | BG43: 0.8 | BJ43: 0 | BK43: 12.3 | BL43: 14.4 | BM43: 21.85 | BO43: 1 | BP43: 1 | BQ43: 1 | BR43: 131 | BS43: 140 | BT43: 186 | BV43: 0 | BW43: 0 | BX43: 0 | BY43: 1 | CN43: 18010 | CO43: 180 | CP43: 10 | CQ43: 10.9 | CR43: 12.7 | CS43: 21.85 | CT43: 12.2 | CU43: 13.7 | CV43: 22 | DF43: =DF42 -> 110 | DG43: =BK11 -> 10.9 | DH43: =ROUND(IF($BZ$2=1,V11,IF($BZ$2=2,V11*3.412141633,)),0) -> 2225 | DI43: =IF($BZ$2=1,ROUND(Z11,0),IF($BZ$2=2,ROUND(Z11/272.7654,1),)) -> 191 | DJ43: =IF($BZ$2=1,AD11,IF($BZ$2=2,AD11*0.3346,)) -> 0.5647681423 | DK43: =IF(BY11=1,ROUND(IF($BZ$2=1,AQ11,IF($BZ$2=2,AQ11*3.412141633,)),0),"") -> 408 | DL43: =IF(BY11=1,IF($BZ$2=1,ROUND(AT11,0),IF($BZ$2=2,ROUND(AT11/272.7654,1),)),"") -> 175 | DM43: =IF(BY11=1,IF($BZ$2=1,AW11,IF($BZ$2=2,AW11*0.3346,)),"") -> 0.475481527 | DN43: =J11 -> 26 | DO43: =DN43+8 -> 34 | DP43: =BA11 -> 7.9 | DQ43: =DQ42 -> 2.2
A44: 1656015 | D44: 1 | E44: 65 | F44: 60 | G44: 15 | H44: 16.5 | I44: 0 | J44: 26 | K44: 30 | L44: 41.1 | M44: 862.1925836 | N44: 957.1925836 | O44: 1027.525051 | P44: 1359.96 | Q44: 1.5 | R44: 1.08 | S44: 1.08 | T44: 1.08 | U44: 615 | V44: 751 | W44: 806 | X44: 1067 | Y44: 53 | Z44: 65 | AA44: 69 | AB44: 92 | AC44: 0.01446140301 | AD44: 0.02160729536 | AE44: 0.02430269938 | AF44: 0.04283098288 | AG44: 0.0002083 | AH44: 1.724 | AI44: 2 | AJ44: 0.000461829 | AK44: 130.6606306 | AL44: 140.2612948 | AM44: 185.64 | AN44: =IF($G44=10,0.98,IF($G44=11,0.95,IF($G44=15,1.01,IF($G44=16,0.95,IF($G44=20,0.95,IF($G44=21,0.85)))))) -> 1.01 | AO44: 1.01 | AP44: 1.01 | AQ44: 131 | AR44: 140 | AS44: 186 | AT44: 56 | AU44: 60 | AV44: 80 | AW44: 0.01611544416 | AX44: 0.01845825254 | AY44: 0.03252089619 | AZ44: 0.6 | BA44: 4.8 | BB44: 5.5 | BC44: 7.2 | BE44: 1153 | BG44: 0.8 | BJ44: 0 | BK44: 12.3 | BL44: 14.4 | BM44: 21.85 | BO44: 1 | BP44: 1 | BQ44: 1 | BR44: 131 | BS44: 140 | BT44: 186 | BV44: 0 | BW44: 0 | BX44: 0 | BY44: 1 | CN44: 18015 | CO44: 180 | CP44: 15 | CQ44: 10 | CR44: 11.8 | CS44: 21.85 | CT44: 11.5 | CU44: 12.8 | CV44: 19.6 | DF44: =DF42 -> 110 | DG44: =BL11 -> 12.8 | DH44: =ROUND(IF($BZ$2=1,W11,IF($BZ$2=2,W11*3.412141633,)),0) -> 2382 | DI44: =IF($BZ$2=1,ROUND(AA11,0),IF($BZ$2=2,ROUND(AA11/272.7654,1),)) -> 205 | DJ44: =IF($BZ$2=1,AE11,IF($BZ$2=2,AE11*0.3346,)) -> 0.6491073654 | DK44: =IF(BY11=1,ROUND(IF($BZ$2=1,AR11,IF($BZ$2=2,AR11*3.412141633,)),0),"") -> 437 | DL44: =IF(BY11=1,IF($BZ$2=1,ROUND(AU11,0),IF($BZ$2=2,ROUND(AU11/272.7654,1),)),"") -> 188 | DM44: =IF(BY11=1,IF($BZ$2=1,AX11,IF($BZ$2=2,AX11*0.3346,)),"") -> 0.5474495717 | DN44: =K11 -> 30 | DO44: =L11 -> 44.1 | DP44: =BB11 -> 8.8 | DQ44: =DQ42 -> 2.2
A45: 1956015 | D45: 1 | E45: 95 | F45: 60 | G45: 15 | H45: 16.5 | I45: 0 | J45: 26 | K45: 30 | L45: 41.1 | M45: 862.1925836 | N45: 957.1925836 | O45: 1027.525051 | P45: 1359.96 | Q45: 1.5 | R45: 1.08 | S45: 1.08 | T45: 1.08 | U45: 615 | V45: 751 | W45: 806 | X45: 1067 | Y45: 53 | Z45: 65 | AA45: 69 | AB45: 92 | AC45: 0.01446140301 | AD45: 0.02160729536 | AE45: 0.02430269938 | AF45: 0.04283098288 | AG45: 0.0002083 | AH45: 1.724 | AI45: 2 | AJ45: 0.000461829 | AK45: 130.6606306 | AL45: 140.2612948 | AM45: 185.64 | AN45: 1.01 | AO45: 1.01 | AP45: 1.01 | AQ45: 131 | AR45: 140 | AS45: 186 | AT45: 56 | AU45: 60 | AV45: 80 | AW45: 0.01611544416 | AX45: 0.01845825254 | AY45: 0.03252089619 | AZ45: 0.6 | BA45: 4.8 | BB45: 5.5 | BC45: 7.2 | BE45: 1288 | BG45: 0.8 | BJ45: 0 | BK45: 12.3 | BL45: 14.4 | BM45: 21.85 | BO45: 1 | BP45: 1 | BQ45: 1 | BR45: 131 | BS45: 140 | BT45: 186 | BV45: 0 | BW45: 0 | BX45: 0 | BY45: 1 | CN45: 20010 | CO45: 200 | CP45: 10 | CQ45: 10.7 | CR45: 12.5 | CS45: 21.85 | CT45: 13.4 | CU45: 14.8 | CV45: 24 | DF45: =DF42 -> 110 | DG45: =BM11 -> 21.85 | DH45: =ROUND(IF($BZ$2=1,X11,IF($BZ$2=2,X11*3.412141633,)),0) -> 3284 | DI45: =IF($BZ$2=1,ROUND(AB11,0),IF($BZ$2=2,ROUND(AB11/272.7654,1),)) -> 282 | DJ45: =IF($BZ$2=1,AF11,IF($BZ$2=2,AF11*0.3346,)) -> 1.216271499 | DK45: =IF(BY11=1,ROUND(IF($BZ$2=1,AS11,IF($BZ$2=2,AS11*3.412141633,)),0),"") -> 602 | DL45: =IF(BY11=1,IF($BZ$2=1,ROUND(AV11,0),IF($BZ$2=2,ROUND(AV11/272.7654,1),)),"") -> 259 | DM45: =IF(BY11=1,IF($BZ$2=1,AY11,IF($BZ$2=2,AY11*0.3346,)),"") -> 1.028585167 | DN45: =L11 -> 44.1 | DO45: =DN45+8 -> 52.1 | DP45: =BC11 -> 12.5 | DQ45: =DQ42 -> 2.2
A46: 1356016 | D46: 1 | E46: 35 | F46: 60 | G46: 16 | H46: 16.5 | I46: 0 | J46: 26 | K46: 30 | L46: 41.1 | M46: 650.08 | N46: 1399.724176 | O46: 1502.572921 | P46: 1988.7 | Q46: 1.5 | R46: 1.1 | S46: 1.1 | T46: 1.1 | U46: 464 | V46: 1093 | W46: 1173 | X46: 1553 | Y46: 40 | Z46: 94 | AA46: 101 | AB46: 134 | AC46: 0.02399128577 | AD46: 0.1299949598 | AE46: 0.1498640371 | AF46: 0.262389547 | AG46: 0.0002083 | AH46: 1.724 | AI46: 4 | AJ46: 0.001392796 | AK46: 214 | AL46: 230 | AM46: 305 | AN46: 0.95 | AO46: 0.95 | AP46: 0.95 | AQ46: 214 | AR46: 230 | AS46: 305 | AT46: 92 | AU46: 99 | AV46: 131 | AW46: 0.1245756493 | AX46: 0.1440441081 | AY46: 0.2508759331 | AZ46: 1.2 | BA46: 4.8 | BB46: 5.5 | BC46: 7.2 | BE46: 956 | BG46: 0.68 | BJ46: 0 | BK46: 12.3 | BL46: 14.4 | BM46: 21.85 | BO46: 1 | BP46: 1 | BQ46: 1 | BR46: 214 | BS46: 230 | BT46: 305 | BV46: 0 | BW46: 0 | BX46: 0 | BY46: 1 | CN46: 20015 | CO46: 200 | CP46: 15 | CQ46: 10 | CR46: 11.4 | CS46: 21.85 | CT46: 13.2 | CU46: 14.7 | CV46: 23.5 | DF46: 120 | DG46: =BJ12 -> 0 | DH46: =ROUND(IF($BZ$2=1,U12,IF($BZ$2=2,U12*3.412141633,)),0) -> 1105 | DI46: =IF($BZ$2=1,ROUND(Y12,0),IF($BZ$2=2,ROUND(Y12/272.7654,1),)) -> 95 | DJ46: =IF($BZ$2=1,AC12,IF($BZ$2=2,AC12*0.3346,)) -> 0.1453287551 | DN46: 0 | DO46: 0 | DP46: 0 | DQ46: =IF($BZ$2=1,AZ12,IF($BZ$2=2,AZ12/4.54609,)) -> 2.4
A47: 1506016 | D47: 1 | E47: 50 | F47: 60 | G47: 16 | H47: 16.5 | I47: 0 | J47: 26 | K47: 30 | L47: 41.1 | M47: 774.52 | N47: 1399.724176 | O47: 1502.572921 | P47: 1988.7 | Q47: 1.5 | R47: 1.1 | S47: 1.1 | T47: 1.1 | U47: 553 | V47: 1093 | W47: 1173 | X47: 1553 | Y47: 48 | Z47: 94 | AA47: 101 | AB47: 134 | AC47: 0.03439535473 | AD47: 0.1299949598 | AE47: 0.1498640371 | AF47: 0.262389547 | AG47: 0.0002083 | AH47: 1.724 | AI47: 4 | AJ47: 0.001392796 | AK47: 214 | AL47: 230 | AM47: 305 | AN47: 0.95 | AO47: 0.95 | AP47: 0.95 | AQ47: 214 | AR47: 230 | AS47: 305 | AT47: 92 | AU47: 99 | AV47: 131 | AW47: 0.1245756493 | AX47: 0.1440441081 | AY47: 0.2508759331 | AZ47: 1.2 | BA47: 4.8 | BB47: 5.5 | BC47: 7.2 | BE47: 1139 | BG47: 0.68 | BJ47: 0 | BK47: 12.3 | BL47: 14.4 | BM47: 21.85 | BO47: 1 | BP47: 1 | BQ47: 1 | BR47: 214 | BS47: 230 | BT47: 305 | BV47: 0 | BW47: 0 | BX47: 0 | BY47: 1 | CN47: 22010 | CO47: 220 | CP47: 10 | CQ47: 10.5 | CR47: 12.3 | CS47: 21.85 | CT47: 13.4 | CU47: 14.8 | CV47: 24 | DF47: =DF46 -> 120 | DG47: =BK12 -> 10.6 | DH47: =ROUND(IF($BZ$2=1,V12,IF($BZ$2=2,V12*3.412141633,)),0) -> 2531 | DI47: =IF($BZ$2=1,ROUND(Z12,0),IF($BZ$2=2,ROUND(Z12/272.7654,1),)) -> 218 | DJ47: =IF($BZ$2=1,AD12,IF($BZ$2=2,AD12*0.3346,)) -> 0.7413866147 | DK47: =IF(BY12=1,ROUND(IF($BZ$2=1,AQ12,IF($BZ$2=2,AQ12*3.412141633,)),0),"") -> 496 | DL47: =IF(BY12=1,IF($BZ$2=1,ROUND(AT12,0),IF($BZ$2=2,ROUND(AT12/272.7654,1),)),"") -> 213 | DM47: =IF(BY12=1,IF($BZ$2=1,AW12,IF($BZ$2=2,AW12*0.3346,)),"") -> 0.7083366873 | DN47: =J12 -> 26 | DO47: =DN47+8 -> 34 | DP47: =BA12 -> 8.7 | DQ47: =DQ46 -> 2.4
A48: 1656016 | D48: 1 | E48: 65 | F48: 60 | G48: 16 | H48: 16.5 | I48: 0 | J48: 26 | K48: 30 | L48: 41.1 | M48: 886.72 | N48: 1399.724176 | O48: 1502.572921 | P48: 1988.7 | Q48: 1.5 | R48: 1.1 | S48: 1.1 | T48: 1.1 | U48: 633 | V48: 1093 | W48: 1173 | X48: 1553 | Y48: 54 | Z48: 94 | AA48: 101 | AB48: 134 | AC48: 0.04341231628 | AD48: 0.1299949598 | AE48: 0.1498640371 | AF48: 0.262389547 | AG48: 0.0002083 | AH48: 1.724 | AI48: 4 | AJ48: 0.001392796 | AK48: =AK47*(1-(($E48-50)*0.005)) -> 197.95 | AL48: =AL47*(1-(($E48-50)*0.005)) -> 212.75 | AM48: =AM47*(1-(($E48-50)*0.005)) -> 282.125 | AN48: 0.95 | AO48: 0.95 | AP48: 0.95 | AQ48: 198 | AR48: 213 | AS48: 282 | AT48: 85 | AU48: 92 | AV48: 121 | AW48: 0.1065102171 | AX48: 0.1245756493 | AY48: 0.2143507016 | AZ48: 1.2 | BA48: 4.8 | BB48: 5.5 | BC48: 7.2 | BE48: 1304 | BG48: 0.68 | BJ48: 0 | BK48: 12.3 | BL48: 14.4 | BM48: 21.85 | BO48: 1 | BP48: 1 | BQ48: 1 | BR48: 198 | BS48: 213 | BT48: 282 | BV48: 0 | BW48: 0 | BX48: 0 | BY48: 1 | CN48: 22015 | CO48: 220 | CP48: 15 | CQ48: 10 | CR48: 11.1 | CS48: 21.85 | CT48: 15.5 | CU48: 16.8 | CV48: 27.5 | DF48: =DF46 -> 120 | DG48: =BL12 -> 12.5 | DH48: =ROUND(IF($BZ$2=1,W12,IF($BZ$2=2,W12*3.412141633,)),0) -> 2710 | DI48: =IF($BZ$2=1,ROUND(AA12,0),IF($BZ$2=2,ROUND(AA12/272.7654,1),)) -> 233 | DJ48: =IF($BZ$2=1,AE12,IF($BZ$2=2,AE12*0.3346,)) -> 0.8449949657 | DK48: =IF(BY12=1,ROUND(IF($BZ$2=1,AR12,IF($BZ$2=2,AR12*3.412141633,)),0),"") -> 532 | DL48: =IF(BY12=1,IF($BZ$2=1,ROUND(AU12,0),IF($BZ$2=2,ROUND(AU12/272.7654,1),)),"") -> 229 | DM48: =IF(BY12=1,IF($BZ$2=1,AX12,IF($BZ$2=2,AX12*0.3346,)),"") -> 0.8167124997 | DN48: =K12 -> 30 | DO48: =L12 -> 44.8 | DP48: =BB12 -> 9.8 | DQ48: =DQ46 -> 2.4
A49: 1956016 | D49: 1 | E49: 95 | F49: 60 | G49: 16 | H49: 16.5 | I49: 0 | J49: 26 | K49: 30 | L49: 41.1 | M49: 1092.08 | N49: 1399.724176 | O49: 1502.572921 | P49: 1988.7 | Q49: 1.5 | R49: 1.1 | S49: 1.1 | T49: 1.1 | U49: 779 | V49: 1093 | W49: 1173 | X49: 1553 | Y49: 67 | Z49: 94 | AA49: 101 | AB49: 134 | AC49: 0.0665092876 | AD49: 0.1299949598 | AE49: 0.1498640371 | AF49: 0.262389547 | AG49: 0.0002083 | AH49: 1.724 | AI49: 4 | AJ49: 0.001392796 | AK49: =AK47*(1-(($E49-50)*0.005)) -> 165.85 | AL49: =AL47*(1-(($E49-50)*0.005)) -> 178.25 | AM49: =AM47*(1-(($E49-50)*0.005)) -> 236.375 | AN49: 0.95 | AO49: 0.95 | AP49: 0.95 | AQ49: 166 | AR49: 178 | AS49: 236 | AT49: 71 | AU49: 77 | AV49: 101 | AW49: 0.07459437689 | AX49: 0.08758386254 | AY49: 0.1498640371 | AZ49: 1.2 | BA49: 4.8 | BB49: 5.5 | BC49: 7.2 | BE49: 1606 | BG49: 0.68 | BJ49: 0 | BK49: 12.3 | BL49: 14.4 | BM49: 21.85 | BO49: 1 | BP49: 1 | BQ49: 1 | BR49: 166 | BS49: 178 | BT49: 236 | BV49: 0 | BW49: 0 | BX49: 0 | BY49: 1 | CN49: 24010 | CO49: 240 | CP49: 10 | CQ49: 10.4 | CR49: 12.2 | CS49: 21.85 | CT49: 14.8 | CU49: 16.6 | CV49: 28 | DF49: =DF46 -> 120 | DG49: =BM12 -> 21.85 | DH49: =ROUND(IF($BZ$2=1,X12,IF($BZ$2=2,X12*3.412141633,)),0) -> 3771 | DI49: =IF($BZ$2=1,ROUND(AB12,0),IF($BZ$2=2,ROUND(AB12/272.7654,1),)) -> 324 | DJ49: =IF($BZ$2=1,AF12,IF($BZ$2=2,AF12*0.3346,)) -> 1.616436745 | DK49: =IF(BY12=1,ROUND(IF($BZ$2=1,AS12,IF($BZ$2=2,AS12*3.412141633,)),0),"") -> 740 | DL49: =IF(BY12=1,IF($BZ$2=1,ROUND(AV12,0),IF($BZ$2=2,ROUND(AV12/272.7654,1),)),"") -> 318 | DM49: =IF(BY12=1,IF($BZ$2=1,AY12,IF($BZ$2=2,AY12*0.3346,)),"") -> 1.558037737 | DN49: =L12 -> 44.8 | DO49: =DN49+8 -> 52.8 | DP49: =BC12 -> 14.3 | DQ49: =DQ46 -> 2.4
A50: 1356020 | D50: 1 | E50: 35 | F50: 60 | G50: 20 | H50: 21.5 | I50: 0 | J50: 26 | K50: 30 | L50: 41.1 | M50: 988.8 | N50: 1346.575009 | O50: 1442.033213 | P50: 1706.04 | Q50: 1.5 | R50: 1.08 | S50: 1.08 | T50: 1.08 | U50: 706 | V50: 1056 | W50: 1131 | X50: 1338 | Y50: 61 | Z50: 91 | AA50: 97 | AB50: 115 | AC50: 0.01508621342 | AD50: 0.03325708732 | AE50: 0.0377333483 | AF50: 0.05284143106 | AG50: 0.0001276 | AH50: 1.7219 | AI50: 2 | AJ50: 0.000376611 | AK50: 166.4157199 | AL50: 178.2128687 | AM50: 210.84 | AN50: 0.95 | AO50: 0.95 | AP50: 0.95 | AQ50: 166 | AR50: 178 | AS50: 211 | AT50: 71 | AU50: 77 | AV50: 91 | AW50: 0.02036218677 | AX50: 0.02390299996 | AY50: 0.03325708732 | AZ50: 0.8 | BA50: 4.8 | BB50: 5.5 | BC50: 7.2 | BE50: 1236 | BG50: 0.8 | BJ50: 0 | BK50: 12.3 | BL50: 14.4 | BM50: 21.85 | BO50: 1 | BP50: 1 | BQ50: 1 | BR50: 166 | BS50: 178 | BT50: 211 | BV50: 0 | BW50: 0 | BX50: 0 | BY50: 1 | CN50: 24015 | CO50: 240 | CP50: 15 | CQ50: 10 | CR50: 10.9 | CS50: 21.85 | CT50: 16.4 | CU50: 17.7 | CV50: 29.7 | DF50: 140 | DG50: =BJ13 -> 0 | DH50: =ROUND(IF($BZ$2=1,U13,IF($BZ$2=2,U13*3.412141633,)),0) -> 1289 | DI50: =IF($BZ$2=1,ROUND(Y13,0),IF($BZ$2=2,ROUND(Y13/272.7654,1),)) -> 111 | DJ50: =IF($BZ$2=1,AC13,IF($BZ$2=2,AC13*0.3346,)) -> 0.2026173323 | DN50: 0 | DO50: 0 | DP50: 0 | DQ50: =IF($BZ$2=1,AZ13,IF($BZ$2=2,AZ13/4.54609,)) -> 2.8
A51: 1506020 | D51: 1 | E51: 50 | F51: 60 | G51: 20 | H51: 21.5 | I51: 0 | J51: 26 | K51: 30 | L51: 41.1 | M51: 1164 | N51: 1346.575009 | O51: 1442.033213 | P51: 1706.04 | Q51: 1.5 | R51: 1.08 | S51: 1.08 | T51: 1.08 | U51: 831 | V51: 1056 | W51: 1131 | X51: 1338 | Y51: 71 | Z51: 91 | AA51: 97 | AB51: 115 | AC51: 0.02036218677 | AD51: 0.03325708732 | AE51: 0.0377333483 | AF51: 0.05284143106 | AG51: 0.0001276 | AH51: 1.7219 | AI51: 2 | AJ51: 0.000376611 | AK51: 166.4157199 | AL51: 178.2128687 | AM51: 210.84 | AN51: 0.95 | AO51: 0.95 | AP51: 0.95 | AQ51: 166 | AR51: 178 | AS51: 211 | AT51: 71 | AU51: 77 | AV51: 91 | AW51: 0.02036218677 | AX51: 0.02390299996 | AY51: 0.03325708732 | AZ51: 0.8 | BA51: 4.8 | BB51: 5.5 | BC51: 7.2 | BE51: 1455 | BG51: 0.8 | BJ51: 0 | BK51: 12.3 | BL51: 14.4 | BM51: 21.85 | BO51: 1 | BP51: 1 | BQ51: 1 | BR51: 166 | BS51: 178 | BT51: 211 | BV51: 0 | BW51: 0 | BX51: 0 | BY51: 1 | CN51: 26010 | CO51: 260 | CP51: 10 | CQ51: 10.2 | CR51: 11.9 | CS51: 21.85 | CT51: 16.2 | CU51: 18.6 | CV51: 31.4 | DF51: =DF50 -> 140 | DG51: =BK13 -> 10.4 | DH51: =ROUND(IF($BZ$2=1,V13,IF($BZ$2=2,V13*3.412141633,)),0) -> 3001 | DI51: =IF($BZ$2=1,ROUND(Z13,0),IF($BZ$2=2,ROUND(Z13/272.7654,1),)) -> 258 | DJ51: =IF($BZ$2=1,AD13,IF($BZ$2=2,AD13*0.3346,)) -> 1.055992613 | DK51: =IF(BY13=1,ROUND(IF($BZ$2=1,AQ13,IF($BZ$2=2,AQ13*3.412141633,)),0),"") -> 589 | DL51: =IF(BY13=1,IF($BZ$2=1,ROUND(AT13,0),IF($BZ$2=2,ROUND(AT13/272.7654,1),)),"") -> 253 | DM51: =IF(BY13=1,IF($BZ$2=1,AW13,IF($BZ$2=2,AW13*0.3346,)),"") -> 1.016227122 | DN51: =J13 -> 26 | DO51: =DN51+8 -> 34 | DP51: =BA13 -> 9.6 | DQ51: =DQ50 -> 2.8
A52: 1656020 | D52: 1 | E52: 65 | F52: 60 | G52: 20 | H52: 21.5 | I52: 0 | J52: 26 | K52: 30 | L52: 41.1 | M52: 1251.575009 | N52: 1346.575009 | O52: 1442.033213 | P52: 1706.04 | Q52: 1.5 | R52: 1.08 | S52: 1.08 | T52: 1.08 | U52: 893 | V52: 1056 | W52: 1131 | X52: 1338 | Y52: 77 | Z52: 91 | AA52: 97 | AB52: 115 | AC52: 0.02390299996 | AD52: 0.03325708732 | AE52: 0.0377333483 | AF52: 0.05284143106 | AG52: 0.0001276 | AH52: 1.7219 | AI52: 2 | AJ52: 0.000376611 | AK52: 166.4157199 | AL52: 178.2128687 | AM52: 210.84 | AN52: 0.95 | AO52: 0.95 | AP52: 0.95 | AQ52: 166 | AR52: 178 | AS52: 211 | AT52: 71 | AU52: 77 | AV52: 91 | AW52: 0.02036218677 | AX52: 0.02390299996 | AY52: 0.03325708732 | AZ52: 0.8 | BA52: 4.8 | BB52: 5.5 | BC52: 7.2 | BE52: 1611 | BG52: 0.8 | BJ52: 0 | BK52: 12.3 | BL52: 14.4 | BM52: 21.85 | BO52: 1 | BP52: 1 | BQ52: 1 | BR52: 166 | BS52: 178 | BT52: 211 | BV52: 0 | BW52: 0 | BX52: 0 | BY52: 1 | CN52: 26015 | CO52: 260 | CP52: 15 | CQ52: 10 | CR52: 10.9 | CS52: 21.85 | CT52: 16.2 | CU52: 18.6 | CV52: 31.4 | DF52: =DF50 -> 140 | DG52: =BL13 -> 12.2 | DH52: =ROUND(IF($BZ$2=1,W13,IF($BZ$2=2,W13*3.412141633,)),0) -> 3214 | DI52: =IF($BZ$2=1,ROUND(AA13,0),IF($BZ$2=2,ROUND(AA13/272.7654,1),)) -> 276 | DJ52: =IF($BZ$2=1,AE13,IF($BZ$2=2,AE13*0.3346,)) -> 1.20536892 | DK52: =IF(BY13=1,ROUND(IF($BZ$2=1,AR13,IF($BZ$2=2,AR13*3.412141633,)),0),"") -> 630 | DL52: =IF(BY13=1,IF($BZ$2=1,ROUND(AU13,0),IF($BZ$2=2,ROUND(AU13/272.7654,1),)),"") -> 271 | DM52: =IF(BY13=1,IF($BZ$2=1,AX13,IF($BZ$2=2,AX13*0.3346,)),"") -> 1.162899406 | DN52: =K13 -> 30 | DO52: =L13 -> 45.4 | DP52: =BB13 -> 10.5 | DQ52: =DQ50 -> 2.8
A53: 1956020 | D53: 1 | E53: 95 | F53: 60 | G53: 20 | H53: 21.5 | I53: 0 | J53: 26 | K53: 30 | L53: 41.1 | M53: 1251.575009 | N53: 1346.575009 | O53: 1442.033213 | P53: 1706.04 | Q53: 1.5 | R53: 1.08 | S53: 1.08 | T53: 1.08 | U53: 893 | V53: 1056 | W53: 1131 | X53: 1338 | Y53: 77 | Z53: 91 | AA53: 97 | AB53: 115 | AC53: 0.02390299996 | AD53: 0.03325708732 | AE53: 0.0377333483 | AF53: 0.05284143106 | AG53: 0.0001276 | AH53: 1.7219 | AI53: 2 | AJ53: 0.000376611 | AK53: 166.4157199 | AL53: 178.2128687 | AM53: 210.84 | AN53: 0.95 | AO53: 0.95 | AP53: 0.95 | AQ53: 166 | AR53: 178 | AS53: 211 | AT53: 71 | AU53: 77 | AV53: 91 | AW53: 0.02036218677 | AX53: 0.02390299996 | AY53: 0.03325708732 | AZ53: 0.8 | BA53: 4.8 | BB53: 5.5 | BC53: 7.2 | BE53: 1795 | BG53: 0.8 | BJ53: 0 | BK53: 12.3 | BL53: 14.4 | BM53: 21.85 | BO53: 1 | BP53: 1 | BQ53: 1 | BR53: 166 | BS53: 178 | BT53: 211 | BV53: 0 | BW53: 0 | BX53: 0 | BY53: 1 | CN53: 28010 | CO53: 280 | CP53: 10 | CQ53: 10.2 | CR53: 11.9 | CS53: 21.85 | CT53: 16.2 | CU53: 18.6 | CV53: 31.4 | DF53: =DF50 -> 140 | DG53: =BM13 -> 21.85 | DH53: =ROUND(IF($BZ$2=1,X13,IF($BZ$2=2,X13*3.412141633,)),0) -> 4510 | DI53: =IF($BZ$2=1,ROUND(AB13,0),IF($BZ$2=2,ROUND(AB13/272.7654,1),)) -> 388 | DJ53: =IF($BZ$2=1,AF13,IF($BZ$2=2,AF13*0.3346,)) -> 2.352763085 | DK53: =IF(BY13=1,ROUND(IF($BZ$2=1,AS13,IF($BZ$2=2,AS13*3.412141633,)),0),"") -> 885 | DL53: =IF(BY13=1,IF($BZ$2=1,ROUND(AV13,0),IF($BZ$2=2,ROUND(AV13/272.7654,1),)),"") -> 381 | DM53: =IF(BY13=1,IF($BZ$2=1,AY13,IF($BZ$2=2,AY13*0.3346,)),"") -> 2.270082508 | DN53: =L13 -> 45.4 | DO53: =DN53+8 -> 53.4 | DP53: =BC13 -> 16.1 | DQ53: =DQ50 -> 2.8
A54: 1356021 | D54: 1 | E54: 35 | F54: 60 | G54: 21 | H54: 21.5 | I54: 0 | J54: 26 | K54: 30 | L54: 41.1 | M54: 1014.4 | N54: 1802.643723 | O54: 1935.098135 | P54: 2561.16 | Q54: 1.5 | R54: 1.05 | S54: 1.05 | T54: 1.05 | U54: 724 | V54: 1423 | W54: 1528 | X54: 2022 | Y54: 62 | Z54: 122 | AA54: 131 | AB54: 174 | AC54: 0.02215297684 | AD54: 0.08392792833 | AE54: 0.09656579584 | AF54: 0.1690135351 | AG54: 0.0001276 | AH54: 1.7219 | AI54: 4 | AJ54: 0.000514201 | AK54: 233.8293186 | AL54: 251.0105977 | AM54: 332.22 | AN54: 0.85 | AO54: 0.85 | AP54: 0.85 | AQ54: 234 | AR54: 251 | AS54: 332 | AT54: 101 | AU54: 108 | AV54: 143 | AW54: 0.05785134679 | AX54: 0.06601213332 | AY54: 0.1147780549 | AZ54: 1.6 | BA54: 4.8 | BB54: 5.5 | BC54: 7.2 | BE54: 1268 | BG54: 0.8 | BJ54: 0 | BK54: 12.3 | BL54: 14.4 | BM54: 21.85 | BO54: 1 | BP54: 1 | BQ54: 1 | BR54: 234 | BS54: 251 | BT54: 332 | BV54: 0 | BW54: 0 | BX54: 0 | BY54: 1 | CN54: 28015 | CO54: 280 | CP54: 15 | CQ54: 10 | CR54: 10.6 | CS54: 21.85 | CT54: 19.3 | CU54: 20.4 | CV54: 34.5 | DF54: 160 | DG54: =BJ14 -> 0 | DH54: =ROUND(IF($BZ$2=1,U14,IF($BZ$2=2,U14*3.412141633,)),0) -> 1474 | DI54: =IF($BZ$2=1,ROUND(Y14,0),IF($BZ$2=2,ROUND(Y14/272.7654,1),)) -> 127 | DJ54: =IF($BZ$2=1,AC14,IF($BZ$2=2,AC14*0.3346,)) -> 0.2705121834 | DN54: 0 | DO54: 0 | DP54: 0 | DQ54: =IF($BZ$2=1,AZ14,IF($BZ$2=2,AZ14/4.54609,)) -> 3.2
A55: 1506021 | D55: 1 | E55: 50 | F55: 60 | G55: 21 | H55: 21.5 | I55: 0 | J55: 26 | K55: 30 | L55: 41.1 | M55: 1239.2 | N55: 1802.643723 | O55: 1935.098135 | P55: 2561.16 | Q55: 1.5 | R55: 1.05 | S55: 1.05 | T55: 1.05 | U55: 884 | V55: 1423 | W55: 1528 | X55: 2022 | Y55: 76 | Z55: 122 | AA55: 131 | AB55: 174 | AC55: 0.03305694892 | AD55: 0.08392792833 | AE55: 0.09656579584 | AF55: 0.1690135351 | AG55: 0.0001276 | AH55: 1.7219 | AI55: 4 | AJ55: 0.000514201 | AK55: 233.8293186 | AL55: 251.0105977 | AM55: 332.22 | AN55: 0.85 | AO55: 0.85 | AP55: 0.85 | AQ55: 234 | AR55: 251 | AS55: 332 | AT55: 101 | AU55: 108 | AV55: 143 | AW55: 0.05785134679 | AX55: 0.06601213332 | AY55: 0.1147780549 | AZ55: 1.6 | BA55: 4.8 | BB55: 5.5 | BC55: 7.2 | BE55: 1549 | BG55: 0.8 | BJ55: 0 | BK55: 12.3 | BL55: 14.4 | BM55: 21.85 | BO55: 1 | BP55: 1 | BQ55: 1 | BR55: 234 | BS55: 251 | BT55: 332 | BV55: 0 | BW55: 0 | BX55: 0 | BY55: 1 | CN55: 30010 | CO55: 300 | CP55: 10 | CQ55: =CQ53 -> 10.2 | CR55: =CR53 -> 11.9 | CS55: =CS53 -> 21.85 | CT55: 16.2 | CU55: 18.6 | CV55: 31.4 | DF55: =DF54 -> 160 | DG55: =BK14 -> 10 | DH55: =ROUND(IF($BZ$2=1,V14,IF($BZ$2=2,V14*3.412141633,)),0) -> 3449 | DI55: =IF($BZ$2=1,ROUND(Z14,0),IF($BZ$2=2,ROUND(Z14/272.7654,1),)) -> 297 | DJ55: =IF($BZ$2=1,AD14,IF($BZ$2=2,AD14*0.3346,)) -> 1.421855647 | DK55: =IF(BY14=1,ROUND(IF($BZ$2=1,AQ14,IF($BZ$2=2,AQ14*3.412141633,)),0),"") -> 676 | DL55: =IF(BY14=1,IF($BZ$2=1,ROUND(AT14,0),IF($BZ$2=2,ROUND(AT14/272.7654,1),)),"") -> 291 | DM55: =IF(BY14=1,IF($BZ$2=1,AW14,IF($BZ$2=2,AW14*0.3346,)),"") -> 1.366168615 | DN55: =J14 -> 26 | DO55: =DN55+8 -> 34 | DP55: =BA14 -> 11.5 | DQ55: =DQ54 -> 3.2
A56: 1656021 | D56: 1 | E56: 65 | F56: 60 | G56: 21 | H56: 21.5 | I56: 0 | J56: 26 | K56: 30 | L56: 41.1 | M56: 1454.4 | N56: 1802.643723 | O56: 1935.098135 | P56: 2561.16 | Q56: 1.5 | R56: 1.05 | S56: 1.05 | T56: 1.05 | U56: 1038 | V56: 1423 | W56: 1528 | X56: 2022 | Y56: 89 | Z56: 122 | AA56: 131 | AB56: 174 | AC56: 0.04510035324 | AD56: 0.08392792833 | AE56: 0.09656579584 | AF56: 0.1690135351 | AG56: 0.0001276 | AH56: 1.7219 | AI56: 4 | AJ56: 0.000514201 | AK56: =AK55*(1-(($E56-50)*0.005)) -> 216.2921197 | AL56: =AL55*(1-(($E56-50)*0.005)) -> 232.1848029 | AM56: =AM55*(1-(($E56-50)*0.005)) -> 307.3035 | AN56: 0.85 | AO56: 0.85 | AP56: 0.85 | AQ56: 216 | AR56: 232 | AS56: 307 | AT56: =ROUND(AQ56*3600/(4186*ABS($AM$1-$AM$2)),0) -> 93 | AU56: =ROUND(AR56*3600/(4186*ABS($AM$1-$AM$2)),0) -> 100 | AV56: =ROUND(AS56*3600/(4186*ABS($AM$1-$AM$2)),0) -> 132 | AW56: 0.04917661932 | AX56: 0.05672895886 | AY56: 0.09802406999 | AZ56: 1.6 | BA56: 4.8 | BB56: 5.5 | BC56: 7.2 | BE56: 1818 | BG56: 0.8 | BJ56: 0 | BK56: 12.3 | BL56: 14.4 | BM56: 21.85 | BO56: 1 | BP56: 1 | BQ56: 1 | BR56: 216 | BS56: 232 | BT56: 307 | BV56: 0 | BW56: 0 | BX56: 0 | BY56: 1 | CN56: 30015 | CO56: 300 | CP56: 15 | CQ56: =CQ54 -> 10 | CR56: =CR54 -> 10.6 | CS56: 21.85 | CT56: 19.3 | CU56: 20.4 | CV56: 34.5 | DF56: =DF54 -> 160 | DG56: =BL14 -> 11.8 | DH56: =ROUND(IF($BZ$2=1,W14,IF($BZ$2=2,W14*3.412141633,)),0) -> 3683 | DI56: =IF($BZ$2=1,ROUND(AA14,0),IF($BZ$2=2,ROUND(AA14/272.7654,1),)) -> 317 | DJ56: =IF($BZ$2=1,AE14,IF($BZ$2=2,AE14*0.3346,)) -> 1.615374883 | DK56: =IF(BY14=1,ROUND(IF($BZ$2=1,AR14,IF($BZ$2=2,AR14*3.412141633,)),0),"") -> 722 | DL56: =IF(BY14=1,IF($BZ$2=1,ROUND(AU14,0),IF($BZ$2=2,ROUND(AU14/272.7654,1),)),"") -> 310 | DM56: =IF(BY14=1,IF($BZ$2=1,AX14,IF($BZ$2=2,AX14*0.3346,)),"") -> 1.546262188 | DN56: =K14 -> 30 | DO56: =L14 -> 46.4 | DP56: =BB14 -> 12.8 | DQ56: =DQ54 -> 3.2
A57: 1956021 | D57: 1 | E57: 95 | F57: 60 | G57: 21 | H57: 21.5 | I57: 0 | J57: 26 | K57: 30 | L57: 41.1 | M57: 1707.643723 | N57: 1802.643723 | O57: 1935.098135 | P57: 2561.16 | Q57: 1.5 | R57: 1.05 | S57: 1.05 | T57: 1.05 | U57: 1218 | V57: 1423 | W57: 1528 | X57: 2022 | Y57: 105 | Z57: 122 | AA57: 131 | AB57: 174 | AC57: 0.06244951628 | AD57: 0.08392792833 | AE57: 0.09656579584 | AF57: 0.1690135351 | AG57: 0.0001276 | AH57: 1.7219 | AI57: 4 | AJ57: 0.000514201 | AK57: =AK55*(1-(($E57-50)*0.005)) -> 181.2177219 | AL57: =AL55*(1-(($E57-50)*0.005)) -> 194.5332132 | AM57: =AM55*(1-(($E57-50)*0.005)) -> 257.4705 | AN57: 0.85 | AO57: 0.85 | AP57: 0.85 | AQ57: 181 | AR57: 195 | AS57: 257 | AT57: 78 | AU57: 84 | AV57: 111 | AW57: 0.03478972842 | AX57: 0.04025011192 | AY57: 0.06967239517 | AZ57: 1.6 | BA57: 4.8 | BB57: 5.5 | BC57: 7.2 | BE57: 2352 | BG57: 0.8 | BJ57: 0 | BK57: 12.3 | BL57: 14.4 | BM57: 21.85 | BO57: 1 | BP57: 1 | BQ57: 1 | BR57: 181 | BS57: 195 | BT57: 257 | BV57: 0 | BW57: 0 | BX57: 0 | BY57: 1 | DF57: =DF54 -> 160 | DG57: =BM14 -> 21.85 | DH57: =ROUND(IF($BZ$2=1,X14,IF($BZ$2=2,X14*3.412141633,)),0) -> 5249 | DI57: =IF($BZ$2=1,ROUND(AB14,0),IF($BZ$2=2,ROUND(AB14/272.7654,1),)) -> 451 | DJ57: =IF($BZ$2=1,AF14,IF($BZ$2=2,AF14*0.3346,)) -> 3.223950207 | DK57: =IF(BY14=1,ROUND(IF($BZ$2=1,AS14,IF($BZ$2=2,AS14*3.412141633,)),0),"") -> 1030 | DL57: =IF(BY14=1,IF($BZ$2=1,ROUND(AV14,0),IF($BZ$2=2,ROUND(AV14/272.7654,1),)),"") -> 443 | DM57: =IF(BY14=1,IF($BZ$2=1,AY14,IF($BZ$2=2,AY14*0.3346,)),"") -> 3.112728235 | DN57: =L14 -> 46.4 | DO57: =DN57+8 -> 54.4 | DP57: =BC14 -> 19.6 | DQ57: =DQ54 -> 3.2
A58: 1357010 | D58: 1 | E58: 35 | F58: 70 | G58: 10 | H58: 11.5 | I58: 0 | J58: 26 | K58: 30 | L58: 41 | M58: 566.1 | N58: 1029.74039 | O58: 1104.285964 | P58: 1320.28 | Q58: 1.5 | R58: 1.08 | S58: 1.08 | T58: 1.08 | U58: 404 | V58: 808 | W58: 866 | X58: 1035 | Y58: =ROUND(U58*3600/(4186*ABS($O$1-$O$2)),0) -> 35 | Z58: =ROUND(V58*3600/(4186*ABS($O$1-$O$2)),0) -> 69 | AA58: =ROUND(W58*3600/(4186*ABS($O$1-$O$2)),0) -> 74 | AB58: =ROUND(X58*3600/(4186*ABS($O$1-$O$2)),0) -> 89 | AC58: 0.006472303346 | AD58: 0.02383350863 | AE58: 0.02727115805 | AF58: 0.03892496089 | AG58: 0.0003969 | AH58: 1.7346 | AI58: 2 | AJ58: 0.000367347 | AK58: 142.760385 | AL58: 153.0951789 | AM58: 183.04 | AN58: 0.98 | AO58: 0.98 | AP58: 0.98 | AQ58: 143 | AR58: 153 | AS58: 183 | AT58: 61 | AU58: 66 | AV58: 79 | AW58: 0.01880121702 | AX58: 0.02187876495 | AY58: 0.03093277823 | AZ58: 0.5 | BA58: 5.5 | BB58: 5.9 | BC58: 7.9 | BE58: 629 | BG58: 0.9 | BJ58: 0 | BK58: 13.2 | BL58: 15.1 | BM58: 21.85 | BO58: 1 | BP58: 1 | BQ58: 1 | BR58: 143 | BS58: 153 | BT58: 183 | BV58: 0 | BW58: 0 | BX58: 0 | BY58: 1 | DF58: 180 | DG58: =BJ15 -> 0 | DH58: =ROUND(IF($BZ$2=1,U15,IF($BZ$2=2,U15*3.412141633,)),0) -> 1657 | DI58: =IF($BZ$2=1,ROUND(Y15,0),IF($BZ$2=2,ROUND(Y15/272.7654,1),)) -> 143 | DJ58: =IF($BZ$2=1,AC15,IF($BZ$2=2,AC15*0.3346,)) -> 0.3493971221 | DN58: 0 | DO58: 0 | DP58: 0 | DQ58: =IF($BZ$2=1,AZ15,IF($BZ$2=2,AZ15/4.54609,)) -> 3.6
A59: 1507010 | D59: 1 | E59: 50 | F59: 70 | G59: 10 | H59: 11.5 | I59: 0 | J59: 26 | K59: 30 | L59: 41 | M59: 677.7 | N59: 1029.74039 | O59: 1104.285964 | P59: 1320.28 | Q59: 1.5 | R59: 1.08 | S59: 1.08 | T59: 1.08 | U59: 484 | V59: 808 | W59: 866 | X59: 1035 | Y59: 42 | Z59: 69 | AA59: 74 | AB59: 89 | AC59: 0.009179839052 | AD59: 0.02383350863 | AE59: 0.02727115805 | AF59: 0.03892496089 | AG59: 0.0003969 | AH59: 1.7346 | AI59: 2 | AJ59: 0.000367347 | AK59: 142.760385 | AL59: 153.0951789 | AM59: 183.04 | AN59: 0.98 | AO59: 0.98 | AP59: 0.98 | AQ59: 143 | AR59: 153 | AS59: 183 | AT59: 61 | AU59: 66 | AV59: 79 | AW59: 0.01880121702 | AX59: 0.02187876495 | AY59: 0.03093277823 | AZ59: 0.5 | BA59: 5.5 | BB59: 5.9 | BC59: 7.9 | BE59: 753 | BG59: 0.9 | BJ59: 0 | BK59: 13.2 | BL59: 15.1 | BM59: 21.85 | BO59: 1 | BP59: 1 | BQ59: 1 | BR59: 143 | BS59: 153 | BT59: 183 | BV59: 0 | BW59: 0 | BX59: 0 | BY59: 1 | DF59: =DF58 -> 180 | DG59: =BK15 -> 10 | DH59: =ROUND(IF($BZ$2=1,V15,IF($BZ$2=2,V15*3.412141633,)),0) -> 3781 | DI59: =IF($BZ$2=1,ROUND(Z15,0),IF($BZ$2=2,ROUND(Z15/272.7654,1),)) -> 325 | DJ59: =IF($BZ$2=1,AD15,IF($BZ$2=2,AD15*0.3346,)) -> 1.731133991 | DK59: =IF(BY15=1,ROUND(IF($BZ$2=1,AQ15,IF($BZ$2=2,AQ15*3.412141633,)),0),"") -> 686 | DL59: =IF(BY15=1,IF($BZ$2=1,ROUND(AT15,0),IF($BZ$2=2,ROUND(AT15/272.7654,1),)),"") -> 295 | DM59: =IF(BY15=1,IF($BZ$2=1,AW15,IF($BZ$2=2,AW15*0.3346,)),"") -> 1.432750405 | DN59: =J15 -> 26 | DO59: =DN59+8 -> 34 | DP59: =BA15 -> 11.5 | DQ59: =DQ58 -> 3.6
A60: 1657010 | D60: 1 | E60: 65 | F60: 70 | G60: 10 | H60: 11.5 | I60: 0 | J60: 26 | K60: 30 | L60: 41 | M60: 763.2 | N60: 1029.74039 | O60: 1104.285964 | P60: 1320.28 | Q60: 1.5 | R60: 1.08 | S60: 1.08 | T60: 1.08 | U60: 545 | V60: 808 | W60: 866 | X60: 1035 | Y60: 47 | Z60: 69 | AA60: 74 | AB60: 89 | AC60: 0.01139140711 | AD60: 0.02383350863 | AE60: 0.02727115805 | AF60: 0.03892496089 | AG60: 0.0003969 | AH60: 1.7346 | AI60: 2 | AJ60: 0.000367347 | AK60: 142.760385 | AL60: 153.0951789 | AM60: 183.04 | AN60: 0.98 | AO60: 0.98 | AP60: 0.98 | AQ60: 143 | AR60: 153 | AS60: 183 | AT60: 61 | AU60: 66 | AV60: 79 | AW60: 0.01880121702 | AX60: 0.02187876495 | AY60: 0.03093277823 | AZ60: 0.5 | BA60: 5.5 | BB60: 5.9 | BC60: 7.9 | BE60: 848 | BG60: 0.9 | BJ60: 0 | BK60: 13.2 | BL60: 15.1 | BM60: 21.85 | BO60: 1 | BP60: 1 | BQ60: 1 | BR60: 143 | BS60: 153 | BT60: 183 | BV60: 0 | BW60: 0 | BX60: 0 | BY60: 1 | CN60: L,rail/L,tot | CO60: T10 | CP60: T11 | CQ60: T15 | CR60: T16 | CS60: T20 | CT60: T21 | CU60: ALS | DF60: =DF58 -> 180 | DG60: =BL15 -> 11.8 | DH60: =ROUND(IF($BZ$2=1,W15,IF($BZ$2=2,W15*3.412141633,)),0) -> 4037 | DI60: =IF($BZ$2=1,ROUND(AA15,0),IF($BZ$2=2,ROUND(AA15/272.7654,1),)) -> 347 | DJ60: =IF($BZ$2=1,AE15,IF($BZ$2=2,AE15*0.3346,)) -> 1.967524633 | DK60: =IF(BY15=1,ROUND(IF($BZ$2=1,AR15,IF($BZ$2=2,AR15*3.412141633,)),0),"") -> 733 | DL60: =IF(BY15=1,IF($BZ$2=1,ROUND(AU15,0),IF($BZ$2=2,ROUND(AU15/272.7654,1),)),"") -> 315 | DM60: =IF(BY15=1,IF($BZ$2=1,AX15,IF($BZ$2=2,AX15*0.3346,)),"") -> 1.628596909 | DN60: =K15 -> 30 | DO60: =L15 -> 46.4 | DP60: =BB15 -> 12.8 | DQ60: =DQ58 -> 3.6
A61: 1957010 | D61: 1 | E61: 95 | F61: 70 | G61: 10 | H61: 11.5 | I61: 0 | J61: 26 | K61: 30 | L61: 41 | M61: 877.5 | N61: 1029.74039 | O61: 1104.285964 | P61: 1320.28 | Q61: 1.5 | R61: 1.08 | S61: 1.08 | T61: 1.08 | U61: 626 | V61: 808 | W61: 866 | X61: 1035 | Y61: 54 | Z61: 69 | AA61: 74 | AB61: 89 | AC61: 0.01487304623 | AD61: 0.02383350863 | AE61: 0.02727115805 | AF61: 0.03892496089 | AG61: 0.0003969 | AH61: 1.7346 | AI61: 2 | AJ61: 0.000367347 | AK61: 142.760385 | AL61: 153.0951789 | AM61: 183.04 | AN61: 0.98 | AO61: 0.98 | AP61: 0.98 | AQ61: 143 | AR61: 153 | AS61: 183 | AT61: 61 | AU61: 66 | AV61: 79 | AW61: 0.01880121702 | AX61: 0.02187876495 | AY61: 0.03093277823 | AZ61: 0.5 | BA61: 5.5 | BB61: 5.9 | BC61: 7.9 | BE61: 975 | BG61: 0.9 | BJ61: 0 | BK61: 13.2 | BL61: 15.1 | BM61: 21.85 | BO61: 1 | BP61: 1 | BQ61: 1 | BR61: 143 | BS61: 153 | BT61: 183 | BV61: 0 | BW61: 0 | BX61: 0 | BY61: 1 | CN61: 1 | CO61: 0.9 | CP61: 0.68 | CQ61: 0.8 | CR61: 0.68 | CS61: 0.8 | CT61: 0.8 | CU61: =IF(#REF!/#REF!>data!CN$61,0,IF(#REF!/#REF!=data!CN$61,data!CO$61,IF(#REF!/#REF!>data!CN$62,data!CO$62,IF(#REF!/#REF!>data!CN$63,data!CO$63,IF(#REF!/#REF!>data!CN$64,data!CO$64,IF(#REF!/#REF!>data!CN$65,data!CO$65,IF(#REF!/#REF!>data!CN$66,data!CO$66,IF(#REF!/#REF!=data!CN$66,1,)))))))) ->  | CV61: T10 | DF61: =DF58 -> 180 | DG61: =BM15 -> 21.85 | DH61: =ROUND(IF($BZ$2=1,X15,IF($BZ$2=2,X15*3.412141633,)),0) -> 5755 | DI61: =IF($BZ$2=1,ROUND(AB15,0),IF($BZ$2=2,ROUND(AB15/272.7654,1),)) -> 495 | DJ61: =IF($BZ$2=1,AF15,IF($BZ$2=2,AF15*0.3346,)) -> 3.942215693 | DK61: =IF(BY15=1,ROUND(IF($BZ$2=1,AS15,IF($BZ$2=2,AS15*3.412141633,)),0),"") -> 1045 | DL61: =IF(BY15=1,IF($BZ$2=1,ROUND(AV15,0),IF($BZ$2=2,ROUND(AV15/272.7654,1),)),"") -> 449 | DM61: =IF(BY15=1,IF($BZ$2=1,AY15,IF($BZ$2=2,AY15*0.3346,)),"") -> 3.256985223 | DN61: =L15 -> 46.4 | DO61: =DN61+8 -> 54.4 | DP61: =BC15 -> 19.6 | DQ61: =DQ58 -> 3.6
A62: 1357011 | D62: 1 | E62: 35 | F62: 70 | G62: 11 | H62: 11.5 | I62: 0 | J62: 26 | K62: 30 | L62: 41 | M62: 569.16 | N62: 1397.186154 | O62: 1498.332077 | P62: 1791.4 | Q62: 1.5 | R62: 1.1 | S62: 1.1 | T62: 1.1 | U62: 406 | V62: 1091 | W62: 1170 | X62: 1399 | Y62: 35 | Z62: 94 | AA62: 101 | AB62: 120 | AC62: 0.01101893266 | AD62: 0.07261834892 | AE62: 0.08333759355 | AF62: 0.1160049976 | AG62: 0.0003969 | AH62: 1.7346 | AI62: 4 | AJ62: 0.000574288 | AK62: 234.013472 | AL62: 250.9543131 | AM62: 300.04 | AN62: 0.95 | AO62: 0.95 | AP62: 0.95 | AQ62: 234 | AR62: 251 | AS62: 300 | AT62: 101 | AU62: 108 | AV62: 129 | AW62: 0.08333759355 | AX62: 0.09476709276 | AY62: 0.1332901913 | AZ62: 0.9 | BA62: 5.5 | BB62: 5.9 | BC62: 7.9 | BE62: 837 | BG62: 0.68 | BJ62: 0 | BK62: 13.2 | BL62: 15.1 | BM62: 21.85 | BO62: 1 | BP62: 1 | BQ62: 1 | BR62: 234 | BS62: 251 | BT62: 300 | BV62: 0 | BW62: 0 | BX62: 0 | BY62: 1 | CN62: 0.8 | CO62: =CO$66-((CO$66-CO$61)*$CN62) -> 0.92 | CP62: =CP$66-((CP$66-CP$61)*$CN62) -> 0.744 | CQ62: 0.84 | CR62: 0.744 | CS62: 0.84 | CT62: 0.84 | CU62: =IF(#REF!/#REF!>data!CN$61,0,IF(#REF!/#REF!=data!CN$61,data!CP$61,IF(#REF!/#REF!>data!CN$62,data!CP$62,IF(#REF!/#REF!>data!CN$63,data!CP$63,IF(#REF!/#REF!>data!CN$64,data!CP$64,IF(#REF!/#REF!>data!CN$65,data!CP$65,IF(#REF!/#REF!>data!CN$66,data!CP$66,IF(#REF!/#REF!=data!CN$66,1,)))))))) ->  | CV62: T11 | DF62: 200 | DG62: =BJ16 -> 0 | DH62: =ROUND(IF($BZ$2=1,U16,IF($BZ$2=2,U16*3.412141633,)),0) -> 1842 | DI62: =IF($BZ$2=1,ROUND(Y16,0),IF($BZ$2=2,ROUND(Y16/272.7654,1),)) -> 158 | DJ62: =IF($BZ$2=1,AC16,IF($BZ$2=2,AC16*0.3346,)) -> 0.4342924213 | DN62: 0 | DO62: 0 | DP62: 0 | DQ62: =IF($BZ$2=1,AZ16,IF($BZ$2=2,AZ16/4.54609,)) -> 4
A63: 1507011 | D63: 1 | E63: 50 | F63: 70 | G63: 11 | H63: 11.5 | I63: 0 | J63: 26 | K63: 30 | L63: 41 | M63: 659.6 | N63: 1397.186154 | O63: 1498.332077 | P63: 1791.4 | Q63: 1.5 | R63: 1.1 | S63: 1.1 | T63: 1.1 | U63: 471 | V63: 1091 | W63: 1170 | X63: 1399 | Y63: 41 | Z63: 94 | AA63: 101 | AB63: 120 | AC63: 0.01488791827 | AD63: 0.07261834892 | AE63: 0.08333759355 | AF63: 0.1160049976 | AG63: 0.0003969 | AH63: 1.7346 | AI63: 4 | AJ63: 0.000574288 | AK63: 234.013472 | AL63: 250.9543131 | AM63: 300.04 | AN63: 0.95 | AO63: 0.95 | AP63: 0.95 | AQ63: 234 | AR63: 251 | AS63: 300 | AT63: 101 | AU63: 108 | AV63: 129 | AW63: 0.08333759355 | AX63: 0.09476709276 | AY63: 0.1332901913 | AZ63: 0.9 | BA63: 5.5 | BB63: 5.9 | BC63: 7.9 | BE63: 970 | BG63: 0.68 | BJ63: 0 | BK63: 13.2 | BL63: 15.1 | BM63: 21.85 | BO63: 1 | BP63: 1 | BQ63: 1 | BR63: 234 | BS63: 251 | BT63: 300 | BV63: 0 | BW63: 0 | BX63: 0 | BY63: 1 | CN63: 0.6 | CO63: =CO$66-((CO$66-CO$61)*$CN63) -> 0.94 | CP63: 0.808 | CQ63: 0.88 | CR63: 0.808 | CS63: 0.88 | CT63: 0.88 | CU63: =IF(#REF!/#REF!>data!CN$61,0,IF(#REF!/#REF!=data!CN$61,data!CQ$61,IF(#REF!/#REF!>data!CN$62,data!CQ$62,IF(#REF!/#REF!>data!CN$63,data!CQ$63,IF(#REF!/#REF!>data!CN$64,data!CQ$64,IF(#REF!/#REF!>data!CN$65,data!CQ$65,IF(#REF!/#REF!>data!CN$66,data!CQ$66,IF(#REF!/#REF!=data!CN$66,1,)))))))) ->  | CV63: T15 | DF63: =DF62 -> 200 | DG63: =BK16 -> 10 | DH63: =ROUND(IF($BZ$2=1,V16,IF($BZ$2=2,V16*3.412141633,)),0) -> 4424 | DI63: =IF($BZ$2=1,ROUND(Z16,0),IF($BZ$2=2,ROUND(Z16/272.7654,1),)) -> 380 | DJ63: =IF($BZ$2=1,AD16,IF($BZ$2=2,AD16*0.3346,)) -> 2.395691047 | DK63: =IF(BY16=1,ROUND(IF($BZ$2=1,AQ16,IF($BZ$2=2,AQ16*3.412141633,)),0),"") -> 868 | DL63: =IF(BY16=1,IF($BZ$2=1,ROUND(AT16,0),IF($BZ$2=2,ROUND(AT16/272.7654,1),)),"") -> 373 | DM63: =IF(BY16=1,IF($BZ$2=1,AW16,IF($BZ$2=2,AW16*0.3346,)),"") -> 2.310347018 | DN63: =J16 -> 26 | DO63: =DN63+8 -> 34 | DP63: =BA16 -> 13.2 | DQ63: =DQ62 -> 4
A64: 1657011 | D64: 1 | E64: 65 | F64: 70 | G64: 11 | H64: 11.5 | I64: 0 | J64: 26 | K64: 30 | L64: 41 | M64: 734.4 | N64: 1397.186154 | O64: 1498.332077 | P64: 1791.4 | Q64: 1.5 | R64: 1.1 | S64: 1.1 | T64: 1.1 | U64: 524 | V64: 1091 | W64: 1170 | X64: 1399 | Y64: 45 | Z64: 94 | AA64: 101 | AB64: 120 | AC64: 0.01777503716 | AD64: 0.07261834892 | AE64: 0.08333759355 | AF64: 0.1160049976 | AG64: 0.0003969 | AH64: 1.7346 | AI64: 4 | AJ64: 0.000574288 | AK64: =AK63*(1-(($E64-50)*0.005)) -> 216.4624616 | AL64: =AL63*(1-(($E64-50)*0.005)) -> 232.1327396 | AM64: =AM63*(1-(($E64-50)*0.005)) -> 277.537 | AN64: 0.95 | AO64: 0.95 | AP64: 0.95 | AQ64: 216 | AR64: 232 | AS64: 278 | AT64: 93 | AU64: 100 | AV64: 120 | AW64: 0.07114518297 | AX64: 0.08176271958 | AY64: 0.1160049976 | AZ64: 0.9 | BA64: 5.5 | BB64: 5.9 | BC64: 7.9 | BE64: 1080 | BG64: 0.68 | BJ64: 0 | BK64: 13.2 | BL64: 15.1 | BM64: 21.85 | BO64: 1 | BP64: 1 | BQ64: 1 | BR64: 216 | BS64: 232 | BT64: 278 | BV64: 0 | BW64: 0 | BX64: 0 | BY64: 1 | CN64: 0.4 | CO64: 0.96 | CP64: 0.872 | CQ64: 0.92 | CR64: 0.872 | CS64: 0.92 | CT64: 0.92 | CU64: =IF(#REF!/#REF!>data!CN$61,0,IF(#REF!/#REF!=data!CN$61,data!CR$61,IF(#REF!/#REF!>data!CN$62,data!CR$62,IF(#REF!/#REF!>data!CN$63,data!CR$63,IF(#REF!/#REF!>data!CN$64,data!CR$64,IF(#REF!/#REF!>data!CN$65,data!CR$65,IF(#REF!/#REF!>data!CN$66,data!CR$66,IF(#REF!/#REF!=data!CN$66,1,)))))))) ->  | CV64: T16 | DF64: =DF62 -> 200 | DG64: =BL16 -> 11.4 | DH64: =ROUND(IF($BZ$2=1,W16,IF($BZ$2=2,W16*3.412141633,)),0) -> 4662 | DI64: =IF($BZ$2=1,ROUND(AA16,0),IF($BZ$2=2,ROUND(AA16/272.7654,1),)) -> 401 | DJ64: =IF($BZ$2=1,AE16,IF($BZ$2=2,AE16*0.3346,)) -> 2.660824734 | DK64: =IF(BY16=1,ROUND(IF($BZ$2=1,AR16,IF($BZ$2=2,AR16*3.412141633,)),0),"") -> 914 | DL64: =IF(BY16=1,IF($BZ$2=1,ROUND(AU16,0),IF($BZ$2=2,ROUND(AU16/272.7654,1),)),"") -> 393 | DM64: =IF(BY16=1,IF($BZ$2=1,AX16,IF($BZ$2=2,AX16*0.3346,)),"") -> 2.558212522 | DN64: =K16 -> 30 | DO64: =L16 -> 47.1 | DP64: =BB16 -> 14.7 | DQ64: =DQ62 -> 4
A65: 1957011 | D65: 1 | E65: 95 | F65: 70 | G65: 11 | H65: 11.5 | I65: 0 | J65: 26 | K65: 30 | L65: 41 | M65: 854.76 | N65: 1397.186154 | O65: 1498.332077 | P65: 1791.4 | Q65: 1.5 | R65: 1.1 | S65: 1.1 | T65: 1.1 | U65: 610 | V65: 1091 | W65: 1170 | X65: 1399 | Y65: 52 | Z65: 94 | AA65: 101 | AB65: 120 | AC65: 0.02341453884 | AD65: 0.07261834892 | AE65: 0.08333759355 | AF65: 0.1160049976 | AG65: 0.0003969 | AH65: 1.7346 | AI65: 4 | AJ65: 0.000574288 | AK65: =AK63*(1-(($E65-50)*0.005)) -> 181.3604408 | AL65: =AL63*(1-(($E65-50)*0.005)) -> 194.4895927 | AM65: =AM63*(1-(($E65-50)*0.005)) -> 232.531 | AN65: 0.95 | AO65: 0.95 | AP65: 0.95 | AQ65: 181 | AR65: 194 | AS65: 233 | AT65: 78 | AU65: 83 | AV65: 100 | AW65: 0.05080122852 | AX65: 0.0572162831 | AY65: 0.08176271958 | AZ65: 0.9 | BA65: 5.5 | BB65: 5.9 | BC65: 7.9 | BE65: 1257 | BG65: 0.68 | BJ65: 0 | BK65: 13.2 | BL65: 15.1 | BM65: 21.85 | BO65: 1 | BP65: 1 | BQ65: 1 | BR65: 181 | BS65: 194 | BT65: 233 | BV65: 0 | BW65: 0 | BX65: 0 | BY65: 1 | CN65: 0.2 | CO65: 0.98 | CP65: 0.936 | CQ65: 0.96 | CR65: 0.936 | CS65: 0.96 | CT65: 0.96 | CU65: =IF(#REF!/#REF!>data!CN$61,0,IF(#REF!/#REF!=data!CN$61,data!CS$61,IF(#REF!/#REF!>data!CN$62,data!CS$62,IF(#REF!/#REF!>data!CN$63,data!CS$63,IF(#REF!/#REF!>data!CN$64,data!CS$64,IF(#REF!/#REF!>data!CN$65,data!CS$65,IF(#REF!/#REF!>data!CN$66,data!CS$66,IF(#REF!/#REF!=data!CN$66,1,)))))))) ->  | CV65: T20 | DF65: =DF62 -> 200 | DG65: =BM16 -> 21.85 | DH65: =ROUND(IF($BZ$2=1,X16,IF($BZ$2=2,X16*3.412141633,)),0) -> 6728 | DI65: =IF($BZ$2=1,ROUND(AB16,0),IF($BZ$2=2,ROUND(AB16/272.7654,1),)) -> 579 | DJ65: =IF($BZ$2=1,AF16,IF($BZ$2=2,AF16*0.3346,)) -> 5.453670257 | DK65: =IF(BY16=1,ROUND(IF($BZ$2=1,AS16,IF($BZ$2=2,AS16*3.412141633,)),0),"") -> 1320 | DL65: =IF(BY16=1,IF($BZ$2=1,ROUND(AV16,0),IF($BZ$2=2,ROUND(AV16/272.7654,1),)),"") -> 568 | DM65: =IF(BY16=1,IF($BZ$2=1,AY16,IF($BZ$2=2,AY16*0.3346,)),"") -> 5.252902216 | DN65: =L16 -> 47.1 | DO65: =DN65+8 -> 55.1 | DP65: =BC16 -> 23.5 | DQ65: =DQ62 -> 4
A66: 1357015 | D66: 1 | E66: 35 | F66: 70 | G66: 15 | H66: 16.5 | I66: 0 | J66: 26 | K66: 30 | L66: 41.1 | M66: 823.2 | N66: 1070.827354 | O66: 1149.509462 | P66: 1521.41 | Q66: 1.5 | R66: 1.08 | S66: 1.08 | T66: 1.08 | U66: 587 | V66: 840 | W66: 901 | X66: 1193 | Y66: 50 | Z66: 72 | AA66: 77 | AB66: 103 | AC66: 0.01324253257 | AD66: 0.02707700031 | AE66: 0.03089237371 | AF66: 0.0547167133 | AG66: 0.0002083 | AH66: 1.724 | AI66: 2 | AJ66: 0.000461829 | AK66: 135.0948149 | AL66: 145.0212935 | AM66: 191.94 | AN66: 1.01 | AO66: 1.01 | AP66: 1.01 | AQ66: 135 | AR66: 145 | AS66: 192 | AT66: 58 | AU66: 62 | AV66: 83 | AW66: 0.01771504072 | AX66: 0.02019086145 | AY66: 0.03579769621 | AZ66: 0.7 | BA66: 5.1 | BB66: 5.6 | BC66: 7.2 | BE66: 1029 | BG66: 0.8 | BJ66: 0 | BK66: 12.3 | BL66: 14.4 | BM66: 21.85 | BO66: 1 | BP66: 1 | BQ66: 1 | BR66: 135 | BS66: 145 | BT66: 192 | BV66: 0 | BW66: 0 | BX66: 0 | BY66: 1 | CN66: 0 | CO66: 1 | CP66: 1 | CQ66: 1 | CR66: 1 | CS66: 1 | CT66: 1 | CU66: =IF(#REF!/#REF!>data!CN$61,0,IF(#REF!/#REF!=data!CN$61,data!CT$61,IF(#REF!/#REF!>data!CN$62,data!CT$62,IF(#REF!/#REF!>data!CN$63,data!CT$63,IF(#REF!/#REF!>data!CN$64,data!CT$64,IF(#REF!/#REF!>data!CN$65,data!CT$65,IF(#REF!/#REF!>data!CN$66,data!CT$66,IF(#REF!/#REF!=data!CN$66,1,)))))))) ->  | CV66: T21 | DF66: 220 | DG66: =BJ17 -> 0 | DH66: =ROUND(IF($BZ$2=1,U17,IF($BZ$2=2,U17*3.412141633,)),0) -> 1890 | DI66: =IF($BZ$2=1,ROUND(Y17,0),IF($BZ$2=2,ROUND(Y17/272.7654,1),)) -> 163 | DJ66: =IF($BZ$2=1,AC17,IF($BZ$2=2,AC17*0.3346,)) -> 0.4719986864 | DN66: 0 | DO66: 0 | DP66: 0 | DQ66: =IF($BZ$2=1,AZ17,IF($BZ$2=2,AZ17/4.54609,)) -> 4.4
A67: 1507015 | D67: 1 | E67: 50 | F67: 70 | G67: 15 | H67: 16.5 | I67: 0 | J67: 26 | K67: 30 | L67: 41.1 | M67: 975.8273542 | N67: 1070.827354 | O67: 1149.509462 | P67: 1521.41 | Q67: 1.5 | R67: 1.08 | S67: 1.08 | T67: 1.08 | U67: 696 | V67: 840 | W67: 901 | X67: 1193 | Y67: 60 | Z67: 72 | AA67: 77 | AB67: 103 | AC67: 0.01893301689 | AD67: 0.02707700031 | AE67: 0.03089237371 | AF67: 0.0547167133 | AG67: 0.0002083 | AH67: 1.724 | AI67: 2 | AJ67: 0.000461829 | AK67: 135.0948149 | AL67: 145.0212935 | AM67: 191.94 | AN67: 1.01 | AO67: 1.01 | AP67: 1.01 | AQ67: 135 | AR67: 145 | AS67: 192 | AT67: 58 | AU67: 62 | AV67: 83 | AW67: 0.01771504072 | AX67: 0.02019086145 | AY67: 0.03579769621 | AZ67: 0.7 | BA67: 5.1 | BB67: 5.6 | BC67: 7.2 | BE67: 1214 | BG67: 0.8 | BJ67: 0 | BK67: 12.3 | BL67: 14.4 | BM67: 21.85 | BO67: 1 | BP67: 1 | BQ67: 1 | BR67: 135 | BS67: 145 | BT67: 192 | BV67: 0 | BW67: 0 | BX67: 0 | BY67: 1 | DF67: =DF66 -> 220 | DG67: =BK17 -> 10 | DH67: =ROUND(IF($BZ$2=1,V17,IF($BZ$2=2,V17*3.412141633,)),0) -> 4912 | DI67: =IF($BZ$2=1,ROUND(Z17,0),IF($BZ$2=2,ROUND(Z17/272.7654,1),)) -> 422 | DJ67: =IF($BZ$2=1,AD17,IF($BZ$2=2,AD17*0.3346,)) -> 2.994425716 | DK67: =IF(BY17=1,ROUND(IF($BZ$2=1,AQ17,IF($BZ$2=2,AQ17*3.412141633,)),0),"") -> 963 | DL67: =IF(BY17=1,IF($BZ$2=1,ROUND(AT17,0),IF($BZ$2=2,ROUND(AT17/272.7654,1),)),"") -> 414 | DM67: =IF(BY17=1,IF($BZ$2=1,AW17,IF($BZ$2=2,AW17*0.3346,)),"") -> 2.88484253 | DN67: =J17 -> 26 | DO67: =DN67+8 -> 34 | DP67: =BA17 -> 15.5 | DQ67: =DQ66 -> 4.4
A68: 1657015 | D68: 1 | E68: 65 | F68: 70 | G68: 15 | H68: 16.5 | I68: 0 | J68: 26 | K68: 30 | L68: 41.1 | M68: 975.8273542 | N68: 1070.827354 | O68: 1149.509462 | P68: 1521.41 | Q68: 1.5 | R68: 1.08 | S68: 1.08 | T68: 1.08 | U68: 696 | V68: 840 | W68: 901 | X68: 1193 | Y68: 60 | Z68: 72 | AA68: 77 | AB68: 103 | AC68: 0.01893301689 | AD68: 0.02707700031 | AE68: 0.03089237371 | AF68: 0.0547167133 | AG68: 0.0002083 | AH68: 1.724 | AI68: 2 | AJ68: 0.000461829 | AK68: 135.0948149 | AL68: 145.0212935 | AM68: 191.94 | AN68: 1.01 | AO68: 1.01 | AP68: 1.01 | AQ68: 135 | AR68: 145 | AS68: 192 | AT68: 58 | AU68: 62 | AV68: 83 | AW68: 0.01771504072 | AX68: 0.02019086145 | AY68: 0.03579769621 | AZ68: 0.7 | BA68: 5.1 | BB68: 5.6 | BC68: 7.2 | BE68: 1345 | BG68: 0.8 | BJ68: 0 | BK68: 12.3 | BL68: 14.4 | BM68: 21.85 | BO68: 1 | BP68: 1 | BQ68: 1 | BR68: 135 | BS68: 145 | BT68: 192 | BV68: 0 | BW68: 0 | BX68: 0 | BY68: 1 | DF68: =DF66 -> 220 | DG68: =BL17 -> 11.1 | DH68: =ROUND(IF($BZ$2=1,W17,IF($BZ$2=2,W17*3.412141633,)),0) -> 5117 | DI68: =IF($BZ$2=1,ROUND(AA17,0),IF($BZ$2=2,ROUND(AA17/272.7654,1),)) -> 440 | DJ68: =IF($BZ$2=1,AE17,IF($BZ$2=2,AE17*0.3346,)) -> 3.248298319 | DK68: =IF(BY17=1,ROUND(IF($BZ$2=1,AR17,IF($BZ$2=2,AR17*3.412141633,)),0),"") -> 1003 | DL68: =IF(BY17=1,IF($BZ$2=1,ROUND(AU17,0),IF($BZ$2=2,ROUND(AU17/272.7654,1),)),"") -> 431 | DM68: =IF(BY17=1,IF($BZ$2=1,AX17,IF($BZ$2=2,AX17*0.3346,)),"") -> 3.120097334 | DN68: =K17 -> 30 | DO68: =L17 -> 47.8 | DP68: =BB17 -> 16.8 | DQ68: =DQ66 -> 4.4
A69: 1957015 | D69: 1 | E69: 95 | F69: 70 | G69: 15 | H69: 16.5 | I69: 0 | J69: 26 | K69: 30 | L69: 41.1 | M69: 975.8273542 | N69: 1070.827354 | O69: 1149.509462 | P69: 1521.41 | Q69: 1.5 | R69: 1.08 | S69: 1.08 | T69: 1.08 | U69: 696 | V69: 840 | W69: 901 | X69: 1193 | Y69: 60 | Z69: 72 | AA69: 77 | AB69: 103 | AC69: 0.01893301689 | AD69: 0.02707700031 | AE69: 0.03089237371 | AF69: 0.0547167133 | AG69: 0.0002083 | AH69: 1.724 | AI69: 2 | AJ69: 0.000461829 | AK69: 135.0948149 | AL69: 145.0212935 | AM69: 191.94 | AN69: 1.01 | AO69: 1.01 | AP69: 1.01 | AQ69: 135 | AR69: 145 | AS69: 192 | AT69: 58 | AU69: 62 | AV69: 83 | AW69: 0.01771504072 | AX69: 0.02019086145 | AY69: 0.03579769621 | AZ69: 0.7 | BA69: 5.1 | BB69: 5.6 | BC69: 7.2 | BE69: 1502 | BG69: 0.8 | BJ69: 0 | BK69: 12.3 | BL69: 14.4 | BM69: 21.85 | BO69: 1 | BP69: 1 | BQ69: 1 | BR69: 135 | BS69: 145 | BT69: 192 | BV69: 0 | BW69: 0 | BX69: 0 | BY69: 1 | DF69: =DF66 -> 220 | DG69: =BM17 -> 21.85 | DH69: =ROUND(IF($BZ$2=1,X17,IF($BZ$2=2,X17*3.412141633,)),0) -> 7467 | DI69: =IF($BZ$2=1,ROUND(AB17,0),IF($BZ$2=2,ROUND(AB17/272.7654,1),)) -> 642 | DJ69: =IF($BZ$2=1,AF17,IF($BZ$2=2,AF17*0.3346,)) -> 6.787745365 | DK69: =IF(BY17=1,ROUND(IF($BZ$2=1,AS17,IF($BZ$2=2,AS17*3.412141633,)),0),"") -> 1465 | DL69: =IF(BY17=1,IF($BZ$2=1,ROUND(AV17,0),IF($BZ$2=2,ROUND(AV17/272.7654,1),)),"") -> 630 | DM69: =IF(BY17=1,IF($BZ$2=1,AY17,IF($BZ$2=2,AY17*0.3346,)),"") -> 6.542211558 | DN69: =L17 -> 47.8 | DO69: =DN69+8 -> 55.8 | DP69: =BC17 -> 27.5 | DQ69: =DQ66 -> 4.4
A70: 1357016 | D70: 1 | E70: 35 | F70: 70 | G70: 16 | H70: 16.5 | I70: 0 | J70: 26 | K70: 30 | L70: 41.1 | M70: 758.2 | N70: 1627.627173 | O70: 1747.221742 | P70: 2312.5 | Q70: 1.5 | R70: 1.1 | S70: 1.1 | T70: 1.1 | U70: 541 | V70: 1271 | W70: 1364 | X70: 1805 | Y70: 47 | Z70: 109 | AA70: 117 | AB70: 155 | AC70: 0.03361687422 | AD70: 0.1769450933 | AE70: 0.2035422677 | AF70: 0.355040129 | AG70: 0.0002083 | AH70: 1.724 | AI70: 4 | AJ70: 0.001392796 | AK70: 219.5976985 | AL70: 235.7332686 | AM70: 312 | AN70: 0.95 | AO70: 0.95 | AP70: 0.95 | AQ70: 220 | AR70: 236 | AS70: 312 | AT70: 95 | AU70: 101 | AV70: 134 | AW70: 0.1348444213 | AX70: 0.1521944098 | AY70: 0.2661836054 | AZ70: 1.4 | BA70: 5.1 | BB70: 5.6 | BC70: 7.2 | BE70: 1115 | BG70: 0.68 | BJ70: 0 | BK70: 12.3 | BL70: 14.4 | BM70: 21.85 | BO70: 1 | BP70: 1 | BQ70: 1 | BR70: 220 | BS70: 236 | BT70: 312 | BV70: 0 | BW70: 0 | BX70: 0 | BY70: 1 | CN70: Lengths | CO70: Calculation factors for lower fan settings | DF70: 240 | DG70: =BJ18 -> 0 | DH70: =ROUND(IF($BZ$2=1,U18,IF($BZ$2=2,U18*3.412141633,)),0) -> 2210 | DI70: =IF($BZ$2=1,ROUND(Y18,0),IF($BZ$2=2,ROUND(Y18/272.7654,1),)) -> 190 | DJ70: =IF($BZ$2=1,AC18,IF($BZ$2=2,AC18*0.3346,)) -> 0.6490169773 | DN70: 0 | DO70: 0 | DP70: 0 | DQ70: =IF($BZ$2=1,AZ18,IF($BZ$2=2,AZ18/4.54609,)) -> 4.8
A71: 1507016 | D71: 1 | E71: 50 | F71: 70 | G71: 16 | H71: 16.5 | I71: 0 | J71: 26 | K71: 30 | L71: 41.1 | M71: 903.72 | N71: 1627.627173 | O71: 1747.221742 | P71: 2312.5 | Q71: 1.5 | R71: 1.1 | S71: 1.1 | T71: 1.1 | U71: 645 | V71: 1271 | W71: 1364 | X71: 1805 | Y71: 55 | Z71: 109 | AA71: 117 | AB71: 155 | AC71: 0.04583340689 | AD71: 0.1769450933 | AE71: 0.2035422677 | AF71: 0.355040129 | AG71: 0.0002083 | AH71: 1.724 | AI71: 4 | AJ71: 0.001392796 | AK71: 219.5976985 | AL71: 235.7332686 | AM71: 312 | AN71: 0.95 | AO71: 0.95 | AP71: 0.95 | AQ71: 220 | AR71: 236 | AS71: 312 | AT71: 95 | AU71: 101 | AV71: 134 | AW71: 0.1348444213 | AX71: 0.1521944098 | AY71: 0.2661836054 | AZ71: 1.4 | BA71: 5.1 | BB71: 5.6 | BC71: 7.2 | BE71: 1329 | BG71: 0.68 | BJ71: 0 | BK71: 12.3 | BL71: 14.4 | BM71: 21.85 | BO71: 1 | BP71: 1 | BQ71: 1 | BR71: 220 | BS71: 236 | BT71: 312 | BV71: 0 | BW71: 0 | BX71: 0 | BY71: 1 | CO71: T10 | CQ71: T11 | CS71: T15 | CU71: T16 | CW71: T20 | CY71: T21 | DF71: =DF70 -> 240 | DG71: =BK18 -> 10 | DH71: =ROUND(IF($BZ$2=1,V18,IF($BZ$2=2,V18*3.412141633,)),0) -> 5400 | DI71: =IF($BZ$2=1,ROUND(Z18,0),IF($BZ$2=2,ROUND(Z18/272.7654,1),)) -> 464 | DJ71: =IF($BZ$2=1,AD18,IF($BZ$2=2,AD18*0.3346,)) -> 3.667097445 | DK71: =IF(BY18=1,ROUND(IF($BZ$2=1,AQ18,IF($BZ$2=2,AQ18*3.412141633,)),0),"") -> 1059 | DL71: =IF(BY18=1,IF($BZ$2=1,ROUND(AT18,0),IF($BZ$2=2,ROUND(AT18/272.7654,1),)),"") -> 455 | DM71: =IF(BY18=1,IF($BZ$2=1,AW18,IF($BZ$2=2,AW18*0.3346,)),"") -> 3.530015943 | DN71: =J18 -> 26 | DO71: =DN71+8 -> 34 | DP71: =BA18 -> 16.4 | DQ71: =DQ70 -> 4.8
A72: 1657016 | D72: 1 | E72: 65 | F72: 70 | G72: 16 | H72: 16.5 | I72: 0 | J72: 26 | K72: 30 | L72: 41.1 | M72: 1034.28 | N72: 1627.627173 | O72: 1747.221742 | P72: 2312.5 | Q72: 1.5 | R72: 1.1 | S72: 1.1 | T72: 1.1 | U72: 738 | V72: 1271 | W72: 1364 | X72: 1805 | Y72: 63 | Z72: 109 | AA72: 117 | AB72: 155 | AC72: 0.05991713352 | AD72: 0.1769450933 | AE72: 0.2035422677 | AF72: 0.355040129 | AG72: 0.0002083 | AH72: 1.724 | AI72: 4 | AJ72: 0.001392796 | AK72: =AK71*(1-(($E72-50)*0.005)) -> 203.1278711 | AL72: =AL71*(1-(($E72-50)*0.005)) -> 218.0532735 | AM72: =AM71*(1-(($E72-50)*0.005)) -> 288.6 | AN72: 0.95 | AO72: 0.95 | AP72: 0.95 | AQ72: 203 | AR72: 218 | AS72: 289 | AT72: 87 | AU72: 94 | AV72: 124 | AW72: 0.1133303214 | AX72: 0.132053919 | AY72: 0.228327977 | AZ72: 1.4 | BA72: 5.1 | BB72: 5.6 | BC72: 7.2 | BE72: 1521 | BG72: 0.68 | BJ72: 0 | BK72: 12.3 | BL72: 14.4 | BM72: 21.85 | BO72: 1 | BP72: 1 | BQ72: 1 | BR72: 203 | BS72: 218 | BT72: 289 | BV72: 0 | BW72: 0 | BX72: 0 | BY72: 1 | CO72: S2 | CP72: S1 | CQ72: S2 | CR72: S1 | CS72: S2 | CT72: S1 | CU72: S2 | CV72: S1 | CW72: S2 | CX72: S1 | CY72: S2 | CZ72: S1 | DF72: =DF70 -> 240 | DG72: =BL18 -> 10.9 | DH72: =ROUND(IF($BZ$2=1,W18,IF($BZ$2=2,W18*3.412141633,)),0) -> 5596 | DI72: =IF($BZ$2=1,ROUND(AA18,0),IF($BZ$2=2,ROUND(AA18/272.7654,1),)) -> 481 | DJ72: =IF($BZ$2=1,AE18,IF($BZ$2=2,AE18*0.3346,)) -> 3.932994057 | DK72: =IF(BY18=1,ROUND(IF($BZ$2=1,AR18,IF($BZ$2=2,AR18*3.412141633,)),0),"") -> 1098 | DL72: =IF(BY18=1,IF($BZ$2=1,ROUND(AU18,0),IF($BZ$2=2,ROUND(AU18/272.7654,1),)),"") -> 472 | DM72: =IF(BY18=1,IF($BZ$2=1,AX18,IF($BZ$2=2,AX18*0.3346,)),"") -> 3.791091218 | DN72: =K18 -> 30 | DO72: =L18 -> 48.1 | DP72: =BB18 -> 17.7 | DQ72: =DQ70 -> 4.8
A73: 1957016 | D73: 1 | E73: 95 | F73: 70 | G73: 16 | H73: 16.5 | I73: 0 | J73: 26 | K73: 30 | L73: 41.1 | M73: 1274.32 | N73: 1627.627173 | O73: 1747.221742 | P73: 2312.5 | Q73: 1.5 | R73: 1.1 | S73: 1.1 | T73: 1.1 | U73: 909 | V73: 1271 | W73: 1364 | X73: 1805 | Y73: 78 | Z73: 109 | AA73: 117 | AB73: 155 | AC73: 0.09134186769 | AD73: 0.1769450933 | AE73: 0.2035422677 | AF73: 0.355040129 | AG73: 0.0002083 | AH73: 1.724 | AI73: 4 | AJ73: 0.001392796 | AK73: =AK71*(1-(($E73-50)*0.005)) -> 170.1882164 | AL73: =AL71*(1-(($E73-50)*0.005)) -> 182.6932832 | AM73: =AM71*(1-(($E73-50)*0.005)) -> 241.8 | AN73: 0.95 | AO73: 0.95 | AP73: 0.95 | AQ73: 170 | AR73: 183 | AS73: 242 | AT73: 73 | AU73: 79 | AV73: 104 | AW73: 0.0801408442 | AX73: 0.09366910117 | AY73: 0.1612594007 | AZ73: 1.4 | BA73: 5.1 | BB73: 5.6 | BC73: 7.2 | BE73: 1874 | BG73: 0.68 | BJ73: 0 | BK73: 12.3 | BL73: 14.4 | BM73: 21.85 | BO73: 1 | BP73: 1 | BQ73: 1 | BR73: 170 | BS73: 183 | BT73: 242 | BV73: 0 | BW73: 0 | BX73: 0 | BY73: 1 | CN73: 50 | CO73: 0.8551869613 | CP73: 0.7991842972 | CQ73: 0.8551869613 | CR73: 0.7991842972 | DF73: =DF70 -> 240 | DG73: =BM18 -> 21.85 | DH73: =ROUND(IF($BZ$2=1,X18,IF($BZ$2=2,X18*3.412141633,)),0) -> 8207 | DI73: =IF($BZ$2=1,ROUND(AB18,0),IF($BZ$2=2,ROUND(AB18/272.7654,1),)) -> 706 | DJ73: =IF($BZ$2=1,AF18,IF($BZ$2=2,AF18*0.3346,)) -> 8.305296725 | DK73: =IF(BY18=1,ROUND(IF($BZ$2=1,AS18,IF($BZ$2=2,AS18*3.412141633,)),0),"") -> 1610 | DL73: =IF(BY18=1,IF($BZ$2=1,ROUND(AV18,0),IF($BZ$2=2,ROUND(AV18/272.7654,1),)),"") -> 692 | DM73: =IF(BY18=1,IF($BZ$2=1,AY18,IF($BZ$2=2,AY18*0.3346,)),"") -> 7.98717301 | DN73: =L18 -> 48.1 | DO73: =DN73+8 -> 56.1 | DP73: =BC18 -> 29.7 | DQ73: =DQ70 -> 4.8
A74: 1357020 | D74: 1 | E74: 35 | F74: 70 | G74: 20 | H74: 21.5 | I74: 0 | J74: 26 | K74: 30 | L74: 41.1 | M74: 1153.6 | N74: 1509.84082 | O74: 1619.142106 | P74: 1935.84 | Q74: 1.5 | R74: 1.08 | S74: 1.08 | T74: 1.08 | U74: 823 | V74: 1184 | W74: 1270 | X74: 1518 | Y74: 71 | Z74: 102 | AA74: 109 | AB74: 131 | AC74: 0.02074747744 | AD74: 0.04239647193 | AE74: 0.04833177899 | AF74: 0.06948811735 | AG74: 0.0001276 | AH74: 1.7219 | AI74: 2 | AJ74: 0.000376611 | AK74: 170.5262815 | AL74: 182.8711206 | AM74: 218.64 | AN74: 0.95 | AO74: 0.95 | AP74: 0.95 | AQ74: 171 | AR74: 183 | AS74: 219 | AT74: 74 | AU74: 79 | AV74: 94 | AW74: 0.02251119783 | AX74: 0.02560878212 | AY74: 0.03608484582 | AZ74: 0.9 | BA74: 5.1 | BB74: 5.6 | BC74: 7.2 | BE74: 1442 | BG74: 0.8 | BJ74: 0 | BK74: 12.3 | BL74: 14.4 | BM74: 21.85 | BO74: 1 | BP74: 1 | BQ74: 1 | BR74: 171 | BS74: 183 | BT74: 219 | BV74: 0 | BW74: 0 | BX74: 0 | BY74: 1 | CN74: 60 | CO74: 0.8452517015 | CP74: 0.7892986148 | CQ74: 0.8452517015 | CR74: 0.7892986148 | CS74: 0.7555553481 | CT74: 0.7038387773 | CU74: 0.7555553481 | CV74: 0.7038387773 | CW74: 0.8452517015 | CX74: 0.7892986148 | CY74: 0.7555553481 | CZ74: 0.7038387773 | DF74: 260 | DG74: =BJ19 -> 0 | DH74: =ROUND(IF($BZ$2=1,U19,IF($BZ$2=2,U19*3.412141633,)),0) -> 2289 | DI74: =IF($BZ$2=1,ROUND(Y19,0),IF($BZ$2=2,ROUND(Y19/272.7654,1),)) -> 197 | DJ74: =IF($BZ$2=1,AC19,IF($BZ$2=2,AC19*0.3346,)) -> 0.7107966718 | DN74: 0 | DO74: 0 | DP74: 0 | DQ74: =IF($BZ$2=1,AZ19,IF($BZ$2=2,AZ19/4.54609,)) -> 5.2
A75: 1507020 | D75: 1 | E75: 50 | F75: 70 | G75: 20 | H75: 21.5 | I75: 0 | J75: 26 | K75: 30 | L75: 41.1 | M75: 1358.4 | N75: 1509.84082 | O75: 1619.142106 | P75: 1935.84 | Q75: 1.5 | R75: 1.08 | S75: 1.08 | T75: 1.08 | U75: 969 | V75: 1184 | W75: 1270 | X75: 1518 | Y75: 83 | Z75: 102 | AA75: 109 | AB75: 131 | AC75: 0.02822895983 | AD75: 0.04239647193 | AE75: 0.04833177899 | AF75: 0.06948811735 | AG75: 0.0001276 | AH75: 1.7219 | AI75: 2 | AJ75: 0.000376611 | AK75: 170.5262815 | AL75: 182.8711206 | AM75: 218.64 | AN75: 0.95 | AO75: 0.95 | AP75: 0.95 | AQ75: 171 | AR75: 183 | AS75: 219 | AT75: 74 | AU75: 79 | AV75: 94 | AW75: 0.02251119783 | AX75: 0.02560878212 | AY75: 0.03608484582 | AZ75: 0.9 | BA75: 5.1 | BB75: 5.6 | BC75: 7.2 | BE75: 1698 | BG75: 0.8 | BJ75: 0 | BK75: 12.3 | BL75: 14.4 | BM75: 21.85 | BO75: 1 | BP75: 1 | BQ75: 1 | BR75: 171 | BS75: 183 | BT75: 219 | BV75: 0 | BW75: 0 | BX75: 0 | BY75: 1 | CN75: 70 | CO75: 0.8364028567 | CP75: 0.7799409144 | CQ75: 0.8364028567 | CR75: 0.7799409144 | CS75: 0.7555553481 | CT75: 0.7038387773 | CU75: 0.7555553481 | CV75: 0.7038387773 | CW75: 0.8364028567 | CX75: 0.7799409144 | CY75: 0.7555553481 | CZ75: 0.7038387773 | DF75: =DF74 -> 260 | DG75: =BK19 -> 10 | DH75: =ROUND(IF($BZ$2=1,V19,IF($BZ$2=2,V19*3.412141633,)),0) -> 5732 | DI75: =IF($BZ$2=1,ROUND(Z19,0),IF($BZ$2=2,ROUND(Z19/272.7654,1),)) -> 493 | DJ75: =IF($BZ$2=1,AD19,IF($BZ$2=2,AD19*0.3346,)) -> 4.1978565 | DK75: =IF(BY19=1,ROUND(IF($BZ$2=1,AQ19,IF($BZ$2=2,AQ19*3.412141633,)),0),"") -> 1069 | DL75: =IF(BY19=1,IF($BZ$2=1,ROUND(AT19,0),IF($BZ$2=2,ROUND(AT19/272.7654,1),)),"") -> 460 | DM75: =IF(BY19=1,IF($BZ$2=1,AW19,IF($BZ$2=2,AW19*0.3346,)),"") -> 3.669477908 | DN75: =J19 -> 26 | DO75: =DN75+8 -> 34 | DP75: =BA19 -> 16.4 | DQ75: =DQ74 -> 5.2
A76: 1657020 | D76: 1 | E76: 65 | F76: 70 | G76: 20 | H76: 21.5 | I76: 0 | J76: 26 | K76: 30 | L76: 41.1 | M76: 1414.84082 | N76: 1509.84082 | O76: 1619.142106 | P76: 1935.84 | Q76: 1.5 | R76: 1.08 | S76: 1.08 | T76: 1.08 | U76: 1010 | V76: 1184 | W76: 1270 | X76: 1518 | Y76: 87 | Z76: 102 | AA76: 109 | AB76: 131 | AC76: 0.03097533596 | AD76: 0.04239647193 | AE76: 0.04833177899 | AF76: 0.06948811735 | AG76: 0.0001276 | AH76: 1.7219 | AI76: 2 | AJ76: 0.000376611 | AK76: 170.5262815 | AL76: 182.8711206 | AM76: 218.64 | AN76: 0.95 | AO76: 0.95 | AP76: 0.95 | AQ76: 171 | AR76: 183 | AS76: 219 | AT76: 74 | AU76: 79 | AV76: 94 | AW76: 0.02251119783 | AX76: 0.02560878212 | AY76: 0.03608484582 | AZ76: 0.9 | BA76: 5.1 | BB76: 5.6 | BC76: 7.2 | BE76: 1880 | BG76: 0.8 | BJ76: 0 | BK76: 12.3 | BL76: 14.4 | BM76: 21.85 | BO76: 1 | BP76: 1 | BQ76: 1 | BR76: 171 | BS76: 183 | BT76: 219 | BV76: 0 | BW76: 0 | BX76: 0 | BY76: 1 | CN76: 80 | CO76: 0.8284588614 | CP76: 0.7713393602 | CQ76: 0.8284588614 | CR76: 0.7713393602 | CS76: 0.7453108993 | CT76: 0.6950414455 | CU76: 0.7453108993 | CV76: 0.6950414455 | CW76: 0.8284588614 | CX76: 0.7713393602 | CY76: 0.7453108993 | CZ76: 0.6950414455 | DF76: =DF74 -> 260 | DG76: =BL19 -> 10.9 | DH76: =ROUND(IF($BZ$2=1,W19,IF($BZ$2=2,W19*3.412141633,)),0) -> 5941 | DI76: =IF($BZ$2=1,ROUND(AA19,0),IF($BZ$2=2,ROUND(AA19/272.7654,1),)) -> 511 | DJ76: =IF($BZ$2=1,AE19,IF($BZ$2=2,AE19*0.3346,)) -> 4.500674405 | DK76: =IF(BY19=1,ROUND(IF($BZ$2=1,AR19,IF($BZ$2=2,AR19*3.412141633,)),0),"") -> 1108 | DL76: =IF(BY19=1,IF($BZ$2=1,ROUND(AU19,0),IF($BZ$2=2,ROUND(AU19/272.7654,1),)),"") -> 476 | DM76: =IF(BY19=1,IF($BZ$2=1,AX19,IF($BZ$2=2,AX19*0.3346,)),"") -> 3.921328061 | DN76: =K19 -> 30 | DO76: =L19 -> 48.1 | DP76: =BB19 -> 17.7 | DQ76: =DQ74 -> 5.2
A77: 1957020 | D77: 1 | E77: 95 | F77: 70 | G77: 20 | H77: 21.5 | I77: 0 | J77: 26 | K77: 30 | L77: 41.1 | M77: 1414.84082 | N77: 1509.84082 | O77: 1619.142106 | P77: 1935.84 | Q77: 1.5 | R77: 1.08 | S77: 1.08 | T77: 1.08 | U77: 1010 | V77: 1184 | W77: 1270 | X77: 1518 | Y77: 87 | Z77: 102 | AA77: 109 | AB77: 131 | AC77: 0.03097533596 | AD77: 0.04239647193 | AE77: 0.04833177899 | AF77: 0.06948811735 | AG77: 0.0001276 | AH77: 1.7219 | AI77: 2 | AJ77: 0.000376611 | AK77: 170.5262815 | AL77: 182.8711206 | AM77: 218.64 | AN77: 0.95 | AO77: 0.95 | AP77: 0.95 | AQ77: 171 | AR77: 183 | AS77: 219 | AT77: 74 | AU77: 79 | AV77: 94 | AW77: 0.02251119783 | AX77: 0.02560878212 | AY77: 0.03608484582 | AZ77: 0.9 | BA77: 5.1 | BB77: 5.6 | BC77: 7.2 | BE77: 2094 | BG77: 0.8 | BJ77: 0 | BK77: 12.3 | BL77: 14.4 | BM77: 21.85 | BO77: 1 | BP77: 1 | BQ77: 1 | BR77: 171 | BS77: 183 | BT77: 219 | BV77: 0 | BW77: 0 | BX77: 0 | BY77: 1 | CN77: 90 | CO77: 0.8212441545 | CP77: 0.7634388097 | CQ77: 0.8212441545 | CR77: 0.7634388097 | CS77: 0.7342980294 | CT77: 0.6854011254 | CU77: 0.7342980294 | CV77: 0.6854011254 | CW77: 0.8212441545 | CX77: 0.7634388097 | CY77: 0.7342980294 | CZ77: 0.6854011254 | DF77: =DF74 -> 260 | DG77: =BM19 -> 21.85 | DH77: =ROUND(IF($BZ$2=1,X19,IF($BZ$2=2,X19*3.412141633,)),0) -> 8712 | DI77: =IF($BZ$2=1,ROUND(AB19,0),IF($BZ$2=2,ROUND(AB19/272.7654,1),)) -> 749 | DJ77: =IF($BZ$2=1,AF19,IF($BZ$2=2,AF19*0.3346,)) -> 9.467876791 | DK77: =IF(BY19=1,ROUND(IF($BZ$2=1,AS19,IF($BZ$2=2,AS19*3.412141633,)),0),"") -> 1625 | DL77: =IF(BY19=1,IF($BZ$2=1,ROUND(AV19,0),IF($BZ$2=2,ROUND(AV19/272.7654,1),)),"") -> 699 | DM77: =IF(BY19=1,IF($BZ$2=1,AY19,IF($BZ$2=2,AY19*0.3346,)),"") -> 8.276356869 | DN77: =L19 -> 48.1 | DO77: =DN77+8 -> 56.1 | DP77: =BC19 -> 29.7 | DQ77: =DQ74 -> 5.2
A78: 1357021 | D78: 1 | E78: 35 | F78: 70 | G78: 21 | H78: 21.5 | I78: 0 | J78: 26 | K78: 30 | L78: 41.1 | M78: 1184 | N78: 1977.829195 | O78: 2123.155861 | P78: 2810.06 | Q78: 1.5 | R78: 1.05 | S78: 1.05 | T78: 1.05 | U78: 845 | V78: 1562 | W78: 1676 | X78: 2219 | Y78: 73 | Z78: 134 | AA78: 144 | AB78: 191 | AC78: 0.03134808872 | AD78: 0.1032734136 | AE78: 0.1189698028 | AF78: 0.2073802651 | AG78: 0.0001276 | AH78: 1.7219 | AI78: 4 | AJ78: 0.000514201 | AK78: 240.3046353 | AL78: 257.9617069 | AM78: 341.42 | AN78: 0.85 | AO78: 0.85 | AP78: 0.85 | AQ78: 240 | AR78: 258 | AS78: 341 | AT78: 103 | AU78: 111 | AV78: 147 | AW78: 0.061591028 | AX78: 0.07133572501 | AY78: 0.1238922489 | AZ78: 1.9 | BA78: 5.1 | BB78: 5.6 | BC78: 7.2 | BE78: 1480 | BG78: 0.8 | BJ78: 0 | BK78: 12.3 | BL78: 14.4 | BM78: 21.85 | BO78: 1 | BP78: 1 | BQ78: 1 | BR78: 240 | BS78: 258 | BT78: 341 | BV78: 0 | BW78: 0 | BX78: 0 | BY78: 1 | CN78: 100 | CO78: 0.8146699661 | CP78: 0.7561986895 | CQ78: 0.8146699661 | CR78: 0.7561986895 | CS78: 0.7254135991 | CT78: 0.6774634004 | CU78: 0.7254135991 | CV78: 0.6774634004 | CW78: 0.8146699661 | CX78: 0.7561986895 | CY78: 0.7254135991 | CZ78: 0.6774634004 | DF78: 280 | DG78: =BJ20 -> 0 | DH78: =ROUND(IF($BZ$2=1,U20,IF($BZ$2=2,U20*3.412141633,)),0) -> 2578 | DI78: =IF($BZ$2=1,ROUND(Y20,0),IF($BZ$2=2,ROUND(Y20/272.7654,1),)) -> 222 | DJ78: =IF($BZ$2=1,AC20,IF($BZ$2=2,AC20*0.3346,)) -> 0.9133083225 | DN78: 0 | DO78: 0 | DP78: 0 | DQ78: =IF($BZ$2=1,AZ20,IF($BZ$2=2,AZ20/4.54609,)) -> 5.6
A79: 1507021 | D79: 1 | E79: 50 | F79: 70 | G79: 21 | H79: 21.5 | I79: 0 | J79: 26 | K79: 30 | L79: 41.1 | M79: 1445.6 | N79: 1977.829195 | O79: 2123.155861 | P79: 2810.06 | Q79: 1.5 | R79: 1.05 | S79: 1.05 | T79: 1.05 | U79: 1031 | V79: 1562 | W79: 1676 | X79: 2219 | Y79: 89 | Z79: 134 | AA79: 144 | AB79: 191 | AC79: 0.04623743422 | AD79: 0.1032734136 | AE79: 0.1189698028 | AF79: 0.2073802651 | AG79: 0.0001276 | AH79: 1.7219 | AI79: 4 | AJ79: 0.000514201 | AK79: 240.3046353 | AL79: 257.9617069 | AM79: 341.42 | AN79: 0.85 | AO79: 0.85 | AP79: 0.85 | AQ79: 240 | AR79: 258 | AS79: 341 | AT79: 103 | AU79: 111 | AV79: 147 | AW79: 0.061591028 | AX79: 0.07133572501 | AY79: 0.1238922489 | AZ79: 1.9 | BA79: 5.1 | BB79: 5.6 | BC79: 7.2 | BE79: 1807 | BG79: 0.8 | BJ79: 0 | BK79: 12.3 | BL79: 14.4 | BM79: 21.85 | BO79: 1 | BP79: 1 | BQ79: 1 | BR79: 240 | BS79: 258 | BT79: 341 | BV79: 0 | BW79: 0 | BX79: 0 | BY79: 1 | CN79: 110 | CO79: 0.8146699661 | CP79: 0.7561986895 | CQ79: 0.8146699661 | CR79: 0.7561986895 | CS79: 0.7254135991 | CT79: 0.6774634004 | CU79: 0.7254135991 | CV79: 0.6774634004 | CW79: 0.8146699661 | CX79: 0.7561986895 | CY79: 0.7254135991 | CZ79: 0.6774634004 | DF79: =DF78 -> 280 | DG79: =BK20 -> 10 | DH79: =ROUND(IF($BZ$2=1,V20,IF($BZ$2=2,V20*3.412141633,)),0) -> 6375 | DI79: =IF($BZ$2=1,ROUND(Z20,0),IF($BZ$2=2,ROUND(Z20/272.7654,1),)) -> 548 | DJ79: =IF($BZ$2=1,AD20,IF($BZ$2=2,AD20*0.3346,)) -> 5.2414825 | DK79: =IF(BY20=1,ROUND(IF($BZ$2=1,AQ20,IF($BZ$2=2,AQ20*3.412141633,)),0),"") -> 1250 | DL79: =IF(BY20=1,IF($BZ$2=1,ROUND(AT20,0),IF($BZ$2=2,ROUND(AT20/272.7654,1),)),"") -> 538 | DM79: =IF(BY20=1,IF($BZ$2=1,AW20,IF($BZ$2=2,AW20*0.3346,)),"") -> 5.057544557 | DN79: =J20 -> 26 | DO79: =DN79+8 -> 34 | DP79: =BA20 -> 19.3 | DQ79: =DQ78 -> 5.6
A80: 1657021 | D80: 1 | E80: 65 | F80: 70 | G80: 21 | H80: 21.5 | I80: 0 | J80: 26 | K80: 30 | L80: 41.1 | M80: 1696.8 | N80: 1977.829195 | O80: 2123.155861 | P80: 2810.06 | Q80: 1.5 | R80: 1.05 | S80: 1.05 | T80: 1.05 | U80: 1211 | V80: 1562 | W80: 1676 | X80: 2219 | Y80: 104 | Z80: 134 | AA80: 144 | AB80: 191 | AC80: 0.06277053306 | AD80: 0.1032734136 | AE80: 0.1189698028 | AF80: 0.2073802651 | AG80: 0.0001276 | AH80: 1.7219 | AI80: 4 | AJ80: 0.000514201 | AK80: =AK79*(1-(($E80-50)*0.005)) -> 222.2817877 | AL80: =AL79*(1-(($E80-50)*0.005)) -> 238.6145789 | AM80: =AM79*(1-(($E80-50)*0.005)) -> 315.8135 | AN80: 0.85 | AO80: 0.85 | AP80: 0.85 | AQ80: 222 | AR80: 239 | AS80: 316 | AT80: 95 | AU80: 103 | AV80: 136 | AW80: 0.05255232426 | AX80: 0.061591028 | AY80: 0.1063250388 | AZ80: 1.9 | BA80: 5.1 | BB80: 5.6 | BC80: 7.2 | BE80: 2121 | BG80: 0.8 | BJ80: 0 | BK80: 12.3 | BL80: 14.4 | BM80: 21.85 | BO80: 1 | BP80: 1 | BQ80: 1 | BR80: 222 | BS80: 239 | BT80: 316 | BV80: 0 | BW80: 0 | BX80: 0 | BY80: 1 | CN80: 120 | CO80: 0.8030103879 | CP80: 0.7433030654 | CQ80: 0.8030103879 | CR80: 0.7433030654 | CS80: 0.7187912226 | CT80: 0.6712287258 | CU80: 0.7187912226 | CV80: 0.6712287258 | CW80: 0.8030103879 | CX80: 0.7433030654 | CY80: 0.7187912226 | CZ80: 0.6712287258 | DF80: =DF78 -> 280 | DG80: =BL20 -> 10.6 | DH80: =ROUND(IF($BZ$2=1,W20,IF($BZ$2=2,W20*3.412141633,)),0) -> 6518 | DI80: =IF($BZ$2=1,ROUND(AA20,0),IF($BZ$2=2,ROUND(AA20/272.7654,1),)) -> 561 | DJ80: =IF($BZ$2=1,AE20,IF($BZ$2=2,AE20*0.3346,)) -> 5.485392582 | DK80: =IF(BY20=1,ROUND(IF($BZ$2=1,AR20,IF($BZ$2=2,AR20*3.412141633,)),0),"") -> 1278 | DL80: =IF(BY20=1,IF($BZ$2=1,ROUND(AU20,0),IF($BZ$2=2,ROUND(AU20/272.7654,1),)),"") -> 550 | DM80: =IF(BY20=1,IF($BZ$2=1,AX20,IF($BZ$2=2,AX20*0.3346,)),"") -> 5.278654736 | DN80: =K20 -> 30 | DO80: =L20 -> 48.9 | DP80: =BB20 -> 20.4 | DQ80: =DQ78 -> 5.6
A81: 1957021 | D81: 1 | E81: 95 | F81: 70 | G81: 21 | H81: 21.5 | I81: 0 | J81: 26 | K81: 30 | L81: 41.1 | M81: 1882.829195 | N81: 1977.829195 | O81: 2123.155861 | P81: 2810.06 | Q81: 1.5 | R81: 1.05 | S81: 1.05 | T81: 1.05 | U81: 1343 | V81: 1562 | W81: 1676 | X81: 2219 | Y81: 115 | Z81: 134 | AA81: 144 | AB81: 191 | AC81: 0.07647242367 | AD81: 0.1032734136 | AE81: 0.1189698028 | AF81: 0.2073802651 | AG81: 0.0001276 | AH81: 1.7219 | AI81: 4 | AJ81: 0.000514201 | AK81: =AK79*(1-(($E81-50)*0.005)) -> 186.2360924 | AL81: =AL79*(1-(($E81-50)*0.005)) -> 199.9203229 | AM81: =AM79*(1-(($E81-50)*0.005)) -> 264.6005 | AN81: 0.85 | AO81: 0.85 | AP81: 0.85 | AQ81: 186 | AR81: 200 | AS81: 265 | AT81: 80 | AU81: 86 | AV81: 114 | AW81: 0.03751258177 | AX81: 0.04322940008 | AY81: 0.07517174002 | AZ81: 1.9 | BA81: 5.1 | BB81: 5.6 | BC81: 7.2 | BE81: 2744 | BG81: 0.8 | BJ81: 0 | BK81: 12.3 | BL81: 14.4 | BM81: 21.85 | BO81: 1 | BP81: 1 | BQ81: 1 | BR81: 186 | BS81: 200 | BT81: 265 | BV81: 0 | BW81: 0 | BX81: 0 | BY81: 1 | CN81: 140 | CO81: 0.7929231279 | CP81: 0.7321171828 | CQ81: 0.7929231279 | CR81: 0.7321171828 | CS81: 0.7127093372 | CT81: 0.6655050705 | CU81: 0.7127093372 | CV81: 0.6655050705 | CW81: 0.7929231279 | CX81: 0.7321171828 | CY81: 0.7127093372 | CZ81: 0.6655050705 | DF81: =DF78 -> 280 | DG81: =BM20 -> 21.85 | DH81: =ROUND(IF($BZ$2=1,X20,IF($BZ$2=2,X20*3.412141633,)),0) -> 9685 | DI81: =IF($BZ$2=1,ROUND(AB20,0),IF($BZ$2=2,ROUND(AB20/272.7654,1),)) -> 833 | DJ81: =IF($BZ$2=1,AF20,IF($BZ$2=2,AF20*0.3346,)) -> 11.82294202 | DK81: =IF(BY20=1,ROUND(IF($BZ$2=1,AS20,IF($BZ$2=2,AS20*3.412141633,)),0),"") -> 1900 | DL81: =IF(BY20=1,IF($BZ$2=1,ROUND(AV20,0),IF($BZ$2=2,ROUND(AV20/272.7654,1),)),"") -> 817 | DM81: =IF(BY20=1,IF($BZ$2=1,AY20,IF($BZ$2=2,AY20*0.3346,)),"") -> 11.38526357 | DN81: =L20 -> 48.9 | DO81: =DN81+8 -> 56.9 | DP81: =BC20 -> 34.5 | DQ81: =DQ78 -> 5.6
A82: 1358010 | D82: 1 | E82: 35 | F82: 80 | G82: 10 | H82: 11.5 | I82: 0 | J82: 26 | K82: 30 | L82: 41.8 | M82: 646.2 | N82: 1214.226994 | O82: 1304.14337 | P82: 1574.18 | Q82: 1.5 | R82: 1.08 | S82: 1.08 | T82: 1.08 | U82: 461 | V82: 952 | W82: 1023 | X82: 1235 | Y82: 40 | Z82: 82 | AA82: 88 | AB82: 106 | AC82: 0.008827428204 | AD82: 0.03486113573 | AE82: 0.0399215701 | AF82: 0.05708130371 | AG82: 0.0003969 | AH82: 1.7346 | AI82: 2 | AJ82: 0.000367347 | AK82: 168.337102 | AL82: 180.8028619 | AM82: 218.24 | AN82: 0.98 | AO82: 0.98 | AP82: 0.98 | AQ82: 168 | AR82: 181 | AS82: 218 | AT82: 72 | AU82: 78 | AV82: 94 | AW82: 0.02716535962 | AX82: 0.031671813 | AY82: 0.04531255297 | AZ82: 0.5 | BA82: 6.3 | BB82: 6.8 | BC82: 9.1 | BE82: 718 | BG82: 0.9 | BJ82: 0 | BK82: 12.8 | BL82: 14.7 | BM82: 21.85 | BO82: 1 | BP82: 1 | BQ82: 1 | BR82: 168 | BS82: 181 | BT82: 218 | BV82: 0 | BW82: 0 | BX82: 0 | BY82: 1 | CN82: 160 | CO82: 0.7840224333 | CP82: 0.7222362756 | CQ82: 0.7840224333 | CR82: 0.7222362756 | CS82: 0.7015311234 | CT82: 0.6570693053 | CU82: 0.7015311234 | CV82: 0.6570693053 | CW82: 0.7840224333 | CX82: 0.7222362756 | CY82: 0.7015311234 | CZ82: 0.6570693053 | DF82: 300 | DG82: =BJ21 ->  | DH82: =ROUND(IF($BZ$2=1,U21,IF($BZ$2=2,U21*3.412141633,)),0) ->  | DI82: =IF($BZ$2=1,ROUND(Y21,0),IF($BZ$2=2,ROUND(Y21/272.7654,1),)) ->  | DJ82: =IF($BZ$2=1,AC21,IF($BZ$2=2,AC21*0.3346,)) ->  | DN82: 0 | DO82: 0 | DP82: 0 | DQ82: =IF($BZ$2=1,AZ21,IF($BZ$2=2,AZ21/4.54609,)) -> 
A83: 1508010 | D83: 1 | E83: 50 | F83: 80 | G83: 10 | H83: 11.5 | I83: 0 | J83: 26 | K83: 30 | L83: 41.8 | M83: 774.9 | N83: 1214.226994 | O83: 1304.14337 | P83: 1574.18 | Q83: 1.5 | R83: 1.08 | S83: 1.08 | T83: 1.08 | U83: 553 | V83: 952 | W83: 1023 | X83: 1235 | Y83: 48 | Z83: 82 | AA83: 88 | AB83: 106 | AC83: 0.0125028503 | AD83: 0.03486113573 | AE83: 0.0399215701 | AF83: 0.05708130371 | AG83: 0.0003969 | AH83: 1.7346 | AI83: 2 | AJ83: 0.000367347 | AK83: 168.337102 | AL83: 180.8028619 | AM83: 218.24 | AN83: 0.98 | AO83: 0.98 | AP83: 0.98 | AQ83: 168 | AR83: 181 | AS83: 218 | AT83: 72 | AU83: 78 | AV83: 94 | AW83: 0.02716535962 | AX83: 0.031671813 | AY83: 0.04531255297 | AZ83: 0.5 | BA83: 6.3 | BB83: 6.8 | BC83: 9.1 | BE83: 861 | BG83: 0.9 | BJ83: 0 | BK83: 12.8 | BL83: 14.7 | BM83: 21.85 | BO83: 1 | BP83: 1 | BQ83: 1 | BR83: 168 | BS83: 181 | BT83: 218 | BV83: 0 | BW83: 0 | BX83: 0 | BY83: 1 | CN83: 180 | CO83: 0.7840224333 | CP83: 0.7222362756 | CQ83: 0.7840224333 | CR83: 0.7222362756 | CS83: 0.7015311234 | CT83: 0.6570693053 | CU83: 0.7015311234 | CV83: 0.6570693053 | CW83: 0.7840224333 | CX83: 0.7222362756 | CY83: 0.7015311234 | CZ83: 0.6570693053 | DF83: =DF82 -> 300 | DG83: =BK21 ->  | DH83: =ROUND(IF($BZ$2=1,V21,IF($BZ$2=2,V21*3.412141633,)),0) ->  | DI83: =IF($BZ$2=1,ROUND(Z21,0),IF($BZ$2=2,ROUND(Z21/272.7654,1),)) ->  | DJ83: =IF($BZ$2=1,AD21,IF($BZ$2=2,AD21*0.3346,)) ->  | DK83: =IF(BY21=1,ROUND(IF($BZ$2=1,AQ21,IF($BZ$2=2,AQ21*3.412141633,)),0),"") ->  | DL83: =IF(BY21=1,IF($BZ$2=1,ROUND(AT21,0),IF($BZ$2=2,ROUND(AT21/272.7654,1),)),"") ->  | DM83: =IF(BY21=1,IF($BZ$2=1,AW21,IF($BZ$2=2,AW21*0.3346,)),"") ->  | DN83: =J21 ->  | DO83: =DN83+8 ->  | DP83: =BA21 ->  | DQ83: =DQ82 -> 
A84: 1658010 | D84: 1 | E84: 65 | F84: 80 | G84: 10 | H84: 11.5 | I84: 0 | J84: 26 | K84: 30 | L84: 41.8 | M84: 872.1 | N84: 1214.226994 | O84: 1304.14337 | P84: 1574.18 | Q84: 1.5 | R84: 1.08 | S84: 1.08 | T84: 1.08 | U84: 622 | V84: 952 | W84: 1023 | X84: 1235 | Y84: 53 | Z84: 82 | AA84: 88 | AB84: 106 | AC84: 0.01511009881 | AD84: 0.03486113573 | AE84: 0.0399215701 | AF84: 0.05708130371 | AG84: 0.0003969 | AH84: 1.7346 | AI84: 2 | AJ84: 0.000367347 | AK84: 168.337102 | AL84: 180.8028619 | AM84: 218.24 | AN84: 0.98 | AO84: 0.98 | AP84: 0.98 | AQ84: 168 | AR84: 181 | AS84: 218 | AT84: 72 | AU84: 78 | AV84: 94 | AW84: 0.02716535962 | AX84: 0.031671813 | AY84: 0.04531255297 | AZ84: 0.5 | BA84: 6.3 | BB84: 6.8 | BC84: 9.1 | BE84: 969 | BG84: 0.9 | BJ84: 0 | BK84: 12.8 | BL84: 14.7 | BM84: 21.85 | BO84: 1 | BP84: 1 | BQ84: 1 | BR84: 168 | BS84: 181 | BT84: 218 | BV84: 0 | BW84: 0 | BX84: 0 | BY84: 1 | CN84: 200 | CO84: 0.768855912 | CP84: 0.7053868584 | CQ84: 0.768855912 | CR84: 0.7053868584 | CS84: 0.6929174768 | CT84: 0.6576204296 | CU84: 0.6929174768 | CV84: 0.6576204296 | CW84: 0.768855912 | CX84: 0.7053868584 | CY84: 0.6929174768 | CZ84: 0.6576204296 | DF84: =DF82 -> 300 | DG84: =BL21 ->  | DH84: =ROUND(IF($BZ$2=1,W21,IF($BZ$2=2,W21*3.412141633,)),0) ->  | DI84: =IF($BZ$2=1,ROUND(AA21,0),IF($BZ$2=2,ROUND(AA21/272.7654,1),)) ->  | DJ84: =IF($BZ$2=1,AE21,IF($BZ$2=2,AE21*0.3346,)) ->  | DK84: =IF(BY21=1,ROUND(IF($BZ$2=1,AR21,IF($BZ$2=2,AR21*3.412141633,)),0),"") ->  | DL84: =IF(BY21=1,IF($BZ$2=1,ROUND(AU21,0),IF($BZ$2=2,ROUND(AU21/272.7654,1),)),"") ->  | DM84: =IF(BY21=1,IF($BZ$2=1,AX21,IF($BZ$2=2,AX21*0.3346,)),"") ->  | DN84: =K21 ->  | DO84: =L21 ->  | DP84: =BB21 ->  | DQ84: =DQ82 -> 
A85: 1958010 | D85: 1 | E85: 95 | F85: 80 | G85: 10 | H85: 11.5 | I85: 0 | J85: 26 | K85: 30 | L85: 41.8 | M85: 1002.6 | N85: 1214.226994 | O85: 1304.14337 | P85: 1574.18 | Q85: 1.5 | R85: 1.08 | S85: 1.08 | T85: 1.08 | U85: 715 | V85: 952 | W85: 1023 | X85: 1235 | Y85: 61 | Z85: 82 | AA85: 88 | AB85: 106 | AC85: 0.01977344989 | AD85: 0.03486113573 | AE85: 0.0399215701 | AF85: 0.05708130371 | AG85: 0.0003969 | AH85: 1.7346 | AI85: 2 | AJ85: 0.000367347 | AK85: 168.337102 | AL85: 180.8028619 | AM85: 218.24 | AN85: 0.98 | AO85: 0.98 | AP85: 0.98 | AQ85: 168 | AR85: 181 | AS85: 218 | AT85: 72 | AU85: 78 | AV85: 94 | AW85: 0.02716535962 | AX85: 0.031671813 | AY85: 0.04531255297 | AZ85: 0.5 | BA85: 6.3 | BB85: 6.8 | BC85: 9.1 | BE85: 1114 | BG85: 0.9 | BJ85: 0 | BK85: 12.8 | BL85: 14.7 | BM85: 21.85 | BO85: 1 | BP85: 1 | BQ85: 1 | BR85: 168 | BS85: 181 | BT85: 218 | BV85: 0 | BW85: 0 | BX85: 0 | BY85: 1 | CN85: 220 | CO85: 0.7585639347 | CP85: 0.6942595524 | CQ85: 0.7585639347 | CR85: 0.6942595524 | CS85: 0.6852107187 | CT85: 0.6578068518 | CU85: 0.6852107187 | CV85: 0.6578068518 | CW85: 0.7585639347 | CX85: 0.6942595524 | CY85: 0.6852107187 | CZ85: 0.6578068518 | DF85: =DF82 -> 300 | DG85: =BM21 ->  | DH85: =ROUND(IF($BZ$2=1,X21,IF($BZ$2=2,X21*3.412141633,)),0) ->  | DI85: =IF($BZ$2=1,ROUND(AB21,0),IF($BZ$2=2,ROUND(AB21/272.7654,1),)) ->  | DJ85: =IF($BZ$2=1,AF21,IF($BZ$2=2,AF21*0.3346,)) ->  | DK85: =IF(BY21=1,ROUND(IF($BZ$2=1,AS21,IF($BZ$2=2,AS21*3.412141633,)),0),"") ->  | DL85: =IF(BY21=1,IF($BZ$2=1,ROUND(AV21,0),IF($BZ$2=2,ROUND(AV21/272.7654,1),)),"") ->  | DM85: =IF(BY21=1,IF($BZ$2=1,AY21,IF($BZ$2=2,AY21*0.3346,)),"") ->  | DN85: =L21 ->  | DO85: =DN85+8 ->  | DP85: =BC21 ->  | DQ85: =DQ82 -> 
A86: 1358011 | D86: 1 | E86: 35 | F86: 80 | G86: 11 | H86: 11.5 | I86: 0 | J86: 26 | K86: 30 | L86: 41.8 | M86: 650.76 | N86: 1647.503739 | O86: 1769.505282 | P86: 2135.9 | Q86: 1.5 | R86: 1.1 | S86: 1.1 | T86: 1.1 | U86: 464 | V86: 1286 | W86: 1381 | X86: 1668 | Y86: 40 | Z86: 111 | AA86: 119 | AB86: 143 | AC86: 0.01513969033 | AD86: 0.1053748537 | AE86: 0.1203535 | AF86: 0.171000958 | AG86: 0.0003969 | AH86: 1.7346 | AI86: 4 | AJ86: 0.000574288 | AK86: 276 | AL86: 296 | AM86: 358 | AN86: 0.95 | AO86: 0.95 | AP86: 0.95 | AQ86: 276 | AR86: 296 | AS86: 358 | AT86: 119 | AU86: 127 | AV86: 154 | AW86: 0.1203535 | AX86: 0.1362866897 | AY86: 0.1970576818 | AZ86: 1.1 | BA86: 6.3 | BB86: 6.8 | BC86: 9.1 | BE86: 957 | BG86: 0.68 | BJ86: 0 | BK86: 12.8 | BL86: 14.7 | BM86: 21.85 | BO86: 1 | BP86: 1 | BQ86: 1 | BR86: 276 | BS86: 296 | BT86: 358 | BV86: 0 | BW86: 0 | BX86: 0 | BY86: 1 | CN86: 240 | CO86: 0.7502750901 | CP86: 0.6848867351 | CQ86: 0.7502750901 | CR86: 0.6848867351 | CS86: 0.6819044016 | CT86: 0.6579686139 | CU86: 0.6819044016 | CV86: 0.6579686139 | CW86: 0.7502750901 | CX86: 0.6848867351 | CY86: 0.6819044016 | CZ86: 0.6579686139 | DQ86: v2020-09-17
A87: 1508011 | D87: 1 | E87: 50 | F87: 80 | G87: 11 | H87: 11.5 | I87: 0 | J87: 26 | K87: 30 | L87: 41.8 | M87: 754.12 | N87: 1647.503739 | O87: 1769.505282 | P87: 2135.9 | Q87: 1.5 | R87: 1.1 | S87: 1.1 | T87: 1.1 | U87: 538 | V87: 1286 | W87: 1381 | X87: 1668 | Y87: 46 | Z87: 111 | AA87: 119 | AB87: 143 | AC87: 0.01972680672 | AD87: 0.1053748537 | AE87: 0.1203535 | AF87: 0.171000958 | AG87: 0.0003969 | AH87: 1.7346 | AI87: 4 | AJ87: 0.000574288 | AK87: 276 | AL87: 296 | AM87: 358 | AN87: 0.95 | AO87: 0.95 | AP87: 0.95 | AQ87: 276 | AR87: 296 | AS87: 358 | AT87: 119 | AU87: 127 | AV87: 154 | AW87: 0.1203535 | AX87: 0.1362866897 | AY87: 0.1970576818 | AZ87: 1.1 | BA87: 6.3 | BB87: 6.8 | BC87: 9.1 | BE87: 1109 | BG87: 0.68 | BJ87: 0 | BK87: 12.8 | BL87: 14.7 | BM87: 21.85 | BO87: 1 | BP87: 1 | BQ87: 1 | BR87: 276 | BS87: 296 | BT87: 358 | BV87: 0 | BW87: 0 | BX87: 0 | BY87: 1 | CN87: 260 | CO87: 0.75 | CP87: 0.68 | CQ87: 0.75 | CR87: 0.68 | CS87: 0.6819044938 | CT87: 0.6579686139 | CU87: 0.6819044938 | CV87: 0.6579686139 | CW87: 0.75 | CX87: 0.68 | CY87: 0.6819044938 | CZ87: 0.6579686139 | DF87: * | DG87: =IF($J$4=data!$CC$3,NL!DI6,IF($J$4=data!$CC$4,EN!DI6,IF($J$4=data!$CC$5,FR!DI6,IF($J$4=data!$CC$6,DE!DI6,IF($J$4=data!$CC$7,NR!DI6,IF($J$4=data!$CC$8,SP!DI6,IF($J$4=data!$CC$9,SW!DI6,))))))) -> 0
A88: 1658011 | D88: 1 | E88: 65 | F88: 80 | G88: 11 | H88: 11.5 | I88: 0 | J88: 26 | K88: 30 | L88: 41.8 | M88: 839.12 | N88: 1647.503739 | O88: 1769.505282 | P88: 2135.9 | Q88: 1.5 | R88: 1.1 | S88: 1.1 | T88: 1.1 | U88: 599 | V88: 1286 | W88: 1381 | X88: 1668 | Y88: 52 | Z88: 111 | AA88: 119 | AB88: 143 | AC88: 0.02488870543 | AD88: 0.1053748537 | AE88: 0.1203535 | AF88: 0.171000958 | AG88: 0.0003969 | AH88: 1.7346 | AI88: 4 | AJ88: 0.000574288 | AK88: =AK87*(1-(($E88-50)*0.005)) -> 255.3 | AL88: =AL87*(1-(($E88-50)*0.005)) -> 273.8 | AM88: =AM87*(1-(($E88-50)*0.005)) -> 331.15 | AN88: 0.95 | AO88: 0.95 | AP88: 0.95 | AQ88: 255 | AR88: 274 | AS88: 331 | AT88: 110 | AU88: 118 | AV88: 142 | AW88: 0.1035698525 | AX88: 0.1184288817 | AY88: 0.1687204798 | AZ88: 1.1 | BA88: 6.3 | BB88: 6.8 | BC88: 9.1 | BE88: 1234 | BG88: 0.68 | BJ88: 0 | BK88: 12.8 | BL88: 14.7 | BM88: 21.85 | BO88: 1 | BP88: 1 | BQ88: 1 | BR88: 255 | BS88: 274 | BT88: 331 | BV88: 0 | BW88: 0 | BX88: 0 | BY88: 1 | CN88: 280 | CO88: 0.750779461 | CP88: 0.68 | CQ88: 0.750779461 | CR88: 0.68 | CS88: 0.6729424377 | CT88: 0.6582099453 | CU88: 0.6729424377 | CV88: 0.6582099453 | CW88: 0.750779461 | CX88: 0.68 | CY88: 0.6729424377 | CZ88: 0.6582099453 | DF88: ** | DG88: =IF($J$4=data!$CC$3,NL!DF20,IF($J$4=data!$CC$4,EN!DF20,IF($J$4=data!$CC$5,FR!DF20,IF($J$4=data!$CC$6,DE!DF20,IF($J$4=data!$CC$7,NR!DF20,IF($J$4=data!$CC$8,SP!DF20,IF($J$4=data!$CC$9,SW!DF20,))))))) -> 0
A89: 1958011 | D89: 1 | E89: 95 | F89: 80 | G89: 11 | H89: 11.5 | I89: 0 | J89: 26 | K89: 30 | L89: 41.8 | M89: 977.16 | N89: 1647.503739 | O89: 1769.505282 | P89: 2135.9 | Q89: 1.5 | R89: 1.1 | S89: 1.1 | T89: 1.1 | U89: 697 | V89: 1286 | W89: 1381 | X89: 1668 | Y89: 60 | Z89: 111 | AA89: 119 | AB89: 143 | AC89: 0.03265604141 | AD89: 0.1053748537 | AE89: 0.1203535 | AF89: 0.171000958 | AG89: 0.0003969 | AH89: 1.7346 | AI89: 4 | AJ89: 0.000574288 | AK89: =AK87*(1-(($E89-50)*0.005)) -> 213.9 | AL89: =AL87*(1-(($E89-50)*0.005)) -> 229.4 | AM89: =AM87*(1-(($E89-50)*0.005)) -> 277.45 | AN89: 0.95 | AO89: 0.95 | AP89: 0.95 | AQ89: 214 | AR89: 229 | AS89: 277 | AT89: 92 | AU89: 98 | AV89: 119 | AW89: 0.0736525908 | AX89: 0.08308184266 | AY89: 0.1203535 | AZ89: 1.1 | BA89: 6.3 | BB89: 6.8 | BC89: 9.1 | BE89: 1437 | BG89: 0.68 | BJ89: 0 | BK89: 12.8 | BL89: 14.7 | BM89: 21.85 | BO89: 1 | BP89: 1 | BQ89: 1 | BR89: 214 | BS89: 229 | BT89: 277 | BV89: 0 | BW89: 0 | BX89: 0 | BY89: 1 | CN89: 300 | CO89: 0.750779461 | CP89: 0.68 | CQ89: 0.750779461 | CR89: 0.68 | CS89: 0.6729424377 | CT89: 0.6582099453 | CU89: 0.6729424377 | CV89: 0.6582099453 | CW89: 0.750779461 | CX89: 0.68 | CY89: 0.6729424377 | CZ89: 0.6582099453 | DF89: *** | DG89: =IF($J$4=data!$CC$3,NL!DF21,IF($J$4=data!$CC$4,EN!DF21,IF($J$4=data!$CC$5,FR!DF21,IF($J$4=data!$CC$6,DE!DF21,IF($J$4=data!$CC$7,NR!DF21,IF($J$4=data!$CC$8,SP!DF21,IF($J$4=data!$CC$9,SW!DF21,))))))) -> 0
A90: 1358015 | D90: 1 | E90: 35 | F90: 80 | G90: 15 | H90: 16.5 | I90: 0 | J90: 26 | K90: 30 | L90: 42.4 | M90: 940.8 | N90: 1395.337404 | O90: 1496.256349 | P90: 2007.56 | Q90: 1.5 | R90: 1.08 | S90: 1.08 | T90: 1.08 | U90: 671 | V90: 1094 | W90: 1173 | X90: 1574 | Y90: 58 | Z90: 94 | AA90: 101 | AB90: 135 | AC90: 0.01816285218 | AD90: 0.04674445265 | AE90: 0.05381257525 | AF90: 0.09509001927 | AG90: 0.0002083 | AH90: 1.724 | AI90: 2 | AJ90: 0.000461829 | AK90: 190.4691577 | AL90: 204.2449989 | AM90: 274.04 | AN90: 1.01 | AO90: 1.01 | AP90: 1.01 | AQ90: 190 | AR90: 204 | AS90: 274 | AT90: 82 | AU90: 88 | AV90: 118 | AW90: 0.03576890953 | AX90: 0.04107625823 | AY90: 0.07301376058 | AZ90: 0.8 | BA90: 6 | BB90: 6.7 | BC90: 9 | BE90: 1176 | BG90: 0.8 | BJ90: 0 | BK90: 11.8 | BL90: 13.7 | BM90: 21.85 | BO90: 1 | BP90: 1 | BQ90: 1 | BR90: 190 | BS90: 204 | BT90: 274 | BV90: 0 | BW90: 0 | BX90: 0 | BY90: 1 | DF90: **** | DG90: =IF($J$4=data!$CC$3,NL!DF22,IF($J$4=data!$CC$4,EN!DF22,IF($J$4=data!$CC$5,FR!DF22,IF($J$4=data!$CC$6,DE!DF22,IF($J$4=data!$CC$7,NR!DF22,IF($J$4=data!$CC$8,SP!DF22,IF($J$4=data!$CC$9,SW!DF22,))))))) -> 0
A91: 1508015 | D91: 1 | E91: 50 | F91: 80 | G91: 15 | H91: 16.5 | I91: 0 | J91: 26 | K91: 30 | L91: 42.4 | M91: 1109.6 | N91: 1395.337404 | O91: 1496.256349 | P91: 2007.56 | Q91: 1.5 | R91: 1.08 | S91: 1.08 | T91: 1.08 | U91: 792 | V91: 1094 | W91: 1173 | X91: 1574 | Y91: 68 | Z91: 94 | AA91: 101 | AB91: 135 | AC91: 0.02479238449 | AD91: 0.04674445265 | AE91: 0.05381257525 | AF91: 0.09509001927 | AG91: 0.0002083 | AH91: 1.724 | AI91: 2 | AJ91: 0.000461829 | AK91: 190.4691577 | AL91: 204.2449989 | AM91: 274.04 | AN91: 1.01 | AO91: 1.01 | AP91: 1.01 | AQ91: 190 | AR91: 204 | AS91: 274 | AT91: 82 | AU91: 88 | AV91: 118 | AW91: 0.03576890953 | AX91: 0.04107625823 | AY91: 0.07301376058 | AZ91: 0.8 | BA91: 6 | BB91: 6.7 | BC91: 9 | BE91: 1387 | BG91: 0.8 | BJ91: 0 | BK91: 11.8 | BL91: 13.7 | BM91: 21.85 | BO91: 1 | BP91: 1 | BQ91: 1 | BR91: 190 | BS91: 204 | BT91: 274 | BV91: 0 | BW91: 0 | BX91: 0 | BY91: 1 | CN91: Type,ww | CO91: L/cm
A92: 1658015 | D92: 1 | E92: 65 | F92: 80 | G92: 15 | H92: 16.5 | I92: 0 | J92: 26 | K92: 30 | L92: 42.4 | M92: =IF($N92-($BE92*$BG92)>100,$BE92*$BG92,$N92-95) -> 1230.4 | N92: 1395.337404 | O92: 1496.256349 | P92: 2007.56 | Q92: 1.5 | R92: 1.08 | S92: 1.08 | T92: 1.08 | U92: =ROUND(M92*POWER(CF_heat,Q92),0) -> 878 | V92: =ROUND(N92*POWER(CF_heat,R92),0) -> 1094 | W92: =ROUND(O92*POWER(CF_heat,S92),0) -> 1173 | X92: =ROUND(P92*POWER(CF_heat,T92),0) -> 1574 | Y92: 76 | Z92: 94 | AA92: 101 | AB92: 135 | AC92: 0.03082309574 | AD92: 0.04674445265 | AE92: 0.05381257525 | AF92: 0.09509001927 | AG92: =IF($G92=$CO$103,CP$103,IF($G92=$CO$104,CP$104,IF($G92=$CO$105,CP$105,IF($G92=$CO$107,CP$107,IF($G92=$CO$108,CP$108,IF($G92=$CO$109,CP$109,IF($G92=$CO$111,CP$111,IF($G92=$CO$112,CP$112,IF($G92=$CO$113,CP$113,IF($G92=$CO$115,CP$115,IF($G92=$CO$116,CP$116,IF($G92=$CO$117,CP$117,IF($G92=$CO$119,CP$119,IF($G92=$CO$120,CP$120,)))))))))))))) -> 0.0002083 | AH92: =IF($G92=$CO$103,CQ$103,IF($G92=$CO$104,CQ$104,IF($G92=$CO$105,CQ$105,IF($G92=$CO$107,CQ$107,IF($G92=$CO$108,CQ$108,IF($G92=$CO$109,CQ$109,IF($G92=$CO$111,CQ$111,IF($G92=$CO$112,CQ$112,IF($G92=$CO$113,CQ$113,IF($G92=$CO$115,CQ$115,IF($G92=$CO$116,CQ$116,IF($G92=$CO$117,CQ$117,IF($G92=$CO$119,CQ$119,IF($G92=$CO$120,CQ$120,)))))))))))))) -> 1.724 | AI92: =IF($G92=$CO$103,CR$103,IF($G92=$CO$104,CR$104,IF($G92=$CO$105,CR$105,IF($G92=$CO$107,CR$107,IF($G92=$CO$108,CR$108,IF($G92=$CO$109,CR$109,IF($G92=$CO$111,CR$111,IF($G92=$CO$112,CR$112,IF($G92=$CO$113,CR$113,IF($G92=$CO$115,CR$115,IF($G92=$CO$116,CR$116,IF($G92=$CO$117,CR$117,IF($G92=$CO$119,CR$119,IF($G92=$CO$120,CR$120,)))))))))))))) -> 2 | AJ92: =IF($G92=$CO$103,CS$103,IF($G92=$CO$104,CS$104,IF($G92=$CO$105,CS$105,IF($G92=$CO$107,CS$107,IF($G92=$CO$108,CS$108,IF($G92=$CO$109,CS$109,IF($G92=$CO$111,CS$111,IF($G92=$CO$112,CS$112,IF($G92=$CO$113,CS$113,IF($G92=$CO$115,CS$115,IF($G92=$CO$116,CS$116,IF($G92=$CO$117,CS$117,IF($G92=$CO$119,CS$119,IF($G92=$CO$120,CS$120,)))))))))))))) -> 0.000461829 | AK92: 190.4691577 | AL92: 204.2449989 | AM92: 274.04 | AN92: 1.01 | AO92: 1.01 | AP92: 1.01 | AQ92: =ROUND(AK92*POWER(CF_cool,AN92),0) -> 190 | AR92: =ROUND(AL92*POWER(CF_cool,AO92),0) -> 204 | AS92: =ROUND(AM92*POWER(CF_cool,AP92),0) -> 274 | AT92: 82 | AU92: 88 | AV92: 118 | AW92: 0.03576890953 | AX92: 0.04107625823 | AY92: 0.07301376058 | AZ92: =ROUND(IF(G92=10,$CO$92*F92,IF(G92=11,$CO$93*F92,IF(G92=15,$CO$94*F92,IF(G92=16,$CO$95*F92,IF(G92=20,$CO$96*F92,IF(G92=21,$CO$97*F92,)))))),1) -> 0.8 | BA92: 6 | BB92: 6.7 | BC92: 9 | BE92: 1538 | BG92: =IF(G92=10,0.9,IF(G92=11,0.68,IF(G92=15,0.8,IF(G92=16,0.68,IF(G92=20,0.8,IF(G92=21,0.8)))))) -> 0.8 | BJ92: 0 | BK92: 11.8 | BL92: 13.7 | BM92: 21.85 | BO92: 1 | BP92: 1 | BQ92: 1 | BR92: =AQ92/BO92 -> 190 | BS92: =AR92/BP92 -> 204 | BT92: =AS92/BQ92 -> 274 | BV92: =BR92-AQ92 -> 0 | BW92: =BS92-AR92 -> 0 | BX92: =BT92-AS92 -> 0 | BY92: 1 | CN92: 10 | CO92: =0.4/60 -> 0.006666666667
A93: =CONCATENATE(D93,E93,F93,G93) -> 1958015 | D93: 1 | E93: 95 | F93: 80 | G93: 15 | H93: 16.5 | I93: 0 | J93: 26 | K93: 30 | L93: 42.4 | M93: 1300.337404 | N93: 1395.337404 | O93: 1496.256349 | P93: 2007.56 | Q93: 1.5 | R93: =IF($G93=10,1.08,IF($G93=11,1.1,IF($G93=15,1.08,IF($G93=16,1.1,IF($G93=20,1.08,IF($G93=21,1.05)))))) -> 1.08 | S93: 1.08 | T93: 1.08 | U93: 928 | V93: 1094 | W93: 1173 | X93: 1574 | Y93: 80 | Z93: 94 | AA93: 101 | AB93: 135 | AC93: =(($AG93*(Y93^$AH93)*((($F93-14.4)*$AI93)/100))+($AJ93*(Y93^2)))*0.0098 -> 0.03408009852 | AD93: =(($AG93*(Z93^$AH93)*((($F93-14.4)*$AI93)/100))+($AJ93*(Z93^2)))*0.0098 -> 0.04674445265 | AE93: =(($AG93*(AA93^$AH93)*((($F93-14.4)*$AI93)/100))+($AJ93*(AA93^2)))*0.0098 -> 0.05381257525 | AF93: =(($AG93*(AB93^$AH93)*((($F93-14.4)*$AI93)/100))+($AJ93*(AB93^2)))*0.0098 -> 0.09509001927 | AG93: 0.0002083 | AH93: 1.724 | AI93: 2 | AJ93: 0.000461829 | AK93: 190.4691577 | AL93: 204.2449989 | AM93: 274.04 | AN93: 1.01 | AO93: 1.01 | AP93: 1.01 | AQ93: 190 | AR93: 204 | AS93: 274 | AT93: 82 | AU93: 88 | AV93: 118 | AW93: =(($AG93*(AT93^$AH93)*((($F93-14.4)*$AI93)/100))+($AJ93*(AT93^2)))*0.0098 -> 0.03576890953 | AX93: =(($AG93*(AU93^$AH93)*((($F93-14.4)*$AI93)/100))+($AJ93*(AU93^2)))*0.0098 -> 0.04107625823 | AY93: =(($AG93*(AV93^$AH93)*((($F93-14.4)*$AI93)/100))+($AJ93*(AV93^2)))*0.0098 -> 0.07301376058 | AZ93: 0.8 | BA93: 6 | BB93: 6.7 | BC93: 9 | BE93: 1717 | BG93: 0.8 | BJ93: 0 | BK93: 11.8 | BL93: 13.7 | BM93: 21.85 | BO93: =IF(1/(1+((2258*((0.622/((101325/(1*611*EXP(17.27*((($AM$1+$AM$2)/2)/((($AM$1+$AM$2)/2)+237.3))))))-1)*1000-(0.622/((101325/($AQ$1*611*EXP(17.27*($AM$3/($AM$3+237.3))))))-1)*1000))/(1005*((($AM$1+$AM$2)/2)-$AM$3))))>1,1,1/(1+((2258*((0.622/((101325/(1*611*EXP(17.27*((($AM$1+$AM$2)/2)/((($AM$1+$AM$2)/2)+237.3))))))-1)*1000-(0.622/((101325/($AQ$1*611*EXP(17.27*($AM$3/($AM$3+237.3))))))-1)*1000))/(1005*((($AM$1+$AM$2)/2)-$AM$3))))) -> 1 | BP93: 1 | BQ93: 1 | BR93: 190 | BS93: 204 | BT93: 274 | BV93: 0 | BW93: 0 | BX93: 0 | BY93: =IF(SUM(BV93:BX93)=0,1,0) -> 1 | CN93: 11 | CO93: =CO92*2 -> 0.01333333333
A94: 1358016 | D94: 1 | E94: 35 | F94: 80 | G94: 16 | H94: 16.5 | I94: 0 | J94: 26 | K94: 30 | L94: 42.4 | M94: 866.32 | N94: 2040.433172 | O94: 2188.009207 | P94: 2935.7 | Q94: 1.5 | R94: 1.1 | S94: 1.1 | T94: 1.1 | U94: 618 | V94: 1593 | W94: 1708 | X94: 2292 | Y94: 53 | Z94: 137 | AA94: 147 | AB94: 197 | AC94: 0.0433707359 | AD94: 0.2820430382 | AE94: 0.3241466351 | AF94: 0.5780854596 | AG94: 0.0002083 | AH94: 1.724 | AI94: 4 | AJ94: 0.001392796 | AK94: 312 | AL94: 335 | AM94: 450 | AN94: 0.95 | AO94: 0.95 | AP94: 0.95 | AQ94: 312 | AR94: 335 | AS94: 450 | AT94: 134 | AU94: 144 | AV94: 194 | AW94: 0.2699776637 | AX94: 0.3112110633 | AY94: 0.5608119342 | AZ94: 1.6 | BA94: 6 | BB94: 6.7 | BC94: 9 | BE94: 1274 | BG94: 0.68 | BJ94: 0 | BK94: 11.8 | BL94: 13.7 | BM94: 21.85 | BO94: 1 | BP94: 1 | BQ94: 1 | BR94: 312 | BS94: 335 | BT94: 450 | BV94: 0 | BW94: 0 | BX94: 0 | BY94: 1 | CN94: 15 | CO94: =CO92*1.5 -> 0.01
A95: 1508016 | D95: 1 | E95: 50 | F95: 80 | G95: 16 | H95: 16.5 | I95: 0 | J95: 26 | K95: 30 | L95: 42.4 | M95: 1032.24 | N95: 2040.433172 | O95: 2188.009207 | P95: 2935.7 | Q95: 1.5 | R95: 1.1 | S95: 1.1 | T95: 1.1 | U95: 737 | V95: 1593 | W95: 1708 | X95: 2292 | Y95: 63 | Z95: 137 | AA95: 147 | AB95: 197 | AC95: 0.06094998635 | AD95: 0.2820430382 | AE95: 0.3241466351 | AF95: 0.5780854596 | AG95: 0.0002083 | AH95: 1.724 | AI95: 4 | AJ95: 0.001392796 | AK95: 312 | AL95: 335 | AM95: 450 | AN95: 0.95 | AO95: 0.95 | AP95: 0.95 | AQ95: 312 | AR95: 335 | AS95: 450 | AT95: 134 | AU95: 144 | AV95: 194 | AW95: 0.2699776637 | AX95: 0.3112110633 | AY95: 0.5608119342 | AZ95: 1.6 | BA95: 6 | BB95: 6.7 | BC95: 9 | BE95: 1518 | BG95: 0.68 | BJ95: 0 | BK95: 11.8 | BL95: 13.7 | BM95: 21.85 | BO95: 1 | BP95: 1 | BQ95: 1 | BR95: 312 | BS95: 335 | BT95: 450 | BV95: 0 | BW95: 0 | BX95: 0 | BY95: 1 | CN95: 16 | CO95: =CO94*2 -> 0.02
A96: 1658016 | D96: 1 | E96: 65 | F96: 80 | G96: 16 | H96: 16.5 | I96: 0 | J96: 26 | K96: 30 | L96: 42.4 | M96: 1181.84 | N96: 2040.433172 | O96: 2188.009207 | P96: 2935.7 | Q96: 1.5 | R96: 1.1 | S96: 1.1 | T96: 1.1 | U96: 843 | V96: 1593 | W96: 1708 | X96: 2292 | Y96: 72 | Z96: 137 | AA96: 147 | AB96: 197 | AC96: 0.07928793142 | AD96: 0.2820430382 | AE96: 0.3241466351 | AF96: 0.5780854596 | AG96: 0.0002083 | AH96: 1.724 | AI96: 4 | AJ96: 0.001392796 | AK96: =AK95*(1-(($E96-50)*0.005)) -> 288.6 | AL96: =AL95*(1-(($E96-50)*0.005)) -> 309.875 | AM96: =AM95*(1-(($E96-50)*0.005)) -> 416.25 | AN96: 0.95 | AO96: 0.95 | AP96: 0.95 | AQ96: 289 | AR96: 310 | AS96: 416 | AT96: 124 | AU96: 133 | AV96: 179 | AW96: 0.2316471838 | AX96: 0.2660139254 | AY96: 0.4783417675 | AZ96: 1.6 | BA96: 6 | BB96: 6.7 | BC96: 9 | BE96: 1738 | BG96: 0.68 | BJ96: 0 | BK96: 11.8 | BL96: 13.7 | BM96: 21.85 | BO96: 1 | BP96: 1 | BQ96: 1 | BR96: 289 | BS96: 310 | BT96: 416 | BV96: 0 | BW96: 0 | BX96: 0 | BY96: 1 | CN96: 20 | CO96: =CO92*2 -> 0.01333333333
A97: 1958016 | D97: 1 | E97: 95 | F97: 80 | G97: 16 | H97: 16.5 | I97: 0 | J97: 26 | K97: 30 | L97: 42.4 | M97: 1456.56 | N97: 2040.433172 | O97: 2188.009207 | P97: 2935.7 | Q97: 1.5 | R97: 1.1 | S97: 1.1 | T97: 1.1 | U97: 1039 | V97: 1593 | W97: 1708 | X97: 2292 | Y97: 89 | Z97: 137 | AA97: 147 | AB97: 197 | AC97: 0.1204090451 | AD97: 0.2820430382 | AE97: 0.3241466351 | AF97: 0.5780854596 | AG97: 0.0002083 | AH97: 1.724 | AI97: 4 | AJ97: 0.001392796 | AK97: =AK95*(1-(($E97-50)*0.005)) -> 241.8 | AL97: =AL95*(1-(($E97-50)*0.005)) -> 259.625 | AM97: =AM95*(1-(($E97-50)*0.005)) -> 348.75 | AN97: 0.95 | AO97: 0.95 | AP97: 0.95 | AQ97: 242 | AR97: 260 | AS97: 349 | AT97: 104 | AU97: 112 | AV97: 150 | AW97: 0.1637103866 | AX97: 0.1894877681 | AY97: 0.3373430744 | AZ97: 1.6 | BA97: 6 | BB97: 6.7 | BC97: 9 | BE97: 2142 | BG97: 0.68 | BJ97: 0 | BK97: 11.8 | BL97: 13.7 | BM97: 21.85 | BO97: 1 | BP97: 1 | BQ97: 1 | BR97: 242 | BS97: 260 | BT97: 349 | BV97: 0 | BW97: 0 | BX97: 0 | BY97: 1 | CN97: 21 | CO97: =CO96*2 -> 0.02666666667
A98: 1358020 | D98: 1 | E98: 35 | F98: 80 | G98: 20 | H98: 21.5 | I98: 0 | J98: 26 | K98: 30 | L98: 42.4 | M98: 1318.4 | N98: 1942.571898 | O98: 2086.423935 | P98: 2518.44 | Q98: 1.5 | R98: 1.08 | S98: 1.08 | T98: 1.08 | U98: 941 | V98: 1523 | W98: 1636 | X98: 1975 | Y98: 81 | Z98: 131 | AA98: 141 | AB98: 170 | AC98: 0.02738651211 | AD98: 0.0705943238 | AE98: 0.08161320914 | AF98: 0.1180301058 | AG98: 0.0001276 | AH98: 1.7219 | AI98: 2 | AJ98: 0.000376611 | AK98: 240.0716625 | AL98: 257.849536 | AM98: 311.24 | AN98: 0.95 | AO98: 0.95 | AP98: 0.95 | AQ98: 240 | AR98: 258 | AS98: 311 | AT98: 103 | AU98: 111 | AV98: 134 | AW98: 0.04395196344 | AX98: 0.05092991836 | AY98: 0.07381701321 | AZ98: 1.1 | BA98: 6 | BB98: 6.7 | BC98: 9 | BE98: 1648 | BG98: 0.8 | BJ98: 0 | BK98: 11.8 | BL98: 13.7 | BM98: 21.85 | BO98: 1 | BP98: 1 | BQ98: 1 | BR98: 240 | BS98: 258 | BT98: 311 | BV98: 0 | BW98: 0 | BX98: 0 | BY98: 1
A99: 1508020 | D99: 1 | E99: 50 | F99: 80 | G99: 20 | H99: 21.5 | I99: 0 | J99: 26 | K99: 30 | L99: 42.4 | M99: 1552 | N99: 1942.571898 | O99: 2086.423935 | P99: 2518.44 | Q99: 1.5 | R99: 1.08 | S99: 1.08 | T99: 1.08 | U99: 1107 | V99: 1523 | W99: 1636 | X99: 1975 | Y99: 95 | Z99: 131 | AA99: 141 | AB99: 170 | AC99: 0.03748240291 | AD99: 0.0705943238 | AE99: 0.08161320914 | AF99: 0.1180301058 | AG99: 0.0001276 | AH99: 1.7219 | AI99: 2 | AJ99: 0.000376611 | AK99: 240.0716625 | AL99: 257.849536 | AM99: 311.24 | AN99: 0.95 | AO99: 0.95 | AP99: 0.95 | AQ99: 240 | AR99: 258 | AS99: 311 | AT99: 103 | AU99: 111 | AV99: 134 | AW99: 0.04395196344 | AX99: 0.05092991836 | AY99: 0.07381701321 | AZ99: 1.1 | BA99: 6 | BB99: 6.7 | BC99: 9 | BE99: 1940 | BG99: 0.8 | BJ99: 0 | BK99: 11.8 | BL99: 13.7 | BM99: 21.85 | BO99: 1 | BP99: 1 | BQ99: 1 | BR99: 240 | BS99: 258 | BT99: 311 | BV99: 0 | BW99: 0 | BX99: 0 | BY99: 1
A100: 1658020 | D100: 1 | E100: 65 | F100: 80 | G100: 20 | H100: 21.5 | I100: 0 | J100: 26 | K100: 30 | L100: 42.4 | M100: 1718.4 | N100: 1942.571898 | O100: 2086.423935 | P100: 2518.44 | Q100: 1.5 | R100: 1.08 | S100: 1.08 | T100: 1.08 | U100: 1226 | V100: 1523 | W100: 1636 | X100: 1975 | Y100: 105 | Z100: 131 | AA100: 141 | AB100: 170 | AC100: 0.04564882038 | AD100: 0.0705943238 | AE100: 0.08161320914 | AF100: 0.1180301058 | AG100: 0.0001276 | AH100: 1.7219 | AI100: 2 | AJ100: 0.000376611 | AK100: 240.0716625 | AL100: 257.849536 | AM100: 311.24 | AN100: 0.95 | AO100: 0.95 | AP100: 0.95 | AQ100: 240 | AR100: 258 | AS100: 311 | AT100: 103 | AU100: 111 | AV100: 134 | AW100: 0.04395196344 | AX100: 0.05092991836 | AY100: 0.07381701321 | AZ100: 1.1 | BA100: 6 | BB100: 6.7 | BC100: 9 | BE100: 2148 | BG100: 0.8 | BJ100: 0 | BK100: 11.8 | BL100: 13.7 | BM100: 21.85 | BO100: 1 | BP100: 1 | BQ100: 1 | BR100: 240 | BS100: 258 | BT100: 311 | BV100: 0 | BW100: 0 | BX100: 0 | BY100: 1 | CN100: Niveaus | CO100: Type | CP100: k1 | CQ100: n | CR100: t | CS100: k2
A101: 1958020 | D101: 1 | E101: 95 | F101: 80 | G101: 20 | H101: 21.5 | I101: 0 | J101: 26 | K101: 30 | L101: 42.4 | M101: 1847.571898 | N101: 1942.571898 | O101: 2086.423935 | P101: 2518.44 | Q101: 1.5 | R101: 1.08 | S101: 1.08 | T101: 1.08 | U101: 1318 | V101: 1523 | W101: 1636 | X101: 1975 | Y101: 113 | Z101: 131 | AA101: 141 | AB101: 170 | AC101: 0.05275375529 | AD101: 0.0705943238 | AE101: 0.08161320914 | AF101: 0.1180301058 | AG101: 0.0001276 | AH101: 1.7219 | AI101: 2 | AJ101: 0.000376611 | AK101: 240.0716625 | AL101: 257.849536 | AM101: 311.24 | AN101: 0.95 | AO101: 0.95 | AP101: 0.95 | AQ101: 240 | AR101: 258 | AS101: 311 | AT101: 103 | AU101: 111 | AV101: 134 | AW101: 0.04395196344 | AX101: 0.05092991836 | AY101: 0.07381701321 | AZ101: 1.1 | BA101: 6 | BB101: 6.7 | BC101: 9 | BE101: 2394 | BG101: 0.8 | BJ101: 0 | BK101: 11.8 | BL101: 13.7 | BM101: 21.85 | BO101: 1 | BP101: 1 | BQ101: 1 | BR101: 240 | BS101: 258 | BT101: 311 | BV101: 0 | BW101: 0 | BX101: 0 | BY101: 1
A102: 1358021 | D102: 1 | E102: 35 | F102: 80 | G102: 21 | H102: 21.5 | I102: 0 | J102: 26 | K102: 30 | L102: 42.4 | M102: 1352.8 | N102: 2627.784896 | O102: 2817.841636 | P102: 3780.76 | Q102: 1.5 | R102: 1.05 | S102: 1.05 | T102: 1.05 | U102: 965 | V102: 2075 | W102: 2225 | X102: 2985 | Y102: 83 | Z102: 178 | AA102: 191 | AB102: 257 | AC102: 0.04132940361 | AD102: 0.1842669292 | AE102: 0.2116152133 | AF102: 0.3791452873 | AG102: 0.0001276 | AH102: 1.7219 | AI102: 4 | AJ102: 0.000514201 | AK102: 340.8622257 | AL102: 365.5153713 | AM102: 490.42 | AN102: 0.85 | AO102: 0.85 | AP102: 0.85 | AQ102: 341 | AR102: 366 | AS102: 490 | AT102: 147 | AU102: 157 | AV102: 211 | AW102: 0.1265902397 | AX102: 0.144033077 | AY102: 0.257326744 | AZ102: 2.1 | BA102: 6 | BB102: 6.7 | BC102: 9 | BE102: 1691 | BG102: 0.8 | BJ102: 0 | BK102: 11.8 | BL102: 13.7 | BM102: 21.85 | BO102: 1 | BP102: 1 | BQ102: 1 | BR102: 341 | BS102: 366 | BT102: 490 | BV102: 0 | BW102: 0 | BX102: 0 | BY102: 1 | CN102: 1 row
A103: 1508021 | D103: 1 | E103: 50 | F103: 80 | G103: 21 | H103: 21.5 | I103: 0 | J103: 26 | K103: 30 | L103: 42.4 | M103: 1652.8 | N103: 2627.784896 | O103: 2817.841636 | P103: 3780.76 | Q103: 1.5 | R103: 1.05 | S103: 1.05 | T103: 1.05 | U103: 1179 | V103: 2075 | W103: 2225 | X103: 2985 | Y103: 101 | Z103: 178 | AA103: 191 | AB103: 257 | AC103: 0.06067887997 | AD103: 0.1842669292 | AE103: 0.2116152133 | AF103: 0.3791452873 | AG103: 0.0001276 | AH103: 1.7219 | AI103: 4 | AJ103: 0.000514201 | AK103: 340.8622257 | AL103: 365.5153713 | AM103: 490.42 | AN103: 0.85 | AO103: 0.85 | AP103: 0.85 | AQ103: 341 | AR103: 366 | AS103: 490 | AT103: 147 | AU103: 157 | AV103: 211 | AW103: 0.1265902397 | AX103: 0.144033077 | AY103: 0.257326744 | AZ103: 2.1 | BA103: 6 | BB103: 6.7 | BC103: 9 | BE103: 2066 | BG103: 0.8 | BJ103: 0 | BK103: 11.8 | BL103: 13.7 | BM103: 21.85 | BO103: 1 | BP103: 1 | BQ103: 1 | BR103: 341 | BS103: 366 | BT103: 490 | BV103: 0 | BW103: 0 | BX103: 0 | BY103: 1 | CN103: 1 | CO103: 4 | CP103: 0.001382333883 | CQ103: 1.723172228 | CR103: 1 | CS103: 0.0003329081633
A104: 1658021 | D104: 1 | E104: 65 | F104: 80 | G104: 21 | H104: 21.5 | I104: 0 | J104: 26 | K104: 30 | L104: 42.4 | M104: 1939.2 | N104: 2627.784896 | O104: 2817.841636 | P104: 3780.76 | Q104: 1.5 | R104: 1.05 | S104: 1.05 | T104: 1.05 | U104: 1384 | V104: 2075 | W104: 2225 | X104: 2985 | Y104: 119 | Z104: 178 | AA104: 191 | AB104: 257 | AC104: 0.08366024382 | AD104: 0.1842669292 | AE104: 0.2116152133 | AF104: 0.3791452873 | AG104: 0.0001276 | AH104: 1.7219 | AI104: 4 | AJ104: 0.000514201 | AK104: =AK103*(1-(($E104-50)*0.005)) -> 315.2975588 | AL104: =AL103*(1-(($E104-50)*0.005)) -> 338.1017184 | AM104: =AM103*(1-(($E104-50)*0.005)) -> 453.6385 | AN104: 0.85 | AO104: 0.85 | AP104: 0.85 | AQ104: 315 | AR104: 338 | AS104: 454 | AT104: 135 | AU104: 145 | AV104: 195 | AW104: 0.1071237589 | AX104: 0.1232347693 | AY104: 0.2204050623 | AZ104: 2.1 | BA104: 6 | BB104: 6.7 | BC104: 9 | BE104: 2424 | BG104: 0.8 | BJ104: 0 | BK104: 11.8 | BL104: 13.7 | BM104: 21.85 | BO104: 1 | BP104: 1 | BQ104: 1 | BR104: 315 | BS104: 338 | BT104: 454 | BV104: 0 | BW104: 0 | BX104: 0 | BY104: 1 | CN104: 2 | CO104: 5 | CP104: 0.000937 | CQ104: 1.789 | CR104: 2 | CS104: 0.000446
A105: 1958021 | D105: 1 | E105: 95 | F105: 80 | G105: 21 | H105: 21.5 | I105: 0 | J105: 26 | K105: 30 | L105: 42.4 | M105: 2508.8 | N105: 2627.784896 | O105: 2817.841636 | P105: 3780.76 | Q105: 1.5 | R105: 1.05 | S105: 1.05 | T105: 1.05 | U105: 1790 | V105: 2075 | W105: 2225 | X105: 2985 | Y105: 154 | Z105: 178 | AA105: 191 | AB105: 257 | AC105: 0.1386838246 | AD105: 0.1842669292 | AE105: 0.2116152133 | AF105: 0.3791452873 | AG105: 0.0001276 | AH105: 1.7219 | AI105: 4 | AJ105: 0.000514201 | AK105: =AK103*(1-(($E105-50)*0.005)) -> 264.1682249 | AL105: =AL103*(1-(($E105-50)*0.005)) -> 283.2744127 | AM105: =AM103*(1-(($E105-50)*0.005)) -> 380.0755 | AN105: 0.85 | AO105: 0.85 | AP105: 0.85 | AQ105: 264 | AR105: 283 | AS105: 380 | AT105: 114 | AU105: 122 | AV105: 163 | AW105: 0.07691323091 | AX105: 0.08784236913 | AY105: 0.1550306405 | AZ105: 2.1 | BA105: 6 | BB105: 6.7 | BC105: 9 | BE105: 3136 | BG105: 0.8 | BJ105: 0 | BK105: 11.8 | BL105: 13.7 | BM105: 21.85 | BO105: 1 | BP105: 1 | BQ105: 1 | BR105: 264 | BS105: 283 | BT105: 380 | BV105: 0 | BW105: 0 | BX105: 0 | BY105: 1 | CN105: 4 | CO105: 6 | CP105: 0.000937 | CQ105: 1.789 | CR105: 4 | CS105: 0.00139
A106: 1359010 | D106: 1 | E106: 35 | F106: 90 | G106: 10 | H106: 11.5 | I106: 0 | J106: 26 | K106: 30 | L106: 42.4 | M106: 727.2 | N106: 1395.627219 | O106: 1501.300014 | P106: 1828.08 | Q106: 1.5 | R106: 1.08 | S106: 1.08 | T106: 1.08 | U106: 519 | V106: 1095 | W106: 1177 | X106: 1434 | Y106: =ROUND(U106*3600/(4186*ABS($O$1-$O$2)),0) -> 45 | Z106: =ROUND(V106*3600/(4186*ABS($O$1-$O$2)),0) -> 94 | AA106: =ROUND(W106*3600/(4186*ABS($O$1-$O$2)),0) -> 101 | AB106: =ROUND(X106*3600/(4186*ABS($O$1-$O$2)),0) -> 123 | AC106: 0.0116263219 | AD106: 0.04737092914 | AE106: 0.05434964894 | AF106: 0.07927335841 | AG106: 0.0003969 | AH106: 1.7346 | AI106: 2 | AJ106: 0.000367347 | AK106: 193.4859319 | AL106: 208.1361185 | AM106: 253.44 | AN106: 0.98 | AO106: 0.98 | AP106: 0.98 | AQ106: 193 | AR106: 208 | AS106: 253 | AT106: =ROUND(AQ106*3600/(4186*ABS($AM$1-$AM$2)),0) -> 83 | AU106: =ROUND(AR106*3600/(4186*ABS($AM$1-$AM$2)),0) -> 89 | AV106: =ROUND(AS106*3600/(4186*ABS($AM$1-$AM$2)),0) -> 109 | AW106: 0.03734023921 | AX106: 0.0426693336 | AY106: 0.06288933685 | AZ106: 0.6 | BA106: 6.7 | BB106: 7.4 | BC106: 10.3 | BE106: 808 | BG106: 0.9 | BJ106: 0 | BK106: 12.5 | BL106: 14.7 | BM106: 21.85 | BO106: 1 | BP106: 1 | BQ106: 1 | BR106: 193 | BS106: 208 | BT106: 253 | BV106: 0 | BW106: 0 | BX106: 0 | BY106: 1 | CN106: 2 rows
A107: 1509010 | D107: 1 | E107: 50 | F107: 90 | G107: 10 | H107: 11.5 | I107: 0 | J107: 26 | K107: 30 | L107: 42.4 | M107: 871.2 | N107: 1395.627219 | O107: 1501.300014 | P107: 1828.08 | Q107: 1.5 | R107: 1.08 | S107: 1.08 | T107: 1.08 | U107: 622 | V107: 1095 | W107: 1177 | X107: 1434 | Y107: 53 | Z107: 94 | AA107: 101 | AB107: 123 | AC107: 0.01587194288 | AD107: 0.04737092914 | AE107: 0.05434964894 | AF107: 0.07927335841 | AG107: 0.0003969 | AH107: 1.7346 | AI107: 2 | AJ107: 0.000367347 | AK107: 193.4859319 | AL107: 208.1361185 | AM107: 253.44 | AN107: 0.98 | AO107: 0.98 | AP107: 0.98 | AQ107: 193 | AR107: 208 | AS107: 253 | AT107: 83 | AU107: 89 | AV107: 109 | AW107: 0.03734023921 | AX107: 0.0426693336 | AY107: 0.06288933685 | AZ107: 0.6 | BA107: 6.7 | BB107: 7.4 | BC107: 10.3 | BE107: 968 | BG107: 0.9 | BJ107: 0 | BK107: 12.5 | BL107: 14.7 | BM107: 21.85 | BO107: 1 | BP107: 1 | BQ107: 1 | BR107: 193 | BS107: 208 | BT107: 253 | BV107: 0 | BW107: 0 | BX107: 0 | BY107: 1 | CN107: 1 | CO107: 9 | CP107: 0.000805344706 | CQ107: 1.813864716 | CR107: 2 | CS107: 0.0003979505047
A108: 1659010 | D108: 1 | E108: 65 | F108: 90 | G108: 10 | H108: 11.5 | I108: 0 | J108: 26 | K108: 30 | L108: 42.4 | M108: 981 | N108: 1395.627219 | O108: 1501.300014 | P108: 1828.08 | Q108: 1.5 | R108: 1.08 | S108: 1.08 | T108: 1.08 | U108: 700 | V108: 1095 | W108: 1177 | X108: 1434 | Y108: 60 | Z108: 94 | AA108: 101 | AB108: 123 | AC108: 0.02010233565 | AD108: 0.04737092914 | AE108: 0.05434964894 | AF108: 0.07927335841 | AG108: 0.0003969 | AH108: 1.7346 | AI108: 2 | AJ108: 0.000367347 | AK108: 193.4859319 | AL108: 208.1361185 | AM108: 253.44 | AN108: =IF($G108=10,0.98,IF($G108=11,0.95,IF($G108=15,1.01,IF($G108=16,0.95,IF($G108=20,0.95,IF($G108=21,0.85)))))) -> 0.98 | AO108: 0.98 | AP108: 0.98 | AQ108: 193 | AR108: 208 | AS108: 253 | AT108: 83 | AU108: 89 | AV108: 109 | AW108: 0.03734023921 | AX108: 0.0426693336 | AY108: 0.06288933685 | AZ108: 0.6 | BA108: 6.7 | BB108: 7.4 | BC108: 10.3 | BE108: 1090 | BG108: 0.9 | BJ108: 0 | BK108: 12.5 | BL108: 14.7 | BM108: 21.85 | BO108: 1 | BP108: 1 | BQ108: 1 | BR108: 193 | BS108: 208 | BT108: 253 | BV108: 0 | BW108: 0 | BX108: 0 | BY108: 1 | CN108: 2 | CO108: 10 | CP108: 0.0003969 | CQ108: 1.7346 | CR108: 2 | CS108: 0.000367347
A109: 1959010 | D109: 1 | E109: 95 | F109: 90 | G109: 10 | H109: 11.5 | I109: 0 | J109: 26 | K109: 30 | L109: 42.4 | M109: 1128.6 | N109: 1395.627219 | O109: 1501.300014 | P109: 1828.08 | Q109: 1.5 | R109: 1.08 | S109: 1.08 | T109: 1.08 | U109: 805 | V109: 1095 | W109: 1177 | X109: 1434 | Y109: 69 | Z109: 94 | AA109: 101 | AB109: 123 | AC109: 0.0262413884 | AD109: 0.04737092914 | AE109: 0.05434964894 | AF109: 0.07927335841 | AG109: 0.0003969 | AH109: 1.7346 | AI109: 2 | AJ109: 0.000367347 | AK109: 193.4859319 | AL109: 208.1361185 | AM109: 253.44 | AN109: 0.98 | AO109: 0.98 | AP109: 0.98 | AQ109: 193 | AR109: 208 | AS109: 253 | AT109: 83 | AU109: 89 | AV109: 109 | AW109: 0.03734023921 | AX109: 0.0426693336 | AY109: 0.06288933685 | AZ109: 0.6 | BA109: 6.7 | BB109: 7.4 | BC109: 10.3 | BE109: 1254 | BG109: 0.9 | BJ109: 0 | BK109: 12.5 | BL109: 14.7 | BM109: 21.85 | BO109: 1 | BP109: 1 | BQ109: 1 | BR109: 193 | BS109: 208 | BT109: 253 | BV109: 0 | BW109: 0 | BX109: 0 | BY109: 1 | CN109: 4 | CO109: 11 | CP109: 0.0003969 | CQ109: 1.7346 | CR109: 4 | CS109: 0.000574288
A110: 1359011 | D110: 1 | E110: 35 | F110: 90 | G110: 11 | H110: 11.5 | I110: 0 | J110: 26 | K110: 30 | L110: 42.4 | M110: 731.68 | N110: 1893.633624 | O110: 2037.014001 | P110: 2480.4 | Q110: 1.5 | R110: 1.1 | S110: 1.1 | T110: 1.1 | U110: 522 | V110: 1478 | W110: 1590 | X110: 1936 | Y110: 45 | Z110: 127 | AA110: 137 | AB110: 166 | AC110: 0.02006938673 | AD110: 0.1432245428 | AE110: 0.1654520836 | AF110: 0.2385477206 | AG110: 0.0003969 | AH110: 1.7346 | AI110: 4 | AJ110: 0.000574288 | AK110: 317.1630191 | AL110: 341.1776716 | AM110: 415.44 | AN110: 0.95 | AO110: 0.95 | AP110: 0.95 | AQ110: 317 | AR110: 341 | AS110: 415 | AT110: 136 | AU110: 147 | AV110: 178 | AW110: 0.163160269 | AX110: 0.1892114089 | AY110: 0.2725218612 | AZ110: 1.2 | BA110: 6.7 | BB110: 7.4 | BC110: 10.3 | BE110: 1076 | BG110: 0.68 | BJ110: 0 | BK110: 12.5 | BL110: 14.7 | BM110: 21.85 | BO110: 1 | BP110: 1 | BQ110: 1 | BR110: 317 | BS110: 341 | BT110: 415 | BV110: 0 | BW110: 0 | BX110: 0 | BY110: 1 | CN110: 3 rows
A111: 1509011 | D111: 1 | E111: 50 | F111: 90 | G111: 11 | H111: 11.5 | I111: 0 | J111: 26 | K111: 30 | L111: 42.4 | M111: 847.96 | N111: 1893.633624 | O111: 2037.014001 | P111: 2480.4 | Q111: 1.5 | R111: 1.1 | S111: 1.1 | T111: 1.1 | U111: 605 | V111: 1478 | W111: 1590 | X111: 1936 | Y111: 52 | Z111: 127 | AA111: 137 | AB111: 166 | AC111: 0.02636287203 | AD111: 0.1432245428 | AE111: 0.1654520836 | AF111: 0.2385477206 | AG111: 0.0003969 | AH111: 1.7346 | AI111: 4 | AJ111: 0.000574288 | AK111: 317.1630191 | AL111: 341.1776716 | AM111: 415.44 | AN111: 0.95 | AO111: 0.95 | AP111: 0.95 | AQ111: 317 | AR111: 341 | AS111: 415 | AT111: 136 | AU111: 147 | AV111: 178 | AW111: 0.163160269 | AX111: 0.1892114089 | AY111: 0.2725218612 | AZ111: 1.2 | BA111: 6.7 | BB111: 7.4 | BC111: 10.3 | BE111: 1247 | BG111: 0.68 | BJ111: 0 | BK111: 12.5 | BL111: 14.7 | BM111: 21.85 | BO111: 1 | BP111: 1 | BQ111: 1 | BR111: 317 | BS111: 341 | BT111: 415 | BV111: 0 | BW111: 0 | BX111: 0 | BY111: 1 | CN111: 1 | CO111: 14 | CP111: 0.002558239829 | CQ111: 1.494274772 | CR111: 3 | CS111: 0.0005616169468
A112: 1659011 | D112: 1 | E112: 65 | F112: 90 | G112: 11 | H112: 11.5 | I112: 0 | J112: 26 | K112: 30 | L112: 42.4 | M112: 944.52 | N112: 1893.633624 | O112: 2037.014001 | P112: 2480.4 | Q112: 1.5 | R112: 1.1 | S112: 1.1 | T112: 1.1 | U112: 674 | V112: 1478 | W112: 1590 | X112: 1936 | Y112: 58 | Z112: 127 | AA112: 137 | AB112: 166 | AC112: 0.03240153729 | AD112: 0.1432245428 | AE112: 0.1654520836 | AF112: 0.2385477206 | AG112: 0.0003969 | AH112: 1.7346 | AI112: 4 | AJ112: 0.000574288 | AK112: =AK111*(1-(($E112-50)*0.005)) -> 293.3757927 | AL112: =AL111*(1-(($E112-50)*0.005)) -> 315.5893462 | AM112: =AM111*(1-(($E112-50)*0.005)) -> 384.282 | AN112: 0.95 | AO112: 0.95 | AP112: 0.95 | AQ112: 293 | AR112: 316 | AS112: 384 | AT112: 126 | AU112: 136 | AV112: 165 | AW112: 0.1410863479 | AX112: 0.163160269 | AY112: 0.235814649 | AZ112: 1.2 | BA112: 6.7 | BB112: 7.4 | BC112: 10.3 | BE112: 1389 | BG112: 0.68 | BJ112: 0 | BK112: 12.5 | BL112: 14.7 | BM112: 21.85 | BO112: 1 | BP112: 1 | BQ112: 1 | BR112: 293 | BS112: 316 | BT112: 384 | BV112: 0 | BW112: 0 | BX112: 0 | BY112: 1 | CN112: 2 | CO112: 15 | CP112: 0.0002083 | CQ112: 1.724 | CR112: 2 | CS112: 0.000461829
A113: 1959011 | D113: 1 | E113: 95 | F113: 90 | G113: 11 | H113: 11.5 | I113: 0 | J113: 26 | K113: 30 | L113: 42.4 | M113: 1098.88 | N113: 1893.633624 | O113: 2037.014001 | P113: 2480.4 | Q113: 1.5 | R113: 1.1 | S113: 1.1 | T113: 1.1 | U113: 784 | V113: 1478 | W113: 1590 | X113: 1936 | Y113: 67 | Z113: 127 | AA113: 137 | AB113: 166 | AC113: 0.042562289 | AD113: 0.1432245428 | AE113: 0.1654520836 | AF113: 0.2385477206 | AG113: 0.0003969 | AH113: 1.7346 | AI113: 4 | AJ113: 0.000574288 | AK113: =AK111*(1-(($E113-50)*0.005)) -> 245.8013398 | AL113: =AL111*(1-(($E113-50)*0.005)) -> 264.4126955 | AM113: =AM111*(1-(($E113-50)*0.005)) -> 321.966 | AN113: 0.95 | AO113: 0.95 | AP113: 0.95 | AQ113: 246 | AR113: 264 | AS113: 322 | AT113: 106 | AU113: 114 | AV113: 138 | AW113: 0.1015704929 | AX113: 0.1166324509 | AY113: 0.1677592155 | AZ113: 1.2 | BA113: 6.7 | BB113: 7.4 | BC113: 10.3 | BE113: 1616 | BG113: 0.68 | BJ113: 0 | BK113: 12.5 | BL113: 14.7 | BM113: 21.85 | BO113: 1 | BP113: 1 | BQ113: 1 | BR113: 246 | BS113: 264 | BT113: 322 | BV113: 0 | BW113: 0 | BX113: 0 | BY113: 1 | CN113: 4 | CO113: 16 | CP113: 0.0002083 | CQ113: 1.724 | CR113: 4 | CS113: 0.001392796
A114: 1359015 | D114: 1 | E114: 35 | F114: 90 | G114: 15 | H114: 16.5 | I114: 0 | J114: 26 | K114: 30 | L114: 43.3 | M114: 1058.4 | N114: 1597.916768 | O114: 1711.913054 | P114: 2331.36 | Q114: 1.5 | R114: 1.08 | S114: 1.08 | T114: 1.08 | U114: 755 | V114: 1253 | W114: 1343 | X114: 1828 | Y114: 65 | Z114: 108 | AA114: 115 | AB114: 157 | AC114: 0.02324233852 | AD114: 0.0626779526 | AE114: 0.07087353644 | AF114: 0.1304045922 | AG114: 0.0002083 | AH114: 1.724 | AI114: 2 | AJ114: 0.000461829 | AK114: 218.1220541 | AL114: 233.6830049 | AM114: 318.24 | AN114: 1.01 | AO114: 1.01 | AP114: 1.01 | AQ114: 218 | AR114: 234 | AS114: 318 | AT114: 94 | AU114: 101 | AV114: 137 | AW114: 0.04777393229 | AX114: 0.0549777616 | AY114: 0.09984662963 | AZ114: 0.9 | BA114: 7 | BB114: 7.7 | BC114: 10.7 | BE114: 1323 | BG114: 0.8 | BJ114: 0 | BK114: 11.3 | BL114: 13.2 | BM114: 21.85 | BO114: 1 | BP114: 1 | BQ114: 1 | BR114: 218 | BS114: 234 | BT114: 318 | BV114: 0 | BW114: 0 | BX114: 0 | BY114: 1 | CN114: 4 rows
A115: 1509015 | D115: 1 | E115: 50 | F115: 90 | G115: 15 | H115: 16.5 | I115: 0 | J115: 26 | K115: 30 | L115: 43.3 | M115: 1248.8 | N115: 1597.916768 | O115: 1711.913054 | P115: 2331.36 | Q115: 1.5 | R115: 1.08 | S115: 1.08 | T115: 1.08 | U115: 891 | V115: 1253 | W115: 1343 | X115: 1828 | Y115: 77 | Z115: 108 | AA115: 115 | AB115: 157 | AC115: 0.03235214678 | AD115: 0.0626779526 | AE115: 0.07087353644 | AF115: 0.1304045922 | AG115: 0.0002083 | AH115: 1.724 | AI115: 2 | AJ115: 0.000461829 | AK115: 218.1220541 | AL115: 233.6830049 | AM115: 318.24 | AN115: 1.01 | AO115: 1.01 | AP115: 1.01 | AQ115: 218 | AR115: 234 | AS115: 318 | AT115: 94 | AU115: 101 | AV115: 137 | AW115: 0.04777393229 | AX115: 0.0549777616 | AY115: 0.09984662963 | AZ115: 0.9 | BA115: 7 | BB115: 7.7 | BC115: 10.7 | BE115: 1561 | BG115: 0.8 | BJ115: 0 | BK115: 11.3 | BL115: 13.2 | BM115: 21.85 | BO115: 1 | BP115: 1 | BQ115: 1 | BR115: 218 | BS115: 234 | BT115: 318 | BV115: 0 | BW115: 0 | BX115: 0 | BY115: 1 | CN115: 1 | CO115: 19 | CP115: 0.01161629289 | CQ115: 1.586934682 | CR115: 1 | CS115: 0.001655322747
A116: 1659015 | D116: 1 | E116: 65 | F116: 90 | G116: 15 | H116: 16.5 | I116: 0 | J116: 26 | K116: 30 | L116: 43.3 | M116: 1384 | N116: 1597.916768 | O116: 1711.913054 | P116: 2331.36 | Q116: 1.5 | R116: 1.08 | S116: 1.08 | T116: 1.08 | U116: 987 | V116: 1253 | W116: 1343 | X116: 1828 | Y116: 85 | Z116: 108 | AA116: 115 | AB116: 157 | AC116: 0.03924292957 | AD116: 0.0626779526 | AE116: 0.07087353644 | AF116: 0.1304045922 | AG116: 0.0002083 | AH116: 1.724 | AI116: 2 | AJ116: 0.000461829 | AK116: 218.1220541 | AL116: 233.6830049 | AM116: 318.24 | AN116: 1.01 | AO116: 1.01 | AP116: 1.01 | AQ116: 218 | AR116: 234 | AS116: 318 | AT116: 94 | AU116: 101 | AV116: 137 | AW116: 0.04777393229 | AX116: 0.0549777616 | AY116: 0.09984662963 | AZ116: 0.9 | BA116: 7 | BB116: 7.7 | BC116: 10.7 | BE116: 1730 | BG116: 0.8 | BJ116: 0 | BK116: 11.3 | BL116: 13.2 | BM116: 21.85 | BO116: 1 | BP116: 1 | BQ116: 1 | BR116: 218 | BS116: 234 | BT116: 318 | BV116: 0 | BW116: 0 | BX116: 0 | BY116: 1 | CN116: 2 | CO116: 20 | CP116: 0.0001276 | CQ116: 1.7219 | CR116: 2 | CS116: 0.000376611
A117: 1959015 | D117: 1 | E117: 95 | F117: 90 | G117: 15 | H117: 16.5 | I117: 0 | J117: 26 | K117: 30 | L117: 43.3 | M117: 1502.916768 | N117: 1597.916768 | O117: 1711.913054 | P117: 2331.36 | Q117: 1.5 | R117: 1.08 | S117: 1.08 | T117: 1.08 | U117: 1072 | V117: 1253 | W117: 1343 | X117: 1828 | Y117: 92 | Z117: 108 | AA117: 115 | AB117: 157 | AC117: 0.04580700949 | AD117: 0.0626779526 | AE117: 0.07087353644 | AF117: 0.1304045922 | AG117: 0.0002083 | AH117: 1.724 | AI117: 2 | AJ117: 0.000461829 | AK117: 218.1220541 | AL117: 233.6830049 | AM117: 318.24 | AN117: 1.01 | AO117: 1.01 | AP117: 1.01 | AQ117: 218 | AR117: 234 | AS117: 318 | AT117: 94 | AU117: 101 | AV117: 137 | AW117: 0.04777393229 | AX117: 0.0549777616 | AY117: 0.09984662963 | AZ117: 0.9 | BA117: 7 | BB117: 7.7 | BC117: 10.7 | BE117: 1931 | BG117: 0.8 | BJ117: 0 | BK117: 11.3 | BL117: 13.2 | BM117: 21.85 | BO117: 1 | BP117: 1 | BQ117: 1 | BR117: 218 | BS117: 234 | BT117: 318 | BV117: 0 | BW117: 0 | BX117: 0 | BY117: 1 | CN117: 4 | CO117: 21 | CP117: 0.0001276 | CQ117: 1.7219 | CR117: 4 | CS117: 0.000514201
A118: 1359016 | D118: 1 | E118: 35 | F118: 90 | G118: 16 | H118: 16.5 | I118: 0 | J118: 26 | K118: 30 | L118: 43.3 | M118: 975.12 | N118: 2336.669517 | O118: 2503.368842 | P118: 3409.2 | Q118: 1.5 | R118: 1.1 | S118: 1.1 | T118: 1.1 | U118: 696 | V118: 1824 | W118: 1954 | X118: 2662 | Y118: 60 | Z118: 157 | AA118: 168 | AB118: 229 | AC118: 0.0563162798 | AD118: 0.3741342535 | AE118: 0.4275981896 | AF118: 0.7880408314 | AG118: 0.0002083 | AH118: 1.724 | AI118: 4 | AJ118: 0.001392796 | AK118: 357.7793875 | AL118: 383.3035713 | AM118: 522 | AN118: 0.95 | AO118: 0.95 | AP118: 0.95 | AQ118: 358 | AR118: 383 | AS118: 522 | AT118: 154 | AU118: 165 | AV118: 224 | AW118: 0.3601663511 | AX118: 0.4126668757 | AY118: 0.7544267518 | AZ118: 1.8 | BA118: 7 | BB118: 7.7 | BC118: 10.7 | BE118: 1434 | BG118: 0.68 | BJ118: 0 | BK118: 11.3 | BL118: 13.2 | BM118: 21.85 | BO118: 1 | BP118: 1 | BQ118: 1 | BR118: 358 | BS118: 383 | BT118: 522 | BV118: 0 | BW118: 0 | BX118: 0 | BY118: 1
A119: 1509016 | D119: 1 | E119: 50 | F119: 90 | G119: 16 | H119: 16.5 | I119: 0 | J119: 26 | K119: 30 | L119: 43.3 | M119: 1161.44 | N119: 2336.669517 | O119: 2503.368842 | P119: 3409.2 | Q119: 1.5 | R119: 1.1 | S119: 1.1 | T119: 1.1 | U119: 829 | V119: 1824 | W119: 1954 | X119: 2662 | Y119: 71 | Z119: 157 | AA119: 168 | AB119: 229 | AC119: 0.07840210548 | AD119: 0.3741342535 | AE119: 0.4275981896 | AF119: 0.7880408314 | AG119: 0.0002083 | AH119: 1.724 | AI119: 4 | AJ119: 0.001392796 | AK119: 357.7793875 | AL119: 383.3035713 | AM119: 522 | AN119: 0.95 | AO119: 0.95 | AP119: 0.95 | AQ119: 358 | AR119: 383 | AS119: 522 | AT119: 154 | AU119: 165 | AV119: 224 | AW119: 0.3601663511 | AX119: 0.4126668757 | AY119: 0.7544267518 | AZ119: 1.8 | BA119: 7 | BB119: 7.7 | BC119: 10.7 | BE119: 1708 | BG119: 0.68 | BJ119: 0 | BK119: 11.3 | BL119: 13.2 | BM119: 21.85 | BO119: 1 | BP119: 1 | BQ119: 1 | BR119: 358 | BS119: 383 | BT119: 522 | BV119: 0 | BW119: 0 | BX119: 0 | BY119: =IF(SUM(BV119:BX119)=0,1,0) -> 1 | CN119: =CN111 -> 1 | CO119: 7 | CP119: =CP111 -> 0.002558239829 | CQ119: =CQ111 -> 1.494274772 | CR119: =CR111 -> 3 | CS119: =CS111 -> 0.0005616169468
A120: 1659016 | D120: 1 | E120: 65 | F120: 90 | G120: 16 | H120: 16.5 | I120: 0 | J120: 26 | K120: 30 | L120: 43.3 | M120: 1330.08 | N120: 2336.669517 | O120: 2503.368842 | P120: 3409.2 | Q120: 1.5 | R120: 1.1 | S120: 1.1 | T120: 1.1 | U120: 949 | V120: 1824 | W120: 1954 | X120: 2662 | Y120: 82 | Z120: 157 | AA120: 168 | AB120: 229 | AC120: 0.1040787721 | AD120: 0.3741342535 | AE120: 0.4275981896 | AF120: 0.7880408314 | AG120: 0.0002083 | AH120: 1.724 | AI120: 4 | AJ120: 0.001392796 | AK120: =AK119*(1-(($E120-50)*0.005)) -> 330.9459334 | AL120: =AL119*(1-(($E120-50)*0.005)) -> 354.5558035 | AM120: =AM119*(1-(($E120-50)*0.005)) -> 482.85 | AN120: 0.95 | AO120: 0.95 | AP120: 0.95 | AQ120: 331 | AR120: 355 | AS120: 483 | AT120: 142 | AU120: 153 | AV120: 208 | AW120: 0.3069252751 | AX120: 0.3555688142 | AY120: 0.6517399232 | AZ120: 1.8 | BA120: 7 | BB120: 7.7 | BC120: 10.7 | BE120: 1956 | BG120: 0.68 | BJ120: 0 | BK120: 11.3 | BL120: 13.2 | BM120: 21.85 | BO120: 1 | BP120: 1 | BQ120: 1 | BR120: 331 | BS120: 355 | BT120: 483 | BV120: 0 | BW120: 0 | BX120: 0 | BY120: 1 | CN120: =CN105 -> 4 | CO120: 8 | CP120: =CP105 -> 0.000937 | CQ120: =CQ105 -> 1.789 | CR120: =CR105 -> 4 | CS120: =CS105 -> 0.00139
A121: 1959016 | D121: 1 | E121: 95 | F121: 90 | G121: 16 | H121: 16.5 | I121: 0 | J121: 26 | K121: 30 | L121: 43.3 | M121: 1638.12 | N121: 2336.669517 | O121: 2503.368842 | P121: 3409.2 | Q121: 1.5 | R121: 1.1 | S121: 1.1 | T121: 1.1 | U121: 1169 | V121: 1824 | W121: 1954 | X121: 2662 | Y121: 101 | Z121: 157 | AA121: 168 | AB121: 229 | AC121: 0.1568551552 | AD121: 0.3741342535 | AE121: 0.4275981896 | AF121: 0.7880408314 | AG121: 0.0002083 | AH121: 1.724 | AI121: 4 | AJ121: 0.001392796 | AK121: =AK119*(1-(($E121-50)*0.005)) -> 277.2790253 | AL121: =AL119*(1-(($E121-50)*0.005)) -> 297.0602678 | AM121: =AM119*(1-(($E121-50)*0.005)) -> 404.55 | AN121: 0.95 | AO121: 0.95 | AP121: 0.95 | AQ121: 277 | AR121: 297 | AS121: 405 | AT121: 119 | AU121: 128 | AV121: 174 | AW121: 0.2166635444 | AX121: 0.2501367407 | AY121: 0.4582483802 | AZ121: 1.8 | BA121: 7 | BB121: 7.7 | BC121: 10.7 | BE121: 2409 | BG121: 0.68 | BJ121: 0 | BK121: 11.3 | BL121: 13.2 | BM121: 21.85 | BO121: 1 | BP121: 1 | BQ121: 1 | BR121: 277 | BS121: 297 | BT121: 405 | BV121: 0 | BW121: 0 | BX121: 0 | BY121: 1
A122: 1359020 | D122: 1 | E122: 35 | F122: 90 | G122: 20 | H122: 21.5 | I122: 0 | J122: 26 | K122: 30 | L122: 43.3 | M122: 1483.2 | N122: 2232.78368 | O122: 2401.843504 | P122: 2924.64 | Q122: 1.5 | R122: 1.08 | S122: 1.08 | T122: 1.08 | U122: 1058 | V122: 1751 | W122: 1884 | X122: 2294 | Y122: 91 | Z122: 151 | AA122: 162 | AB122: 197 | AC122: 0.03502924097 | AD122: 0.09483457963 | AE122: 0.1089167354 | AF122: 0.1601195735 | AG122: 0.0001276 | AH122: 1.7219 | AI122: 2 | AJ122: 0.000376611 | AK122: 275.9373234 | AL122: 296.8304872 | AM122: 361.44 | AN122: 0.95 | AO122: 0.95 | AP122: 0.95 | AQ122: 276 | AR122: 297 | AS122: 361 | AT122: 119 | AU122: 128 | AV122: 155 | AW122: 0.05935306888 | AX122: 0.0685057463 | AY122: 0.09984394262 | AZ122: 1.2 | BA122: 7 | BB122: 7.7 | BC122: 10.7 | BE122: 1854 | BG122: 0.8 | BJ122: 0 | BK122: 11.3 | BL122: 13.2 | BM122: 21.85 | BO122: 1 | BP122: 1 | BQ122: 1 | BR122: 276 | BS122: 297 | BT122: 361 | BV122: 0 | BW122: 0 | BX122: 0 | BY122: 1
A123: 1509020 | D123: 1 | E123: 50 | F123: 90 | G123: 20 | H123: 21.5 | I123: 0 | J123: 26 | K123: 30 | L123: 43.3 | M123: 1746.4 | N123: 2232.78368 | O123: 2401.843504 | P123: 2924.64 | Q123: 1.5 | R123: 1.08 | S123: 1.08 | T123: 1.08 | U123: 1246 | V123: 1751 | W123: 1884 | X123: 2294 | Y123: 107 | Z123: 151 | AA123: 162 | AB123: 197 | AC123: 0.04815817285 | AD123: 0.09483457963 | AE123: 0.1089167354 | AF123: 0.1601195735 | AG123: 0.0001276 | AH123: 1.7219 | AI123: 2 | AJ123: 0.000376611 | AK123: 275.9373234 | AL123: 296.8304872 | AM123: 361.44 | AN123: 0.95 | AO123: 0.95 | AP123: 0.95 | AQ123: 276 | AR123: 297 | AS123: 361 | AT123: 119 | AU123: 128 | AV123: 155 | AW123: 0.05935306888 | AX123: 0.0685057463 | AY123: 0.09984394262 | AZ123: 1.2 | BA123: 7 | BB123: 7.7 | BC123: 10.7 | BE123: 2183 | BG123: 0.8 | BJ123: 0 | BK123: 11.3 | BL123: 13.2 | BM123: 21.85 | BO123: 1 | BP123: 1 | BQ123: 1 | BR123: 276 | BS123: 297 | BT123: 361 | BV123: 0 | BW123: 0 | BX123: 0 | BY123: 1
A124: 1659020 | D124: 1 | E124: 65 | F124: 90 | G124: 20 | H124: 21.5 | I124: 0 | J124: 26 | K124: 30 | L124: 43.3 | M124: 1933.6 | N124: 2232.78368 | O124: 2401.843504 | P124: 2924.64 | Q124: 1.5 | R124: 1.08 | S124: 1.08 | T124: 1.08 | U124: 1380 | V124: 1751 | W124: 1884 | X124: 2294 | Y124: 119 | Z124: 151 | AA124: 162 | AB124: 197 | AC124: 0.05935306888 | AD124: 0.09483457963 | AE124: 0.1089167354 | AF124: 0.1601195735 | AG124: 0.0001276 | AH124: 1.7219 | AI124: 2 | AJ124: 0.000376611 | AK124: 275.9373234 | AL124: 296.8304872 | AM124: 361.44 | AN124: 0.95 | AO124: 0.95 | AP124: 0.95 | AQ124: 276 | AR124: 297 | AS124: 361 | AT124: 119 | AU124: 128 | AV124: 155 | AW124: 0.05935306888 | AX124: 0.0685057463 | AY124: 0.09984394262 | AZ124: 1.2 | BA124: 7 | BB124: 7.7 | BC124: 10.7 | BE124: 2417 | BG124: 0.8 | BJ124: 0 | BK124: 11.3 | BL124: 13.2 | BM124: 21.85 | BO124: 1 | BP124: 1 | BQ124: 1 | BR124: 276 | BS124: 297 | BT124: 361 | BV124: 0 | BW124: 0 | BX124: 0 | BY124: 1
A125: 1959020 | D125: 1 | E125: 95 | F125: 90 | G125: 20 | H125: 21.5 | I125: 0 | J125: 26 | K125: 30 | L125: 43.3 | M125: 2137.78368 | N125: 2232.78368 | O125: 2401.843504 | P125: 2924.64 | Q125: 1.5 | R125: 1.08 | S125: 1.08 | T125: 1.08 | U125: 1525 | V125: 1751 | W125: 1884 | X125: 2294 | Y125: 131 | Z125: 151 | AA125: 162 | AB125: 197 | AC125: 0.07170053026 | AD125: 0.09483457963 | AE125: 0.1089167354 | AF125: 0.1601195735 | AG125: 0.0001276 | AH125: 1.7219 | AI125: 2 | AJ125: 0.000376611 | AK125: 275.9373234 | AL125: 296.8304872 | AM125: 361.44 | AN125: 0.95 | AO125: 0.95 | AP125: 0.95 | AQ125: 276 | AR125: 297 | AS125: 361 | AT125: 119 | AU125: 128 | AV125: 155 | AW125: 0.05935306888 | AX125: 0.0685057463 | AY125: 0.09984394262 | AZ125: 1.2 | BA125: 7 | BB125: 7.7 | BC125: 10.7 | BE125: 2693 | BG125: 0.8 | BJ125: 0 | BK125: 11.3 | BL125: 13.2 | BM125: 21.85 | BO125: 1 | BP125: 1 | BQ125: 1 | BR125: 276 | BS125: 297 | BT125: 361 | BV125: 0 | BW125: 0 | BX125: 0 | BY125: 1
A126: 1359021 | D126: 1 | E126: 35 | F126: 90 | G126: 21 | H126: 21.5 | I126: 0 | J126: 26 | K126: 30 | L126: 43.3 | M126: 1522.4 | N126: 3009.294765 | O126: 3223.979556 | P126: 4390.56 | Q126: 1.5 | R126: 1.05 | S126: 1.05 | T126: 1.05 | U126: 1086 | V126: 2376 | W126: 2545 | X126: 3467 | Y126: 93 | Z126: 204 | AA126: 219 | AB126: 298 | AC126: 0.05285611913 | AD126: 0.2455701265 | AE126: 0.2822036061 | AF126: 0.5163654916 | AG126: 0.0001276 | AH126: 1.7219 | AI126: 4 | AJ126: 0.000514201 | AK126: 390.3496489 | AL126: 418.1974137 | AM126: 569.52 | AN126: 0.85 | AO126: 0.85 | AP126: 0.85 | AQ126: 390 | AR126: 418 | AS126: 570 | AT126: 168 | AU126: 180 | AV126: 245 | AW126: 0.1678950982 | AX126: 0.1921767166 | AY126: 0.3516307051 | AZ126: 2.4 | BA126: 7 | BB126: 7.7 | BC126: 10.7 | BE126: 1903 | BG126: 0.8 | BJ126: 0 | BK126: 11.3 | BL126: 13.2 | BM126: 21.85 | BO126: 1 | BP126: 1 | BQ126: 1 | BR126: 390 | BS126: 418 | BT126: 570 | BV126: 0 | BW126: 0 | BX126: 0 | BY126: 1
A127: 1509021 | D127: 1 | E127: 50 | F127: 90 | G127: 21 | H127: 21.5 | I127: 0 | J127: 26 | K127: 30 | L127: 43.3 | M127: 1859.2 | N127: 3009.294765 | O127: 3223.979556 | P127: 4390.56 | Q127: 1.5 | R127: 1.05 | S127: 1.05 | T127: 1.05 | U127: 1327 | V127: 2376 | W127: 2545 | X127: 3467 | Y127: 114 | Z127: 204 | AA127: 219 | AB127: 298 | AC127: 0.07865472179 | AD127: 0.2455701265 | AE127: 0.2822036061 | AF127: 0.5163654916 | AG127: 0.0001276 | AH127: 1.7219 | AI127: 4 | AJ127: 0.000514201 | AK127: 390.3496489 | AL127: 418.1974137 | AM127: 569.52 | AN127: 0.85 | AO127: 0.85 | AP127: 0.85 | AQ127: 390 | AR127: 418 | AS127: 570 | AT127: 168 | AU127: 180 | AV127: 245 | AW127: 0.1678950982 | AX127: 0.1921767166 | AY127: 0.3516307051 | AZ127: 2.4 | BA127: 7 | BB127: 7.7 | BC127: 10.7 | BE127: 2324 | BG127: 0.8 | BJ127: 0 | BK127: 11.3 | BL127: 13.2 | BM127: 21.85 | BO127: 1 | BP127: 1 | BQ127: 1 | BR127: 390 | BS127: 418 | BT127: 570 | BV127: 0 | BW127: 0 | BX127: 0 | BY127: 1
A128: 1659021 | D128: 1 | E128: 65 | F128: 90 | G128: 21 | H128: 21.5 | I128: 0 | J128: 26 | K128: 30 | L128: 43.3 | M128: 2181.6 | N128: 3009.294765 | O128: 3223.979556 | P128: 4390.56 | Q128: 1.5 | R128: 1.05 | S128: 1.05 | T128: 1.05 | U128: 1557 | V128: 2376 | W128: 2545 | X128: 3467 | Y128: 134 | Z128: 204 | AA128: 219 | AB128: 298 | AC128: 0.1078741621 | AD128: 0.2455701265 | AE128: 0.2822036061 | AF128: 0.5163654916 | AG128: 0.0001276 | AH128: 1.7219 | AI128: 4 | AJ128: 0.000514201 | AK128: =AK127*(1-(($E128-50)*0.005)) -> 361.0734253 | AL128: =AL127*(1-(($E128-50)*0.005)) -> 386.8326077 | AM128: =AM127*(1-(($E128-50)*0.005)) -> 526.806 | AN128: 0.85 | AO128: 0.85 | AP128: 0.85 | AQ128: 361 | AR128: 387 | AS128: 527 | AT128: 155 | AU128: 166 | AV128: 227 | AW128: 0.1434115859 | AX128: 0.1640050007 | AY128: 0.3027655829 | AZ128: 2.4 | BA128: 7 | BB128: 7.7 | BC128: 10.7 | BE128: 2727 | BG128: 0.8 | BJ128: 0 | BK128: 11.3 | BL128: 13.2 | BM128: 21.85 | BO128: 1 | BP128: 1 | BQ128: 1 | BR128: 361 | BS128: 387 | BT128: 527 | BV128: 0 | BW128: 0 | BX128: 0 | BY128: 1
A129: 1959021 | D129: 1 | E129: 95 | F129: 90 | G129: 21 | H129: 21.5 | I129: 0 | J129: 26 | K129: 30 | L129: 43.3 | M129: 2822.4 | N129: 3009.294765 | O129: 3223.979556 | P129: 4390.56 | Q129: 1.5 | R129: 1.05 | S129: 1.05 | T129: 1.05 | U129: 2014 | V129: 2376 | W129: 2545 | X129: 3467 | Y129: 173 | Z129: 204 | AA129: 219 | AB129: 298 | AC129: 0.1778164648 | AD129: 0.2455701265 | AE129: 0.2822036061 | AF129: 0.5163654916 | AG129: 0.0001276 | AH129: 1.7219 | AI129: 4 | AJ129: 0.000514201 | AK129: =AK127*(1-(($E129-50)*0.005)) -> 302.5209779 | AL129: =AL127*(1-(($E129-50)*0.005)) -> 324.1029956 | AM129: =AM127*(1-(($E129-50)*0.005)) -> 441.378 | AN129: 0.85 | AO129: 0.85 | AP129: 0.85 | AQ129: 303 | AR129: 324 | AS129: 441 | AT129: 130 | AU129: 139 | AV129: 190 | AW129: 0.1016685684 | AX129: 0.1158849871 | AY129: 0.2136421515 | AZ129: 2.4 | BA129: 7 | BB129: 7.7 | BC129: 10.7 | BE129: 3528 | BG129: 0.8 | BJ129: 0 | BK129: 11.3 | BL129: 13.2 | BM129: 21.85 | BO129: 1 | BP129: 1 | BQ129: 1 | BR129: 303 | BS129: 324 | BT129: 441 | BV129: 0 | BW129: 0 | BX129: 0 | BY129: 1
A130: 13510010 | D130: 1 | E130: 35 | F130: 100 | G130: 10 | H130: 11.5 | I130: 0 | J130: 26 | K130: 30 | L130: 43 | M130: 808.2 | N130: 1574.390548 | O130: 1696.126576 | P130: 2081.98 | Q130: 1.5 | R130: 1.08 | S130: 1.08 | T130: 1.08 | U130: 577 | V130: 1235 | W130: 1330 | X130: 1633 | Y130: 50 | Z130: 106 | AA130: 114 | AB130: 140 | AC130: 0.01489446529 | AD130: 0.06215194303 | AE130: 0.0714073109 | AF130: 0.1057229069 | AG130: 0.0003969 | AH130: 1.7346 | AI130: 2 | AJ130: 0.000367347 | AK130: 218.2691897 | AL130: 235.146339 | AM130: 288.64 | AN130: 0.98 | AO130: 0.98 | AP130: 0.98 | AQ130: 218 | AR130: 235 | AS130: 289 | AT130: 94 | AU130: 101 | AV130: 124 | AW130: 0.04942930531 | AX130: 0.05668113608 | AY130: 0.08384149308 | AZ130: 0.7 | BA130: 7.8 | BB130: 8.7 | BC130: 12.2 | BE130: 898 | BG130: 0.9 | BJ130: 0 | BK130: 12.3 | BL130: 14.1 | BM130: 21.85 | BO130: 1 | BP130: 1 | BQ130: 1 | BR130: 218 | BS130: 235 | BT130: 289 | BV130: 0 | BW130: 0 | BX130: 0 | BY130: 1
A131: 15010010 | D131: 1 | E131: 50 | F131: 100 | G131: 10 | H131: 11.5 | I131: 0 | J131: 26 | K131: 30 | L131: 43 | M131: 968.4 | N131: 1574.390548 | O131: 1696.126576 | P131: 2081.98 | Q131: 1.5 | R131: 1.08 | S131: 1.08 | T131: 1.08 | U131: 691 | V131: 1235 | W131: 1330 | X131: 1633 | Y131: 59 | Z131: 106 | AA131: 114 | AB131: 140 | AC131: 0.02038632437 | AD131: 0.06215194303 | AE131: 0.0714073109 | AF131: 0.1057229069 | AG131: 0.0003969 | AH131: 1.7346 | AI131: 2 | AJ131: 0.000367347 | AK131: 218.2691897 | AL131: 235.146339 | AM131: 288.64 | AN131: 0.98 | AO131: 0.98 | AP131: 0.98 | AQ131: 218 | AR131: 235 | AS131: 289 | AT131: 94 | AU131: 101 | AV131: 124 | AW131: 0.04942930531 | AX131: 0.05668113608 | AY131: 0.08384149308 | AZ131: 0.7 | BA131: 7.8 | BB131: 8.7 | BC131: 12.2 | BE131: 1076 | BG131: 0.9 | BJ131: 0 | BK131: 12.3 | BL131: 14.1 | BM131: 21.85 | BO131: 1 | BP131: 1 | BQ131: 1 | BR131: 218 | BS131: 235 | BT131: 289 | BV131: 0 | BW131: 0 | BX131: 0 | BY131: 1
A132: 16510010 | D132: 1 | E132: 65 | F132: 100 | G132: 10 | H132: 11.5 | I132: 0 | J132: 26 | K132: 30 | L132: 43 | M132: 1089.9 | N132: 1574.390548 | O132: 1696.126576 | P132: 2081.98 | Q132: 1.5 | R132: 1.08 | S132: 1.08 | T132: 1.08 | U132: 778 | V132: 1235 | W132: 1330 | X132: 1633 | Y132: 67 | Z132: 106 | AA132: 114 | AB132: 140 | AC132: 0.02595350491 | AD132: 0.06215194303 | AE132: 0.0714073109 | AF132: 0.1057229069 | AG132: 0.0003969 | AH132: 1.7346 | AI132: 2 | AJ132: 0.000367347 | AK132: 218.2691897 | AL132: 235.146339 | AM132: 288.64 | AN132: 0.98 | AO132: 0.98 | AP132: 0.98 | AQ132: 218 | AR132: 235 | AS132: 289 | AT132: 94 | AU132: 101 | AV132: 124 | AW132: 0.04942930531 | AX132: 0.05668113608 | AY132: 0.08384149308 | AZ132: 0.7 | BA132: 7.8 | BB132: 8.7 | BC132: 12.2 | BE132: 1211 | BG132: 0.9 | BJ132: 0 | BK132: 12.3 | BL132: 14.1 | BM132: 21.85 | BO132: 1 | BP132: 1 | BQ132: 1 | BR132: 218 | BS132: 235 | BT132: 289 | BV132: 0 | BW132: 0 | BX132: 0 | BY132: 1
A133: 19510010 | D133: 1 | E133: 95 | F133: 100 | G133: 10 | H133: 11.5 | I133: 0 | J133: 26 | K133: 30 | L133: 43 | M133: 1253.7 | N133: 1574.390548 | O133: 1696.126576 | P133: 2081.98 | Q133: 1.5 | R133: 1.08 | S133: 1.08 | T133: 1.08 | U133: 895 | V133: 1235 | W133: 1330 | X133: 1633 | Y133: 77 | Z133: 106 | AA133: 114 | AB133: 140 | AC133: 0.03381013444 | AD133: 0.06215194303 | AE133: 0.0714073109 | AF133: 0.1057229069 | AG133: 0.0003969 | AH133: 1.7346 | AI133: 2 | AJ133: 0.000367347 | AK133: 218.2691897 | AL133: 235.146339 | AM133: 288.64 | AN133: 0.98 | AO133: 0.98 | AP133: 0.98 | AQ133: 218 | AR133: 235 | AS133: 289 | AT133: 94 | AU133: 101 | AV133: 124 | AW133: 0.04942930531 | AX133: 0.05668113608 | AY133: 0.08384149308 | AZ133: 0.7 | BA133: 7.8 | BB133: 8.7 | BC133: 12.2 | BE133: 1393 | BG133: 0.9 | BJ133: 0 | BK133: 12.3 | BL133: 14.1 | BM133: 21.85 | BO133: 1 | BP133: 1 | BQ133: 1 | BR133: 218 | BS133: 235 | BT133: 289 | BV133: 0 | BW133: 0 | BX133: 0 | BY133: 1
A134: 13510011 | D134: 1 | E134: 35 | F134: 100 | G134: 11 | H134: 11.5 | I134: 0 | J134: 26 | K134: 30 | L134: 43 | M134: 813.28 | N134: 2136.185678 | O134: 2301.361187 | P134: 2824.9 | Q134: 1.5 | R134: 1.1 | S134: 1.1 | T134: 1.1 | U134: 580 | V134: 1668 | W134: 1797 | X134: 2205 | Y134: 50 | Z134: 143 | AA134: 155 | AB134: 190 | AC134: 0.02585898359 | AD134: 0.1880477654 | AE134: 0.219118712 | AF134: 0.3226163204 | AG134: 0.0003969 | AH134: 1.7346 | AI134: 4 | AJ134: 0.000574288 | AK134: 358 | AL134: 385 | AM134: 473 | AN134: 0.95 | AO134: 0.95 | AP134: 0.95 | AQ134: 358 | AR134: 385 | AS134: 473 | AT134: 154 | AU134: 166 | AV134: 203 | AW134: 0.216442896 | AX134: 0.2495876591 | AY134: 0.365900111 | AZ134: 1.3 | BA134: 7.8 | BB134: 8.7 | BC134: 12.2 | BE134: 1196 | BG134: 0.68 | BJ134: 0 | BK134: 12.3 | BL134: 14.1 | BM134: 21.85 | BO134: 1 | BP134: 1 | BQ134: 1 | BR134: 358 | BS134: 385 | BT134: 473 | BV134: 0 | BW134: 0 | BX134: 0 | BY134: 1
A135: 15010011 | D135: 1 | E135: 50 | F135: 100 | G135: 11 | H135: 11.5 | I135: 0 | J135: 26 | K135: 30 | L135: 43 | M135: 942.48 | N135: 2136.185678 | O135: 2301.361187 | P135: 2824.9 | Q135: 1.5 | R135: 1.1 | S135: 1.1 | T135: 1.1 | U135: 672 | V135: 1668 | W135: 1797 | X135: 2205 | Y135: 58 | Z135: 143 | AA135: 155 | AB135: 190 | AC135: 0.03418313384 | AD135: 0.1880477654 | AE135: 0.219118712 | AF135: 0.3226163204 | AG135: 0.0003969 | AH135: 1.7346 | AI135: 4 | AJ135: 0.000574288 | AK135: 358 | AL135: 385 | AM135: 473 | AN135: 0.95 | AO135: 0.95 | AP135: 0.95 | AQ135: 358 | AR135: 385 | AS135: 473 | AT135: 154 | AU135: 166 | AV135: 203 | AW135: 0.216442896 | AX135: 0.2495876591 | AY135: 0.365900111 | AZ135: 1.3 | BA135: 7.8 | BB135: 8.7 | BC135: 12.2 | BE135: 1386 | BG135: 0.68 | BJ135: 0 | BK135: 12.3 | BL135: 14.1 | BM135: 21.85 | BO135: 1 | BP135: 1 | BQ135: 1 | BR135: 358 | BS135: 385 | BT135: 473 | BV135: 0 | BW135: 0 | BX135: 0 | BY135: 1
A136: 16510011 | D136: 1 | E136: 65 | F136: 100 | G136: 11 | H136: 11.5 | I136: 0 | J136: 26 | K136: 30 | L136: 43 | M136: 1049.24 | N136: 2136.185678 | O136: 2301.361187 | P136: 2824.9 | Q136: 1.5 | R136: 1.1 | S136: 1.1 | T136: 1.1 | U136: 749 | V136: 1668 | W136: 1797 | X136: 2205 | Y136: 64 | Z136: 143 | AA136: 155 | AB136: 190 | AC136: 0.04114246917 | AD136: 0.1880477654 | AE136: 0.219118712 | AF136: 0.3226163204 | AG136: 0.0003969 | AH136: 1.7346 | AI136: 4 | AJ136: 0.000574288 | AK136: =AK135*(1-(($E136-50)*0.005)) -> 331.15 | AL136: =AL135*(1-(($E136-50)*0.005)) -> 356.125 | AM136: =AM135*(1-(($E136-50)*0.005)) -> 437.525 | AN136: 0.95 | AO136: 0.95 | AP136: 0.95 | AQ136: 331 | AR136: 356 | AS136: 438 | AT136: 142 | AU136: 153 | AV136: 188 | AW136: 0.1855610396 | AX136: 0.2137827938 | AY136: 0.3161890408 | AZ136: 1.3 | BA136: 7.8 | BB136: 8.7 | BC136: 12.2 | BE136: 1543 | BG136: 0.68 | BJ136: 0 | BK136: 12.3 | BL136: 14.1 | BM136: 21.85 | BO136: 1 | BP136: 1 | BQ136: 1 | BR136: 331 | BS136: 356 | BT136: 438 | BV136: 0 | BW136: 0 | BX136: 0 | BY136: 1
A137: 19510011 | D137: 1 | E137: 95 | F137: 100 | G137: 11 | H137: 11.5 | I137: 0 | J137: 26 | K137: 30 | L137: 43 | M137: 1221.28 | N137: 2136.185678 | O137: 2301.361187 | P137: 2824.9 | Q137: 1.5 | R137: 1.1 | S137: 1.1 | T137: 1.1 | U137: 871 | V137: 1668 | W137: 1797 | X137: 2205 | Y137: 75 | Z137: 143 | AA137: 155 | AB137: 190 | AC137: 0.05547655326 | AD137: 0.1880477654 | AE137: 0.219118712 | AF137: 0.3226163204 | AG137: 0.0003969 | AH137: 1.7346 | AI137: 4 | AJ137: 0.000574288 | AK137: =AK135*(1-(($E137-50)*0.005)) -> 277.45 | AL137: =AL135*(1-(($E137-50)*0.005)) -> 298.375 | AM137: =AM135*(1-(($E137-50)*0.005)) -> 366.575 | AN137: 0.95 | AO137: 0.95 | AP137: 0.95 | AQ137: 277 | AR137: 298 | AS137: 367 | AT137: 119 | AU137: 128 | AV137: 158 | AW137: 0.1327483399 | AX137: 0.1524110234 | AY137: 0.2272403671 | AZ137: 1.3 | BA137: 7.8 | BB137: 8.7 | BC137: 12.2 | BE137: 1796 | BG137: 0.68 | BJ137: 0 | BK137: 12.3 | BL137: 14.1 | BM137: 21.85 | BO137: 1 | BP137: 1 | BQ137: 1 | BR137: 277 | BS137: 298 | BT137: 367 | BV137: 0 | BW137: 0 | BX137: 0 | BY137: 1
A138: 13510015 | D138: 1 | E138: 35 | F138: 100 | G138: 15 | H138: 16.5 | I138: 0 | J138: 26 | K138: 30 | L138: 44.1 | M138: 1176 | N138: 1798.773722 | O138: 1926.089172 | P138: 2655.16 | Q138: 1.5 | R138: 1.08 | S138: 1.08 | T138: 1.08 | U138: 839 | V138: 1411 | W138: 1511 | X138: 2082 | Y138: 72 | Z138: 121 | AA138: 130 | AB138: 179 | AC138: 0.02902732905 | AD138: 0.07988292653 | AE138: 0.0919000638 | AF138: 0.1717659962 | AG138: 0.0002083 | AH138: 1.724 | AI138: 2 | AJ138: 0.000461829 | AK138: 245.5398348 | AL138: 262.9189049 | AM138: 362.44 | AN138: 1.01 | AO138: 1.01 | AP138: 1.01 | AQ138: 246 | AR138: 263 | AS138: 362 | AT138: 106 | AU138: 113 | AV138: 156 | AW138: 0.06169371202 | AX138: 0.06989545441 | AY138: 0.1312469465 | AZ138: 1 | BA138: 7 | BB138: 7.7 | BC138: 10.7 | BE138: 1470 | BG138: 0.8 | BJ138: 0 | BK138: 10.9 | BL138: 12.8 | BM138: 21.85 | BO138: 1 | BP138: 1 | BQ138: 1 | BR138: 246 | BS138: 263 | BT138: 362 | BV138: 0 | BW138: 0 | BX138: 0 | BY138: 1
A139: 15010015 | D139: 1 | E139: 50 | F139: 100 | G139: 15 | H139: 16.5 | I139: 0 | J139: 26 | K139: 30 | L139: 44.1 | M139: 1387.2 | N139: 1798.773722 | O139: 1926.089172 | P139: 2655.16 | Q139: 1.5 | R139: 1.08 | S139: 1.08 | T139: 1.08 | U139: 990 | V139: 1411 | W139: 1511 | X139: 2082 | Y139: 85 | Z139: 121 | AA139: 130 | AB139: 179 | AC139: 0.04010842259 | AD139: 0.07988292653 | AE139: 0.0919000638 | AF139: 0.1717659962 | AG139: 0.0002083 | AH139: 1.724 | AI139: 2 | AJ139: 0.000461829 | AK139: 245.5398348 | AL139: 262.9189049 | AM139: 362.44 | AN139: 1.01 | AO139: 1.01 | AP139: 1.01 | AQ139: 246 | AR139: 263 | AS139: 362 | AT139: 106 | AU139: 113 | AV139: 156 | AW139: 0.06169371202 | AX139: 0.06989545441 | AY139: 0.1312469465 | AZ139: 1 | BA139: 7 | BB139: 7.7 | BC139: 10.7 | BE139: 1734 | BG139: 0.8 | BJ139: 0 | BK139: 10.9 | BL139: 12.8 | BM139: 21.85 | BO139: 1 | BP139: 1 | BQ139: 1 | BR139: 246 | BS139: 263 | BT139: 362 | BV139: 0 | BW139: 0 | BX139: 0 | BY139: 1
A140: 16510015 | D140: 1 | E140: 65 | F140: 100 | G140: 15 | H140: 16.5 | I140: 0 | J140: 26 | K140: 30 | L140: 44.1 | M140: 1537.6 | N140: 1798.773722 | O140: 1926.089172 | P140: 2655.16 | Q140: 1.5 | R140: 1.08 | S140: 1.08 | T140: 1.08 | U140: 1097 | V140: 1411 | W140: 1511 | X140: 2082 | Y140: 94 | Z140: 121 | AA140: 130 | AB140: 179 | AC140: 0.04880341193 | AD140: 0.07988292653 | AE140: 0.0919000638 | AF140: 0.1717659962 | AG140: 0.0002083 | AH140: 1.724 | AI140: 2 | AJ140: 0.000461829 | AK140: 245.5398348 | AL140: 262.9189049 | AM140: 362.44 | AN140: 1.01 | AO140: 1.01 | AP140: 1.01 | AQ140: 246 | AR140: 263 | AS140: 362 | AT140: 106 | AU140: 113 | AV140: 156 | AW140: 0.06169371202 | AX140: 0.06989545441 | AY140: 0.1312469465 | AZ140: 1 | BA140: 7 | BB140: 7.7 | BC140: 10.7 | BE140: 1922 | BG140: 0.8 | BJ140: 0 | BK140: 10.9 | BL140: 12.8 | BM140: 21.85 | BO140: 1 | BP140: 1 | BQ140: 1 | BR140: 246 | BS140: 263 | BT140: 362 | BV140: 0 | BW140: 0 | BX140: 0 | BY140: 1
A141: 19510015 | D141: 1 | E141: 95 | F141: 100 | G141: 15 | H141: 16.5 | I141: 0 | J141: 26 | K141: 30 | L141: 44.1 | M141: 1703.773722 | N141: 1798.773722 | O141: 1926.089172 | P141: 2655.16 | Q141: 1.5 | R141: 1.08 | S141: 1.08 | T141: 1.08 | U141: 1216 | V141: 1411 | W141: 1511 | X141: 2082 | Y141: 105 | Z141: 121 | AA141: 130 | AB141: 179 | AC141: 0.0605630343 | AD141: 0.07988292653 | AE141: 0.0919000638 | AF141: 0.1717659962 | AG141: 0.0002083 | AH141: 1.724 | AI141: 2 | AJ141: 0.000461829 | AK141: 245.5398348 | AL141: 262.9189049 | AM141: 362.44 | AN141: 1.01 | AO141: 1.01 | AP141: 1.01 | AQ141: 246 | AR141: 263 | AS141: 362 | AT141: 106 | AU141: 113 | AV141: 156 | AW141: 0.06169371202 | AX141: 0.06989545441 | AY141: 0.1312469465 | AZ141: 1 | BA141: 7 | BB141: 7.7 | BC141: 10.7 | BE141: 2146 | BG141: 0.8 | BJ141: 0 | BK141: 10.9 | BL141: 12.8 | BM141: 21.85 | BO141: 1 | BP141: 1 | BQ141: 1 | BR141: 246 | BS141: 263 | BT141: 362 | BV141: 0 | BW141: 0 | BX141: 0 | BY141: 1
A142: 13510016 | D142: 1 | E142: 35 | F142: 100 | G142: 16 | H142: 16.5 | I142: 0 | J142: 26 | K142: 30 | L142: 44.1 | M142: 1083.24 | N142: 2630.387145 | O142: 2816.563381 | P142: 3882.7 | Q142: 1.5 | R142: 1.1 | S142: 1.1 | T142: 1.1 | U142: 773 | V142: 2054 | W142: 2199 | X142: 3031 | Y142: 66 | Z142: 177 | AA142: 189 | AB142: 261 | AC142: 0.06903628999 | AD142: 0.4800973877 | AE142: 0.54632855 | AF142: 1.032314011 | AG142: 0.0002083 | AH142: 1.724 | AI142: 4 | AJ142: 0.001392796 | AK142: 403 | AL142: 431 | AM142: 595 | AN142: 0.95 | AO142: 0.95 | AP142: 0.95 | AQ142: 403 | AR142: 431 | AS142: 595 | AT142: 173 | AU142: 185 | AV142: 256 | AW142: 0.4589605251 | AX142: 0.523781603 | AY142: 0.9936684748 | AZ142: 2 | BA142: 7 | BB142: 7.7 | BC142: 10.7 | BE142: 1593 | BG142: 0.68 | BJ142: 0 | BK142: 10.9 | BL142: 12.8 | BM142: 21.85 | BO142: 1 | BP142: 1 | BQ142: 1 | BR142: 403 | BS142: 431 | BT142: 595 | BV142: 0 | BW142: 0 | BX142: 0 | BY142: 1
A143: 15010016 | D143: 1 | E143: 50 | F143: 100 | G143: 16 | H143: 16.5 | I143: 0 | J143: 26 | K143: 30 | L143: 44.1 | M143: 1290.64 | N143: 2630.387145 | O143: 2816.563381 | P143: 3882.7 | Q143: 1.5 | R143: 1.1 | S143: 1.1 | T143: 1.1 | U143: 921 | V143: 2054 | W143: 2199 | X143: 3031 | Y143: 79 | Z143: 177 | AA143: 189 | AB143: 261 | AC143: 0.09824636238 | AD143: 0.4800973877 | AE143: 0.54632855 | AF143: 1.032314011 | AG143: 0.0002083 | AH143: 1.724 | AI143: 4 | AJ143: 0.001392796 | AK143: 403 | AL143: 431 | AM143: 595 | AN143: 0.95 | AO143: 0.95 | AP143: 0.95 | AQ143: 403 | AR143: 431 | AS143: 595 | AT143: 173 | AU143: 185 | AV143: 256 | AW143: 0.4589605251 | AX143: 0.523781603 | AY143: 0.9936684748 | AZ143: 2 | BA143: 7 | BB143: 7.7 | BC143: 10.7 | BE143: 1898 | BG143: 0.68 | BJ143: 0 | BK143: 10.9 | BL143: 12.8 | BM143: 21.85 | BO143: 1 | BP143: 1 | BQ143: 1 | BR143: 403 | BS143: 431 | BT143: 595 | BV143: 0 | BW143: 0 | BX143: 0 | BY143: 1
A144: 16510016 | D144: 1 | E144: 65 | F144: 100 | G144: 16 | H144: 16.5 | I144: 0 | J144: 26 | K144: 30 | L144: 44.1 | M144: 1477.64 | N144: 2630.387145 | O144: 2816.563381 | P144: 3882.7 | Q144: 1.5 | R144: 1.1 | S144: 1.1 | T144: 1.1 | U144: 1054 | V144: 2054 | W144: 2199 | X144: 3031 | Y144: 91 | Z144: 177 | AA144: 189 | AB144: 261 | AC144: 0.1296968831 | AD144: 0.4800973877 | AE144: 0.54632855 | AF144: 1.032314011 | AG144: 0.0002083 | AH144: 1.724 | AI144: 4 | AJ144: 0.001392796 | AK144: =AK143*(1-(($E144-50)*0.005)) -> 372.775 | AL144: =AL143*(1-(($E144-50)*0.005)) -> 398.675 | AM144: =AM143*(1-(($E144-50)*0.005)) -> 550.375 | AN144: 0.95 | AO144: 0.95 | AP144: 0.95 | AQ144: 373 | AR144: 399 | AS144: 550 | AT144: 160 | AU144: 172 | AV144: 237 | AW144: 0.3935158638 | AX144: 0.4537498079 | AY144: 0.8534722991 | AZ144: 2 | BA144: 7 | BB144: 7.7 | BC144: 10.7 | BE144: 2173 | BG144: 0.68 | BJ144: 0 | BK144: 10.9 | BL144: 12.8 | BM144: 21.85 | BO144: 1 | BP144: 1 | BQ144: 1 | BR144: 373 | BS144: 399 | BT144: 550 | BV144: 0 | BW144: 0 | BX144: 0 | BY144: 1
A145: 19510016 | D145: 1 | E145: 95 | F145: 100 | G145: 16 | H145: 16.5 | I145: 0 | J145: 26 | K145: 30 | L145: 44.1 | M145: 1820.36 | N145: 2630.387145 | O145: 2816.563381 | P145: 3882.7 | Q145: 1.5 | R145: 1.1 | S145: 1.1 | T145: 1.1 | U145: 1299 | V145: 2054 | W145: 2199 | X145: 3031 | Y145: 112 | Z145: 177 | AA145: 189 | AB145: 261 | AC145: 0.1950577939 | AD145: 0.4800973877 | AE145: 0.54632855 | AF145: 1.032314011 | AG145: 0.0002083 | AH145: 1.724 | AI145: 4 | AJ145: 0.001392796 | AK145: =AK143*(1-(($E145-50)*0.005)) -> 312.325 | AL145: =AL143*(1-(($E145-50)*0.005)) -> 334.025 | AM145: =AM143*(1-(($E145-50)*0.005)) -> 461.125 | AN145: 0.95 | AO145: 0.95 | AP145: 0.95 | AQ145: 312 | AR145: 334 | AS145: 461 | AT145: 134 | AU145: 144 | AV145: 198 | AW145: 0.2775657805 | AX145: 0.319801639 | AY145: 0.5987759838 | AZ145: 2 | BA145: 7 | BB145: 7.7 | BC145: 10.7 | BE145: 2677 | BG145: 0.68 | BJ145: 0 | BK145: 10.9 | BL145: 12.8 | BM145: 21.85 | BO145: 1 | BP145: 1 | BQ145: 1 | BR145: 312 | BS145: 334 | BT145: 461 | BV145: 0 | BW145: 0 | BX145: 0 | BY145: 1
A146: 13510020 | D146: 1 | E146: 35 | F146: 100 | G146: 20 | H146: 21.5 | I146: 0 | J146: 26 | K146: 30 | L146: 44.1 | M146: 1648 | N146: 2518.776843 | O146: 2713.53531 | P146: 3330.84 | Q146: 1.5 | R146: 1.08 | S146: 1.08 | T146: 1.08 | U146: 1176 | V146: 1975 | W146: 2128 | X146: 2612 | Y146: 101 | Z146: 170 | AA146: 183 | AB146: 225 | AC146: 0.04370064736 | AD146: 0.1214954529 | AE146: 0.1404389685 | AF146: 0.210878889 | AG146: 0.0001276 | AH146: 1.7219 | AI146: 2 | AJ146: 0.000376611 | AK146: 311.2816285 | AL146: 335.3507448 | AM146: 411.64 | AN146: 0.95 | AO146: 0.95 | AP146: 0.95 | AQ146: 311 | AR146: 335 | AS146: 412 | AT146: 134 | AU146: 144 | AV146: 177 | AW146: 0.07611738744 | AX146: 0.08767678609 | AY146: 0.1315275397 | AZ146: 1.3 | BA146: 7 | BB146: 7.7 | BC146: 10.7 | BE146: 2060 | BG146: 0.8 | BJ146: 0 | BK146: 10.9 | BL146: 12.8 | BM146: 21.85 | BO146: 1 | BP146: 1 | BQ146: 1 | BR146: 311 | BS146: 335 | BT146: 412 | BV146: 0 | BW146: 0 | BX146: 0 | BY146: 1
A147: 15010020 | D147: 1 | E147: 50 | F147: 100 | G147: 20 | H147: 21.5 | I147: 0 | J147: 26 | K147: 30 | L147: 44.1 | M147: 1940 | N147: 2518.776843 | O147: 2713.53531 | P147: 3330.84 | Q147: 1.5 | R147: 1.08 | S147: 1.08 | T147: 1.08 | U147: 1384 | V147: 1975 | W147: 2128 | X147: 2612 | Y147: 119 | Z147: 170 | AA147: 183 | AB147: 225 | AC147: 0.06029061158 | AD147: 0.1214954529 | AE147: 0.1404389685 | AF147: 0.210878889 | AG147: 0.0001276 | AH147: 1.7219 | AI147: 2 | AJ147: 0.000376611 | AK147: 311.2816285 | AL147: 335.3507448 | AM147: 411.64 | AN147: 0.95 | AO147: 0.95 | AP147: 0.95 | AQ147: 311 | AR147: 335 | AS147: 412 | AT147: 134 | AU147: 144 | AV147: 177 | AW147: 0.07611738744 | AX147: 0.08767678609 | AY147: 0.1315275397 | AZ147: 1.3 | BA147: 7 | BB147: 7.7 | BC147: 10.7 | BE147: 2425 | BG147: 0.8 | BJ147: 0 | BK147: 10.9 | BL147: 12.8 | BM147: 21.85 | BO147: 1 | BP147: 1 | BQ147: 1 | BR147: 311 | BS147: 335 | BT147: 412 | BV147: 0 | BW147: 0 | BX147: 0 | BY147: 1
A148: 16510020 | D148: 1 | E148: 65 | F148: 100 | G148: 20 | H148: 21.5 | I148: 0 | J148: 26 | K148: 30 | L148: 44.1 | M148: 2148 | N148: 2518.776843 | O148: 2713.53531 | P148: 3330.84 | Q148: 1.5 | R148: 1.08 | S148: 1.08 | T148: 1.08 | U148: 1533 | V148: 1975 | W148: 2128 | X148: 2612 | Y148: 132 | Z148: 170 | AA148: 183 | AB148: 225 | AC148: 0.07390222142 | AD148: 0.1214954529 | AE148: 0.1404389685 | AF148: 0.210878889 | AG148: 0.0001276 | AH148: 1.7219 | AI148: 2 | AJ148: 0.000376611 | AK148: 311.2816285 | AL148: 335.3507448 | AM148: 411.64 | AN148: 0.95 | AO148: 0.95 | AP148: 0.95 | AQ148: 311 | AR148: 335 | AS148: 412 | AT148: 134 | AU148: 144 | AV148: 177 | AW148: 0.07611738744 | AX148: 0.08767678609 | AY148: 0.1315275397 | AZ148: 1.3 | BA148: 7 | BB148: 7.7 | BC148: 10.7 | BE148: 2685 | BG148: 0.8 | BJ148: 0 | BK148: 10.9 | BL148: 12.8 | BM148: 21.85 | BO148: 1 | BP148: 1 | BQ148: 1 | BR148: 311 | BS148: 335 | BT148: 412 | BV148: 0 | BW148: 0 | BX148: 0 | BY148: 1
A149: 19510020 | D149: 1 | E149: 95 | F149: 100 | G149: 20 | H149: 21.5 | I149: 0 | J149: 26 | K149: 30 | L149: 44.1 | M149: 2393.6 | N149: 2518.776843 | O149: 2713.53531 | P149: 3330.84 | Q149: 1.5 | R149: 1.08 | S149: 1.08 | T149: 1.08 | U149: 1708 | V149: 1975 | W149: 2128 | X149: 2612 | Y149: 147 | Z149: 170 | AA149: 183 | AB149: 225 | AC149: 0.09130163408 | AD149: 0.1214954529 | AE149: 0.1404389685 | AF149: 0.210878889 | AG149: 0.0001276 | AH149: 1.7219 | AI149: 2 | AJ149: 0.000376611 | AK149: 311.2816285 | AL149: 335.3507448 | AM149: 411.64 | AN149: 0.95 | AO149: 0.95 | AP149: 0.95 | AQ149: 311 | AR149: 335 | AS149: 412 | AT149: 134 | AU149: 144 | AV149: 177 | AW149: 0.07611738744 | AX149: 0.08767678609 | AY149: 0.1315275397 | AZ149: 1.3 | BA149: 7 | BB149: 7.7 | BC149: 10.7 | BE149: 2992 | BG149: 0.8 | BJ149: 0 | BK149: 10.9 | BL149: 12.8 | BM149: 21.85 | BO149: 1 | BP149: 1 | BQ149: 1 | BR149: 311 | BS149: 335 | BT149: 412 | BV149: 0 | BW149: 0 | BX149: 0 | BY149: 1
A150: 13510021 | D150: 1 | E150: 35 | F150: 100 | G150: 21 | H150: 21.5 | I150: 0 | J150: 26 | K150: 30 | L150: 44.1 | M150: 1691.2 | N150: 3387.560889 | O150: 3627.329144 | P150: 5000.36 | Q150: 1.5 | R150: 1.05 | S150: 1.05 | T150: 1.05 | U150: 1207 | V150: 2675 | W150: 2864 | X150: 3948 | Y150: 104 | Z150: 230 | AA150: 246 | AB150: 340 | AC150: 0.06723107578 | AD150: 0.3164915181 | AE150: 0.3609985993 | AF150: 0.6803787551 | AG150: 0.0001276 | AH150: 1.7219 | AI150: 4 | AJ150: 0.000514201 | AK150: 439.4163108 | AL150: 470.5177686 | AM150: 648.62 | AN150: 0.85 | AO150: 0.85 | AP150: 0.85 | AQ150: 439 | AR150: 471 | AS150: 649 | AT150: 189 | AU150: 203 | AV150: 279 | AW150: 0.2156041917 | AX150: 0.2479204613 | AY150: 0.4618679835 | AZ150: 2.7 | BA150: 7 | BB150: 7.7 | BC150: 10.7 | BE150: 2114 | BG150: 0.8 | BJ150: 0 | BK150: 10.9 | BL150: 12.8 | BM150: 21.85 | BO150: 1 | BP150: 1 | BQ150: 1 | BR150: 439 | BS150: 471 | BT150: 649 | BV150: 0 | BW150: 0 | BX150: 0 | BY150: 1
A151: 15010021 | D151: 1 | E151: 50 | F151: 100 | G151: 21 | H151: 21.5 | I151: 0 | J151: 26 | K151: 30 | L151: 44.1 | M151: 2065.6 | N151: 3387.560889 | O151: 3627.329144 | P151: 5000.36 | Q151: 1.5 | R151: 1.05 | S151: 1.05 | T151: 1.05 | U151: 1474 | V151: 2675 | W151: 2864 | X151: 3948 | Y151: 127 | Z151: 230 | AA151: 246 | AB151: 340 | AC151: 0.09923031134 | AD151: 0.3164915181 | AE151: 0.3609985993 | AF151: 0.6803787551 | AG151: 0.0001276 | AH151: 1.7219 | AI151: 4 | AJ151: 0.000514201 | AK151: 439.4163108 | AL151: 470.5177686 | AM151: 648.62 | AN151: 0.85 | AO151: 0.85 | AP151: 0.85 | AQ151: 439 | AR151: 471 | AS151: 649 | AT151: 189 | AU151: 203 | AV151: 279 | AW151: 0.2156041917 | AX151: 0.2479204613 | AY151: 0.4618679835 | AZ151: 2.7 | BA151: 7 | BB151: 7.7 | BC151: 10.7 | BE151: 2582 | BG151: 0.8 | BJ151: 0 | BK151: 10.9 | BL151: 12.8 | BM151: 21.85 | BO151: 1 | BP151: 1 | BQ151: 1 | BR151: 439 | BS151: 471 | BT151: 649 | BV151: 0 | BW151: 0 | BX151: 0 | BY151: 1
A152: 16510021 | D152: 1 | E152: 65 | F152: 100 | G152: 21 | H152: 21.5 | I152: 0 | J152: 26 | K152: 30 | L152: 44.1 | M152: 2424 | N152: 3387.560889 | O152: 3627.329144 | P152: 5000.36 | Q152: 1.5 | R152: 1.05 | S152: 1.05 | T152: 1.05 | U152: 1730 | V152: 2675 | W152: 2864 | X152: 3948 | Y152: 149 | Z152: 230 | AA152: 246 | AB152: 340 | AC152: 0.1355131102 | AD152: 0.3164915181 | AE152: 0.3609985993 | AF152: 0.6803787551 | AG152: 0.0001276 | AH152: 1.7219 | AI152: 4 | AJ152: 0.000514201 | AK152: =AK151*(1-(($E152-50)*0.005)) -> 406.4600875 | AL152: =AL151*(1-(($E152-50)*0.005)) -> 435.228936 | AM152: =AM151*(1-(($E152-50)*0.005)) -> 599.9735 | AN152: 0.85 | AO152: 0.85 | AP152: 0.85 | AQ152: 406 | AR152: 435 | AS152: 600 | AT152: 175 | AU152: 187 | AV152: 258 | AW152: 0.1855061267 | AX152: 0.2111685425 | AY152: 0.3962657958 | AZ152: 2.7 | BA152: 7 | BB152: 7.7 | BC152: 10.7 | BE152: 3030 | BG152: 0.8 | BJ152: 0 | BK152: 10.9 | BL152: 12.8 | BM152: 21.85 | BO152: 1 | BP152: 1 | BQ152: 1 | BR152: 406 | BS152: 435 | BT152: 600 | BV152: 0 | BW152: 0 | BX152: 0 | BY152: 1
A153: 19510021 | D153: 1 | E153: 95 | F153: 100 | G153: 21 | H153: 21.5 | I153: 0 | J153: 26 | K153: 30 | L153: 44.1 | M153: 3136 | N153: 3387.560889 | O153: 3627.329144 | P153: 5000.36 | Q153: 1.5 | R153: 1.05 | S153: 1.05 | T153: 1.05 | U153: 2238 | V153: 2675 | W153: 2864 | X153: 3948 | Y153: 192 | Z153: 230 | AA153: 246 | AB153: 340 | AC153: 0.2223425397 | AD153: 0.3164915181 | AE153: 0.3609985993 | AF153: 0.6803787551 | AG153: 0.0001276 | AH153: 1.7219 | AI153: 4 | AJ153: 0.000514201 | AK153: =AK151*(1-(($E153-50)*0.005)) -> 340.5476409 | AL153: =AL151*(1-(($E153-50)*0.005)) -> 364.6512707 | AM153: =AM151*(1-(($E153-50)*0.005)) -> 502.6805 | AN153: 0.85 | AO153: 0.85 | AP153: 0.85 | AQ153: 341 | AR153: 365 | AS153: 503 | AT153: 147 | AU153: 157 | AV153: 216 | AW153: 0.1319862212 | AX153: 0.1500765467 | AY153: 0.2799104365 | AZ153: 2.7 | BA153: 7 | BB153: 7.7 | BC153: 10.7 | BE153: 3920 | BG153: 0.8 | BJ153: 0 | BK153: 10.9 | BL153: 12.8 | BM153: 21.85 | BO153: 1 | BP153: 1 | BQ153: 1 | BR153: 341 | BS153: 365 | BT153: 503 | BV153: 0 | BW153: 0 | BX153: 0 | BY153: 1
A154: 13511010 | D154: 1 | E154: 35 | F154: 110 | G154: 10 | H154: 11.5 | I154: 0 | J154: 26 | K154: 30 | L154: 43.5 | M154: 889.2 | N154: 1766.389395 | O154: 1902.97128 | P154: 2335.88 | Q154: 1.5 | R154: 1.08 | S154: 1.08 | T154: 1.08 | U154: 634 | V154: 1385 | W154: 1492 | X154: 1832 | Y154: =ROUND(U154*3600/(4186*ABS($O$1-$O$2)),0) -> 55 | Z154: =ROUND(V154*3600/(4186*ABS($O$1-$O$2)),0) -> 119 | AA154: =ROUND(W154*3600/(4186*ABS($O$1-$O$2)),0) -> 128 | AB154: =ROUND(X154*3600/(4186*ABS($O$1-$O$2)),0) -> 158 | AC154: 0.01865655255 | AD154: 0.08060327581 | AE154: 0.09259960503 | AF154: 0.1383083528 | AG154: 0.0003969 | AH154: 1.7346 | AI154: 2 | AJ154: 0.000367347 | AK154: 244.8873836 | AL154: 263.8227218 | AM154: 323.84 | AN154: 0.98 | AO154: 0.98 | AP154: 0.98 | AQ154: 245 | AR154: 264 | AS154: 324 | AT154: =ROUND(AQ154*3600/(4186*ABS($AM$1-$AM$2)),0) -> 105 | AU154: =ROUND(AR154*3600/(4186*ABS($AM$1-$AM$2)),0) -> 114 | AV154: =ROUND(AS154*3600/(4186*ABS($AM$1-$AM$2)),0) -> 139 | AW154: 0.06353240941 | AX154: 0.07428367808 | AY154: 0.1083410348 | AZ154: 0.7 | BA154: 8.4 | BB154: 9.3 | BC154: 14 | BE154: 988 | BG154: 0.9 | BJ154: 0 | BK154: 12 | BL154: 13.9 | BM154: 21.85 | BO154: 1 | BP154: 1 | BQ154: 1 | BR154: 245 | BS154: 264 | BT154: 324 | BV154: 0 | BW154: 0 | BX154: 0 | BY154: 1
A155: 15011010 | D155: 1 | E155: 50 | F155: 110 | G155: 10 | H155: 11.5 | I155: 0 | J155: 26 | K155: 30 | L155: 43.5 | M155: 1065.6 | N155: 1766.389395 | O155: 1902.97128 | P155: 2335.88 | Q155: 1.5 | R155: 1.08 | S155: 1.08 | T155: 1.08 | U155: 760 | V155: 1385 | W155: 1492 | X155: 1832 | Y155: 65 | Z155: 119 | AA155: 128 | AB155: 158 | AC155: 0.02558706834 | AD155: 0.08060327581 | AE155: 0.09259960503 | AF155: 0.1383083528 | AG155: 0.0003969 | AH155: 1.7346 | AI155: 2 | AJ155: 0.000367347 | AK155: 244.8873836 | AL155: 263.8227218 | AM155: 323.84 | AN155: 0.98 | AO155: 0.98 | AP155: 0.98 | AQ155: 245 | AR155: 264 | AS155: 324 | AT155: 105 | AU155: 114 | AV155: 139 | AW155: 0.06353240941 | AX155: 0.07428367808 | AY155: 0.1083410348 | AZ155: 0.7 | BA155: 8.4 | BB155: 9.3 | BC155: 14 | BE155: 1184 | BG155: 0.9 | BJ155: 0 | BK155: 12 | BL155: 13.9 | BM155: 21.85 | BO155: 1 | BP155: 1 | BQ155: 1 | BR155: 245 | BS155: 264 | BT155: 324 | BV155: 0 | BW155: 0 | BX155: 0 | BY155: 1
A156: 16511010 | D156: 1 | E156: 65 | F156: 110 | G156: 10 | H156: 11.5 | I156: 0 | J156: 26 | K156: 30 | L156: 43.5 | M156: =IF($N156-($BE156*$BG156)>100,$BE156*$BG156,$N156-95) -> 1198.8 | N156: 1766.389395 | O156: 1902.97128 | P156: 2335.88 | Q156: 1.5 | R156: 1.08 | S156: 1.08 | T156: 1.08 | U156: =ROUND(M156*POWER(CF_heat,Q156),0) -> 855 | V156: =ROUND(N156*POWER(CF_heat,R156),0) -> 1385 | W156: =ROUND(O156*POWER(CF_heat,S156),0) -> 1492 | X156: =ROUND(P156*POWER(CF_heat,T156),0) -> 1832 | Y156: 74 | Z156: 119 | AA156: 128 | AB156: 158 | AC156: 0.03270824781 | AD156: 0.08060327581 | AE156: 0.09259960503 | AF156: 0.1383083528 | AG156: =IF($G156=$CO$103,CP$103,IF($G156=$CO$104,CP$104,IF($G156=$CO$105,CP$105,IF($G156=$CO$107,CP$107,IF($G156=$CO$108,CP$108,IF($G156=$CO$109,CP$109,IF($G156=$CO$111,CP$111,IF($G156=$CO$112,CP$112,IF($G156=$CO$113,CP$113,IF($G156=$CO$115,CP$115,IF($G156=$CO$116,CP$116,IF($G156=$CO$117,CP$117,IF($G156=$CO$119,CP$119,IF($G156=$CO$120,CP$120,)))))))))))))) -> 0.0003969 | AH156: =IF($G156=$CO$103,CQ$103,IF($G156=$CO$104,CQ$104,IF($G156=$CO$105,CQ$105,IF($G156=$CO$107,CQ$107,IF($G156=$CO$108,CQ$108,IF($G156=$CO$109,CQ$109,IF($G156=$CO$111,CQ$111,IF($G156=$CO$112,CQ$112,IF($G156=$CO$113,CQ$113,IF($G156=$CO$115,CQ$115,IF($G156=$CO$116,CQ$116,IF($G156=$CO$117,CQ$117,IF($G156=$CO$119,CQ$119,IF($G156=$CO$120,CQ$120,)))))))))))))) -> 1.7346 | AI156: =IF($G156=$CO$103,CR$103,IF($G156=$CO$104,CR$104,IF($G156=$CO$105,CR$105,IF($G156=$CO$107,CR$107,IF($G156=$CO$108,CR$108,IF($G156=$CO$109,CR$109,IF($G156=$CO$111,CR$111,IF($G156=$CO$112,CR$112,IF($G156=$CO$113,CR$113,IF($G156=$CO$115,CR$115,IF($G156=$CO$116,CR$116,IF($G156=$CO$117,CR$117,IF($G156=$CO$119,CR$119,IF($G156=$CO$120,CR$120,)))))))))))))) -> 2 | AJ156: =IF($G156=$CO$103,CS$103,IF($G156=$CO$104,CS$104,IF($G156=$CO$105,CS$105,IF($G156=$CO$107,CS$107,IF($G156=$CO$108,CS$108,IF($G156=$CO$109,CS$109,IF($G156=$CO$111,CS$111,IF($G156=$CO$112,CS$112,IF($G156=$CO$113,CS$113,IF($G156=$CO$115,CS$115,IF($G156=$CO$116,CS$116,IF($G156=$CO$117,CS$117,IF($G156=$CO$119,CS$119,IF($G156=$CO$120,CS$120,)))))))))))))) -> 0.000367347 | AK156: 244.8873836 | AL156: 263.8227218 | AM156: 323.84 | AN156: 0.98 | AO156: 0.98 | AP156: 0.98 | AQ156: =ROUND(AK156*POWER(CF_cool,AN156),0) -> 245 | AR156: =ROUND(AL156*POWER(CF_cool,AO156),0) -> 264 | AS156: =ROUND(AM156*POWER(CF_cool,AP156),0) -> 324 | AT156: 105 | AU156: 114 | AV156: 139 | AW156: 0.06353240941 | AX156: 0.07428367808 | AY156: 0.1083410348 | AZ156: =ROUND(IF(G156=10,$CO$92*F156,IF(G156=11,$CO$93*F156,IF(G156=15,$CO$94*F156,IF(G156=16,$CO$95*F156,IF(G156=20,$CO$96*F156,IF(G156=21,$CO$97*F156,)))))),1) -> 0.7 | BA156: 8.4 | BB156: 9.3 | BC156: 14 | BE156: 1332 | BG156: =IF(G156=10,0.9,IF(G156=11,0.68,IF(G156=15,0.8,IF(G156=16,0.68,IF(G156=20,0.8,IF(G156=21,0.8)))))) -> 0.9 | BJ156: 0 | BK156: 12 | BL156: 13.9 | BM156: 21.85 | BO156: 1 | BP156: 1 | BQ156: 1 | BR156: =AQ156/BO156 -> 245 | BS156: =AR156/BP156 -> 264 | BT156: =AS156/BQ156 -> 324 | BV156: =BR156-AQ156 -> 0 | BW156: =BS156-AR156 -> 0 | BX156: =BT156-AS156 -> 0 | BY156: 1
A157: =CONCATENATE(D157,E157,F157,G157) -> 19511010 | D157: 1 | E157: 95 | F157: 110 | G157: 10 | H157: 11.5 | I157: 0 | J157: 26 | K157: 30 | L157: 43.5 | M157: 1378.8 | N157: 1766.389395 | O157: 1902.97128 | P157: 2335.88 | Q157: 1.5 | R157: =IF($G157=10,1.08,IF($G157=11,1.1,IF($G157=15,1.08,IF($G157=16,1.1,IF($G157=20,1.08,IF($G157=21,1.05)))))) -> 1.08 | S157: 1.08 | T157: 1.08 | U157: 984 | V157: 1385 | W157: 1492 | X157: 1832 | Y157: 85 | Z157: 119 | AA157: 128 | AB157: 158 | AC157: =(($AG157*(Y157^$AH157)*((($F157-14.4)*$AI157)/100))+($AJ157*(Y157^2)))*0.0098 -> 0.04253590474 | AD157: =(($AG157*(Z157^$AH157)*((($F157-14.4)*$AI157)/100))+($AJ157*(Z157^2)))*0.0098 -> 0.08060327581 | AE157: =(($AG157*(AA157^$AH157)*((($F157-14.4)*$AI157)/100))+($AJ157*(AA157^2)))*0.0098 -> 0.09259960503 | AF157: =(($AG157*(AB157^$AH157)*((($F157-14.4)*$AI157)/100))+($AJ157*(AB157^2)))*0.0098 -> 0.1383083528 | AG157: 0.0003969 | AH157: 1.7346 | AI157: 2 | AJ157: 0.000367347 | AK157: 244.8873836 | AL157: 263.8227218 | AM157: 323.84 | AN157: 0.98 | AO157: 0.98 | AP157: 0.98 | AQ157: 245 | AR157: 264 | AS157: 324 | AT157: 105 | AU157: 114 | AV157: 139 | AW157: =(($AG157*(AT157^$AH157)*((($F157-14.4)*$AI157)/100))+($AJ157*(AT157^2)))*0.0098 -> 0.06353240941 | AX157: =(($AG157*(AU157^$AH157)*((($F157-14.4)*$AI157)/100))+($AJ157*(AU157^2)))*0.0098 -> 0.07428367808 | AY157: =(($AG157*(AV157^$AH157)*((($F157-14.4)*$AI157)/100))+($AJ157*(AV157^2)))*0.0098 -> 0.1083410348 | AZ157: 0.7 | BA157: 8.4 | BB157: 9.3 | BC157: 14 | BE157: 1532 | BG157: 0.9 | BJ157: 0 | BK157: 12 | BL157: 13.9 | BM157: 21.85 | BO157: =IF(1/(1+((2258*((0.622/((101325/(1*611*EXP(17.27*((($AM$1+$AM$2)/2)/((($AM$1+$AM$2)/2)+237.3))))))-1)*1000-(0.622/((101325/($AQ$1*611*EXP(17.27*($AM$3/($AM$3+237.3))))))-1)*1000))/(1005*((($AM$1+$AM$2)/2)-$AM$3))))>1,1,1/(1+((2258*((0.622/((101325/(1*611*EXP(17.27*((($AM$1+$AM$2)/2)/((($AM$1+$AM$2)/2)+237.3))))))-1)*1000-(0.622/((101325/($AQ$1*611*EXP(17.27*($AM$3/($AM$3+237.3))))))-1)*1000))/(1005*((($AM$1+$AM$2)/2)-$AM$3))))) -> 1 | BP157: 1 | BQ157: 1 | BR157: 245 | BS157: 264 | BT157: 324 | BV157: 0 | BW157: 0 | BX157: 0 | BY157: 1
A158: 13511011 | D158: 1 | E158: 35 | F158: 110 | G158: 11 | H158: 11.5 | I158: 0 | J158: 26 | K158: 30 | L158: 43.5 | M158: 894.88 | N158: 2396.696126 | O158: 2582.014991 | P158: 3169.4 | Q158: 1.5 | R158: 1.1 | S158: 1.1 | T158: 1.1 | U158: 639 | V158: 1871 | W158: 2016 | X158: 2474 | Y158: 55 | Z158: 161 | AA158: 173 | AB158: 213 | AC158: 0.03255786923 | AD158: 0.2459727088 | AE158: 0.2818219638 | AF158: 0.417979603 | AG158: 0.0003969 | AH158: 1.7346 | AI158: 4 | AJ158: 0.000574288 | AK158: 401.4205123 | AL158: 432.4594048 | AM158: 530.84 | AN158: 0.95 | AO158: 0.95 | AP158: 0.95 | AQ158: 401 | AR158: 432 | AS158: 531 | AT158: 172 | AU158: 186 | AV158: 228 | AW158: 0.2787458873 | AX158: 0.3232719022 | AY158: 0.4755872398 | AZ158: 1.5 | BA158: 8.4 | BB158: 9.3 | BC158: 14 | BE158: 1316 | BG158: 0.68 | BJ158: 0 | BK158: 12 | BL158: 13.9 | BM158: 21.85 | BO158: 1 | BP158: 1 | BQ158: 1 | BR158: 401 | BS158: 432 | BT158: 531 | BV158: 0 | BW158: 0 | BX158: 0 | BY158: 1
A159: 15011011 | D159: 1 | E159: 50 | F159: 110 | G159: 11 | H159: 11.5 | I159: 0 | J159: 26 | K159: 30 | L159: 43.5 | M159: 1037 | N159: 2396.696126 | O159: 2582.014991 | P159: 3169.4 | Q159: 1.5 | R159: 1.1 | S159: 1.1 | T159: 1.1 | U159: 740 | V159: 1871 | W159: 2016 | X159: 2474 | Y159: 64 | Z159: 161 | AA159: 173 | AB159: 213 | AC159: 0.04325579737 | AD159: 0.2459727088 | AE159: 0.2818219638 | AF159: 0.417979603 | AG159: 0.0003969 | AH159: 1.7346 | AI159: 4 | AJ159: 0.000574288 | AK159: 401.4205123 | AL159: 432.4594048 | AM159: 530.84 | AN159: 0.95 | AO159: 0.95 | AP159: 0.95 | AQ159: 401 | AR159: 432 | AS159: 531 | AT159: 172 | AU159: 186 | AV159: 228 | AW159: 0.2787458873 | AX159: 0.3232719022 | AY159: 0.4755872398 | AZ159: 1.5 | BA159: 8.4 | BB159: 9.3 | BC159: 14 | BE159: 1525 | BG159: 0.68 | BJ159: 0 | BK159: 12 | BL159: 13.9 | BM159: 21.85 | BO159: 1 | BP159: 1 | BQ159: 1 | BR159: 401 | BS159: 432 | BT159: 531 | BV159: 0 | BW159: 0 | BX159: 0 | BY159: 1
A160: 16511011 | D160: 1 | E160: 65 | F160: 110 | G160: 11 | H160: 11.5 | I160: 0 | J160: 26 | K160: 30 | L160: 43.5 | M160: 1153.96 | N160: 2396.696126 | O160: 2582.014991 | P160: 3169.4 | Q160: 1.5 | R160: 1.1 | S160: 1.1 | T160: 1.1 | U160: 823 | V160: 1871 | W160: 2016 | X160: 2474 | Y160: 71 | Z160: 161 | AA160: 173 | AB160: 213 | AC160: 0.05255985398 | AD160: 0.2459727088 | AE160: 0.2818219638 | AF160: 0.417979603 | AG160: 0.0003969 | AH160: 1.7346 | AI160: 4 | AJ160: 0.000574288 | AK160: =AK159*(1-(($E160-50)*0.005)) -> 371.3139739 | AL160: =AL159*(1-(($E160-50)*0.005)) -> 400.0249494 | AM160: =AM159*(1-(($E160-50)*0.005)) -> 491.027 | AN160: 0.95 | AO160: 0.95 | AP160: 0.95 | AQ160: 371 | AR160: 400 | AS160: 491 | AT160: 160 | AU160: 172 | AV160: 211 | AW160: 0.2430902277 | AX160: 0.2787458873 | AY160: 0.410567183 | AZ160: 1.5 | BA160: 8.4 | BB160: 9.3 | BC160: 14 | BE160: 1697 | BG160: 0.68 | BJ160: 0 | BK160: 12 | BL160: 13.9 | BM160: 21.85 | BO160: 1 | BP160: 1 | BQ160: 1 | BR160: 371 | BS160: 400 | BT160: 491 | BV160: 0 | BW160: 0 | BX160: 0 | BY160: 1
A161: 19511011 | D161: 1 | E161: 95 | F161: 110 | G161: 11 | H161: 11.5 | I161: 0 | J161: 26 | K161: 30 | L161: 43.5 | M161: 1343.68 | N161: 2396.696126 | O161: 2582.014991 | P161: 3169.4 | Q161: 1.5 | R161: 1.1 | S161: 1.1 | T161: 1.1 | U161: 959 | V161: 1871 | W161: 2016 | X161: 2474 | Y161: 82 | Z161: 161 | AA161: 173 | AB161: 213 | AC161: 0.06889746744 | AD161: 0.2459727088 | AE161: 0.2818219638 | AF161: 0.417979603 | AG161: 0.0003969 | AH161: 1.7346 | AI161: 4 | AJ161: 0.000574288 | AK161: =AK159*(1-(($E161-50)*0.005)) -> 311.1008971 | AL161: =AL159*(1-(($E161-50)*0.005)) -> 335.1560387 | AM161: =AM159*(1-(($E161-50)*0.005)) -> 411.401 | AN161: 0.95 | AO161: 0.95 | AP161: 0.95 | AQ161: 311 | AR161: 335 | AS161: 411 | AT161: 134 | AU161: 144 | AV161: 177 | AW161: 0.1738516849 | AX161: 0.1991773521 | AY161: 0.2942870288 | AZ161: 1.5 | BA161: 8.4 | BB161: 9.3 | BC161: 14 | BE161: 1976 | BG161: 0.68 | BJ161: 0 | BK161: 12 | BL161: 13.9 | BM161: 21.85 | BO161: 1 | BP161: 1 | BQ161: 1 | BR161: 311 | BS161: 335 | BT161: 411 | BV161: 0 | BW161: 0 | BX161: 0 | BY161: 1
A162: 13511015 | D162: 1 | E162: 35 | F162: 110 | G162: 15 | H162: 16.5 | I162: 0 | J162: 26 | K162: 30 | L162: 44.1 | M162: 1293.6 | N162: 1908.150188 | O162: 2043.207197 | P162: 2816.61 | Q162: 1.5 | R162: 1.08 | S162: 1.08 | T162: 1.08 | U162: 923 | V162: 1496 | W162: 1602 | X162: 2209 | Y162: 79 | Z162: 129 | AA162: 138 | AB162: 190 | AC162: 0.0355393958 | AD162: 0.09230068337 | AE162: 0.105270664 | AF162: 0.1964970271 | AG162: 0.0002083 | AH162: 1.724 | AI162: 2 | AJ162: 0.000461829 | AK162: 249.8078543 | AL162: 267.4890105 | AM162: 368.74 | AN162: 1.01 | AO162: 1.01 | AP162: 1.01 | AQ162: 250 | AR162: 267 | AS162: 369 | AT162: 108 | AU162: 115 | AV162: 159 | AW162: 0.06529371259 | AX162: 0.07378840123 | AY162: 0.1387762212 | AZ162: 1.1 | BA162: 7.9 | BB162: 8.8 | BC162: 12.5 | BE162: 1617 | BG162: 0.8 | BJ162: 0 | BK162: 10.9 | BL162: 12.8 | BM162: 21.85 | BO162: 1 | BP162: 1 | BQ162: 1 | BR162: 250 | BS162: 267 | BT162: 369 | BV162: 0 | BW162: 0 | BX162: 0 | BY162: 1
A163: 15011015 | D163: 1 | E163: 50 | F163: 110 | G163: 15 | H163: 16.5 | I163: 0 | J163: 26 | K163: 30 | L163: 44.1 | M163: 1525.6 | N163: 1908.150188 | O163: 2043.207197 | P163: 2816.61 | Q163: 1.5 | R163: 1.08 | S163: 1.08 | T163: 1.08 | U163: 1089 | V163: 1496 | W163: 1602 | X163: 2209 | Y163: 94 | Z163: 129 | AA163: 138 | AB163: 190 | AC163: 0.04983289156 | AD163: 0.09230068337 | AE163: 0.105270664 | AF163: 0.1964970271 | AG163: 0.0002083 | AH163: 1.724 | AI163: 2 | AJ163: 0.000461829 | AK163: 249.8078543 | AL163: 267.4890105 | AM163: 368.74 | AN163: 1.01 | AO163: 1.01 | AP163: 1.01 | AQ163: 250 | AR163: 267 | AS163: 369 | AT163: 108 | AU163: 115 | AV163: 159 | AW163: 0.06529371259 | AX163: 0.07378840123 | AY163: 0.1387762212 | AZ163: 1.1 | BA163: 7.9 | BB163: 8.8 | BC163: 12.5 | BE163: 1907 | BG163: 0.8 | BJ163: 0 | BK163: 10.9 | BL163: 12.8 | BM163: 21.85 | BO163: 1 | BP163: 1 | BQ163: 1 | BR163: 250 | BS163: 267 | BT163: 369 | BV163: 0 | BW163: 0 | BX163: 0 | BY163: 1
A164: 16511015 | D164: 1 | E164: 65 | F164: 110 | G164: 15 | H164: 16.5 | I164: 0 | J164: 26 | K164: 30 | L164: 44.1 | M164: 1691.2 | N164: 1908.150188 | O164: 2043.207197 | P164: 2816.61 | Q164: 1.5 | R164: 1.08 | S164: 1.08 | T164: 1.08 | U164: 1207 | V164: 1496 | W164: 1602 | X164: 2209 | Y164: 104 | Z164: 129 | AA164: 138 | AB164: 190 | AC164: 0.06066810878 | AD164: 0.09230068337 | AE164: 0.105270664 | AF164: 0.1964970271 | AG164: 0.0002083 | AH164: 1.724 | AI164: 2 | AJ164: 0.000461829 | AK164: 249.8078543 | AL164: 267.4890105 | AM164: 368.74 | AN164: 1.01 | AO164: 1.01 | AP164: 1.01 | AQ164: 250 | AR164: 267 | AS164: 369 | AT164: 108 | AU164: 115 | AV164: 159 | AW164: 0.06529371259 | AX164: 0.07378840123 | AY164: 0.1387762212 | AZ164: 1.1 | BA164: 7.9 | BB164: 8.8 | BC164: 12.5 | BE164: 2114 | BG164: 0.8 | BJ164: 0 | BK164: 10.9 | BL164: 12.8 | BM164: 21.85 | BO164: 1 | BP164: 1 | BQ164: 1 | BR164: 250 | BS164: 267 | BT164: 369 | BV164: 0 | BW164: 0 | BX164: 0 | BY164: 1
A165: 19511015 | D165: 1 | E165: 95 | F165: 110 | G165: 15 | H165: 16.5 | I165: 0 | J165: 26 | K165: 30 | L165: 44.1 | M165: 1813.150188 | N165: 1908.150188 | O165: 2043.207197 | P165: 2816.61 | Q165: 1.5 | R165: 1.08 | S165: 1.08 | T165: 1.08 | U165: 1294 | V165: 1496 | W165: 1602 | X165: 2209 | Y165: 111 | Z165: 129 | AA165: 138 | AB165: 190 | AC165: 0.06887202122 | AD165: 0.09230068337 | AE165: 0.105270664 | AF165: 0.1964970271 | AG165: 0.0002083 | AH165: 1.724 | AI165: 2 | AJ165: 0.000461829 | AK165: 249.8078543 | AL165: 267.4890105 | AM165: 368.74 | AN165: 1.01 | AO165: 1.01 | AP165: 1.01 | AQ165: 250 | AR165: 267 | AS165: 369 | AT165: 108 | AU165: 115 | AV165: 159 | AW165: 0.06529371259 | AX165: 0.07378840123 | AY165: 0.1387762212 | AZ165: 1.1 | BA165: 7.9 | BB165: 8.8 | BC165: 12.5 | BE165: 2361 | BG165: 0.8 | BJ165: 0 | BK165: 10.9 | BL165: 12.8 | BM165: 21.85 | BO165: 1 | BP165: 1 | BQ165: 1 | BR165: 250 | BS165: 267 | BT165: 369 | BV165: 0 | BW165: 0 | BX165: 0 | BY165: 1
A166: 13511016 | D166: 1 | E166: 35 | F166: 110 | G166: 16 | H166: 16.5 | I166: 0 | J166: 26 | K166: 30 | L166: 44.1 | M166: 1191.36 | N166: 2849.749794 | O166: 3051.452305 | P166: 4206.5 | Q166: 1.5 | R166: 1.1 | S166: 1.1 | T166: 1.1 | U166: 850 | V166: 2225 | W166: 2382 | X166: 3284 | Y166: 73 | Z166: 191 | AA166: 205 | AB166: 282 | AC166: 0.08546687826 | AD166: 0.5647681423 | AE166: 0.6491073654 | AF166: 1.216271499 | AG166: 0.0002083 | AH166: 1.724 | AI166: 4 | AJ166: 0.001392796 | AK166: 407.8329671 | AL166: 436.6989867 | AM166: 602 | AN166: 0.95 | AO166: 0.95 | AP166: 0.95 | AQ166: 408 | AR166: 437 | AS166: 602 | AT166: 175 | AU166: 188 | AV166: 259 | AW166: 0.475481527 | AX166: 0.5474495717 | AY166: 1.028585167 | AZ166: 2.2 | BA166: 7.9 | BB166: 8.8 | BC166: 12.5 | BE166: 1752 | BG166: 0.68 | BJ166: 0 | BK166: 10.9 | BL166: 12.8 | BM166: 21.85 | BO166: 1 | BP166: 1 | BQ166: 1 | BR166: 408 | BS166: 437 | BT166: 602 | BV166: 0 | BW166: 0 | BX166: 0 | BY166: 1
A167: 15011016 | D167: 1 | E167: 50 | F167: 110 | G167: 16 | H167: 16.5 | I167: 0 | J167: 26 | K167: 30 | L167: 44.1 | M167: 1419.84 | N167: 2849.749794 | O167: 3051.452305 | P167: 4206.5 | Q167: 1.5 | R167: 1.1 | S167: 1.1 | T167: 1.1 | U167: 1013 | V167: 2225 | W167: 2382 | X167: 3284 | Y167: 87 | Z167: 191 | AA167: 205 | AB167: 282 | AC167: 0.1205375205 | AD167: 0.5647681423 | AE167: 0.6491073654 | AF167: 1.216271499 | AG167: 0.0002083 | AH167: 1.724 | AI167: 4 | AJ167: 0.001392796 | AK167: 407.8329671 | AL167: 436.6989867 | AM167: 602 | AN167: 0.95 | AO167: 0.95 | AP167: 0.95 | AQ167: 408 | AR167: 437 | AS167: 602 | AT167: 175 | AU167: 188 | AV167: 259 | AW167: 0.475481527 | AX167: 0.5474495717 | AY167: 1.028585167 | AZ167: 2.2 | BA167: 7.9 | BB167: 8.8 | BC167: 12.5 | BE167: 2088 | BG167: 0.68 | BJ167: 0 | BK167: 10.9 | BL167: 12.8 | BM167: 21.85 | BO167: 1 | BP167: 1 | BQ167: 1 | BR167: 408 | BS167: 437 | BT167: 602 | BV167: 0 | BW167: 0 | BX167: 0 | BY167: 1
A168: 16511016 | D168: 1 | E168: 65 | F168: 110 | G168: 16 | H168: 16.5 | I168: 0 | J168: 26 | K168: 30 | L168: 44.1 | M168: 1625.2 | N168: 2849.749794 | O168: 3051.452305 | P168: 4206.5 | Q168: 1.5 | R168: 1.1 | S168: 1.1 | T168: 1.1 | U168: 1160 | V168: 2225 | W168: 2382 | X168: 3284 | Y168: 100 | Z168: 191 | AA168: 205 | AB168: 282 | AC168: 0.1583934591 | AD168: 0.5647681423 | AE168: 0.6491073654 | AF168: 1.216271499 | AG168: 0.0002083 | AH168: 1.724 | AI168: 4 | AJ168: 0.001392796 | AK168: =AK167*(1-(($E168-50)*0.005)) -> 377.2454945 | AL168: =AL167*(1-(($E168-50)*0.005)) -> 403.9465627 | AM168: =AM167*(1-(($E168-50)*0.005)) -> 556.85 | AN168: 0.95 | AO168: 0.95 | AP168: 0.95 | AQ168: 377 | AR168: 404 | AS168: 557 | AT168: 162 | AU168: 174 | AV168: 240 | AW168: 0.4085228818 | AX168: 0.4701529098 | AY168: 0.8852698396 | AZ168: 2.2 | BA168: 7.9 | BB168: 8.8 | BC168: 12.5 | BE168: 2390 | BG168: 0.68 | BJ168: 0 | BK168: 10.9 | BL168: 12.8 | BM168: 21.85 | BO168: 1 | BP168: 1 | BQ168: 1 | BR168: 377 | BS168: 404 | BT168: 557 | BV168: 0 | BW168: 0 | BX168: 0 | BY168: 1
A169: 19511016 | D169: 1 | E169: 95 | F169: 110 | G169: 16 | H169: 16.5 | I169: 0 | J169: 26 | K169: 30 | L169: 44.1 | M169: 2002.6 | N169: 2849.749794 | O169: 3051.452305 | P169: 4206.5 | Q169: 1.5 | R169: 1.1 | S169: 1.1 | T169: 1.1 | U169: 1429 | V169: 2225 | W169: 2382 | X169: 3284 | Y169: 123 | Z169: 191 | AA169: 205 | AB169: 282 | AC169: 0.2377935195 | AD169: 0.5647681423 | AE169: 0.6491073654 | AF169: 1.216271499 | AG169: 0.0002083 | AH169: 1.724 | AI169: 4 | AJ169: 0.001392796 | AK169: =AK167*(1-(($E169-50)*0.005)) -> 316.0705495 | AL169: =AL167*(1-(($E169-50)*0.005)) -> 338.4417147 | AM169: =AM167*(1-(($E169-50)*0.005)) -> 466.55 | AN169: 0.95 | AO169: 0.95 | AP169: 0.95 | AQ169: 316 | AR169: 338 | AS169: 467 | AT169: 136 | AU169: 145 | AV169: 201 | AW169: 0.2896688577 | AX169: 0.3285344535 | AY169: 0.6244192545 | AZ169: 2.2 | BA169: 7.9 | BB169: 8.8 | BC169: 12.5 | BE169: 2945 | BG169: 0.68 | BJ169: 0 | BK169: 10.9 | BL169: 12.8 | BM169: 21.85 | BO169: 1 | BP169: 1 | BQ169: 1 | BR169: 316 | BS169: 338 | BT169: 467 | BV169: 0 | BW169: 0 | BX169: 0 | BY169: 1
A170: 13511020 | D170: 1 | E170: 35 | F170: 110 | G170: 20 | H170: 21.5 | I170: 0 | J170: 26 | K170: 30 | L170: 44.1 | M170: 1812.8 | N170: 2692.551302 | O170: 2900.746468 | P170: 3560.64 | Q170: 1.5 | R170: 1.08 | S170: 1.08 | T170: 1.08 | U170: 1293 | V170: 2112 | W170: 2275 | X170: 2792 | Y170: 111 | Z170: 182 | AA170: 196 | AB170: 240 | AC170: 0.05342491311 | AD170: 0.1408823127 | AE170: 0.1629494315 | AF170: 0.2425844815 | AG170: 0.0001276 | AH170: 1.7219 | AI170: 2 | AJ170: 0.000376611 | AK170: 317.1799783 | AL170: 341.7051706 | AM170: 419.44 | AN170: 0.95 | AO170: 0.95 | AP170: 0.95 | AQ170: 317 | AR170: 342 | AS170: 419 | AT170: 136 | AU170: 147 | AV170: 180 | AW170: 0.07954471205 | AX170: 0.09265062947 | AY170: 0.1378590909 | AZ170: 1.5 | BA170: 7.9 | BB170: 8.8 | BC170: 12.5 | BE170: 2266 | BG170: 0.8 | BJ170: 0 | BK170: 10.9 | BL170: 12.8 | BM170: 21.85 | BO170: 1 | BP170: 1 | BQ170: 1 | BR170: 317 | BS170: 342 | BT170: 419 | BV170: 0 | BW170: 0 | BX170: 0 | BY170: 1
A171: 15011020 | D171: 1 | E171: 50 | F171: 110 | G171: 20 | H171: 21.5 | I171: 0 | J171: 26 | K171: 30 | L171: 44.1 | M171: 2134.4 | N171: 2692.551302 | O171: 2900.746468 | P171: 3560.64 | Q171: 1.5 | R171: 1.08 | S171: 1.08 | T171: 1.08 | U171: 1523 | V171: 2112 | W171: 2275 | X171: 2792 | Y171: 131 | Z171: 182 | AA171: 196 | AB171: 240 | AC171: 0.07391294318 | AD171: 0.1408823127 | AE171: 0.1629494315 | AF171: 0.2425844815 | AG171: 0.0001276 | AH171: 1.7219 | AI171: 2 | AJ171: 0.000376611 | AK171: 317.1799783 | AL171: 341.7051706 | AM171: 419.44 | AN171: 0.95 | AO171: 0.95 | AP171: 0.95 | AQ171: 317 | AR171: 342 | AS171: 419 | AT171: 136 | AU171: 147 | AV171: 180 | AW171: 0.07954471205 | AX171: 0.09265062947 | AY171: 0.1378590909 | AZ171: 1.5 | BA171: 7.9 | BB171: 8.8 | BC171: 12.5 | BE171: 2668 | BG171: 0.8 | BJ171: 0 | BK171: 10.9 | BL171: 12.8 | BM171: 21.85 | BO171: 1 | BP171: 1 | BQ171: 1 | BR171: 317 | BS171: 342 | BT171: 419 | BV171: 0 | BW171: 0 | BX171: 0 | BY171: 1
A172: 16511020 | D172: 1 | E172: 65 | F172: 110 | G172: 20 | H172: 21.5 | I172: 0 | J172: 26 | K172: 30 | L172: 44.1 | M172: 2363.2 | N172: 2692.551302 | O172: 2900.746468 | P172: 3560.64 | Q172: 1.5 | R172: 1.08 | S172: 1.08 | T172: 1.08 | U172: 1686 | V172: 2112 | W172: 2275 | X172: 2792 | Y172: 145 | Z172: 182 | AA172: 196 | AB172: 240 | AC172: 0.09019456839 | AD172: 0.1408823127 | AE172: 0.1629494315 | AF172: 0.2425844815 | AG172: 0.0001276 | AH172: 1.7219 | AI172: 2 | AJ172: 0.000376611 | AK172: 317.1799783 | AL172: 341.7051706 | AM172: 419.44 | AN172: =IF($G172=10,0.98,IF($G172=11,0.95,IF($G172=15,1.01,IF($G172=16,0.95,IF($G172=20,0.95,IF($G172=21,0.85)))))) -> 0.95 | AO172: 0.95 | AP172: 0.95 | AQ172: 317 | AR172: 342 | AS172: 419 | AT172: 136 | AU172: 147 | AV172: 180 | AW172: 0.07954471205 | AX172: 0.09265062947 | AY172: 0.1378590909 | AZ172: 1.5 | BA172: 7.9 | BB172: 8.8 | BC172: 12.5 | BE172: 2954 | BG172: 0.8 | BJ172: 0 | BK172: 10.9 | BL172: 12.8 | BM172: 21.85 | BO172: 1 | BP172: 1 | BQ172: 1 | BR172: 317 | BS172: 342 | BT172: 419 | BV172: 0 | BW172: 0 | BX172: 0 | BY172: 1
A173: 19511020 | D173: 1 | E173: 95 | F173: 110 | G173: 20 | H173: 21.5 | I173: 0 | J173: 26 | K173: 30 | L173: 44.1 | M173: 2597.551302 | N173: 2692.551302 | O173: 2900.746468 | P173: 3560.64 | Q173: 1.5 | R173: 1.08 | S173: 1.08 | T173: 1.08 | U173: 1853 | V173: 2112 | W173: 2275 | X173: 2792 | Y173: 159 | Z173: 182 | AA173: 196 | AB173: 240 | AC173: 0.1080689813 | AD173: 0.1408823127 | AE173: 0.1629494315 | AF173: 0.2425844815 | AG173: 0.0001276 | AH173: 1.7219 | AI173: 2 | AJ173: 0.000376611 | AK173: 317.1799783 | AL173: 341.7051706 | AM173: 419.44 | AN173: 0.95 | AO173: 0.95 | AP173: 0.95 | AQ173: 317 | AR173: 342 | AS173: 419 | AT173: 136 | AU173: 147 | AV173: 180 | AW173: 0.07954471205 | AX173: 0.09265062947 | AY173: 0.1378590909 | AZ173: 1.5 | BA173: 7.9 | BB173: 8.8 | BC173: 12.5 | BE173: 3291 | BG173: 0.8 | BJ173: 0 | BK173: 10.9 | BL173: 12.8 | BM173: 21.85 | BO173: 1 | BP173: 1 | BQ173: 1 | BR173: 317 | BS173: 342 | BT173: 419 | BV173: 0 | BW173: 0 | BX173: 0 | BY173: 1
A174: 13511021 | D174: 1 | E174: 35 | F174: 110 | G174: 21 | H174: 21.5 | I174: 0 | J174: 26 | K174: 30 | L174: 44.1 | M174: 1860 | N174: 3556.181529 | O174: 3807.884589 | P174: 5249.26 | Q174: 1.5 | R174: 1.05 | S174: 1.05 | T174: 1.05 | U174: 1327 | V174: 2808 | W174: 3007 | X174: 4145 | Y174: 114 | Z174: 241 | AA174: 259 | AB174: 356 | AC174: 0.08213770355 | AD174: 0.3531012814 | AE174: 0.4064324542 | AF174: 0.7569310516 | AG174: 0.0001276 | AH174: 1.7219 | AI174: 4 | AJ174: 0.000514201 | AK174: 445.6489741 | AL174: 477.1915738 | AM174: 657.82 | AN174: 0.85 | AO174: 0.85 | AP174: 0.85 | AQ174: 446 | AR174: 477 | AS174: 658 | AT174: 192 | AU174: 205 | AV174: 283 | AW174: 0.2266157388 | AX174: 0.2575013642 | AY174: 0.4832577351 | AZ174: 2.9 | BA174: 7.9 | BB174: 8.8 | BC174: 12.5 | BE174: 2325 | BG174: 0.8 | BJ174: 0 | BK174: 10.9 | BL174: 12.8 | BM174: 21.85 | BO174: 1 | BP174: 1 | BQ174: 1 | BR174: 446 | BS174: 477 | BT174: 658 | BV174: 0 | BW174: 0 | BX174: 0 | BY174: 1
A175: 15011021 | D175: 1 | E175: 50 | F175: 110 | G175: 21 | H175: 21.5 | I175: 0 | J175: 26 | K175: 30 | L175: 44.1 | M175: 2272 | N175: 3556.181529 | O175: 3807.884589 | P175: 5249.26 | Q175: 1.5 | R175: 1.05 | S175: 1.05 | T175: 1.05 | U175: 1621 | V175: 2808 | W175: 3007 | X175: 4145 | Y175: 139 | Z175: 241 | AA175: 259 | AB175: 356 | AC175: 0.1207853013 | AD175: 0.3531012814 | AE175: 0.4064324542 | AF175: 0.7569310516 | AG175: 0.0001276 | AH175: 1.7219 | AI175: 4 | AJ175: 0.000514201 | AK175: 445.6489741 | AL175: 477.1915738 | AM175: 657.82 | AN175: 0.85 | AO175: 0.85 | AP175: 0.85 | AQ175: 446 | AR175: 477 | AS175: 658 | AT175: 192 | AU175: 205 | AV175: 283 | AW175: 0.2266157388 | AX175: 0.2575013642 | AY175: 0.4832577351 | AZ175: 2.9 | BA175: 7.9 | BB175: 8.8 | BC175: 12.5 | BE175: 2840 | BG175: 0.8 | BJ175: 0 | BK175: 10.9 | BL175: 12.8 | BM175: 21.85 | BO175: 1 | BP175: 1 | BQ175: 1 | BR175: 446 | BS175: 477 | BT175: 658 | BV175: 0 | BW175: 0 | BX175: 0 | BY175: 1
A176: 16511021 | D176: 1 | E176: 65 | F176: 110 | G176: 21 | H176: 21.5 | I176: 0 | J176: 26 | K176: 30 | L176: 44.1 | M176: 2666.4 | N176: 3556.181529 | O176: 3807.884589 | P176: 5249.26 | Q176: 1.5 | R176: 1.05 | S176: 1.05 | T176: 1.05 | U176: 1903 | V176: 2808 | W176: 3007 | X176: 4145 | Y176: 164 | Z176: 241 | AA176: 259 | AB176: 356 | AC176: 0.1666746329 | AD176: 0.3531012814 | AE176: 0.4064324542 | AF176: 0.7569310516 | AG176: 0.0001276 | AH176: 1.7219 | AI176: 4 | AJ176: 0.000514201 | AK176: =AK175*(1-(($E176-50)*0.005)) -> 412.225301 | AL176: =AL175*(1-(($E176-50)*0.005)) -> 441.4022057 | AM176: =AM175*(1-(($E176-50)*0.005)) -> 608.4835 | AN176: 0.85 | AO176: 0.85 | AP176: 0.85 | AQ176: 412 | AR176: 441 | AS176: 608 | AT176: 177 | AU176: 190 | AV176: 261 | AW176: 0.1933845324 | AX176: 0.2220358344 | AY176: 0.412585205 | AZ176: 2.9 | BA176: 7.9 | BB176: 8.8 | BC176: 12.5 | BE176: 3333 | BG176: 0.8 | BJ176: 0 | BK176: 10.9 | BL176: 12.8 | BM176: 21.85 | BO176: 1 | BP176: 1 | BQ176: 1 | BR176: 412 | BS176: 441 | BT176: 608 | BV176: 0 | BW176: 0 | BX176: 0 | BY176: 1
A177: 19511021 | D177: 1 | E177: 95 | F177: 110 | G177: 21 | H177: 21.5 | I177: 0 | J177: 26 | K177: 30 | L177: 44.1 | M177: 3449.6 | N177: 3556.181529 | O177: 3807.884589 | P177: 5249.26 | Q177: 1.5 | R177: 1.05 | S177: 1.05 | T177: 1.05 | U177: 2461 | V177: 2808 | W177: 3007 | X177: 4145 | Y177: 212 | Z177: 241 | AA177: 259 | AB177: 356 | AC177: 0.2749325193 | AD177: 0.3531012814 | AE177: 0.4064324542 | AF177: 0.7569310516 | AG177: 0.0001276 | AH177: 1.7219 | AI177: 4 | AJ177: 0.000514201 | AK177: =AK175*(1-(($E177-50)*0.005)) -> 345.3779549 | AL177: =AL175*(1-(($E177-50)*0.005)) -> 369.8234697 | AM177: =AM175*(1-(($E177-50)*0.005)) -> 509.8105 | AN177: 0.85 | AO177: 0.85 | AP177: 0.85 | AQ177: 345 | AR177: 370 | AS177: 510 | AT177: 148 | AU177: 159 | AV177: 219 | AW177: 0.1364736351 | AX177: 0.1569196015 | AY177: 0.2929231784 | AZ177: 2.9 | BA177: 7.9 | BB177: 8.8 | BC177: 12.5 | BE177: 4312 | BG177: 0.8 | BJ177: 0 | BK177: 10.9 | BL177: 12.8 | BM177: 21.85 | BO177: 1 | BP177: 1 | BQ177: 1 | BR177: 345 | BS177: 370 | BT177: 510 | BV177: 0 | BW177: 0 | BX177: 0 | BY177: 1
A178: 13512010 | D178: 1 | E178: 35 | F178: 120 | G178: 10 | H178: 11.5 | I178: 0 | J178: 26 | K178: 30 | L178: 44 | M178: 970.2 | N178: 1924.991413 | O178: 2079.620242 | P178: 2589.78 | Q178: 1.5 | R178: 1.08 | S178: 1.08 | T178: 1.08 | U178: 692 | V178: 1510 | W178: 1631 | X178: 2031 | Y178: 60 | Z178: 130 | AA178: 140 | AB178: 175 | AC178: 0.02293659498 | AD178: 0.09898585405 | AE178: 0.1139385366 | AF178: 0.1741314864 | AG178: 0.0003969 | AH178: 1.7346 | AI178: 2 | AJ178: 0.000367347 | AK178: 266.8755326 | AL178: 288.3128497 | AM178: 359.04 | AN178: 0.98 | AO178: 0.98 | AP178: 0.98 | AQ178: 267 | AR178: 288 | AS178: 359 | AT178: 115 | AU178: 124 | AV178: 154 | AW178: 0.07844810438 | AX178: 0.09049754071 | AY178: 0.1365545797 | AZ178: 0.8 | BA178: 8.9 | BB178: 9.9 | BC178: 14.8 | BE178: 1078 | BG178: 0.9 | BJ178: 0 | BK178: 11.8 | BL178: 13.7 | BM178: 21.85 | BO178: 1 | BP178: 1 | BQ178: 1 | BR178: 267 | BS178: 288 | BT178: 359 | BV178: 0 | BW178: 0 | BX178: 0 | BY178: 1
A179: 15012010 | D179: 1 | E179: 50 | F179: 120 | G179: 10 | H179: 11.5 | I179: 0 | J179: 26 | K179: 30 | L179: 44 | M179: 1161.9 | N179: 1924.991413 | O179: 2079.620242 | P179: 2589.78 | Q179: 1.5 | R179: 1.08 | S179: 1.08 | T179: 1.08 | U179: 829 | V179: 1510 | W179: 1631 | X179: 2031 | Y179: 71 | Z179: 130 | AA179: 140 | AB179: 175 | AC179: 0.03150721425 | AD179: 0.09898585405 | AE179: 0.1139385366 | AF179: 0.1741314864 | AG179: 0.0003969 | AH179: 1.7346 | AI179: 2 | AJ179: 0.000367347 | AK179: 266.8755326 | AL179: 288.3128497 | AM179: 359.04 | AN179: 0.98 | AO179: 0.98 | AP179: 0.98 | AQ179: 267 | AR179: 288 | AS179: 359 | AT179: 115 | AU179: 124 | AV179: 154 | AW179: 0.07844810438 | AX179: 0.09049754071 | AY179: 0.1365545797 | AZ179: 0.8 | BA179: 8.9 | BB179: 9.9 | BC179: 14.8 | BE179: 1291 | BG179: 0.9 | BJ179: 0 | BK179: 11.8 | BL179: 13.7 | BM179: 21.85 | BO179: 1 | BP179: 1 | BQ179: 1 | BR179: 267 | BS179: 288 | BT179: 359 | BV179: 0 | BW179: 0 | BX179: 0 | BY179: 1
A180: 16512010 | D180: 1 | E180: 65 | F180: 120 | G180: 10 | H180: 11.5 | I180: 0 | J180: 26 | K180: 30 | L180: 44 | M180: 1307.7 | N180: 1924.991413 | O180: 2079.620242 | P180: 2589.78 | Q180: 1.5 | R180: 1.08 | S180: 1.08 | T180: 1.08 | U180: 933 | V180: 1510 | W180: 1631 | X180: 2031 | Y180: 80 | Z180: 130 | AA180: 140 | AB180: 175 | AC180: 0.03947240315 | AD180: 0.09898585405 | AE180: 0.1139385366 | AF180: 0.1741314864 | AG180: 0.0003969 | AH180: 1.7346 | AI180: 2 | AJ180: 0.000367347 | AK180: 266.8755326 | AL180: 288.3128497 | AM180: 359.04 | AN180: 0.98 | AO180: 0.98 | AP180: 0.98 | AQ180: 267 | AR180: 288 | AS180: 359 | AT180: 115 | AU180: 124 | AV180: 154 | AW180: 0.07844810438 | AX180: 0.09049754071 | AY180: 0.1365545797 | AZ180: 0.8 | BA180: 8.9 | BB180: 9.9 | BC180: 14.8 | BE180: 1453 | BG180: 0.9 | BJ180: 0 | BK180: 11.8 | BL180: 13.7 | BM180: 21.85 | BO180: 1 | BP180: 1 | BQ180: 1 | BR180: 267 | BS180: 288 | BT180: 359 | BV180: 0 | BW180: 0 | BX180: 0 | BY180: 1
A181: 19512010 | D181: 1 | E181: 95 | F181: 120 | G181: 10 | H181: 11.5 | I181: 0 | J181: 26 | K181: 30 | L181: 44 | M181: 1504.8 | N181: 1924.991413 | O181: 2079.620242 | P181: 2589.78 | Q181: 1.5 | R181: 1.08 | S181: 1.08 | T181: 1.08 | U181: 1074 | V181: 1510 | W181: 1631 | X181: 2031 | Y181: 92 | Z181: 130 | AA181: 140 | AB181: 175 | AC181: 0.05141092468 | AD181: 0.09898585405 | AE181: 0.1139385366 | AF181: 0.1741314864 | AG181: 0.0003969 | AH181: 1.7346 | AI181: 2 | AJ181: 0.000367347 | AK181: 266.8755326 | AL181: 288.3128497 | AM181: 359.04 | AN181: 0.98 | AO181: 0.98 | AP181: 0.98 | AQ181: 267 | AR181: 288 | AS181: 359 | AT181: 115 | AU181: 124 | AV181: 154 | AW181: 0.07844810438 | AX181: 0.09049754071 | AY181: 0.1365545797 | AZ181: 0.8 | BA181: 8.9 | BB181: 9.9 | BC181: 14.8 | BE181: 1672 | BG181: 0.9 | BJ181: 0 | BK181: 11.8 | BL181: 13.7 | BM181: 21.85 | BO181: 1 | BP181: 1 | BQ181: 1 | BR181: 267 | BS181: 288 | BT181: 359 | BV181: 0 | BW181: 0 | BX181: 0 | BY181: 1
A182: 13512011 | D182: 1 | E182: 35 | F182: 120 | G182: 11 | H182: 11.5 | I182: 0 | J182: 26 | K182: 30 | L182: 44 | M182: 975.8 | N182: 2611.892641 | O182: 2821.698202 | P182: 3513.9 | Q182: 1.5 | R182: 1.1 | S182: 1.1 | T182: 1.1 | U182: 696 | V182: 2039 | W182: 2203 | X182: 2743 | Y182: 60 | Z182: 175 | AA182: 189 | AB182: 236 | AC182: 0.04021406627 | AD182: 0.300121122 | AE182: 0.3470482952 | AF182: 0.5280852809 | AG182: 0.0003969 | AH182: 1.7346 | AI182: 4 | AJ182: 0.000574288 | AK182: 437 | AL182: 473 | AM182: 589 | AN182: 0.95 | AO182: 0.95 | AP182: 0.95 | AQ182: 437 | AR182: 473 | AS182: 589 | AT182: 188 | AU182: 203 | AV182: 253 | AW182: 0.3435890916 | AX182: 0.3972026661 | AY182: 0.6023937885 | AZ182: 1.6 | BA182: 8.9 | BB182: 9.9 | BC182: 14.8 | BE182: 1435 | BG182: 0.68 | BJ182: 0 | BK182: 11.8 | BL182: 13.7 | BM182: 21.85 | BO182: 1 | BP182: 1 | BQ182: 1 | BR182: 437 | BS182: 473 | BT182: 589 | BV182: 0 | BW182: 0 | BX182: 0 | BY182: 1
A183: 15012011 | D183: 1 | E183: 50 | F183: 120 | G183: 11 | H183: 11.5 | I183: 0 | J183: 26 | K183: 30 | L183: 44 | M183: 1130.84 | N183: 2611.892641 | O183: 2821.698202 | P183: 3513.9 | Q183: 1.5 | R183: 1.1 | S183: 1.1 | T183: 1.1 | U183: 807 | V183: 2039 | W183: 2203 | X183: 2743 | Y183: 69 | Z183: 175 | AA183: 189 | AB183: 236 | AC183: 0.05222222506 | AD183: 0.300121122 | AE183: 0.3470482952 | AF183: 0.5280852809 | AG183: 0.0003969 | AH183: 1.7346 | AI183: 4 | AJ183: 0.000574288 | AK183: 437 | AL183: 473 | AM183: 589 | AN183: 0.95 | AO183: 0.95 | AP183: 0.95 | AQ183: 437 | AR183: 473 | AS183: 589 | AT183: 188 | AU183: 203 | AV183: 253 | AW183: 0.3435890916 | AX183: 0.3972026661 | AY183: 0.6023937885 | AZ183: 1.6 | BA183: 8.9 | BB183: 9.9 | BC183: 14.8 | BE183: 1663 | BG183: 0.68 | BJ183: 0 | BK183: 11.8 | BL183: 13.7 | BM183: 21.85 | BO183: 1 | BP183: 1 | BQ183: 1 | BR183: 437 | BS183: 473 | BT183: 589 | BV183: 0 | BW183: 0 | BX183: 0 | BY183: =IF(SUM(BV183:BX183)=0,1,0) -> 1
A184: 16512011 | D184: 1 | E184: 65 | F184: 120 | G184: 11 | H184: 11.5 | I184: 0 | J184: 26 | K184: 30 | L184: 44 | M184: 1259.36 | N184: 2611.892641 | O184: 2821.698202 | P184: 3513.9 | Q184: 1.5 | R184: 1.1 | S184: 1.1 | T184: 1.1 | U184: 899 | V184: 2039 | W184: 2203 | X184: 2743 | Y184: 77 | Z184: 175 | AA184: 189 | AB184: 236 | AC184: 0.06412511446 | AD184: 0.300121122 | AE184: 0.3470482952 | AF184: 0.5280852809 | AG184: 0.0003969 | AH184: 1.7346 | AI184: 4 | AJ184: 0.000574288 | AK184: =AK183*(1-(($E184-50)*0.005)) -> 404.225 | AL184: =AL183*(1-(($E184-50)*0.005)) -> 437.525 | AM184: =AM183*(1-(($E184-50)*0.005)) -> 544.825 | AN184: 0.95 | AO184: 0.95 | AP184: 0.95 | AQ184: 404 | AR184: 438 | AS184: 545 | AT184: 174 | AU184: 188 | AV184: 234 | AW184: 0.2968932153 | AX184: 0.3435890916 | AY184: 0.5196497518 | AZ184: 1.6 | BA184: 8.9 | BB184: 9.9 | BC184: 14.8 | BE184: 1852 | BG184: 0.68 | BJ184: 0 | BK184: 11.8 | BL184: 13.7 | BM184: 21.85 | BO184: 1 | BP184: 1 | BQ184: 1 | BR184: 404 | BS184: 438 | BT184: 545 | BV184: 0 | BW184: 0 | BX184: 0 | BY184: 1
A185: 19512011 | D185: 1 | E185: 95 | F185: 120 | G185: 11 | H185: 11.5 | I185: 0 | J185: 26 | K185: 30 | L185: 44 | M185: 1465.4 | N185: 2611.892641 | O185: 2821.698202 | P185: 3513.9 | Q185: 1.5 | R185: 1.1 | S185: 1.1 | T185: 1.1 | U185: 1046 | V185: 2039 | W185: 2203 | X185: 2743 | Y185: 90 | Z185: 175 | AA185: 189 | AB185: 236 | AC185: 0.08590137591 | AD185: 0.300121122 | AE185: 0.3470482952 | AF185: 0.5280852809 | AG185: 0.0003969 | AH185: 1.7346 | AI185: 4 | AJ185: 0.000574288 | AK185: =AK183*(1-(($E185-50)*0.005)) -> 338.675 | AL185: =AL183*(1-(($E185-50)*0.005)) -> 366.575 | AM185: =AM183*(1-(($E185-50)*0.005)) -> 456.475 | AN185: 0.95 | AO185: 0.95 | AP185: 0.95 | AQ185: 339 | AR185: 367 | AS185: 456 | AT185: 146 | AU185: 158 | AV185: 196 | AW185: 0.2132746391 | AX185: 0.2475072867 | AY185: 0.3717233218 | AZ185: 1.6 | BA185: 8.9 | BB185: 9.9 | BC185: 14.8 | BE185: 2155 | BG185: 0.68 | BJ185: 0 | BK185: 11.8 | BL185: 13.7 | BM185: 21.85 | BO185: 1 | BP185: 1 | BQ185: 1 | BR185: 339 | BS185: 367 | BT185: 456 | BV185: 0 | BW185: 0 | BX185: 0 | BY185: 1
A186: 13512015 | D186: 1 | E186: 35 | F186: 120 | G186: 15 | H186: 16.5 | I186: 0 | J186: 26 | K186: 30 | L186: 44.8 | M186: 1411.2 | N186: 2216.907387 | O186: 2373.994898 | P186: 3302.76 | Q186: 1.5 | R186: 1.08 | S186: 1.08 | T186: 1.08 | U186: 1007 | V186: 1739 | W186: 1862 | X186: 2590 | Y186: 87 | Z186: 150 | AA186: 160 | AB186: 223 | AC186: 0.04377022308 | AD186: 0.1261660107 | AE186: 0.1430601027 | AF186: 0.2732741025 | AG186: 0.0002083 | AH186: 1.724 | AI186: 2 | AJ186: 0.000461829 | AK186: 302.6167588 | AL186: 324.0598348 | AM186: 450.84 | AN186: 1.01 | AO186: 1.01 | AP186: 1.01 | AQ186: 303 | AR186: 324 | AS186: 451 | AT186: 130 | AU186: 139 | AV186: 194 | AW186: 0.09550098548 | AX186: 0.1087840234 | AY186: 0.2082499229 | AZ186: 1.2 | BA186: 8.7 | BB186: 9.8 | BC186: 14.3 | BE186: 1764 | BG186: 0.8 | BJ186: 0 | BK186: 10.6 | BL186: 12.5 | BM186: 21.85 | BO186: 1 | BP186: 1 | BQ186: 1 | BR186: 303 | BS186: 324 | BT186: 451 | BV186: 0 | BW186: 0 | BX186: 0 | BY186: 1
A187: 15012015 | D187: 1 | E187: 50 | F187: 120 | G187: 15 | H187: 16.5 | I187: 0 | J187: 26 | K187: 30 | L187: 44.8 | M187: 1664.8 | N187: 2216.907387 | O187: 2373.994898 | P187: 3302.76 | Q187: 1.5 | R187: 1.08 | S187: 1.08 | T187: 1.08 | U187: 1188 | V187: 1739 | W187: 1862 | X187: 2590 | Y187: 102 | Z187: 150 | AA187: 160 | AB187: 223 | AC187: 0.05960286239 | AD187: 0.1261660107 | AE187: 0.1430601027 | AF187: 0.2732741025 | AG187: 0.0002083 | AH187: 1.724 | AI187: 2 | AJ187: 0.000461829 | AK187: 302.6167588 | AL187: 324.0598348 | AM187: 450.84 | AN187: 1.01 | AO187: 1.01 | AP187: 1.01 | AQ187: 303 | AR187: 324 | AS187: 451 | AT187: =ROUND(AQ187*3600/(4186*ABS($AM$1-$AM$2)),0) -> 130 | AU187: =ROUND(AR187*3600/(4186*ABS($AM$1-$AM$2)),0) -> 139 | AV187: =ROUND(AS187*3600/(4186*ABS($AM$1-$AM$2)),0) -> 194 | AW187: 0.09550098548 | AX187: 0.1087840234 | AY187: 0.2082499229 | AZ187: 1.2 | BA187: 8.7 | BB187: 9.8 | BC187: 14.3 | BE187: 2081 | BG187: 0.8 | BJ187: 0 | BK187: 10.6 | BL187: 12.5 | BM187: 21.85 | BO187: 1 | BP187: 1 | BQ187: 1 | BR187: 303 | BS187: 324 | BT187: 451 | BV187: 0 | BW187: 0 | BX187: 0 | BY187: 1
A188: 16512015 | D188: 1 | E188: 65 | F188: 120 | G188: 15 | H188: 16.5 | I188: 0 | J188: 26 | K188: 30 | L188: 44.8 | M188: 1844.8 | N188: 2216.907387 | O188: 2373.994898 | P188: 3302.76 | Q188: 1.5 | R188: 1.08 | S188: 1.08 | T188: 1.08 | U188: 1316 | V188: 1739 | W188: 1862 | X188: 2590 | Y188: 113 | Z188: 150 | AA188: 160 | AB188: 223 | AC188: 0.07272347505 | AD188: 0.1261660107 | AE188: 0.1430601027 | AF188: 0.2732741025 | AG188: 0.0002083 | AH188: 1.724 | AI188: 2 | AJ188: 0.000461829 | AK188: 302.6167588 | AL188: 324.0598348 | AM188: 450.84 | AN188: 1.01 | AO188: 1.01 | AP188: 1.01 | AQ188: 303 | AR188: 324 | AS188: 451 | AT188: 130 | AU188: 139 | AV188: 194 | AW188: 0.09550098548 | AX188: 0.1087840234 | AY188: 0.2082499229 | AZ188: 1.2 | BA188: 8.7 | BB188: 9.8 | BC188: 14.3 | BE188: 2306 | BG188: 0.8 | BJ188: 0 | BK188: 10.6 | BL188: 12.5 | BM188: 21.85 | BO188: 1 | BP188: 1 | BQ188: 1 | BR188: 303 | BS188: 324 | BT188: 451 | BV188: 0 | BW188: 0 | BX188: 0 | BY188: 1
A189: 19512015 | D189: 1 | E189: 95 | F189: 120 | G189: 15 | H189: 16.5 | I189: 0 | J189: 26 | K189: 30 | L189: 44.8 | M189: 2060 | N189: 2216.907387 | O189: 2373.994898 | P189: 3302.76 | Q189: 1.5 | R189: 1.08 | S189: 1.08 | T189: 1.08 | U189: 1470 | V189: 1739 | W189: 1862 | X189: 2590 | Y189: =ROUND(U189*3600/(4186*ABS($O$1-$O$2)),0) -> 126 | Z189: =ROUND(V189*3600/(4186*ABS($O$1-$O$2)),0) -> 150 | AA189: =ROUND(W189*3600/(4186*ABS($O$1-$O$2)),0) -> 160 | AB189: =ROUND(X189*3600/(4186*ABS($O$1-$O$2)),0) -> 223 | AC189: 0.08986914558 | AD189: 0.1261660107 | AE189: 0.1430601027 | AF189: 0.2732741025 | AG189: 0.0002083 | AH189: 1.724 | AI189: 2 | AJ189: 0.000461829 | AK189: 302.6167588 | AL189: 324.0598348 | AM189: 450.84 | AN189: 1.01 | AO189: 1.01 | AP189: 1.01 | AQ189: 303 | AR189: 324 | AS189: 451 | AT189: 130 | AU189: 139 | AV189: 194 | AW189: 0.09550098548 | AX189: 0.1087840234 | AY189: 0.2082499229 | AZ189: 1.2 | BA189: 8.7 | BB189: 9.8 | BC189: 14.3 | BE189: 2575 | BG189: 0.8 | BJ189: 0 | BK189: 10.6 | BL189: 12.5 | BM189: 21.85 | BO189: 1 | BP189: 1 | BQ189: 1 | BR189: 303 | BS189: 324 | BT189: 451 | BV189: 0 | BW189: 0 | BX189: 0 | BY189: 1
A190: 13512016 | D190: 1 | E190: 35 | F190: 120 | G190: 16 | H190: 16.5 | I190: 0 | J190: 26 | K190: 30 | L190: 44.8 | M190: 1300.16 | N190: 3241.833377 | O190: 3471.545968 | P190: 4829.7 | Q190: 1.5 | R190: 1.1 | S190: 1.1 | T190: 1.1 | U190: 928 | V190: 2531 | W190: 2710 | X190: 3771 | Y190: 80 | Z190: 218 | AA190: 233 | AB190: 324 | AC190: 0.1038213417 | AD190: 0.7413866147 | AE190: 0.8449949657 | AF190: 1.616436745 | AG190: 0.0002083 | AH190: 1.724 | AI190: 4 | AJ190: 0.001392796 | AK190: 496 | AL190: 532 | AM190: 740 | AN190: 0.95 | AO190: 0.95 | AP190: 0.95 | AQ190: 496 | AR190: 532 | AS190: 740 | AT190: 213 | AU190: 229 | AV190: 318 | AW190: 0.7083366873 | AX190: 0.8167124997 | AY190: 1.558037737 | AZ190: 2.4 | BA190: 8.7 | BB190: 9.8 | BC190: 14.3 | BE190: 1912 | BG190: 0.68 | BJ190: 0 | BK190: 10.6 | BL190: 12.5 | BM190: 21.85 | BO190: 1 | BP190: 1 | BQ190: 1 | BR190: 496 | BS190: 532 | BT190: 740 | BV190: 0 | BW190: 0 | BX190: 0 | BY190: 1
A191: 15012016 | D191: 1 | E191: 50 | F191: 120 | G191: 16 | H191: 16.5 | I191: 0 | J191: 26 | K191: 30 | L191: 44.8 | M191: 1549.04 | N191: 3241.833377 | O191: 3471.545968 | P191: 4829.7 | Q191: 1.5 | R191: 1.1 | S191: 1.1 | T191: 1.1 | U191: 1105 | V191: 2531 | W191: 2710 | X191: 3771 | Y191: 95 | Z191: 218 | AA191: 233 | AB191: 324 | AC191: 0.1453287551 | AD191: 0.7413866147 | AE191: 0.8449949657 | AF191: 1.616436745 | AG191: 0.0002083 | AH191: 1.724 | AI191: 4 | AJ191: 0.001392796 | AK191: 496 | AL191: 532 | AM191: 740 | AN191: 0.95 | AO191: 0.95 | AP191: 0.95 | AQ191: 496 | AR191: 532 | AS191: 740 | AT191: 213 | AU191: 229 | AV191: 318 | AW191: 0.7083366873 | AX191: 0.8167124997 | AY191: 1.558037737 | AZ191: 2.4 | BA191: 8.7 | BB191: 9.8 | BC191: 14.3 | BE191: 2278 | BG191: 0.68 | BJ191: 0 | BK191: 10.6 | BL191: 12.5 | BM191: 21.85 | BO191: 1 | BP191: 1 | BQ191: 1 | BR191: 496 | BS191: 532 | BT191: 740 | BV191: 0 | BW191: 0 | BX191: 0 | BY191: 1
A192: 16512016 | D192: 1 | E192: 65 | F192: 120 | G192: 16 | H192: 16.5 | I192: 0 | J192: 26 | K192: 30 | L192: 44.8 | M192: 1773.44 | N192: 3241.833377 | O192: 3471.545968 | P192: 4829.7 | Q192: 1.5 | R192: 1.1 | S192: 1.1 | T192: 1.1 | U192: 1265 | V192: 2531 | W192: 2710 | X192: 3771 | Y192: 109 | Z192: 218 | AA192: 233 | AB192: 324 | AC192: 0.1902333688 | AD192: 0.7413866147 | AE192: 0.8449949657 | AF192: 1.616436745 | AG192: 0.0002083 | AH192: 1.724 | AI192: 4 | AJ192: 0.001392796 | AK192: =AK191*(1-(($E192-50)*0.005)) -> 458.8 | AL192: =AL191*(1-(($E192-50)*0.005)) -> 492.1 | AM192: =AM191*(1-(($E192-50)*0.005)) -> 684.5 | AN192: 0.95 | AO192: 0.95 | AP192: 0.95 | AQ192: 459 | AR192: 492 | AS192: 685 | AT192: 197 | AU192: 212 | AV192: 295 | AW192: 0.6075768401 | AX192: 0.7018159376 | AY192: 1.344014427 | AZ192: 2.4 | BA192: 8.7 | BB192: 9.8 | BC192: 14.3 | BE192: 2608 | BG192: 0.68 | BJ192: 0 | BK192: 10.6 | BL192: 12.5 | BM192: 21.85 | BO192: 1 | BP192: 1 | BQ192: 1 | BR192: 459 | BS192: 492 | BT192: 685 | BV192: 0 | BW192: 0 | BX192: 0 | BY192: 1
A193: 19512016 | D193: 1 | E193: 95 | F193: 120 | G193: 16 | H193: 16.5 | I193: 0 | J193: 26 | K193: 30 | L193: 44.8 | M193: 2184.16 | N193: 3241.833377 | O193: 3471.545968 | P193: 4829.7 | Q193: 1.5 | R193: 1.1 | S193: 1.1 | T193: 1.1 | U193: 1558 | V193: 2531 | W193: 2710 | X193: 3771 | Y193: 134 | Z193: 218 | AA193: 233 | AB193: 324 | AC193: 0.2851538973 | AD193: 0.7413866147 | AE193: 0.8449949657 | AF193: 1.616436745 | AG193: 0.0002083 | AH193: 1.724 | AI193: 4 | AJ193: 0.001392796 | AK193: =AK191*(1-(($E193-50)*0.005)) -> 384.4 | AL193: =AL191*(1-(($E193-50)*0.005)) -> 412.3 | AM193: =AM191*(1-(($E193-50)*0.005)) -> 573.5 | AN193: 0.95 | AO193: 0.95 | AP193: 0.95 | AQ193: 384 | AR193: 412 | AS193: 574 | AT193: 165 | AU193: 177 | AV193: 247 | AW193: 0.4289612959 | AX193: 0.4923579741 | AY193: 0.9477233091 | AZ193: 2.4 | BA193: 8.7 | BB193: 9.8 | BC193: 14.3 | BE193: 3212 | BG193: 0.68 | BJ193: 0 | BK193: 10.6 | BL193: 12.5 | BM193: 21.85 | BO193: 1 | BP193: 1 | BQ193: 1 | BR193: 384 | BS193: 412 | BT193: 574 | BV193: 0 | BW193: 0 | BX193: 0 | BY193: 1
A194: 13512020 | D194: 1 | E194: 35 | F194: 120 | G194: 20 | H194: 21.5 | I194: 0 | J194: 26 | K194: 30 | L194: 44.8 | M194: 1977.6 | N194: 3079.682993 | O194: 3327.064759 | P194: 4143.24 | Q194: 1.5 | R194: 1.08 | S194: 1.08 | T194: 1.08 | U194: 1411 | V194: 2415 | W194: 2609 | X194: 3249 | Y194: 121 | Z194: 208 | AA194: 224 | AB194: 279 | AC194: 0.06422552461 | AD194: 0.1855749132 | AE194: 0.2146103275 | AF194: 0.3302340695 | AG194: 0.0001276 | AH194: 1.7219 | AI194: 2 | AJ194: 0.000376611 | AK194: 380.6009016 | AL194: 411.173439 | AM194: 512.04 | AN194: 0.95 | AO194: 0.95 | AP194: 0.95 | AQ194: 381 | AR194: 411 | AS194: 512 | AT194: 164 | AU194: 177 | AV194: 220 | AW194: 0.1164667094 | AX194: 0.135242224 | AY194: 0.2071566748 | AZ194: 1.6 | BA194: 8.7 | BB194: 9.8 | BC194: 14.3 | BE194: 2472 | BG194: 0.8 | BJ194: 0 | BK194: 10.6 | BL194: 12.5 | BM194: 21.85 | BO194: 1 | BP194: 1 | BQ194: 1 | BR194: 381 | BS194: 411 | BT194: 512 | BV194: 0 | BW194: 0 | BX194: 0 | BY194: 1
A195: 15012020 | D195: 1 | E195: 50 | F195: 120 | G195: 20 | H195: 21.5 | I195: 0 | J195: 26 | K195: 30 | L195: 44.8 | M195: 2328 | N195: 3079.682993 | O195: 3327.064759 | P195: 4143.24 | Q195: 1.5 | R195: 1.08 | S195: 1.08 | T195: 1.08 | U195: 1661 | V195: 2415 | W195: 2609 | X195: 3249 | Y195: 143 | Z195: 208 | AA195: 224 | AB195: 279 | AC195: 0.08905742375 | AD195: 0.1855749132 | AE195: 0.2146103275 | AF195: 0.3302340695 | AG195: 0.0001276 | AH195: 1.7219 | AI195: 2 | AJ195: 0.000376611 | AK195: 380.6009016 | AL195: 411.173439 | AM195: 512.04 | AN195: 0.95 | AO195: 0.95 | AP195: 0.95 | AQ195: 381 | AR195: 411 | AS195: 512 | AT195: 164 | AU195: 177 | AV195: 220 | AW195: 0.1164667094 | AX195: 0.135242224 | AY195: 0.2071566748 | AZ195: 1.6 | BA195: 8.7 | BB195: 9.8 | BC195: 14.3 | BE195: 2910 | BG195: 0.8 | BJ195: 0 | BK195: 10.6 | BL195: 12.5 | BM195: 21.85 | BO195: 1 | BP195: 1 | BQ195: 1 | BR195: 381 | BS195: 411 | BT195: 512 | BV195: 0 | BW195: 0 | BX195: 0 | BY195: 1
A196: 16512020 | D196: 1 | E196: 65 | F196: 120 | G196: 20 | H196: 21.5 | I196: 0 | J196: 26 | K196: 30 | L196: 44.8 | M196: 2577.6 | N196: 3079.682993 | O196: 3327.064759 | P196: 4143.24 | Q196: 1.5 | R196: 1.08 | S196: 1.08 | T196: 1.08 | U196: 1839 | V196: 2415 | W196: 2609 | X196: 3249 | Y196: 158 | Z196: 208 | AA196: 224 | AB196: 279 | AC196: 0.1082669728 | AD196: 0.1855749132 | AE196: 0.2146103275 | AF196: 0.3302340695 | AG196: 0.0001276 | AH196: 1.7219 | AI196: 2 | AJ196: 0.000376611 | AK196: 380.6009016 | AL196: 411.173439 | AM196: 512.04 | AN196: 0.95 | AO196: 0.95 | AP196: 0.95 | AQ196: 381 | AR196: 411 | AS196: 512 | AT196: 164 | AU196: 177 | AV196: 220 | AW196: 0.1164667094 | AX196: 0.135242224 | AY196: 0.2071566748 | AZ196: 1.6 | BA196: 8.7 | BB196: 9.8 | BC196: 14.3 | BE196: 3222 | BG196: 0.8 | BJ196: 0 | BK196: 10.6 | BL196: 12.5 | BM196: 21.85 | BO196: 1 | BP196: 1 | BQ196: 1 | BR196: 381 | BS196: 411 | BT196: 512 | BV196: 0 | BW196: 0 | BX196: 0 | BY196: 1
A197: 19512020 | D197: 1 | E197: 95 | F197: 120 | G197: 20 | H197: 21.5 | I197: 0 | J197: 26 | K197: 30 | L197: 44.8 | M197: 2872 | N197: 3079.682993 | O197: 3327.064759 | P197: 4143.24 | Q197: 1.5 | R197: 1.08 | S197: 1.08 | T197: 1.08 | U197: 2049 | V197: 2415 | W197: 2609 | X197: 3249 | Y197: 176 | Z197: 208 | AA197: 224 | AB197: 279 | AC197: 0.1337489599 | AD197: 0.1855749132 | AE197: 0.2146103275 | AF197: 0.3302340695 | AG197: 0.0001276 | AH197: 1.7219 | AI197: 2 | AJ197: 0.000376611 | AK197: 380.6009016 | AL197: 411.173439 | AM197: 512.04 | AN197: 0.95 | AO197: 0.95 | AP197: 0.95 | AQ197: 381 | AR197: 411 | AS197: 512 | AT197: 164 | AU197: 177 | AV197: 220 | AW197: 0.1164667094 | AX197: 0.135242224 | AY197: 0.2071566748 | AZ197: 1.6 | BA197: 8.7 | BB197: 9.8 | BC197: 14.3 | BE197: 3590 | BG197: 0.8 | BJ197: 0 | BK197: 10.6 | BL197: 12.5 | BM197: 21.85 | BO197: 1 | BP197: 1 | BQ197: 1 | BR197: 381 | BS197: 411 | BT197: 512 | BV197: 0 | BW197: 0 | BX197: 0 | BY197: 1
A198: 13512021 | D198: 1 | E198: 35 | F198: 120 | G198: 21 | H198: 21.5 | I198: 0 | J198: 26 | K198: 30 | L198: 44.8 | M198: 2029.6 | N198: 4175.015826 | O198: 4470.852653 | P198: 6219.96 | Q198: 1.5 | R198: 1.05 | S198: 1.05 | T198: 1.05 | U198: 1448 | V198: 3296 | W198: 3530 | X198: 4911 | Y198: 125 | Z198: 283 | AA198: 304 | AB198: 422 | AC198: 0.1002881564 | AD198: 0.4915920097 | AE198: 0.5652543676 | AF198: 1.072511652 | AG198: 0.0001276 | AH198: 1.7219 | AI198: 4 | AJ198: 0.000514201 | AK198: 541.5607606 | AL198: 579.9351342 | AM198: 806.82 | AN198: 0.85 | AO198: 0.85 | AP198: 0.85 | AQ198: 542 | AR198: 580 | AS198: 807 | AT198: 233 | AU198: 249 | AV198: 347 | AW198: 0.3365439726 | AX198: 0.3830354548 | AY198: 0.7317855671 | AZ198: 3.2 | BA198: 8.7 | BB198: 9.8 | BC198: 14.3 | BE198: 2537 | BG198: 0.8 | BJ198: 0 | BK198: 10.6 | BL198: 12.5 | BM198: 21.85 | BO198: 1 | BP198: 1 | BQ198: 1 | BR198: 542 | BS198: 580 | BT198: 807 | BV198: 0 | BW198: 0 | BX198: 0 | BY198: 1
A199: 15012021 | D199: 1 | E199: 50 | F199: 120 | G199: 21 | H199: 21.5 | I199: 0 | J199: 26 | K199: 30 | L199: 44.8 | M199: 2478.4 | N199: 4175.015826 | O199: 4470.852653 | P199: 6219.96 | Q199: 1.5 | R199: 1.05 | S199: 1.05 | T199: 1.05 | U199: 1768 | V199: 3296 | W199: 3530 | X199: 4911 | Y199: 152 | Z199: 283 | AA199: 304 | AB199: 422 | AC199: 0.146604833 | AD199: 0.4915920097 | AE199: 0.5652543676 | AF199: 1.072511652 | AG199: 0.0001276 | AH199: 1.7219 | AI199: 4 | AJ199: 0.000514201 | AK199: 541.5607606 | AL199: 579.9351342 | AM199: 806.82 | AN199: 0.85 | AO199: 0.85 | AP199: 0.85 | AQ199: 542 | AR199: 580 | AS199: 807 | AT199: 233 | AU199: 249 | AV199: 347 | AW199: 0.3365439726 | AX199: 0.3830354548 | AY199: 0.7317855671 | AZ199: 3.2 | BA199: 8.7 | BB199: 9.8 | BC199: 14.3 | BE199: 3098 | BG199: 0.8 | BJ199: 0 | BK199: 10.6 | BL199: 12.5 | BM199: 21.85 | BO199: 1 | BP199: 1 | BQ199: 1 | BR199: 542 | BS199: 580 | BT199: 807 | BV199: 0 | BW199: 0 | BX199: 0 | BY199: 1
A200: 16512021 | D200: 1 | E200: 65 | F200: 120 | G200: 21 | H200: 21.5 | I200: 0 | J200: 26 | K200: 30 | L200: 44.8 | M200: 2908.8 | N200: 4175.015826 | O200: 4470.852653 | P200: 6219.96 | Q200: 1.5 | R200: 1.05 | S200: 1.05 | T200: 1.05 | U200: 2075 | V200: 3296 | W200: 3530 | X200: 4911 | Y200: 178 | Z200: 283 | AA200: 304 | AB200: 422 | AC200: 0.1992705105 | AD200: 0.4915920097 | AE200: 0.5652543676 | AF200: 1.072511652 | AG200: 0.0001276 | AH200: 1.7219 | AI200: 4 | AJ200: 0.000514201 | AK200: =AK199*(1-(($E200-50)*0.005)) -> 500.9437035 | AL200: =AL199*(1-(($E200-50)*0.005)) -> 536.4399991 | AM200: =AM199*(1-(($E200-50)*0.005)) -> 746.3085 | AN200: 0.85 | AO200: 0.85 | AP200: 0.85 | AQ200: 501 | AR200: 536 | AS200: 746 | AT200: 215 | AU200: 230 | AV200: 321 | AW200: 0.287766659 | AX200: 0.3281549376 | AY200: 0.6285741986 | AZ200: 3.2 | BA200: 8.7 | BB200: 9.8 | BC200: 14.3 | BE200: 3636 | BG200: 0.8 | BJ200: 0 | BK200: 10.6 | BL200: 12.5 | BM200: 21.85 | BO200: 1 | BP200: 1 | BQ200: 1 | BR200: 501 | BS200: 536 | BT200: 746 | BV200: 0 | BW200: 0 | BX200: 0 | BY200: 1
... 925 more rows

Sheet NL (hidden)
B1: Selectiontool Strada Hybrid
B3: Lengte | D3: mm | E3: Invulformulier | F3: Statisch toestel | G3: rel. vocht. | H3: Unit
B4: Hoogte | D4: =D3 -> mm | E4: Uitvoering | F4: Hybrid toestel | G4: Eenheidsstelsel
B5: Type | E5: Temperaturen | F5: DBH rail type | G5: Toestel
B6: Diepte | C6: =data!H5 ->  | D6: =D3 -> mm | E6: Indien de ventilatoren uitgeschakeld zijn, is de afgifte een indicatieve waarde. | F6: Waterzijdig drukverlies
B8: Verwarmen: | G8: Koelen:
B9: Water aanvoer | C9: 75 | D9: =IF(data!BZ2=1,"°C",IF(data!BZ2=2,"°F",)) -> °C | E9: =B9 -> Water aanvoer | H9: 16 | I9: =D9 -> °C
B10: Water retour | C10: 65 | D10: =D9 -> °C | E10: =B10 -> Water retour | H10: 20 | I10: =D9 -> °C
B11: Ruimte (droge bol) | C11: 20 | D11: =D9 -> °C | E11: =B11 -> Ruimte (droge bol) | H11: 27 | I11: =D9 -> °C
C13: =CONCATENATE(B8," ",C9,"/",C10,"/",C11) -> Verwarmen: 75/65/20 | E13: =CONCATENATE(G8," ",H9,"/",H10,"/",H11) -> Koelen: 16/20/27 | G13: Watervolume | H13: Elektrisch verbruik [W] | I13: Geluidsdrukniveau [dB(A)]**** | J13: Geluidsvermogen [dB(A)]****
C14: Verwarmvermogen | D14: Waterdebiet | E14: Koelvermogen | F14: =D14 -> Waterdebiet
A15: Statisch (indicatieve waarde) | C15: =data!U5 ->  | D15: =data!Y5 ->  | G15: =data!AZ$5 -> 
A16: EN16430 | B16: Ventilatorsnelheid | C16: =data!V5 ->  | D16: =data!Z5 ->  | E16: =data!AQ5 ->  | F16: =data!AT5 ->  | G16: =data!AZ$5 ->  | H16: =data!BA5 ->  | I16: =data!J5 -> 
B17: Ventilatorsnelheid 2 | C17: =data!W5 ->  | D17: =data!AA5 ->  | E17: =data!AR5 ->  | F17: =data!AU5 ->  | G17: =data!AZ$5 ->  | H17: =data!BB5 ->  | I17: =data!K5 -> 
B18: Ventilatorsnelheid 3 | C18: =data!X5 ->  | D18: =data!AB5 ->  | E18: =data!AS5 ->  | F18: =data!AV5 ->  | G18: =data!AZ$5 ->  | H18: =data!BC5 ->  | I18: =data!L5 -> 
B19: Stuurspanning [v] | I19: ='LowH2O DBH'!M35 -> v2021-02-02
A20: * | B20: Koelvermogen is berekend volgens EN16430 met de ventilatoren naar boven blazend voor alle types.
A21: ** | B21: Wanneer het watervolume in gallons wordt gegeven, zijn dit imperial gallons.
A22: *** | B22: Geluidsvermogen volgens ISO 3741:2010, Voor het geluidsdrukniveau is er een aangenomen kamerdemping van 8 dB(A).

Sheet EN (hidden)
B1: Selectiontool Strada Hybrid
B3: Length | C3: 1200 | D3: mm | E3: Formulary | F3: Static device | G3: rel. humid. | H3: Unit
B4: Heigth | C4: 500 | D4: =D3 -> mm | E4: Version | F4: Hybrid device | G4: Unit conversion
B5: Type | C5: 16 | E5: Temperatures | F5: DBH rail type | G5: Device
B6: Depth | C6: =data!H5 ->  | D6: =D3 -> mm | E6: If the fans are switched off, the output is an indicative value. | F6: Water side pressure loss
B8: Heating: | G8: Cooling:
B9: Supply water | C9: 75 | D9: =IF(data!BZ2=1,"°C",IF(data!BZ2=2,"°F",)) -> °C | E9: =B9 -> Supply water | H9: 16 | I9: =D9 -> °C
B10: Return water | C10: 65 | D10: =D9 -> °C | E10: =B10 -> Return water | H10: 20 | I10: =D9 -> °C
B11: Entering air (dry bulb) | C11: 20 | D11: =D9 -> °C | E11: =B11 -> Entering air (dry bulb) | H11: 27 | I11: =D9 -> °C
C13: =CONCATENATE(B8," ",C9,"/",C10,"/",C11) -> Heating: 75/65/20 | E13: =CONCATENATE(G8," ",H9,"/",H10,"/",H11) -> Cooling: 16/20/27 | G13: Water volume | H13: Electrical consumption [W] | I13: Sound pressure level [dB(A)]**** | J13: Sound power [dB(A)]****
C14: Heating capacity | D14: Water flow | E14: Cooling capacity | F14: =D14 -> Water flow
A15: Fans off (indicative value) | C15: =data!U5 ->  | D15: =data!Y5 ->  | G15: =data!AZ$5 -> 
A16: EN16430 | B16: Fan speed | C16: =data!V5 ->  | D16: =data!Z5 ->  | E16: =data!AQ5 ->  | F16: =data!AT5 ->  | G16: =data!AZ$5 ->  | H16: =data!BA5 ->  | I16: =data!J5 -> 
B17: Fan speed selection 2 | C17: =data!W5 ->  | D17: =data!AA5 ->  | E17: =data!AR5 ->  | F17: =data!AU5 ->  | G17: =data!AZ$5 ->  | H17: =data!BB5 ->  | I17: =data!K5 -> 
B18: Fan speed selection 3 | C18: =data!X5 ->  | D18: =data!AB5 ->  | E18: =data!AS5 ->  | F18: =data!AV5 ->  | G18: =data!AZ$5 ->  | H18: =data!BC5 ->  | I18: =data!L5 -> 
B19: Fan voltage [V] | I19: ='LowH2O DBH'!M35 -> v2021-02-02
A20: * | B20: Cooling power is calcullated according EN16430 with fans blowing up for all heights.
A21: ** | B21: When the water volume is given in gallons, the units are specifically imperial gallons.
A22: *** | B22: Soundpower according to ISO 3741:2010, sound pressure level with assumed room damping of 8 dB(A).

Sheet FR (hidden)
B1: Selectiontool Strada Hybrid
B3: Longeur | C3: 1200 | D3: mm | E3: Formulaire | F3: Appareil statique | G3: hum. rel. | H3: Unité
B4: Hauteur | C4: 500 | D4: =D3 -> mm | E4: Version | F4: Appareil Hybrid | G4: Système unitaire
B5: Type | C5: 16 | E5: Températures | F5: DBH rail type | G5: Appareil
B6: Profondeur | C6: =data!H5 ->  | D6: =D3 -> mm | E6: Si les ventilateurs sont éteints, la sortie est une valeur indicative. | F6: Perte de charge
B8: Chauffer: | G8: Refroidir:
B9: Entrée de l'eau | C9: 75 | D9: =IF(data!BZ2=1,"°C",IF(data!BZ2=2,"°F",)) -> °C | E9: =B9 -> Entrée de l'eau | H9: 16 | I9: =D9 -> °C
B10: Retour de l'eau | C10: 65 | D10: =D9 -> °C | E10: =B10 -> Retour de l'eau | H10: 20 | I10: =D9 -> °C
B11: Ambiante (bulbe sec) | C11: 20 | D11: =D9 -> °C | E11: =B11 -> Ambiante (bulbe sec) | H11: 27 | I11: =D9 -> °C
C13: =CONCATENATE(B8," ",C9,"/",C10,"/",C11) -> Chauffer: 75/65/20 | E13: =CONCATENATE(G8," ",H9,"/",H10,"/",H11) -> Refroidir: 16/20/27 | G13: Volume d'eau | H13: Puissance absorbée elec. [W] | I13: Pression sonore [dB(A)]**** | J13: Puissance sonore [dB(A)]****
C14: Puissance de chauffer | D14: Débit d'eau | E14: Puissance de refroidir | F14: =D14 -> Débit d'eau
A15: Ventilateur éteint (indicative) | C15: =data!U5 ->  | D15: =data!Y5 ->  | G15: =data!AZ$5 -> 
A16: EN16430 | B16: Vitesse ventilateur | C16: =data!V5 ->  | D16: =data!Z5 ->  | E16: =data!AQ5 ->  | F16: =data!AT5 ->  | G16: =data!AZ$5 ->  | H16: =data!BA5 ->  | I16: =data!J5 -> 
B17: Vitesse du ventilateur 2 | C17: =data!W5 ->  | D17: =data!AA5 ->  | E17: =data!AR5 ->  | F17: =data!AU5 ->  | G17: =data!AZ$5 ->  | H17: =data!BB5 ->  | I17: =data!K5 -> 
B18: Vitesse du ventilateur 3 | C18: =data!X5 ->  | D18: =data!AB5 ->  | E18: =data!AS5 ->  | F18: =data!AV5 ->  | G18: =data!AZ$5 ->  | H18: =data!BC5 ->  | I18: =data!L5 -> 
B19: Tension ventilateur [V] | I19: ='LowH2O DBH'!M35 -> v2021-02-02
A20: * | B20: La puissance de refroidissement est calculée selon EN 16430 avec des ventilateurs qui soufflent pour toutes les hauteurs.
A21: ** | B21: Lorsque le volume d'eau est donné en gallons, ce sont des gallons impérial.
A22: *** | B22: Puissance acoustique selon ISO 3741: 2010, niveau de pression acoustique avec un amortissement de la pièce supposé de 8 dB(A).

Sheet DE (hidden)
B1: Selectiontool Strada Hybrid
B3: Länge | C3: 1200 | D3: mm | E3: Eingabefelder | F3: Statisches Gerät | G3: rel. Luftf. | H3: Unit
B4: Höhe | C4: 500 | D4: =D3 -> mm | E4: Ausführung | F4: Hybrid Gerät | G4: Einheiten
B5: Typ | C5: 16 | E5: Temperaturen | F5: DBH rail typ | G5: Gerät
B6: Tiefe | C6: =data!H5 ->  | D6: =D3 -> mm | E6: Wenn die Lüfter ausgeschaltet sind, ist der Ausgang ein Richtwert. | F6: zug. wassers. Druckverlust
B8: Heizen: | G8: Kühlen:
B9: Vorlauf wasser | C9: 75 | D9: =IF(data!BZ2=1,"°C",IF(data!BZ2=2,"°F",)) -> °C | E9: =B9 -> Vorlauf wasser | H9: 16 | I9: =D9 -> °C
B10: Rücklauf wasser | C10: 65 | D10: =D9 -> °C | E10: =B10 -> Rücklauf wasser | H10: 20 | I10: =D9 -> °C
B11: Raum (trocken) | C11: 20 | D11: =D9 -> °C | E11: =B11 -> Raum (trocken) | H11: 27 | I11: =D9 -> °C
